Workbook

Sheet Анализ
B1: ИНФОРМАЦИЯ об исполнении Комплексного плана развития Суксунского городского округа в 2022-2023 годах и планируемых объемах финансирования на 2024-2026 годы
A3: Наименование отрасли / направления | B3: 2022 | F3: 2023 | AG3: 2024–2026 | BH3: 2027-2030
B4: Предусмотрено КПР, всего | C4: Исполнение КПР | F4: Предусмотрено КПР, всего | G4: КПР с учетом изменений | J4: Обеспечено | R4: Не обеспечено | AG4: Предусмотрено КПР, всего | AH4: КПР с учетом изменений | AK4: Обеспечено | AS4: Не обеспечено | BH4: Предусмотрено КПР, всего
C5: Всего | D5: отклонение от предусмотрено КПР | G5: Всего | H5: отклонение от предусмотрено КПР | J5: Всего | L5: софинанс. под ФБ | O5: КБ | P5: МБ | Q5: ВБ | R5: Всего | T5: дополнительная потребность, не обеспеченная фин-ем | AC5: не обеспечено фин-ем | AH5: Всего | AI5: отклонение от предусмотрено КПР | AK5: Всего | AM5: софинанс. под ФБ | AP5: КБ | AQ5: МБ | AR5: ВБ | AS5: Всего | AU5: дополнительная потребность, не обеспеченная фин-ем | BD5: не обеспечено фин-ем
T6: Всего | U6: прогноз под софинанс. из ФБ | X6: софинанс. под ФБ | AA6: софинанс. под КБ | AC6: Всего | AD6: МБ | AE6: ВБ | AF6: Источник не определен | AU6: Всего | AV6: прогноз под софинанс. из ФБ | AY6: софинанс. под ФБ | BB6: софинанс. под КБ | BD6: Всего | BE6: МБ | BF6: ВБ | BG6: Источник не определен
D7: млн руб. | E7: % | H7: млн руб. | I7: % | J7: млн руб. | K7: % | L7: ФБ | M7: КБ | N7: МБ | R7: млн руб. | S7: % | U7: ФБ | V7: КБ | W7: МБ | X7: ФБ | Y7: КБ | Z7: МБ | AA7: КБ | AB7: МБ | AI7: млн руб. | AJ7: % | AK7: млн руб. | AL7: % | AM7: ФБ | AN7: КБ | AO7: МБ | AS7: млн руб. | AT7: % | AV7: ФБ | AW7: КБ | AX7: МБ | AY7: ФБ | AZ7: КБ | BA7: МБ | BB7: КБ | BC7: МБ
A8: 1 | B8: 2 | C8: 3 | D8: 4 | E8: 5 | F8: 6 | G8: 7 | H8: 8 | I8: 9 | J8: 10 | K8: 11 | L8: 12 | M8: 13 | N8: 14 | O8: 15 | P8: 16 | Q8: 17 | R8: 18 | S8: 19 | T8: 20 | U8: 21 | V8: 22 | W8: 23 | X8: 24 | Y8: 25 | Z8: 26 | AA8: 27 | AB8: 28 | AC8: 29 | AD8: 30 | AE8: 31 | AF8: 32 | AG8: 33 | AH8: 34 | AI8: 35 | AJ8: 36 | AK8: 37 | AL8: 38 | AM8: 39 | AN8: 40 | AO8: 41 | AP8: 42 | AQ8: 43 | AR8: 44 | AS8: 45 | AT8: 46 | AU8: 47 | AV8: 48 | AW8: 49 | AX8: 50 | AY8: 51 | AZ8: 52 | BA8: 53 | BB8: 54 | BC8: 55 | BD8: 56 | BE8: 57 | BF8: 58 | BG8: 59 | BH8: 60
A9: ИТОГО | B9: =GETPIVOTDATA("2022 (ПЛАН)",$A$11) -> 314.70373 | C9: =GETPIVOTDATA("2022 (ФАКТ)",$A$11) -> 311.68073 | D9: =GETPIVOTDATA("2022 Отклонение ",$A$11) -> -3.023 | E9: =GETPIVOTDATA("2022 отклонение % ",$A$11) -> 0.9903941399 | F9: =GETPIVOTDATA("2023 (ПЛАН)",$A$11) -> 229.21 | G9: =GETPIVOTDATA("2023 (ПРОГНОЗ)",$A$11) -> 278.887 | H9: =GETPIVOTDATA("2023 отклонение ",$A$11) -> 49.677 | I9: =GETPIVOTDATA("2023 отклонение %",$A$11) -> 1.216731382 | J9: =GETPIVOTDATA("2023 обеспечено",$A$11) -> 270.317 | K9: =GETPIVOTDATA("2023 обеспечено % ",$A$11) -> 0.9692707082 | L9: =GETPIVOTDATA("2023 (обеспечено) ФБ ",$A$11) -> 35.417 | M9: =GETPIVOTDATA("2023 (обеспечено) КБ под ФБ ",$A$11) -> 0.875 | N9: =GETPIVOTDATA("2023 (обеспечено) МБ под ФБ ",$A$11) -> 1.325 | O9: =GETPIVOTDATA("2023 (обеспечено) КБ ",$A$11) -> 164.502 | P9: =GETPIVOTDATA("2023 (обеспечено) МБ ",$A$11) -> 44.128 | Q9: =GETPIVOTDATA("2023 (обеспечено) ВБ ",$A$11) -> 24.07 | R9: =GETPIVOTDATA("2023 не обеспечено ",$A$11) -> 8.57 | S9: =GETPIVOTDATA("2023 не обеспечено % ",$A$11) -> 0.03072929179 | T9: =GETPIVOTDATA("2023 (доп. потребность) ИТОГО ",$A$11) -> 0 | U9: =GETPIVOTDATA("2023 (доп. потребность) ФБ (прогноз) ",$A$11) -> 0 | V9: =GETPIVOTDATA("2023 (доп. потребность) КБ (прогноз) ",$A$11) -> 0 | W9: =GETPIVOTDATA("2023 (доп. потребность) МБ (прогноз) ",$A$11) -> 0 | X9: =GETPIVOTDATA("2023 (доп. потребность) ФБ ",$A$11) -> 0 | Y9: =GETPIVOTDATA("2023 (доп. потребность) КБ под ФБ ",$A$11) -> 0 | Z9: =GETPIVOTDATA("2023 (доп. потребность) МБ под ФБ ",$A$11) -> 0 | AA9: =GETPIVOTDATA("2023 (доп. потребность) КБ ",$A$11) -> 0 | AB9: =GETPIVOTDATA("2023 (доп. потребность) МБ ",$A$11) -> 0 | AC9: =GETPIVOTDATA("2023 (не обеспечено) ИТОГО ",$A$11) -> 8.57 | AD9: =GETPIVOTDATA("2023 (не обеспечено) МБ ",$A$11) -> 0 | AE9: =GETPIVOTDATA("2023 (не обеспечено) ВБ ",$A$11) -> 0 | AF9: =GETPIVOTDATA("2023 (не обеспечено) ИНО ",$A$11) -> 8.57 | AG9: =GETPIVOTDATA("2024-2026 (ПЛАН) ",$A$11) -> 655.108 | AH9: =GETPIVOTDATA("2024-2026 (ПРОГНОЗ) ",$A$11) -> 829.078 | AI9: =GETPIVOTDATA("2024-2026 отклонение ",$A$11) -> 173.97 | AJ9: =GETPIVOTDATA("2024-2026 отклонение % ",$A$11) -> 1.265559267 | AK9: =GETPIVOTDATA("2024-2026 (обеспечено) ",$A$11) -> 578.042 | AL9: =GETPIVOTDATA("2024-2026 обеспечено % ",$A$11) -> 0.6972106364 | AM9: =GETPIVOTDATA("2024-2026 (обеспечено) ФБ ",$A$11) -> 26.315 | AN9: =GETPIVOTDATA("2024-2026 (обеспечено) КБ под ФБ ",$A$11) -> 3.209 | AO9: =GETPIVOTDATA("2024-2026 (обеспечено) МБ под ФБ ",$A$11) -> 6.059 | AP9: =GETPIVOTDATA("2024-2026 (обеспечено) КБ ",$A$11) -> 401.018 | AQ9: =GETPIVOTDATA("2024-2026 (обеспечено) МБ ",$A$11) -> 94.521 | AR9: =GETPIVOTDATA("2024-2026 (обеспечено) ВБ ",$A$11) -> 46.92 | AS9: =GETPIVOTDATA("2024-2026 не обеспечено ",$A$11) -> 251.036 | AT9: =GETPIVOTDATA("2024-2026 не обеспечено % ",$A$11) -> 0.3027893636 | AU9: =GETPIVOTDATA("2024-2026 (доп. потребность) ИТОГО ",$A$11) -> 240.836 | AV9: =GETPIVOTDATA("2024-2026 (доп. потребность) ФБ (прогноз) ",$A$11) -> 133.3 | AW9: =GETPIVOTDATA("2024-2026 (доп. потребность) КБ (прогноз) ",$A$11) -> 7.02 | AX9: =GETPIVOTDATA("2024-2026 (доп. потребность) МБ (прогноз) ",$A$11) -> 0.7 | AY9: =GETPIVOTDATA("2024-2026 (доп. потребность) ФБ ",$A$11) -> 7.32 | AZ9: =GETPIVOTDATA("2024-2026 (доп. потребность) КБ под ФБ ",$A$11) -> 0.76 | BA9: =GETPIVOTDATA("2024-2026 (доп. потребность) МБ под ФБ ",$A$11) -> 0.975 | BB9: =GETPIVOTDATA("2024-2026 (доп. потребность) КБ ",$A$11) -> 65.706 | BC9: =GETPIVOTDATA("2024-2026 (доп. потребность) МБ ",$A$11) -> 25.055 | BD9: =GETPIVOTDATA("2024-2026 (не обеспечено) ИТОГО ",$A$11) -> 10.2 | BE9: =GETPIVOTDATA("2024-2026 (не обеспечено) МБ ",$A$11) -> 0 | BF9: =GETPIVOTDATA("2024-2026 (не обеспечено) ВБ ",$A$11) -> 5 | BG9: =GETPIVOTDATA("2024-2026 (не обеспечено) ИНО ",$A$11) -> 10.2 | BH9: =GETPIVOTDATA("2027-2030 (ПЛАН)",$A$11) -> 1890.48
A11: Названия строк | B11: 2022 (ПЛАН) | C11: 2022 (ФАКТ) | D11: 2022 отклонение | E11: 2022 отклонение % | F11: 2023 (ПЛАН) | G11: 2023 (ПРОГНОЗ) | H11: 2023 отклонение | I11: 2023 отклонение % | J11: 2023 обеспечено | K11: 2023 обеспечено % | L11: 2023 (обеспечено) ФБ | M11: 2023 (обеспечено) КБ под ФБ | N11: 2023 (обеспечено) МБ под ФБ | O11: 2023 (обеспечено) КБ | P11: 2023 (обеспечено) МБ | Q11: 2023 (обеспечено) ВБ | R11: 2023 не обеспечено | S11: 2023 не обеспечено % | T11: 2023 (доп. потребность) ИТОГО | U11: 2023 (доп. потребность) ФБ (прогноз) | V11: 2023 (доп. потребность) КБ (прогноз) | W11: 2023 (доп. потребность) МБ (прогноз) | X11: 2023 (доп. потребность) ФБ | Y11: 2023 (доп. потребность) КБ под ФБ | Z11: 2023 (доп. потребность) МБ под ФБ | AA11: 2023 (доп. потребность) КБ | AB11: 2023 (доп. потребность) МБ | AC11: 2023 (не обеспечено) ИТОГО | AD11: 2023 (не обеспечено) МБ | AE11: 2023 (не обеспечено) ВБ | AF11: 2023 (не обеспечено) ИНО | AG11: 2024-2026 (ПЛАН) | AH11: 2024-2026 (ПРОГНОЗ) | AI11: 2024-2026 отклонение | AJ11: 2024-2026 отклонение % | AK11: 2024-2026 (обеспечено) | AL11: 2024-2026 обеспечено % | AM11: 2024-2026 (обеспечено) ФБ | AN11: 2024-2026 (обеспечено) КБ под ФБ | AO11: 2024-2026 (обеспечено) МБ под ФБ | AP11: 2024-2026 (обеспечено) КБ | AQ11: 2024-2026 (обеспечено) МБ | AR11: 2024-2026 (обеспечено) ВБ | AS11: 2024-2026 не обеспечено | AT11: 2024-2026 не обеспечено % | AU11: 2024-2026 (доп. потребность) ИТОГО | AV11: 2024-2026 (доп. потребность) ФБ (прогноз) | AW11: 2024-2026 (доп. потребность) КБ (прогноз) | AX11: 2024-2026 (доп. потребность) МБ (прогноз) | AY11: 2024-2026 (доп. потребность) ФБ | AZ11: 2024-2026 (доп. потребность) КБ под ФБ | BA11: 2024-2026 (доп. потребность) МБ под ФБ | BB11: 2024-2026 (доп. потребность) КБ | BC11: 2024-2026 (доп. потребность) МБ | BD11: 2024-2026 (не обеспечено) ИТОГО | BE11: 2024-2026 (не обеспечено) МБ | BF11: 2024-2026 (не обеспечено) ВБ | BG11: 2024-2026 (не обеспечено) ИНО | BH11: 2027-2030 (ПЛАН)
A12: ОБРАЗОВАНИЕ | B12: 16.56 | C12: 16.272 | D12: -0.288 | E12: 0.9826086957 | F12: 41.47 | G12: 48.72 | H12: 7.25 | I12: 1.174825175 | J12: 41.72 | K12: 0.8563218391 | L12: 0 | M12: 0 | N12: 0 | O12: 35.39 | P12: 6.33 | Q12: 0 | R12: 7 | S12: 0.1436781609 | T12: 0 | U12: 0 | V12: 0 | W12: 0 | X12: 0 | Y12: 0 | Z12: 0 | AA12: 0 | AB12: 0 | AC12: 7 | AD12: 0 | AE12: 0 | AF12: 7 | AG12: 260.6 | AH12: 172.7 | AI12: -87.9 | AJ12: 0.6627014582 | AK12: 172.7 | AL12: 1 | AM12: 0 | AN12: 0 | AO12: 0 | AP12: 170.99 | AQ12: 1.71 | AR12: 0 | AS12: 0 | AT12: 0 | AU12: 0 | AV12: 0 | AW12: 0 | AX12: 0 | AY12: 0 | AZ12: 0 | BA12: 0 | BB12: 0 | BC12: 0 | BD12: 0 | BE12: 0 | BF12: 0 | BG12: 0 | BH12: 72.6
A13: СПОРТ | B13: 0 | C13: 0 | D13: 0 | E13: 0 | F13: 3.26 | G13: 3.26 | H13: 0 | I13: 1 | J13: 3.26 | K13: 1 | L13: 0 | M13: 0 | N13: 0 | O13: 2.45 | P13: 0.81 | Q13: 0 | R13: 0 | S13: 0 | T13: 0 | U13: 0 | V13: 0 | W13: 0 | X13: 0 | Y13: 0 | Z13: 0 | AA13: 0 | AB13: 0 | AC13: 0 | AD13: 0 | AE13: 0 | AF13: 0 | AG13: 25.03 | AH13: 31.294 | AI13: 6.264 | AJ13: 1.250259688 | AK13: 0 | AL13: 0 | AM13: 0 | AN13: 0 | AO13: 0 | AP13: 0 | AQ13: 0 | AR13: 0 | AS13: 31.294 | AT13: 1 | AU13: 31.294 | AV13: 0 | AW13: 0 | AX13: 0 | AY13: 0 | AZ13: 0 | BA13: 0 | BB13: 16.669 | BC13: 14.625 | BD13: 0 | BE13: 0 | BF13: 0 | BG13: 0 | BH13: 107.6
A14: КУЛЬТУРА | B14: 9.12 | C14: 8.01 | D14: -1.11 | E14: 0.8782894737 | F14: 16.66 | G14: 2.33 | H14: -14.33 | I14: 0.1398559424 | J14: 2.33 | K14: 1 | L14: 0 | M14: 0 | N14: 0 | O14: 1.62 | P14: 0.71 | Q14: 0 | R14: 0 | S14: 0 | T14: 0 | U14: 0 | V14: 0 | W14: 0 | X14: 0 | Y14: 0 | Z14: 0 | AA14: 0 | AB14: 0 | AC14: 0 | AD14: 0 | AE14: 0 | AF14: 0 | AG14: 50.8 | AH14: 62.405 | AI14: 11.605 | AJ14: 1.228444882 | AK14: 15.35 | AL14: 0.2459738803 | AM14: 0 | AN14: 0 | AO14: 0 | AP14: 10.86 | AQ14: 4.49 | AR14: 0 | AS14: 47.055 | AT14: 0.7540261197 | AU14: 47.055 | AV14: 0 | AW14: 0 | AX14: 0 | AY14: 7.32 | AZ14: 0.76 | BA14: 0.975 | BB14: 30.48 | BC14: 7.52 | BD14: 0 | BE14: 0 | BF14: 0 | BG14: 0 | BH14: 20
A15: ЗДРАВООХРАНЕНИЕ | B15: 18.84 | C15: 18.59 | D15: -0.25 | E15: 0.9867303609 | F15: 2.5 | G15: 4.05 | H15: 1.55 | I15: 1.62 | J15: 4.05 | K15: 1 | L15: 2.5 | M15: 0.25 | N15: 0 | O15: 1.3 | P15: 0 | Q15: 0 | R15: 0 | S15: 0 | T15: 0 | U15: 0 | V15: 0 | W15: 0 | X15: 0 | Y15: 0 | Z15: 0 | AA15: 0 | AB15: 0 | AC15: 0 | AD15: 0 | AE15: 0 | AF15: 0 | AG15: 0 | AH15: 15.5 | AI15: 15.5 | AJ15: 0 | AK15: 15.5 | AL15: 1 | AM15: 0 | AN15: 0 | AO15: 0 | AP15: 15.5 | AQ15: 0 | AR15: 0 | AS15: 0 | AT15: 0 | AU15: 0 | AV15: 0 | AW15: 0 | AX15: 0 | AY15: 0 | AZ15: 0 | BA15: 0 | BB15: 0 | BC15: 0 | BD15: 0 | BE15: 0 | BF15: 0 | BG15: 0 | BH15: 1.2
A16: ТУРИЗМ | B16: 0.27 | C16: 8.95 | D16: 8.68 | E16: 33.14814815 | F16: 14.2 | G16: 7.64 | H16: -6.56 | I16: 0.538028169 | J16: 7.64 | K16: 1 | L16: 4.56 | M16: 0.24 | N16: 0 | O16: 0 | P16: 0 | Q16: 2.84 | R16: 0 | S16: 0 | T16: 0 | U16: 0 | V16: 0 | W16: 0 | X16: 0 | Y16: 0 | Z16: 0 | AA16: 0 | AB16: 0 | AC16: 0 | AD16: 0 | AE16: 0 | AF16: 0 | AG16: 0 | AH16: 0 | AI16: 0 | AJ16: 0 | AK16: 0 | AL16: 0 | AM16: 0 | AN16: 0 | AO16: 0 | AP16: 0 | AQ16: 0 | AR16: 0 | AS16: 0 | AT16: 0 | AU16: 0 | AV16: 0 | AW16: 0 | AX16: 0 | AY16: 0 | AZ16: 0 | BA16: 0 | BB16: 0 | BC16: 0 | BD16: 0 | BE16: 0 | BF16: 0 | BG16: 0 | BH16: 0
A17: ЖИЛИЩНОЕ СТРОИТЕЛЬСТВО | B17: 6.12 | C17: 6.02 | D17: -0.1 | E17: 0.9836601307 | F17: 6.12 | G17: 8.71 | H17: 2.59 | I17: 1.423202614 | J17: 8.71 | K17: 1 | L17: 0 | M17: 0 | N17: 0 | O17: 8.68 | P17: 0.03 | Q17: 0 | R17: 0 | S17: 0 | T17: 0 | U17: 0 | V17: 0 | W17: 0 | X17: 0 | Y17: 0 | Z17: 0 | AA17: 0 | AB17: 0 | AC17: 0 | AD17: 0 | AE17: 0 | AF17: 0 | AG17: 20.82 | AH17: 6.63 | AI17: -14.19 | AJ17: 0.318443804 | AK17: 5.52 | AL17: 0.8325791855 | AM17: 0 | AN17: 0 | AO17: 0 | AP17: 5.52 | AQ17: 0 | AR17: 0 | AS17: 1.11 | AT17: 0.1674208145 | AU17: 1.11 | AV17: 0 | AW17: 0 | AX17: 0 | AY17: 0 | AZ17: 0 | BA17: 0 | BB17: 1.1 | BC17: 0.01 | BD17: 0 | BE17: 0 | BF17: 0 | BG17: 0 | BH17: 11.97
A18: БЛАГОУСТРОЙСТВО | B18: 10.71273 | C18: 10.13273 | D18: -0.58 | E18: 0.9458588054 | F18: 11.02 | G18: 14.213 | H18: 3.193 | I18: 1.289745917 | J18: 14.213 | K18: 1 | L18: 7.357 | M18: 0.385 | N18: 1.325 | O18: 4.872 | P18: 0.274 | Q18: 0 | R18: 0 | S18: 0 | T18: 0 | U18: 0 | V18: 0 | W18: 0 | X18: 0 | Y18: 0 | Z18: 0 | AA18: 0 | AB18: 0 | AC18: 0 | AD18: 0 | AE18: 0 | AF18: 0 | AG18: 38.552 | AH18: 47.723 | AI18: 9.171 | AJ18: 1.237886491 | AK18: 44.963 | AL18: 0.9421662511 | AM18: 26.315 | AN18: 3.209 | AO18: 6.059 | AP18: 6.64 | AQ18: 2.54 | AR18: 0.2 | AS18: 2.76 | AT18: 0.05783374893 | AU18: 2.76 | AV18: 0 | AW18: 0 | AX18: 0 | AY18: 0 | AZ18: 0 | BA18: 0 | BB18: 2.72 | BC18: 0.04 | BD18: 0 | BE18: 0 | BF18: 0 | BG18: 0 | BH18: 49.5
A19: ЖКХ | B19: 126.04 | C19: 118.416 | D19: -7.624 | E19: 0.9395112663 | F19: 91.08 | G19: 90.385 | H19: -0.695 | I19: 0.9923693456 | J19: 90.385 | K19: 1 | L19: 0 | M19: 0 | N19: 0 | O19: 57.465 | P19: 11.69 | Q19: 21.23 | R19: 0 | S19: 0 | T19: 0 | U19: 0 | V19: 0 | W19: 0 | X19: 0 | Y19: 0 | Z19: 0 | AA19: 0 | AB19: 0 | AC19: 0 | AD19: 0 | AE19: 0 | AF19: 0 | AG19: 74.9 | AH19: 101.017 | AI19: 26.117 | AJ19: 1.348691589 | AK19: 90.817 | AL19: 0.8990268965 | AM19: 0 | AN19: 0 | AO19: 0 | AP19: 23.579 | AQ19: 20.518 | AR19: 46.72 | AS19: 10.2 | AT19: 0.1009731035 | AU19: 0 | AV19: 0 | AW19: 0 | AX19: 0 | AY19: 0 | AZ19: 0 | BA19: 0 | BB19: 0 | BC19: 0 | BD19: 10.2 | BE19: 0 | BF19: 0 | BG19: 10.2 | BH19: 973.01
A20: ДОРОГИ, ТРАНСПОРТ | B20: 63.491 | C20: 63.5 | D20: 0.009 | E20: 1.000141752 | F20: 21.81 | G20: 64.348 | H20: 42.538 | I20: 2.950389729 | J20: 64.348 | K20: 1 | L20: 0 | M20: 0 | N20: 0 | O20: 52.725 | P20: 11.623 | Q20: 0 | R20: 0 | S20: 0 | T20: 0 | U20: 0 | V20: 0 | W20: 0 | X20: 0 | Y20: 0 | Z20: 0 | AA20: 0 | AB20: 0 | AC20: 0 | AD20: 0 | AE20: 0 | AF20: 0 | AG20: 131.2 | AH20: 262.703 | AI20: 131.503 | AJ20: 2.002309451 | AK20: 113.686 | AL20: 0.4327548601 | AM20: 0 | AN20: 0 | AO20: 0 | AP20: 102.339 | AQ20: 11.347 | AR20: 0 | AS20: 149.017 | AT20: 0.5672451399 | AU20: 149.017 | AV20: 133.3 | AW20: 7.02 | AX20: 0.7 | AY20: 0 | AZ20: 0 | BA20: 0 | BB20: 7.537 | BC20: 0.46 | BD20: 0 | BE20: 0 | BF20: 5 | BG20: 0 | BH20: 397.1
A21: БЕЗОПАСНОСТЬ | B21: 7.38 | C21: 5.62 | D21: -1.76 | E21: 0.7615176152 | F21: 5.6 | G21: 8.391 | H21: 2.791 | I21: 1.498392857 | J21: 7.331 | K21: 0.8736741747 | L21: 0 | M21: 0 | N21: 0 | O21: 0 | P21: 7.331 | Q21: 0 | R21: 1.06 | S21: 0.1263258253 | T21: 0 | U21: 0 | V21: 0 | W21: 0 | X21: 0 | Y21: 0 | Z21: 0 | AA21: 0 | AB21: 0 | AC21: 1.06 | AD21: 0 | AE21: 0 | AF21: 1.06 | AG21: 51.366 | AH21: 111.996 | AI21: 60.63 | AJ21: 2.180352763 | AK21: 111.996 | AL21: 1 | AM21: 0 | AN21: 0 | AO21: 0 | AP21: 65.59 | AQ21: 46.406 | AR21: 0 | AS21: 0 | AT21: 0 | AU21: 0 | AV21: 0 | AW21: 0 | AX21: 0 | AY21: 0 | AZ21: 0 | BA21: 0 | BB21: 0 | BC21: 0 | BD21: 0 | BE21: 0 | BF21: 0 | BG21: 0 | BH21: 247
A22: ИНОЕ | B22: 0 | C22: 0 | D22: 0 | E22: 0 | F22: 0 | G22: 0 | H22: 0 | I22: 0 | J22: 0 | K22: 0 | L22: 0 | M22: 0 | N22: 0 | O22: 0 | P22: 0 | Q22: 0 | R22: 0 | S22: 0 | T22: 0 | U22: 0 | V22: 0 | W22: 0 | X22: 0 | Y22: 0 | Z22: 0 | AA22: 0 | AB22: 0 | AC22: 0 | AD22: 0 | AE22: 0 | AF22: 0 | AG22: 0 | AH22: 0 | AI22: 0 | AJ22: 0 | AK22: 0 | AL22: 0 | AM22: 0 | AN22: 0 | AO22: 0 | AP22: 0 | AQ22: 0 | AR22: 0 | AS22: 0 | AT22: 0 | AU22: 0 | AV22: 0 | AW22: 0 | AX22: 0 | AY22: 0 | AZ22: 0 | BA22: 0 | BB22: 0 | BC22: 0 | BD22: 0 | BE22: 0 | BF22: 0 | BG22: 0 | BH22: 0
A23: ОКН | B23: 0 | C23: 0 | D23: 0 | E23: 0 | F23: 0 | G23: 0 | H23: 0 | I23: 0 | J23: 0 | K23: 0 | L23: 0 | M23: 0 | N23: 0 | O23: 0 | P23: 0 | Q23: 0 | R23: 0 | S23: 0 | T23: 0 | U23: 0 | V23: 0 | W23: 0 | X23: 0 | Y23: 0 | Z23: 0 | AA23: 0 | AB23: 0 | AC23: 0 | AD23: 0 | AE23: 0 | AF23: 0 | AG23: 0 | AH23: 0 | AI23: 0 | AJ23: 0 | AK23: 0 | AL23: 0 | AM23: 0 | AN23: 0 | AO23: 0 | AP23: 0 | AQ23: 0 | AR23: 0 | AS23: 0 | AT23: 0 | AU23: 0 | AV23: 0 | AW23: 0 | AX23: 0 | AY23: 0 | AZ23: 0 | BA23: 0 | BB23: 0 | BC23: 0 | BD23: 0 | BE23: 0 | BF23: 0 | BG23: 0 | BH23: 4.5
A24: ЦИФРОВАЯ ТРАНСФОРМАЦИЯ | B24: 56.17 | C24: 56.17 | D24: 0 | E24: 1 | F24: 15.49 | G24: 25.19 | H24: 9.7 | I24: 1.626210458 | J24: 24.68 | K24: 0.9797538706 | L24: 21 | M24: 0 | N24: 0 | O24: 0 | P24: 3.68 | Q24: 0 | R24: 0.51 | S24: 0.02024612942 | T24: 0 | U24: 0 | V24: 0 | W24: 0 | X24: 0 | Y24: 0 | Z24: 0 | AA24: 0 | AB24: 0 | AC24: 0.51 | AD24: 0 | AE24: 0 | AF24: 0.51 | AG24: 1.84 | AH24: 6.76 | AI24: 4.92 | AJ24: 3.673913043 | AK24: 6.76 | AL24: 1 | AM24: 0 | AN24: 0 | AO24: 0 | AP24: 0 | AQ24: 6.76 | AR24: 0 | AS24: 0 | AT24: 0 | AU24: 0 | AV24: 0 | AW24: 0 | AX24: 0 | AY24: 0 | AZ24: 0 | BA24: 0 | BB24: 0 | BC24: 0 | BD24: 0 | BE24: 0 | BF24: 0 | BG24: 0 | BH24: 1
A25: ЭКОЛОГИЯ | B25: 0 | C25: 0 | D25: 0 | E25: 0 | F25: 0 | G25: 1.65 | H25: 1.65 | I25: 0 | J25: 1.65 | K25: 1 | L25: 0 | M25: 0 | N25: 0 | O25: 0 | P25: 1.65 | Q25: 0 | R25: 0 | S25: 0 | T25: 0 | U25: 0 | V25: 0 | W25: 0 | X25: 0 | Y25: 0 | Z25: 0 | AA25: 0 | AB25: 0 | AC25: 0 | AD25: 0 | AE25: 0 | AF25: 0 | AG25: 0 | AH25: 10.35 | AI25: 10.35 | AJ25: 0 | AK25: 0.75 | AL25: 0.07246376812 | AM25: 0 | AN25: 0 | AO25: 0 | AP25: 0 | AQ25: 0.75 | AR25: 0 | AS25: 9.6 | AT25: 0.9275362319 | AU25: 9.6 | AV25: 0 | AW25: 0 | AX25: 0 | AY25: 0 | AZ25: 0 | BA25: 0 | BB25: 7.2 | BC25: 2.4 | BD25: 0 | BE25: 0 | BF25: 0 | BG25: 0 | BH25: 0
A26: МОЛОДЕЖНАЯ ПОЛИТИКА | B26: 0 | C26: 0 | D26: 0 | E26: 0 | F26: 0 | G26: 0 | H26: 0 | I26: 0 | J26: 0 | K26: 0 | L26: 0 | M26: 0 | N26: 0 | O26: 0 | P26: 0 | Q26: 0 | R26: 0 | S26: 0 | T26: 0 | U26: 0 | V26: 0 | W26: 0 | X26: 0 | Y26: 0 | Z26: 0 | AA26: 0 | AB26: 0 | AC26: 0 | AD26: 0 | AE26: 0 | AF26: 0 | AG26: 0 | AH26: 0 | AI26: 0 | AJ26: 0 | AK26: 0 | AL26: 0 | AM26: 0 | AN26: 0 | AO26: 0 | AP26: 0 | AQ26: 0 | AR26: 0 | AS26: 0 | AT26: 0 | AU26: 0 | AV26: 0 | AW26: 0 | AX26: 0 | AY26: 0 | AZ26: 0 | BA26: 0 | BB26: 0 | BC26: 0 | BD26: 0 | BE26: 0 | BF26: 0 | BG26: 0 | BH26: 5
A27: ИТОГО | B27: 314.70373 | C27: 311.68073 | D27: -3.023 | E27: 0.9903941399 | F27: 229.21 | G27: 278.887 | H27: 49.677 | I27: 1.216731382 | J27: 270.317 | K27: 0.9692707082 | L27: 35.417 | M27: 0.875 | N27: 1.325 | O27: 164.502 | P27: 44.128 | Q27: 24.07 | R27: 8.57 | S27: 0.03072929179 | T27: 0 | U27: 0 | V27: 0 | W27: 0 | X27: 0 | Y27: 0 | Z27: 0 | AA27: 0 | AB27: 0 | AC27: 8.57 | AD27: 0 | AE27: 0 | AF27: 8.57 | AG27: 655.108 | AH27: 829.078 | AI27: 173.97 | AJ27: 1.265559267 | AK27: 578.042 | AL27: 0.6972106364 | AM27: 26.315 | AN27: 3.209 | AO27: 6.059 | AP27: 401.018 | AQ27: 94.521 | AR27: 46.92 | AS27: 251.036 | AT27: 0.3027893636 | AU27: 240.836 | AV27: 133.3 | AW27: 7.02 | AX27: 0.7 | AY27: 7.32 | AZ27: 0.76 | BA27: 0.975 | BB27: 65.706 | BC27: 25.055 | BD27: 10.2 | BE27: 0 | BF27: 5 | BG27: 10.2 | BH27: 1890.48

Sheet СВОД
AA1: Приложение 2 к Методическим рекомендациям по внесению изменений в комплексные планы развития муниципальных образований Пермского края
I2: ПЕРЕЧЕНЬ И ОБЪЕМ ФИНАНСИРОВАНИЯ МЕРОПРИЯТИЙ КОМПЛЕКСНОГО ПЛАНА РАЗВИТИЯ
I4: наименование муниципального образования Пермского края
FF5: млн руб.
A6: № п/п | B6: Направление (отрасль) | C6: Наименование мероприятия (объекта) / адрес | D6: Наличие ПСД/сметной документации (да / нет / не требуется, год) | E6: НПА об утверждении порядка по распределению средств (номер, дата / МБ / ВБ / источник не определен) | F6: Ответственный ИОГВ | G6: Укрупненный перечень работ | H6: Вид работ (строительство / реконструкция / кап. ремонт / ремонт / устройство / благоустройство / приобретение / иное) | I6: Краткое описание вносимых изменений по мероприятию (отдельно в разрезе указанных видов изменений) | P6: 2022 | AD6: 2023 | BK6: 2024 | CR6: 2025 | DY6: 2026 | FF6: 2027-2030
P7: Общая потребность в КПР МО (ПЛАН) | V7: Общая потребность в КПР МО (ФАКТ), в т.ч.: | AB7: % исполнения плана | AC7: Комментарий (выполнено / в работе / не выполнено), причины невыполнения, планируемый срок | AD7: Общая потребность в КПР МО (ПЛАН) | AJ7: Общая потребность в КПР МО (ПРОГНОЗ), в т.ч.: | AP7: обеспечено финансированием | AW7: дополнительная потребность, не обеспеченная финансированием (под поданные заявки) | BF7: не обеспечено финансированием | BJ7: Комментарий (выполнено / в работе / не выполнено), причины невыполнения, планируемый срок | BK7: Общая потребность в КПР МО (ПЛАН) | BQ7: Общая потребность в КПР МО (ПРОГНОЗ), в т.ч.: | BW7: обеспечено финансированием | CD7: дополнительная потребность, не обеспеченная финансированием (под поданные заявки) | CM7: не обеспечено финансированием | CQ7: Комментарий (выполнено / в работе / не выполнено), причины невыполнения, планируемый срок | CR7: Общая потребность в КПР МО (ПЛАН) | CX7: Общая потребность в КПР МО (ПРОГНОЗ), в т.ч.: | DD7: обеспечено финансированием | DK7: дополнительная потребность, не обеспеченная финансированием (под поданные заявки) | DT7: не обеспечено финансированием | DX7: Комментарий (выполнено / в работе / не выполнено), причины невыполнения, планируемый срок | DY7: Общая потребность в КПР МО (ПЛАН) | EE7: Общая потребность в КПР МО (ПРОГНОЗ), в т.ч.: | EK7: обеспечено финансированием | ER7: дополнительная потребность, не обеспеченная финансированием (под поданные заявки) | FA7: не обеспечено финансированием | FE7: Комментарий (выполнено / в работе / не выполнено), причины невыполнения, планируемый срок | FF7: Общая потребность в КПР МО (ПЛАН)
I8: изменение наименования мероприятия | J8: изменение периода реализации мероприятия | K8: изменение стомости мероприятия | L8: изменение НПА по распределению средств | M8: замена объекта на аналогичный по отрасли и объему фин-я | N8: включение нового мероприятия с источником фин-я | O8: включение нового мероприятия без источника фин-я | P8: Всего, в т.ч. | Q8: ФБ | R8: КБ | S8: МБ | T8: ВБ | U8: Источник не определен | V8: Всего, в т.ч. | W8: ФБ | X8: КБ | Y8: МБ | Z8: ВБ | AA8: Источник не определен | AD8: Всего, в т.ч. | AE8: ФБ | AF8: КБ | AG8: МБ | AH8: ВБ | AI8: Источник не определен | AJ8: Всего, в т.ч. | AK8: ФБ | AL8: КБ | AM8: МБ | AN8: ВБ | AO8: Источник не определен | AP8: Всего, в т.ч. | AQ8: Софинанс. под ФБ | AT8: КБ | AU8: МБ | AV8: ВБ | AW8: Всего, в т.ч. | AX8: Прогноз под софинанс. из ФБ | BA8: Не обеспечено (под софинанс. из ФБ) | BD8: Не обеспечено (под софинанс. из КБ) | BF8: Всего, в т.ч. | BG8: МБ | BH8: ВБ | BI8: Источник не определен | BK8: Всего, в т.ч. | BL8: ФБ | BM8: КБ | BN8: МБ | BO8: ВБ | BP8: Источник не определен | BQ8: Всего, в т.ч. | BR8: ФБ | BS8: КБ | BT8: МБ | BU8: ВБ | BV8: Источник не определен | BW8: Всего, в т.ч. | BX8: Софинанс. под ФБ | CA8: КБ | CB8: МБ | CC8: ВБ | CD8: Всего, в т.ч. | CE8: Прогноз под софинанс. из ФБ | CH8: Не обеспечено (под софинанс. из ФБ) | CK8: Не обеспечено (под софинанс. из КБ) | CM8: Всего, в т.ч. | CN8: МБ | CO8: ВБ | CP8: Источник не определен | CR8: Всего, в т.ч. | CS8: ФБ | CT8: КБ | CU8: МБ | CV8: ВБ | CW8: Источник не определен | CX8: Всего, в т.ч. | CY8: ФБ | CZ8: КБ | DA8: МБ | DB8: ВБ | DC8: Источник не определен | DD8: Всего, в т.ч. | DE8: Софинанс. под ФБ | DH8: КБ | DI8: МБ | DJ8: ВБ | DK8: Всего, в т.ч. | DL8: Прогноз под софинанс. из ФБ | DO8: Не обеспечено (под софинанс. из ФБ) | DR8: Не обеспечено (под софинанс. из КБ) | DT8: Всего, в т.ч. | DU8: МБ | DV8: ВБ | DW8: Источник не определен | DY8: Всего, в т.ч. | DZ8: ФБ | EA8: КБ | EB8: МБ | EC8: ВБ | ED8: Источник не определен | EE8: Всего, в т.ч. | EF8: ФБ | EG8: КБ | EH8: МБ | EI8: ВБ | EJ8: Источник не определен | EK8: Всего, в т.ч. | EL8: Софинанс. под ФБ | EO8: КБ | EP8: МБ | EQ8: ВБ | ER8: Всего, в т.ч. | ES8: Прогноз под софинанс. из ФБ | EV8: Не обеспечено (под софинанс. из ФБ) | EY8: Не обеспечено (под софинанс. из КБ) | FA8: Всего, в т.ч. | FB8: МБ | FC8: ВБ | FD8: Источник не определен
AQ9: ФБ | AR9: КБ | AS9: МБ | AX9: ФБ | AY9: КБ | AZ9: МБ | BA9: ФБ | BB9: КБ | BC9: МБ | BD9: КБ | BE9: МБ | BX9: ФБ | BY9: КБ | BZ9: МБ | CE9: ФБ | CF9: КБ | CG9: МБ | CH9: ФБ | CI9: КБ | CJ9: МБ | CK9: КБ | CL9: МБ | DE9: ФБ | DF9: КБ | DG9: МБ | DL9: ФБ | DM9: КБ | DN9: МБ | DO9: ФБ | DP9: КБ | DQ9: МБ | DR9: КБ | DS9: МБ | EL9: ФБ | EM9: КБ | EN9: МБ | ES9: ФБ | ET9: КБ | EU9: МБ | EV9: ФБ | EW9: КБ | EX9: МБ | EY9: КБ | EZ9: МБ
A10: 1 | B10: 2 | C10: 3 | D10: 4 | E10: 5 | F10: 6 | G10: 7 | H10: 8 | I10: 9 | J10: 10 | K10: 11 | L10: 12 | M10: 13 | N10: 14 | O10: 15 | P10: 16 | Q10: 17 | R10: 18 | S10: 19 | T10: 20 | U10: 21 | V10: 22 | W10: 23 | X10: 24 | Y10: 25 | Z10: 26 | AA10: 27 | AB10: 28 | AC10: 29 | AD10: 30 | AE10: 31 | AF10: 32 | AG10: 33 | AH10: 34 | AI10: 35 | AJ10: 36 | AK10: 37 | AL10: 38 | AM10: 39 | AN10: 40 | AO10: 41 | AP10: 42 | AQ10: 43 | AR10: 44 | AS10: 45 | AT10: 46 | AU10: 47 | AV10: 48 | AW10: 49 | AX10: 50 | AY10: 51 | AZ10: 52 | BA10: 53 | BB10: 54 | BC10: 55 | BD10: 56 | BE10: 57 | BF10: 58 | BG10: 59 | BH10: 60 | BI10: 61 | BJ10: 62 | BK10: 63 | BL10: 64 | BM10: 65 | BN10: 66 | BO10: 67 | BP10: 68 | BQ10: 69 | BR10: 70 | BS10: 71 | BT10: 72 | BU10: 73 | BV10: 74 | BW10: 75 | BX10: 76 | BY10: 77 | BZ10: 78 | CA10: 79 | CB10: 80 | CC10: 81 | CD10: 82 | CE10: 83 | CF10: 84 | CG10: 85 | CH10: 86 | CI10: 87 | CJ10: 88 | CK10: 89 | CL10: 90 | CM10: 91 | CN10: 92 | CO10: 93 | CP10: 94 | CQ10: 95 | CR10: 96 | CS10: 97 | CT10: 98 | CU10: 99 | CV10: 100 | CW10: 101 | CX10: 102 | CY10: 103 | CZ10: 104 | DA10: 105 | DB10: 106 | DC10: 107 | DD10: 108 | DE10: 109 | DF10: 110 | DG10: 111 | DH10: 112 | DI10: 113 | DJ10: 114 | DK10: 115 | DL10: 116 | DM10: 117 | DN10: 118 | DO10: 119 | DP10: 120 | DQ10: 121 | DR10: 122 | DS10: 123 | DT10: 124 | DU10: 125 | DV10: 126 | DW10: 127 | DX10: 128 | DY10: 129 | DZ10: 130 | EA10: 131 | EB10: 132 | EC10: 133 | ED10: 134 | EE10: 135 | EF10: 136 | EG10: 137 | EH10: 138 | EI10: 139 | EJ10: 140 | EK10: 141 | EL10: 142 | EM10: 143 | EN10: 144 | EO10: 145 | EP10: 146 | EQ10: 147 | ER10: 148 | ES10: 149 | ET10: 150 | EU10: 151 | EV10: 152 | EW10: 153 | EX10: 154 | EY10: 155 | EZ10: 156 | FA10: 157 | FB10: 158 | FC10: 159 | FD10: 160 | FE10: 161 | FF10: 162
B11: ИТОГО | C11: x | D11: x | E11: x | F11: x | G11: x | H11: x | I11: x | J11: x | K11: x | L11: x | M11: x | N11: x | O11: x | P11: =P18+P119+P220+P321+P422+P523+P624+P725+P826+P927+P1028+P1129+P1331+P1230 -> 314.70373 | Q11: =Q18+Q119+Q220+Q321+Q422+Q523+Q624+Q725+Q826+Q927+Q1028+Q1129+Q1331+Q1230 -> 76.838 | R11: 197.646 | S11: 33.259 | T11: 6.96073 | U11: 0 | V11: 311.68073 | W11: 82.108 | X11: 196.963 | Y11: 28.919 | Z11: 3.69073 | AA11: 0 | AB11: =IFERROR(V11/P11,"") -> 0.9903941399 | AC11: x | AD11: =AD18+AD119+AD220+AD321+AD422+AD523+AD624+AD725+AD826+AD927+AD1028+AD1129+AD1331+AD1230 -> 229.21 | AE11: 27.73 | AF11: 144.37 | AG11: 31.51 | AH11: 17.89 | AI11: 7.71 | AJ11: 278.887 | AK11: 35.417 | AL11: 165.377 | AM11: 45.453 | AN11: 24.07 | AO11: 8.57 | AP11: 270.317 | AQ11: 35.417 | AR11: 0.875 | AS11: 1.325 | AT11: 164.502 | AU11: 44.128 | AV11: 24.07 | AW11: 0 | AX11: 0 | AY11: 0 | AZ11: 0 | BA11: 0 | BB11: 0 | BC11: 0 | BD11: 0 | BE11: 0 | BF11: 8.57 | BG11: 0 | BH11: 0 | BI11: 8.57 | BJ11: x | BK11: 169.982 | BL11: 8.29 | BM11: 79.37 | BN11: 22.53 | BO11: 8.882 | BP11: 50.91 | BQ11: 383.35 | BR11: 151.673 | BS11: 178.718 | BT11: 34.559 | BU11: 18.4 | BV11: 0 | BW11: 213.134 | BX11: 11.463 | BY11: 2.414 | BZ11: 3.211 | CA11: 150.181 | CB11: 27.465 | CC11: 18.4 | CD11: 170.216 | CE11: 133.3 | CF11: 7.02 | CG11: 0.7 | CH11: 6.91 | CI11: 0.58 | CJ11: 0.825 | CK11: 18.523 | CL11: 2.358 | CM11: 0 | CN11: 0 | CO11: 0 | CP11: =CP18+CP119+CP220+CP321+CP422+CP523+CP624+CP725+CP826+CP927+CP1028+CP1129+CP1331+CP1230 -> 0 | CQ11: x | CR11: 355.56 | CS11: 0.56 | CT11: 213.77 | CU11: 28.7 | CV11: 12.82 | CW11: 99.71 | CX11: 290.19 | CY11: 7.582 | CZ11: 207.438 | DA11: 43.95 | DB11: 21.02 | DC11: 10.2 | DD11: 232.872 | DE11: 7.172 | DF11: 0.385 | DG11: 1.948 | DH11: 177.301 | DI11: 25.046 | DJ11: 21.02 | DK11: 47.118 | DL11: 0 | DM11: 0 | DN11: 0 | DO11: 0.41 | DP11: 0.18 | DQ11: 0.15 | DR11: 29.572 | DS11: 16.806 | DT11: 10.2 | DU11: 0 | DV11: 5 | DW11: 10.2 | DX11: x | DY11: 129.566 | DZ11: 19.95 | EA11: 9.215 | EB11: 39.401 | EC11: 0 | ED11: 61 | EE11: 155.538 | EF11: 7.68 | EG11: 91.557 | EH11: 48.801 | EI11: 7.5 | EJ11: 0 | EK11: 132.036 | EL11: 7.68 | EM11: 0.41 | EN11: 0.9 | EO11: 73.536 | EP11: 42.01 | EQ11: 7.5 | ER11: 23.502 | ES11: 0 | ET11: 0 | EU11: 0 | EV11: 0 | EW11: 0 | EX11: 0 | EY11: 17.611 | EZ11: 5.891 | FA11: 0 | FB11: =FB18+FB119+FB220+FB321+FB422+FB523+FB624+FB725+FB826+FB927+FB1028+FB1129+FB1331+FB1230 -> 0 | FC11: 0 | FD11: 0 | FE11: x | FF11: 1890.48
B12: ОБРАЗЕЦ ЗАПОЛНЕНИЯ | C12: x | D12: x | E12: x | F12: x | G12: x | H12: x | I12: x | J12: x | K12: x | L12: x | M12: x | N12: x | O12: x | P12: =SUM(P13:P112) -> 53.12 | Q12: 0 | R12: 34.76 | S12: 18.36 | T12: 0 | U12: 0 | V12: 42.544 | W12: 0 | X12: 29.198 | Y12: 13.346 | Z12: 0 | AA12: 0 | AB12: =IFERROR(V12/P12,"") -> 0.8009036145 | AC12: x | AD12: =SUM(AD13:AD112) -> 89.94 | AE12: 0 | AF12: 60.27 | AG12: 15.67 | AH12: 0 | AI12: 14 | AJ12: 162.44 | AK12: 0 | AL12: 103.53 | AM12: 44.91 | AN12: 0 | AO12: 14 | AP12: 147.44 | AQ12: 0 | AR12: 0 | AS12: 0 | AT12: 102.78 | AU12: 44.66 | AV12: 0 | AW12: 1 | AX12: 0 | AY12: 0 | AZ12: 0 | BA12: 0 | BB12: 0 | BC12: 0 | BD12: 0.75 | BE12: 0.25 | BF12: 14 | BG12: 0 | BH12: 0 | BI12: 14 | BJ12: x | BK12: =SUM(BK13:BK112) -> 50.78 | BL12: 0 | BM12: 26.58 | BN12: 2.4 | BO12: 0 | BP12: 21.8 | BQ12: 218.2 | BR12: 0 | BS12: 115.92 | BT12: 2.28 | BU12: 0 | BV12: 100 | BW12: 118.2 | BX12: 0 | BY12: 0 | BZ12: 0 | CA12: 115.92 | CB12: 2.28 | CC12: 0 | CD12: 0 | CE12: 0 | CF12: 0 | CG12: 0 | CH12: 0 | CI12: 0 | CJ12: 0 | CK12: 0 | CL12: 0 | CM12: 100 | CN12: 0 | CO12: 0 | CP12: 100 | CQ12: x | CR12: =SUM(CR13:CR112) -> 355.42 | CS12: 0 | CT12: 323.4 | CU12: 4.02 | CV12: 0 | CW12: 28 | CX12: 227.2 | CY12: 0 | CZ12: 226.06 | DA12: 1.14 | DB12: 0 | DC12: 0 | DD12: 227.2 | DE12: 0 | DF12: 0 | DG12: 0 | DH12: 226.06 | DI12: 1.14 | DJ12: 0 | DK12: 0 | DL12: 0 | DM12: 0 | DN12: 0 | DO12: 0 | DP12: 0 | DQ12: 0 | DR12: 0 | DS12: 0 | DT12: 0 | DU12: 0 | DV12: 0 | DW12: 0 | DX12: x | DY12: =SUM(DY13:DY112) -> 115 | DZ12: 0 | EA12: 0 | EB12: 0 | EC12: 0 | ED12: 115 | EE12: 0 | EF12: 0 | EG12: 0 | EH12: 0 | EI12: 0 | EJ12: 0 | EK12: 0 | EL12: 0 | EM12: 0 | EN12: 0 | EO12: 0 | EP12: 0 | EQ12: 0 | ER12: 0 | ES12: 0 | ET12: 0 | EU12: 0 | EV12: 0 | EW12: 0 | EX12: 0 | EY12: 0 | EZ12: 0 | FA12: 0 | FB12: 0 | FC12: 0 | FD12: 0 | FE12: x | FF12: =SUM(FF13:FF112) -> 145.2
A13: 1.1 | B13: ОБРАЗОВАНИЕ | C13: Капитальный ремонт МБДОУ "Детский сад №1" в с. Березовое | D13: да (2022) | E13: № 718-п от 21.11.2018 | F13: Министерство территориального развития ПК | G13: ремонт кровли здания | H13: капитальный ремонт | I13: В наименовании мероприятия вид работа замене с текущего ремонта на капитальный | J13: Реализация мероприятия перенесена с 2022 на 2023 год | P13: =Q13+R13+S13+T13+U13 -> 20 | R13: 10 | S13: 10 | V13: =W13+X13+Y13+Z13+AA13 -> 10 | X13: 5 | Y13: 5 | AB13: =IFERROR(V13/P13,"") -> 0.5 | AC13: НЕ ВЫПОЛНЕНО - реализация перенесена 2023 г. | AD13: =AE13+AF13+AG13+AH13+AI13 -> 0 | AJ13: =AK13+AL13+AM13+AN13+AO13 -> 10 | AK13: =AQ13+AX13+BA13 -> 0 | AL13: =AR13+AT13+AY13+BB13+BD13 -> 5 | AM13: =AS13+AU13+AZ13+BC13+BE13+BG13 -> 5 | AN13: =AV13+BH13 -> 0 | AO13: =BI13 -> 0 | AP13: =AV13+AU13+AT13+AS13+AR13+AQ13 -> 10 | AT13: 5 | AU13: 5 | AW13: =AX13+AY13+AZ13+BA13+BB13+BC13+BD13+BE13 -> 0 | BF13: =BG13+BH13+BI13 -> 0 | BJ13: В РАБОТЕ - срок завершения 31.08.2023 | BK13: =BL13+BM13+BN13+BO13+BP13 -> 0 | BQ13: =BR13+BS13+BT13+BU13+BV13 -> 0 | BR13: =BX13+CE13+CH13 -> 0 | BS13: =BY13+CA13+CF13+CI13+CK13 -> 0 | BT13: =BZ13+CB13+CG13+CJ13+CL13+CN13 -> 0 | BU13: =CC13+CO13 -> 0 | BV13: =CP13 -> 0 | BW13: =CC13+CB13+CA13+BZ13+BY13+BX13 -> 0 | CD13: =CE13+CF13+CG13+CH13+CI13+CJ13+CK13+CL13 -> 0 | CM13: =CN13+CO13+CP13 -> 0 | CR13: =CS13+CT13+CU13+CV13+CW13 -> 0 | CX13: =CY13+CZ13+DA13+DB13+DC13 -> 0 | CY13: =DE13+DL13+DO13 -> 0 | CZ13: =DF13+DH13+DM13+DP13+DR13 -> 0 | DA13: =DG13+DI13+DN13+DQ13+DS13+DU13 -> 0 | DB13: =DJ13+DV13 -> 0 | DC13: =DW13 -> 0 | DD13: =DJ13+DI13+DH13+DG13+DF13+DE13 -> 0 | DK13: =DL13+DM13+DN13+DO13+DP13+DQ13+DR13+DS13 -> 0 | DT13: =DU13+DV13+DW13 -> 0 | DY13: =DZ13+EA13+EB13+EC13+ED13 -> 0 | EE13: =EF13+EG13+EH13+EI13+EJ13 -> 0 | EF13: =EL13+ES13+EV13 -> 0 | EG13: =EM13+EO13+ET13+EW13+EY13 -> 0 | EH13: =EN13+EP13+EU13+EX13+EZ13+FB13 -> 0 | EI13: =EQ13+FC13 -> 0 | EJ13: =FD13 -> 0 | EK13: =EQ13+EP13+EO13+EN13+EM13+EL13 -> 0 | ER13: =ES13+ET13+EU13+EV13+EW13+EX13+EY13+EZ13 -> 0 | FA13: =FB13+FC13+FD13 -> 0
A14: 1.2 | B14: ОБРАЗОВАНИЕ | C14: Ремонт МБОУ "СОШ №2" в с. Сосновка | D14: да (2023) | E14: № 718-п от 21.11.2018 | F14: Министерство территориального развития ПК | G14: ремонт кабинетов | H14: ремонт | K14: Стоимость мероприятия уменьшена в связи с образовавшейся экономией | L14: Мероприятие реализуется в рамках Порядка 718-п вместо 206-п | P14: =Q14+R14+S14+T14+U14 -> 0 | V14: =W14+X14+Y14+Z14+AA14 -> 0 | AD14: 6 | AF14: 3 | AG14: 3 | AJ14: 4 | AK14: 0 | AL14: 2 | AM14: 2 | AN14: 0 | AO14: 0 | AP14: 4 | AT14: 2 | AU14: 2 | AW14: 0 | BF14: 0 | BJ14: В РАБОТЕ - срок завершения 01.09.2023 | BK14: 0 | BQ14: 0 | BR14: 0 | BS14: 0 | BT14: 0 | BU14: 0 | BV14: 0 | BW14: 0 | CD14: 0 | CM14: 0 | CR14: 0 | CX14: 0 | CY14: 0 | CZ14: 0 | DA14: 0 | DB14: 0 | DC14: 0 | DD14: 0 | DK14: 0 | DT14: 0 | DY14: 0 | EE14: 0 | EF14: 0 | EG14: 0 | EH14: 0 | EI14: 0 | EJ14: 0 | EK14: 0 | ER14: 0 | FA14: 0
A15: 1.3 | B15: ОБРАЗОВАНИЕ | C15: Благоустройство территории МАОУ "СОШ №1" в с. Пермское | D15: нет | E15: № 206-п от 10.04.2015 | F15: Министерство территориального развития ПК | G15: устройство ограждения | H15: благоустройство | M15: Мероприятие планируется реализовать в с. Пермское вместо с. Камское | P15: 0 | V15: 0 | AD15: 1 | AF15: 0.75 | AG15: 0.25 | AJ15: 1 | AK15: 0 | AL15: 0.75 | AM15: 0.25 | AN15: 0 | AO15: 0 | AP15: 0 | AW15: 1 | BD15: 0.75 | BE15: 0.25 | BF15: 0 | BJ15: НЕ ВЫПОЛНЕНО - планируется направление заявки до 01.08.2023 | BK15: 0 | BQ15: 0 | BR15: 0 | BS15: 0 | BT15: 0 | BU15: 0 | BV15: 0 | BW15: 0 | CD15: 0 | CM15: 0 | CR15: 0 | CX15: 0 | CY15: 0 | CZ15: 0 | DA15: 0 | DB15: 0 | DC15: 0 | DD15: 0 | DK15: 0 | DT15: 0 | DY15: 0 | EE15: 0 | EF15: 0 | EG15: 0 | EH15: 0 | EI15: 0 | EJ15: 0 | EK15: 0 | ER15: 0 | FA15: 0
A16: 1.4 | B16: ОБРАЗОВАНИЕ | C16: Строительство детского сада на 100 мест в с. Красное | D16: да (2023) | E16: № 718-п от 21.11.2018 | F16: Министерство территориального развития ПК | G16: строительство здания детского сада | H16: строительство | N16: Новое мероприятие планируется реализовать в 2023 г. в рамках 718-п | P16: 0 | V16: 0 | AD16: 0 | AJ16: 50 | AK16: 0 | AL16: 25 | AM16: 25 | AN16: 0 | AO16: 0 | AP16: 50 | AT16: 25 | AU16: 25 | AW16: 0 | BF16: 0 | BK16: 0 | BQ16: 0 | BR16: 0 | BS16: 0 | BT16: 0 | BU16: 0 | BV16: 0 | BW16: 0 | CD16: 0 | CM16: 0 | CR16: 0 | CX16: 0 | CY16: 0 | CZ16: 0 | DA16: 0 | DB16: 0 | DC16: 0 | DD16: 0 | DK16: 0 | DT16: 0 | DY16: 0 | EE16: 0 | EF16: 0 | EG16: 0 | EH16: 0 | EI16: 0 | EJ16: 0 | EK16: 0 | ER16: 0 | FA16: 0
A17: 1.5 | B17: ОБРАЗОВАНИЕ | C17: Строительство школы на 60 мест в пос. Горный | D17: да (2023) | E17: Источник не определен | G17: строительство здания школы | H17: строительство | O17: Новое мероприятие планируется реализовать в 2024 г. (источник не определен) | P17: 0 | V17: 0 | AD17: 0 | AJ17: 0 | AK17: 0 | AL17: 0 | AM17: 0 | AN17: 0 | AO17: =BI17 -> 0 | AP17: 0 | AW17: 0 | BF17: 0 | BK17: 0 | BQ17: 100 | BR17: 0 | BS17: 0 | BT17: 0 | BU17: 0 | BV17: 100 | BW17: 0 | CD17: 0 | CM17: 100 | CP17: 100 | CR17: 0 | CX17: 0 | CY17: 0 | CZ17: 0 | DA17: 0 | DB17: 0 | DC17: 0 | DD17: 0 | DK17: 0 | DT17: 0 | DY17: 0 | EE17: 0 | EF17: 0 | EG17: 0 | EH17: 0 | EI17: 0 | EJ17: 0 | EK17: 0 | ER17: 0 | FA17: 0
A18: 1 | B18: ОБРАЗОВАНИЕ | C18: =Образование!F12 -> x | D18: =Образование!G12 -> x | E18: =Образование!H12 -> x | F18: =Образование!I12 -> x | G18: =Образование!J12 -> x | H18: =Образование!K12 -> x | I18: =Образование!L12 -> x | J18: =Образование!M12 -> x | K18: =Образование!N12 -> x | L18: =Образование!O12 -> x | M18: =Образование!P12 -> x | N18: =Образование!Q12 -> x | O18: =Образование!R12 -> x | P18: =Образование!S12 -> 16.56 | Q18: =Образование!T12 -> 0 | R18: =Образование!U12 -> 12.38 | S18: =Образование!V12 -> 4.18 | T18: =Образование!W12 -> 0 | U18: =Образование!X12 -> 0 | V18: =Образование!Y12 -> 16.272 | W18: =Образование!Z12 -> 0 | X18: =Образование!AA12 -> 12.099 | Y18: =Образование!AB12 -> 4.173 | Z18: =Образование!AC12 -> 0 | AA18: =Образование!AD12 -> 0 | AB18: =Образование!AE12 -> 0.9826086957 | AC18: =Образование!AF12 -> x | AD18: =Образование!AG12 -> 41.47 | AE18: =Образование!AH12 -> 0 | AF18: =Образование!AI12 -> 28.26 | AG18: =Образование!AJ12 -> 6.21 | AH18: =Образование!AK12 -> 0 | AI18: =Образование!AL12 -> 7 | AJ18: =Образование!AM12 -> 48.72 | AK18: =Образование!AN12 -> 0 | AL18: =Образование!AO12 -> 35.39 | AM18: =Образование!AP12 -> 6.33 | AN18: =Образование!AQ12 -> 0 | AO18: =Образование!AR12 -> 7 | AP18: =Образование!AS12 -> 41.72 | AQ18: =Образование!AT12 -> 0 | AR18: =Образование!AU12 -> 0 | AS18: =Образование!AV12 -> 0 | AT18: =Образование!AW12 -> 35.39 | AU18: =Образование!AX12 -> 6.33 | AV18: =Образование!AY12 -> 0 | AW18: =Образование!AZ12 -> 0 | AX18: =Образование!BA12 -> 0 | AY18: =Образование!BB12 -> 0 | AZ18: =Образование!BC12 -> 0 | BA18: =Образование!BD12 -> 0 | BB18: =Образование!BE12 -> 0 | BC18: =Образование!BF12 -> 0 | BD18: =Образование!BG12 -> 0 | BE18: =Образование!BH12 -> 0 | BF18: =Образование!BI12 -> 7 | BG18: =Образование!BJ12 -> 0 | BH18: =Образование!BK12 -> 0 | BI18: =Образование!BL12 -> 7 | BJ18: =Образование!BM12 -> x | BK18: =Образование!BN12 -> 25.39 | BL18: =Образование!BO12 -> 0 | BM18: =Образование!BP12 -> 13.29 | BN18: =Образование!BQ12 -> 1.2 | BO18: =Образование!BR12 -> 0 | BP18: =Образование!BS12 -> 10.9 | BQ18: =Образование!BT12 -> 59.1 | BR18: =Образование!BU12 -> 0 | BS18: =Образование!BV12 -> 57.96 | BT18: =Образование!BW12 -> 1.14 | BU18: =Образование!BX12 -> 0 | BV18: =Образование!BY12 -> 0 | BW18: =Образование!BZ12 -> 59.1 | BX18: =Образование!CA12 -> 0 | BY18: =Образование!CB12 -> 0 | BZ18: =Образование!CC12 -> 0 | CA18: =Образование!CD12 -> 57.96 | CB18: =Образование!CE12 -> 1.14 | CC18: =Образование!CF12 -> 0 | CD18: =Образование!CG12 -> 0 | CE18: =Образование!CH12 -> 0 | CF18: =Образование!CI12 -> 0 | CG18: =Образование!CJ12 -> 0 | CH18: =Образование!CK12 -> 0 | CI18: =Образование!CL12 -> 0 | CJ18: =Образование!CM12 -> 0 | CK18: =Образование!CN12 -> 0 | CL18: =Образование!CO12 -> 0 | CM18: =Образование!CP12 -> 0 | CN18: =Образование!CQ12 -> 0 | CO18: =Образование!CR12 -> 0 | CP18: =Образование!CS12 -> 0 | CQ18: =Образование!CT12 -> x | CR18: =Образование!CU12 -> 177.71 | CS18: =Образование!CV12 -> 0 | CT18: =Образование!CW12 -> 161.7 | CU18: =Образование!CX12 -> 2.01 | CV18: =Образование!CY12 -> 0 | CW18: =Образование!CZ12 -> 14 | CX18: =Образование!DA12 -> 113.6 | CY18: =Образование!DB12 -> 0 | CZ18: =Образование!DC12 -> 113.03 | DA18: =Образование!DD12 -> 0.57 | DB18: =Образование!DE12 -> 0 | DC18: =Образование!DF12 -> 0 | DD18: =Образование!DG12 -> 113.6 | DE18: =Образование!DH12 -> 0 | DF18: =Образование!DI12 -> 0 | DG18: =Образование!DJ12 -> 0 | DH18: =Образование!DK12 -> 113.03 | DI18: =Образование!DL12 -> 0.57 | DJ18: =Образование!DM12 -> 0 | DK18: =Образование!DN12 -> 0 | DL18: =Образование!DO12 -> 0 | DM18: =Образование!DP12 -> 0 | DN18: =Образование!DQ12 -> 0 | DO18: =Образование!DR12 -> 0 | DP18: =Образование!DS12 -> 0 | DQ18: =Образование!DT12 -> 0 | DR18: =Образование!DU12 -> 0 | DS18: =Образование!DV12 -> 0 | DT18: =Образование!DW12 -> 0 | DU18: =Образование!DX12 -> 0 | DV18: =Образование!DY12 -> 0 | DW18: =Образование!DZ12 -> 0 | DX18: =Образование!EA12 -> x | DY18: =Образование!EB12 -> 57.5 | DZ18: =Образование!EC12 -> 0 | EA18: =Образование!ED12 -> 0 | EB18: =Образование!EE12 -> 0 | EC18: =Образование!EF12 -> 0 | ED18: =Образование!EG12 -> 57.5 | EE18: =Образование!EH12 -> 0 | EF18: =Образование!EI12 -> 0 | EG18: =Образование!EJ12 -> 0 | EH18: =Образование!EK12 -> 0 | EI18: =Образование!EL12 -> 0 | EJ18: =Образование!EM12 -> 0 | EK18: =Образование!EN12 -> 0 | EL18: =Образование!EO12 -> 0 | EM18: =Образование!EP12 -> 0 | EN18: =Образование!EQ12 -> 0 | EO18: =Образование!ER12 -> 0 | EP18: =Образование!ES12 -> 0 | EQ18: =Образование!ET12 -> 0 | ER18: =Образование!EU12 -> 0 | ES18: =Образование!EV12 -> 0 | ET18: =Образование!EW12 -> 0 | EU18: =Образование!EX12 -> 0 | EV18: =Образование!EY12 -> 0 | EW18: =Образование!EZ12 -> 0 | EX18: =Образование!FA12 -> 0 | EY18: =Образование!FB12 -> 0 | EZ18: =Образование!FC12 -> 0 | FA18: =Образование!FD12 -> 0 | FB18: =Образование!FE12 -> 0 | FC18: =Образование!FF12 -> 0 | FD18: =Образование!FG12 -> 0 | FE18: =Образование!FH12 -> x | FF18: =Образование!FI12 -> 72.6
A19: 1.1 | B19: ОБРАЗОВАНИЕ | C19: =Образование!F13 -> Ремонт крыши МОУ "Бреховская ООШ" | D19: =Образование!G13 -> да | E19: =Образование!H13 -> Постановление Правительства Пермского края от 10.04.2015 №206-п | F19: =Образование!I13 -> Министерство территориального развития Пермского края | G19: =Образование!J13 -> общестроительные работы | H19: =Образование!K13 -> ремонт | I19: =Образование!L13 -> 0 | J19: =Образование!M13 -> 0 | K19: =Образование!N13 -> 0 | L19: =Образование!O13 -> 0 | M19: =Образование!P13 -> 0 | N19: =Образование!Q13 -> 0 | O19: =Образование!R13 -> 0 | P19: =Образование!S13 -> 2.5 | Q19: =Образование!T13 -> 0 | R19: =Образование!U13 -> 1.9 | S19: =Образование!V13 -> 0.6 | T19: =Образование!W13 -> 0 | U19: =Образование!X13 -> 0 | V19: =Образование!Y13 -> 2.5 | W19: =Образование!Z13 -> 0 | X19: =Образование!AA13 -> 1.9 | Y19: =Образование!AB13 -> 0.6 | Z19: =Образование!AC13 -> 0 | AA19: =Образование!AD13 -> 0 | AB19: =Образование!AE13 -> 1 | AC19: =Образование!AF13 -> выполнено | AD19: =Образование!AG13 -> 0 | AE19: =Образование!AH13 -> 0 | AF19: =Образование!AI13 -> 0 | AG19: =Образование!AJ13 -> 0 | AH19: =Образование!AK13 -> 0 | AI19: =Образование!AL13 -> 0 | AJ19: =Образование!AM13 -> 0 | AK19: =Образование!AN13 -> 0 | AL19: =Образование!AO13 -> 0 | AM19: =Образование!AP13 -> 0 | AN19: =Образование!AQ13 -> 0 | AO19: =Образование!AR13 -> 0 | AP19: =Образование!AS13 -> 0 | AQ19: =Образование!AT13 -> 0 | AR19: =Образование!AU13 -> 0 | AS19: =Образование!AV13 -> 0 | AT19: =Образование!AW13 -> 0 | AU19: =Образование!AX13 -> 0 | AV19: =Образование!AY13 -> 0 | AW19: =Образование!AZ13 -> 0 | AX19: =Образование!BA13 -> 0 | AY19: =Образование!BB13 -> 0 | AZ19: =Образование!BC13 -> 0 | BA19: =Образование!BD13 -> 0 | BB19: =Образование!BE13 -> 0 | BC19: =Образование!BF13 -> 0 | BD19: =Образование!BG13 -> 0 | BE19: =Образование!BH13 -> 0 | BF19: =Образование!BI13 -> 0 | BG19: =Образование!BJ13 -> 0 | BH19: =Образование!BK13 -> 0 | BI19: =Образование!BL13 -> 0 | BJ19: =Образование!BM13 -> 0 | BK19: =Образование!BN13 -> 0 | BL19: =Образование!BO13 -> 0 | BM19: =Образование!BP13 -> 0 | BN19: =Образование!BQ13 -> 0 | BO19: =Образование!BR13 -> 0 | BP19: =Образование!BS13 -> 0 | BQ19: =Образование!BT13 -> 0 | BR19: =Образование!BU13 -> 0 | BS19: =Образование!BV13 -> 0 | BT19: =Образование!BW13 -> 0 | BU19: =Образование!BX13 -> 0 | BV19: =Образование!BY13 -> 0 | BW19: =Образование!BZ13 -> 0 | BX19: =Образование!CA13 -> 0 | BY19: =Образование!CB13 -> 0 | BZ19: =Образование!CC13 -> 0 | CA19: =Образование!CD13 -> 0 | CB19: =Образование!CE13 -> 0 | CC19: =Образование!CF13 -> 0 | CD19: =Образование!CG13 -> 0 | CE19: =Образование!CH13 -> 0 | CF19: =Образование!CI13 -> 0 | CG19: =Образование!CJ13 -> 0 | CH19: =Образование!CK13 -> 0 | CI19: =Образование!CL13 -> 0 | CJ19: =Образование!CM13 -> 0 | CK19: =Образование!CN13 -> 0 | CL19: =Образование!CO13 -> 0 | CM19: =Образование!CP13 -> 0 | CN19: =Образование!CQ13 -> 0 | CO19: =Образование!CR13 -> 0 | CP19: =Образование!CS13 -> 0 | CQ19: =Образование!CT13 -> 0 | CR19: =Образование!CU13 -> 0 | CS19: =Образование!CV13 -> 0 | CT19: =Образование!CW13 -> 0 | CU19: =Образование!CX13 -> 0 | CV19: =Образование!CY13 -> 0 | CW19: =Образование!CZ13 -> 0 | CX19: =Образование!DA13 -> 0 | CY19: =Образование!DB13 -> 0 | CZ19: =Образование!DC13 -> 0 | DA19: =Образование!DD13 -> 0 | DB19: =Образование!DE13 -> 0 | DC19: =Образование!DF13 -> 0 | DD19: =Образование!DG13 -> 0 | DE19: =Образование!DH13 -> 0 | DF19: =Образование!DI13 -> 0 | DG19: =Образование!DJ13 -> 0 | DH19: =Образование!DK13 -> 0 | DI19: =Образование!DL13 -> 0 | DJ19: =Образование!DM13 -> 0 | DK19: =Образование!DN13 -> 0 | DL19: =Образование!DO13 -> 0 | DM19: =Образование!DP13 -> 0 | DN19: =Образование!DQ13 -> 0 | DO19: =Образование!DR13 -> 0 | DP19: =Образование!DS13 -> 0 | DQ19: =Образование!DT13 -> 0 | DR19: =Образование!DU13 -> 0 | DS19: =Образование!DV13 -> 0 | DT19: =Образование!DW13 -> 0 | DU19: =Образование!DX13 -> 0 | DV19: =Образование!DY13 -> 0 | DW19: =Образование!DZ13 -> 0 | DX19: =Образование!EA13 -> 0 | DY19: =Образование!EB13 -> 0 | DZ19: =Образование!EC13 -> 0 | EA19: =Образование!ED13 -> 0 | EB19: =Образование!EE13 -> 0 | EC19: =Образование!EF13 -> 0 | ED19: =Образование!EG13 -> 0 | EE19: =Образование!EH13 -> 0 | EF19: =Образование!EI13 -> 0 | EG19: =Образование!EJ13 -> 0 | EH19: =Образование!EK13 -> 0 | EI19: =Образование!EL13 -> 0 | EJ19: =Образование!EM13 -> 0 | EK19: =Образование!EN13 -> 0 | EL19: =Образование!EO13 -> 0 | EM19: =Образование!EP13 -> 0 | EN19: =Образование!EQ13 -> 0 | EO19: =Образование!ER13 -> 0 | EP19: =Образование!ES13 -> 0 | EQ19: =Образование!ET13 -> 0 | ER19: =Образование!EU13 -> 0 | ES19: =Образование!EV13 -> 0 | ET19: =Образование!EW13 -> 0 | EU19: =Образование!EX13 -> 0 | EV19: =Образование!EY13 -> 0 | EW19: =Образование!EZ13 -> 0 | EX19: =Образование!FA13 -> 0 | EY19: =Образование!FB13 -> 0 | EZ19: =Образование!FC13 -> 0 | FA19: =Образование!FD13 -> 0 | FB19: =Образование!FE13 -> 0 | FC19: =Образование!FF13 -> 0 | FD19: =Образование!FG13 -> 0 | FE19: =Образование!FH13 -> 0 | FF19: =Образование!FI13 -> 0
A20: 1.2 | B20: ОБРАЗОВАНИЕ | C20: =Образование!F14 -> Ремонты в зданиях по адресу: п.Суксун, ул.Вишневая,2, п.Суксун,ул.Чапаева,18 и п.Суксун,ул.Интернациональная,3 | D20: =Образование!G14 -> да | E20: =Образование!H14 -> Постановление Правительства Пермского края от 10.04.2015 №206-п | F20: =Образование!I14 -> Министерство территориального развития Пермского края | G20: =Образование!J14 -> общестроительные работы | H20: =Образование!K14 -> ремонт | I20: =Образование!L14 -> 0 | J20: =Образование!M14 -> 0 | K20: =Образование!N14 -> 0 | L20: =Образование!O14 -> 0 | M20: =Образование!P14 -> 0 | N20: =Образование!Q14 -> 0 | O20: =Образование!R14 -> 0 | P20: =Образование!S14 -> 2.6 | Q20: =Образование!T14 -> 0 | R20: =Образование!U14 -> 2 | S20: =Образование!V14 -> 0.6 | T20: =Образование!W14 -> 0 | U20: =Образование!X14 -> 0 | V20: =Образование!Y14 -> 2.4 | W20: =Образование!Z14 -> 0 | X20: =Образование!AA14 -> 1.8 | Y20: =Образование!AB14 -> 0.6 | Z20: =Образование!AC14 -> 0 | AA20: =Образование!AD14 -> 0 | AB20: =Образование!AE14 -> 0.9230769231 | AC20: =Образование!AF14 -> выполнено | AD20: =Образование!AG14 -> 0 | AE20: =Образование!AH14 -> 0 | AF20: =Образование!AI14 -> 0 | AG20: =Образование!AJ14 -> 0 | AH20: =Образование!AK14 -> 0 | AI20: =Образование!AL14 -> 0 | AJ20: =Образование!AM14 -> 0 | AK20: =Образование!AN14 -> 0 | AL20: =Образование!AO14 -> 0 | AM20: =Образование!AP14 -> 0 | AN20: =Образование!AQ14 -> 0 | AO20: =Образование!AR14 -> 0 | AP20: =Образование!AS14 -> 0 | AQ20: =Образование!AT14 -> 0 | AR20: =Образование!AU14 -> 0 | AS20: =Образование!AV14 -> 0 | AT20: =Образование!AW14 -> 0 | AU20: =Образование!AX14 -> 0 | AV20: =Образование!AY14 -> 0 | AW20: =Образование!AZ14 -> 0 | AX20: =Образование!BA14 -> 0 | AY20: =Образование!BB14 -> 0 | AZ20: =Образование!BC14 -> 0 | BA20: =Образование!BD14 -> 0 | BB20: =Образование!BE14 -> 0 | BC20: =Образование!BF14 -> 0 | BD20: =Образование!BG14 -> 0 | BE20: =Образование!BH14 -> 0 | BF20: =Образование!BI14 -> 0 | BG20: =Образование!BJ14 -> 0 | BH20: =Образование!BK14 -> 0 | BI20: =Образование!BL14 -> 0 | BJ20: =Образование!BM14 -> 0 | BK20: =Образование!BN14 -> 0 | BL20: =Образование!BO14 -> 0 | BM20: =Образование!BP14 -> 0 | BN20: =Образование!BQ14 -> 0 | BO20: =Образование!BR14 -> 0 | BP20: =Образование!BS14 -> 0 | BQ20: =Образование!BT14 -> 0 | BR20: =Образование!BU14 -> 0 | BS20: =Образование!BV14 -> 0 | BT20: =Образование!BW14 -> 0 | BU20: =Образование!BX14 -> 0 | BV20: =Образование!BY14 -> 0 | BW20: =Образование!BZ14 -> 0 | BX20: =Образование!CA14 -> 0 | BY20: =Образование!CB14 -> 0 | BZ20: =Образование!CC14 -> 0 | CA20: =Образование!CD14 -> 0 | CB20: =Образование!CE14 -> 0 | CC20: =Образование!CF14 -> 0 | CD20: =Образование!CG14 -> 0 | CE20: =Образование!CH14 -> 0 | CF20: =Образование!CI14 -> 0 | CG20: =Образование!CJ14 -> 0 | CH20: =Образование!CK14 -> 0 | CI20: =Образование!CL14 -> 0 | CJ20: =Образование!CM14 -> 0 | CK20: =Образование!CN14 -> 0 | CL20: =Образование!CO14 -> 0 | CM20: =Образование!CP14 -> 0 | CN20: =Образование!CQ14 -> 0 | CO20: =Образование!CR14 -> 0 | CP20: =Образование!CS14 -> 0 | CQ20: =Образование!CT14 -> 0 | CR20: =Образование!CU14 -> 0 | CS20: =Образование!CV14 -> 0 | CT20: =Образование!CW14 -> 0 | CU20: =Образование!CX14 -> 0 | CV20: =Образование!CY14 -> 0 | CW20: =Образование!CZ14 -> 0 | CX20: =Образование!DA14 -> 0 | CY20: =Образование!DB14 -> 0 | CZ20: =Образование!DC14 -> 0 | DA20: =Образование!DD14 -> 0 | DB20: =Образование!DE14 -> 0 | DC20: =Образование!DF14 -> 0 | DD20: =Образование!DG14 -> 0 | DE20: =Образование!DH14 -> 0 | DF20: =Образование!DI14 -> 0 | DG20: =Образование!DJ14 -> 0 | DH20: =Образование!DK14 -> 0 | DI20: =Образование!DL14 -> 0 | DJ20: =Образование!DM14 -> 0 | DK20: =Образование!DN14 -> 0 | DL20: =Образование!DO14 -> 0 | DM20: =Образование!DP14 -> 0 | DN20: =Образование!DQ14 -> 0 | DO20: =Образование!DR14 -> 0 | DP20: =Образование!DS14 -> 0 | DQ20: =Образование!DT14 -> 0 | DR20: =Образование!DU14 -> 0 | DS20: =Образование!DV14 -> 0 | DT20: =Образование!DW14 -> 0 | DU20: =Образование!DX14 -> 0 | DV20: =Образование!DY14 -> 0 | DW20: =Образование!DZ14 -> 0 | DX20: =Образование!EA14 -> 0 | DY20: =Образование!EB14 -> 0 | DZ20: =Образование!EC14 -> 0 | EA20: =Образование!ED14 -> 0 | EB20: =Образование!EE14 -> 0 | EC20: =Образование!EF14 -> 0 | ED20: =Образование!EG14 -> 0 | EE20: =Образование!EH14 -> 0 | EF20: =Образование!EI14 -> 0 | EG20: =Образование!EJ14 -> 0 | EH20: =Образование!EK14 -> 0 | EI20: =Образование!EL14 -> 0 | EJ20: =Образование!EM14 -> 0 | EK20: =Образование!EN14 -> 0 | EL20: =Образование!EO14 -> 0 | EM20: =Образование!EP14 -> 0 | EN20: =Образование!EQ14 -> 0 | EO20: =Образование!ER14 -> 0 | EP20: =Образование!ES14 -> 0 | EQ20: =Образование!ET14 -> 0 | ER20: =Образование!EU14 -> 0 | ES20: =Образование!EV14 -> 0 | ET20: =Образование!EW14 -> 0 | EU20: =Образование!EX14 -> 0 | EV20: =Образование!EY14 -> 0 | EW20: =Образование!EZ14 -> 0 | EX20: =Образование!FA14 -> 0 | EY20: =Образование!FB14 -> 0 | EZ20: =Образование!FC14 -> 0 | FA20: =Образование!FD14 -> 0 | FB20: =Образование!FE14 -> 0 | FC20: =Образование!FF14 -> 0 | FD20: =Образование!FG14 -> 0 | FE20: =Образование!FH14 -> 0 | FF20: =Образование!FI14 -> 0
A21: 1.3 | B21: ОБРАЗОВАНИЕ | C21: =Образование!F15 -> Ремонт крыши здания МДОУ "Суксунский детский сад "Колосок" ул.Вишневая,2 | D21: =Образование!G15 -> да | E21: =Образование!H15 -> Постановление Правительства Пермского края от 10.04.2015 №206-п | F21: =Образование!I15 -> Министерство территориального развития Пермского края | G21: =Образование!J15 -> общестроительные работы | H21: =Образование!K15 -> ремонт | I21: =Образование!L15 -> 0 | J21: =Образование!M15 -> 0 | K21: =Образование!N15 -> 0 | L21: =Образование!O15 -> 0 | M21: =Образование!P15 -> 0 | N21: =Образование!Q15 -> 0 | O21: =Образование!R15 -> 0 | P21: =Образование!S15 -> 0 | Q21: =Образование!T15 -> 0 | R21: =Образование!U15 -> 0 | S21: =Образование!V15 -> 0 | T21: =Образование!W15 -> 0 | U21: =Образование!X15 -> 0 | V21: =Образование!Y15 -> 0 | W21: =Образование!Z15 -> 0 | X21: =Образование!AA15 -> 0 | Y21: =Образование!AB15 -> 0 | Z21: =Образование!AC15 -> 0 | AA21: =Образование!AD15 -> 0 | AB21: =Образование!AE15 ->  | AC21: =Образование!AF15 -> 0 | AD21: =Образование!AG15 -> 4.21 | AE21: =Образование!AH15 -> 0 | AF21: =Образование!AI15 -> 3.16 | AG21: =Образование!AJ15 -> 1.05 | AH21: =Образование!AK15 -> 0 | AI21: =Образование!AL15 -> 0 | AJ21: =Образование!AM15 -> 2.9 | AK21: =Образование!AN15 -> 0 | AL21: =Образование!AO15 -> 2.2 | AM21: =Образование!AP15 -> 0.7 | AN21: =Образование!AQ15 -> 0 | AO21: =Образование!AR15 -> 0 | AP21: =Образование!AS15 -> 2.9 | AQ21: =Образование!AT15 -> 0 | AR21: =Образование!AU15 -> 0 | AS21: =Образование!AV15 -> 0 | AT21: =Образование!AW15 -> 2.2 | AU21: =Образование!AX15 -> 0.7 | AV21: =Образование!AY15 -> 0 | AW21: =Образование!AZ15 -> 0 | AX21: =Образование!BA15 -> 0 | AY21: =Образование!BB15 -> 0 | AZ21: =Образование!BC15 -> 0 | BA21: =Образование!BD15 -> 0 | BB21: =Образование!BE15 -> 0 | BC21: =Образование!BF15 -> 0 | BD21: =Образование!BG15 -> 0 | BE21: =Образование!BH15 -> 0 | BF21: =Образование!BI15 -> 0 | BG21: =Образование!BJ15 -> 0 | BH21: =Образование!BK15 -> 0 | BI21: =Образование!BL15 -> 0 | BJ21: =Образование!BM15 -> Планируемый срок выполнения-30.08.2023 | BK21: =Образование!BN15 -> 0 | BL21: =Образование!BO15 -> 0 | BM21: =Образование!BP15 -> 0 | BN21: =Образование!BQ15 -> 0 | BO21: =Образование!BR15 -> 0 | BP21: =Образование!BS15 -> 0 | BQ21: =Образование!BT15 -> 0 | BR21: =Образование!BU15 -> 0 | BS21: =Образование!BV15 -> 0 | BT21: =Образование!BW15 -> 0 | BU21: =Образование!BX15 -> 0 | BV21: =Образование!BY15 -> 0 | BW21: =Образование!BZ15 -> 0 | BX21: =Образование!CA15 -> 0 | BY21: =Образование!CB15 -> 0 | BZ21: =Образование!CC15 -> 0 | CA21: =Образование!CD15 -> 0 | CB21: =Образование!CE15 -> 0 | CC21: =Образование!CF15 -> 0 | CD21: =Образование!CG15 -> 0 | CE21: =Образование!CH15 -> 0 | CF21: =Образование!CI15 -> 0 | CG21: =Образование!CJ15 -> 0 | CH21: =Образование!CK15 -> 0 | CI21: =Образование!CL15 -> 0 | CJ21: =Образование!CM15 -> 0 | CK21: =Образование!CN15 -> 0 | CL21: =Образование!CO15 -> 0 | CM21: =Образование!CP15 -> 0 | CN21: =Образование!CQ15 -> 0 | CO21: =Образование!CR15 -> 0 | CP21: =Образование!CS15 -> 0 | CQ21: =Образование!CT15 -> 0 | CR21: =Образование!CU15 -> 0 | CS21: =Образование!CV15 -> 0 | CT21: =Образование!CW15 -> 0 | CU21: =Образование!CX15 -> 0 | CV21: =Образование!CY15 -> 0 | CW21: =Образование!CZ15 -> 0 | CX21: =Образование!DA15 -> 0 | CY21: =Образование!DB15 -> 0 | CZ21: =Образование!DC15 -> 0 | DA21: =Образование!DD15 -> 0 | DB21: =Образование!DE15 -> 0 | DC21: =Образование!DF15 -> 0 | DD21: =Образование!DG15 -> 0 | DE21: =Образование!DH15 -> 0 | DF21: =Образование!DI15 -> 0 | DG21: =Образование!DJ15 -> 0 | DH21: =Образование!DK15 -> 0 | DI21: =Образование!DL15 -> 0 | DJ21: =Образование!DM15 -> 0 | DK21: =Образование!DN15 -> 0 | DL21: =Образование!DO15 -> 0 | DM21: =Образование!DP15 -> 0 | DN21: =Образование!DQ15 -> 0 | DO21: =Образование!DR15 -> 0 | DP21: =Образование!DS15 -> 0 | DQ21: =Образование!DT15 -> 0 | DR21: =Образование!DU15 -> 0 | DS21: =Образование!DV15 -> 0 | DT21: =Образование!DW15 -> 0 | DU21: =Образование!DX15 -> 0 | DV21: =Образование!DY15 -> 0 | DW21: =Образование!DZ15 -> 0 | DX21: =Образование!EA15 -> 0 | DY21: =Образование!EB15 -> 0 | DZ21: =Образование!EC15 -> 0 | EA21: =Образование!ED15 -> 0 | EB21: =Образование!EE15 -> 0 | EC21: =Образование!EF15 -> 0 | ED21: =Образование!EG15 -> 0 | EE21: =Образование!EH15 -> 0 | EF21: =Образование!EI15 -> 0 | EG21: =Образование!EJ15 -> 0 | EH21: =Образование!EK15 -> 0 | EI21: =Образование!EL15 -> 0 | EJ21: =Образование!EM15 -> 0 | EK21: =Образование!EN15 -> 0 | EL21: =Образование!EO15 -> 0 | EM21: =Образование!EP15 -> 0 | EN21: =Образование!EQ15 -> 0 | EO21: =Образование!ER15 -> 0 | EP21: =Образование!ES15 -> 0 | EQ21: =Образование!ET15 -> 0 | ER21: =Образование!EU15 -> 0 | ES21: =Образование!EV15 -> 0 | ET21: =Образование!EW15 -> 0 | EU21: =Образование!EX15 -> 0 | EV21: =Образование!EY15 -> 0 | EW21: =Образование!EZ15 -> 0 | EX21: =Образование!FA15 -> 0 | EY21: =Образование!FB15 -> 0 | EZ21: =Образование!FC15 -> 0 | FA21: =Образование!FD15 -> 0 | FB21: =Образование!FE15 -> 0 | FC21: =Образование!FF15 -> 0 | FD21: =Образование!FG15 -> 0 | FE21: =Образование!FH15 -> 0 | FF21: =Образование!FI15 -> 0
A22: 1.4 | B22: ОБРАЗОВАНИЕ | C22: =Образование!F16 -> Ремонт крыши здания школы МАОУ "Суксунская СОШ №2" | D22: =Образование!G16 -> да | E22: =Образование!H16 -> Постановление Правительства Пермского края от 10.04.2015 №206-п | F22: =Образование!I16 -> Министерство территориального развития Пермского края | G22: =Образование!J16 -> общестроительные работы | H22: =Образование!K16 -> ремонт | I22: =Образование!L16 -> 0 | J22: =Образование!M16 -> 0 | K22: =Образование!N16 -> 0 | L22: =Образование!O16 -> 0 | M22: =Образование!P16 -> 0 | N22: =Образование!Q16 -> 0 | O22: =Образование!R16 -> 0 | P22: =Образование!S16 -> 0 | Q22: =Образование!T16 -> 0 | R22: =Образование!U16 -> 0 | S22: =Образование!V16 -> 0 | T22: =Образование!W16 -> 0 | U22: =Образование!X16 -> 0 | V22: =Образование!Y16 -> 0 | W22: =Образование!Z16 -> 0 | X22: =Образование!AA16 -> 0 | Y22: =Образование!AB16 -> 0 | Z22: =Образование!AC16 -> 0 | AA22: =Образование!AD16 -> 0 | AB22: =Образование!AE16 ->  | AC22: =Образование!AF16 -> 0 | AD22: =Образование!AG16 -> 8.3 | AE22: =Образование!AH16 -> 0 | AF22: =Образование!AI16 -> 6.2 | AG22: =Образование!AJ16 -> 2.1 | AH22: =Образование!AK16 -> 0 | AI22: =Образование!AL16 -> 0 | AJ22: =Образование!AM16 -> 6.1 | AK22: =Образование!AN16 -> 0 | AL22: =Образование!AO16 -> 4.6 | AM22: =Образование!AP16 -> 1.5 | AN22: =Образование!AQ16 -> 0 | AO22: =Образование!AR16 -> 0 | AP22: =Образование!AS16 -> 6.1 | AQ22: =Образование!AT16 -> 0 | AR22: =Образование!AU16 -> 0 | AS22: =Образование!AV16 -> 0 | AT22: =Образование!AW16 -> 4.6 | AU22: =Образование!AX16 -> 1.5 | AV22: =Образование!AY16 -> 0 | AW22: =Образование!AZ16 -> 0 | AX22: =Образование!BA16 -> 0 | AY22: =Образование!BB16 -> 0 | AZ22: =Образование!BC16 -> 0 | BA22: =Образование!BD16 -> 0 | BB22: =Образование!BE16 -> 0 | BC22: =Образование!BF16 -> 0 | BD22: =Образование!BG16 -> 0 | BE22: =Образование!BH16 -> 0 | BF22: =Образование!BI16 -> 0 | BG22: =Образование!BJ16 -> 0 | BH22: =Образование!BK16 -> 0 | BI22: =Образование!BL16 -> 0 | BJ22: =Образование!BM16 -> Планируемый срок выполнения-30.08.2023 | BK22: =Образование!BN16 -> 0 | BL22: =Образование!BO16 -> 0 | BM22: =Образование!BP16 -> 0 | BN22: =Образование!BQ16 -> 0 | BO22: =Образование!BR16 -> 0 | BP22: =Образование!BS16 -> 0 | BQ22: =Образование!BT16 -> 0 | BR22: =Образование!BU16 -> 0 | BS22: =Образование!BV16 -> 0 | BT22: =Образование!BW16 -> 0 | BU22: =Образование!BX16 -> 0 | BV22: =Образование!BY16 -> 0 | BW22: =Образование!BZ16 -> 0 | BX22: =Образование!CA16 -> 0 | BY22: =Образование!CB16 -> 0 | BZ22: =Образование!CC16 -> 0 | CA22: =Образование!CD16 -> 0 | CB22: =Образование!CE16 -> 0 | CC22: =Образование!CF16 -> 0 | CD22: =Образование!CG16 -> 0 | CE22: =Образование!CH16 -> 0 | CF22: =Образование!CI16 -> 0 | CG22: =Образование!CJ16 -> 0 | CH22: =Образование!CK16 -> 0 | CI22: =Образование!CL16 -> 0 | CJ22: =Образование!CM16 -> 0 | CK22: =Образование!CN16 -> 0 | CL22: =Образование!CO16 -> 0 | CM22: =Образование!CP16 -> 0 | CN22: =Образование!CQ16 -> 0 | CO22: =Образование!CR16 -> 0 | CP22: =Образование!CS16 -> 0 | CQ22: =Образование!CT16 -> 0 | CR22: =Образование!CU16 -> 0 | CS22: =Образование!CV16 -> 0 | CT22: =Образование!CW16 -> 0 | CU22: =Образование!CX16 -> 0 | CV22: =Образование!CY16 -> 0 | CW22: =Образование!CZ16 -> 0 | CX22: =Образование!DA16 -> 0 | CY22: =Образование!DB16 -> 0 | CZ22: =Образование!DC16 -> 0 | DA22: =Образование!DD16 -> 0 | DB22: =Образование!DE16 -> 0 | DC22: =Образование!DF16 -> 0 | DD22: =Образование!DG16 -> 0 | DE22: =Образование!DH16 -> 0 | DF22: =Образование!DI16 -> 0 | DG22: =Образование!DJ16 -> 0 | DH22: =Образование!DK16 -> 0 | DI22: =Образование!DL16 -> 0 | DJ22: =Образование!DM16 -> 0 | DK22: =Образование!DN16 -> 0 | DL22: =Образование!DO16 -> 0 | DM22: =Образование!DP16 -> 0 | DN22: =Образование!DQ16 -> 0 | DO22: =Образование!DR16 -> 0 | DP22: =Образование!DS16 -> 0 | DQ22: =Образование!DT16 -> 0 | DR22: =Образование!DU16 -> 0 | DS22: =Образование!DV16 -> 0 | DT22: =Образование!DW16 -> 0 | DU22: =Образование!DX16 -> 0 | DV22: =Образование!DY16 -> 0 | DW22: =Образование!DZ16 -> 0 | DX22: =Образование!EA16 -> 0 | DY22: =Образование!EB16 -> 0 | DZ22: =Образование!EC16 -> 0 | EA22: =Образование!ED16 -> 0 | EB22: =Образование!EE16 -> 0 | EC22: =Образование!EF16 -> 0 | ED22: =Образование!EG16 -> 0 | EE22: =Образование!EH16 -> 0 | EF22: =Образование!EI16 -> 0 | EG22: =Образование!EJ16 -> 0 | EH22: =Образование!EK16 -> 0 | EI22: =Образование!EL16 -> 0 | EJ22: =Образование!EM16 -> 0 | EK22: =Образование!EN16 -> 0 | EL22: =Образование!EO16 -> 0 | EM22: =Образование!EP16 -> 0 | EN22: =Образование!EQ16 -> 0 | EO22: =Образование!ER16 -> 0 | EP22: =Образование!ES16 -> 0 | EQ22: =Образование!ET16 -> 0 | ER22: =Образование!EU16 -> 0 | ES22: =Образование!EV16 -> 0 | ET22: =Образование!EW16 -> 0 | EU22: =Образование!EX16 -> 0 | EV22: =Образование!EY16 -> 0 | EW22: =Образование!EZ16 -> 0 | EX22: =Образование!FA16 -> 0 | EY22: =Образование!FB16 -> 0 | EZ22: =Образование!FC16 -> 0 | FA22: =Образование!FD16 -> 0 | FB22: =Образование!FE16 -> 0 | FC22: =Образование!FF16 -> 0 | FD22: =Образование!FG16 -> 0 | FE22: =Образование!FH16 -> 0 | FF22: =Образование!FI16 -> 0
A23: 1.5 | B23: ОБРАЗОВАНИЕ | C23: =Образование!F17 -> Ремонт коридоров, кабинетов, столовой МАОУ "Суксунская СОШ №2" | D23: =Образование!G17 -> да | E23: =Образование!H17 -> Постановление Правительства Пермского края от 10.04.2015 №206-п | F23: =Образование!I17 -> Министерство территориального развития Пермского края | G23: =Образование!J17 -> общестроительные работы | H23: =Образование!K17 -> ремонт | I23: =Образование!L17 -> 0 | J23: =Образование!M17 -> 0 | K23: =Образование!N17 -> 0 | L23: =Образование!O17 -> 0 | M23: =Образование!P17 -> 0 | N23: =Образование!Q17 -> 0 | O23: =Образование!R17 -> 0 | P23: =Образование!S17 -> 5.7 | Q23: =Образование!T17 -> 0 | R23: =Образование!U17 -> 4.3 | S23: =Образование!V17 -> 1.4 | T23: =Образование!W17 -> 0 | U23: =Образование!X17 -> 0 | V23: =Образование!Y17 -> 5.7 | W23: =Образование!Z17 -> 0 | X23: =Образование!AA17 -> 4.3 | Y23: =Образование!AB17 -> 1.4 | Z23: =Образование!AC17 -> 0 | AA23: =Образование!AD17 -> 0 | AB23: =Образование!AE17 -> 1 | AC23: =Образование!AF17 -> выполнено | AD23: =Образование!AG17 -> 0 | AE23: =Образование!AH17 -> 0 | AF23: =Образование!AI17 -> 0 | AG23: =Образование!AJ17 -> 0 | AH23: =Образование!AK17 -> 0 | AI23: =Образование!AL17 -> 0 | AJ23: =Образование!AM17 -> 0 | AK23: =Образование!AN17 -> 0 | AL23: =Образование!AO17 -> 0 | AM23: =Образование!AP17 -> 0 | AN23: =Образование!AQ17 -> 0 | AO23: =Образование!AR17 -> 0 | AP23: =Образование!AS17 -> 0 | AQ23: =Образование!AT17 -> 0 | AR23: =Образование!AU17 -> 0 | AS23: =Образование!AV17 -> 0 | AT23: =Образование!AW17 -> 0 | AU23: =Образование!AX17 -> 0 | AV23: =Образование!AY17 -> 0 | AW23: =Образование!AZ17 -> 0 | AX23: =Образование!BA17 -> 0 | AY23: =Образование!BB17 -> 0 | AZ23: =Образование!BC17 -> 0 | BA23: =Образование!BD17 -> 0 | BB23: =Образование!BE17 -> 0 | BC23: =Образование!BF17 -> 0 | BD23: =Образование!BG17 -> 0 | BE23: =Образование!BH17 -> 0 | BF23: =Образование!BI17 -> 0 | BG23: =Образование!BJ17 -> 0 | BH23: =Образование!BK17 -> 0 | BI23: =Образование!BL17 -> 0 | BJ23: =Образование!BM17 -> 0 | BK23: =Образование!BN17 -> 0 | BL23: =Образование!BO17 -> 0 | BM23: =Образование!BP17 -> 0 | BN23: =Образование!BQ17 -> 0 | BO23: =Образование!BR17 -> 0 | BP23: =Образование!BS17 -> 0 | BQ23: =Образование!BT17 -> 0 | BR23: =Образование!BU17 -> 0 | BS23: =Образование!BV17 -> 0 | BT23: =Образование!BW17 -> 0 | BU23: =Образование!BX17 -> 0 | BV23: =Образование!BY17 -> 0 | BW23: =Образование!BZ17 -> 0 | BX23: =Образование!CA17 -> 0 | BY23: =Образование!CB17 -> 0 | BZ23: =Образование!CC17 -> 0 | CA23: =Образование!CD17 -> 0 | CB23: =Образование!CE17 -> 0 | CC23: =Образование!CF17 -> 0 | CD23: =Образование!CG17 -> 0 | CE23: =Образование!CH17 -> 0 | CF23: =Образование!CI17 -> 0 | CG23: =Образование!CJ17 -> 0 | CH23: =Образование!CK17 -> 0 | CI23: =Образование!CL17 -> 0 | CJ23: =Образование!CM17 -> 0 | CK23: =Образование!CN17 -> 0 | CL23: =Образование!CO17 -> 0 | CM23: =Образование!CP17 -> 0 | CN23: =Образование!CQ17 -> 0 | CO23: =Образование!CR17 -> 0 | CP23: =Образование!CS17 -> 0 | CQ23: =Образование!CT17 -> 0 | CR23: =Образование!CU17 -> 0 | CS23: =Образование!CV17 -> 0 | CT23: =Образование!CW17 -> 0 | CU23: =Образование!CX17 -> 0 | CV23: =Образование!CY17 -> 0 | CW23: =Образование!CZ17 -> 0 | CX23: =Образование!DA17 -> 0 | CY23: =Образование!DB17 -> 0 | CZ23: =Образование!DC17 -> 0 | DA23: =Образование!DD17 -> 0 | DB23: =Образование!DE17 -> 0 | DC23: =Образование!DF17 -> 0 | DD23: =Образование!DG17 -> 0 | DE23: =Образование!DH17 -> 0 | DF23: =Образование!DI17 -> 0 | DG23: =Образование!DJ17 -> 0 | DH23: =Образование!DK17 -> 0 | DI23: =Образование!DL17 -> 0 | DJ23: =Образование!DM17 -> 0 | DK23: =Образование!DN17 -> 0 | DL23: =Образование!DO17 -> 0 | DM23: =Образование!DP17 -> 0 | DN23: =Образование!DQ17 -> 0 | DO23: =Образование!DR17 -> 0 | DP23: =Образование!DS17 -> 0 | DQ23: =Образование!DT17 -> 0 | DR23: =Образование!DU17 -> 0 | DS23: =Образование!DV17 -> 0 | DT23: =Образование!DW17 -> 0 | DU23: =Образование!DX17 -> 0 | DV23: =Образование!DY17 -> 0 | DW23: =Образование!DZ17 -> 0 | DX23: =Образование!EA17 -> 0 | DY23: =Образование!EB17 -> 0 | DZ23: =Образование!EC17 -> 0 | EA23: =Образование!ED17 -> 0 | EB23: =Образование!EE17 -> 0 | EC23: =Образование!EF17 -> 0 | ED23: =Образование!EG17 -> 0 | EE23: =Образование!EH17 -> 0 | EF23: =Образование!EI17 -> 0 | EG23: =Образование!EJ17 -> 0 | EH23: =Образование!EK17 -> 0 | EI23: =Образование!EL17 -> 0 | EJ23: =Образование!EM17 -> 0 | EK23: =Образование!EN17 -> 0 | EL23: =Образование!EO17 -> 0 | EM23: =Образование!EP17 -> 0 | EN23: =Образование!EQ17 -> 0 | EO23: =Образование!ER17 -> 0 | EP23: =Образование!ES17 -> 0 | EQ23: =Образование!ET17 -> 0 | ER23: =Образование!EU17 -> 0 | ES23: =Образование!EV17 -> 0 | ET23: =Образование!EW17 -> 0 | EU23: =Образование!EX17 -> 0 | EV23: =Образование!EY17 -> 0 | EW23: =Образование!EZ17 -> 0 | EX23: =Образование!FA17 -> 0 | EY23: =Образование!FB17 -> 0 | EZ23: =Образование!FC17 -> 0 | FA23: =Образование!FD17 -> 0 | FB23: =Образование!FE17 -> 0 | FC23: =Образование!FF17 -> 0 | FD23: =Образование!FG17 -> 0 | FE23: =Образование!FH17 -> 0 | FF23: =Образование!FI17 -> 0
A24: 1.6 | B24: ОБРАЗОВАНИЕ | C24: =Образование!F18 -> Ремонт крыши здания МАОУ "Сызганская ООШ" | D24: =Образование!G18 -> да | E24: =Образование!H18 -> Постановление Правительства Пермского края от 10.04.2015 №206-п | F24: =Образование!I18 -> Министерство территориального развития Пермского края | G24: =Образование!J18 -> общестроительные работы | H24: =Образование!K18 -> ремонт | I24: =Образование!L18 -> 0 | J24: =Образование!M18 -> 0 | K24: =Образование!N18 -> 0 | L24: =Образование!O18 -> 0 | M24: =Образование!P18 -> 0 | N24: =Образование!Q18 -> 0 | O24: =Образование!R18 -> 0 | P24: =Образование!S18 -> 1.76 | Q24: =Образование!T18 -> 0 | R24: =Образование!U18 -> 1.32 | S24: =Образование!V18 -> 0.44 | T24: =Образование!W18 -> 0 | U24: =Образование!X18 -> 0 | V24: =Образование!Y18 -> 1.76 | W24: =Образование!Z18 -> 0 | X24: =Образование!AA18 -> 1.32 | Y24: =Образование!AB18 -> 0.44 | Z24: =Образование!AC18 -> 0 | AA24: =Образование!AD18 -> 0 | AB24: =Образование!AE18 -> 1 | AC24: =Образование!AF18 -> выполнено | AD24: =Образование!AG18 -> 0 | AE24: =Образование!AH18 -> 0 | AF24: =Образование!AI18 -> 0 | AG24: =Образование!AJ18 -> 0 | AH24: =Образование!AK18 -> 0 | AI24: =Образование!AL18 -> 0 | AJ24: =Образование!AM18 -> 0 | AK24: =Образование!AN18 -> 0 | AL24: =Образование!AO18 -> 0 | AM24: =Образование!AP18 -> 0 | AN24: =Образование!AQ18 -> 0 | AO24: =Образование!AR18 -> 0 | AP24: =Образование!AS18 -> 0 | AQ24: =Образование!AT18 -> 0 | AR24: =Образование!AU18 -> 0 | AS24: =Образование!AV18 -> 0 | AT24: =Образование!AW18 -> 0 | AU24: =Образование!AX18 -> 0 | AV24: =Образование!AY18 -> 0 | AW24: =Образование!AZ18 -> 0 | AX24: =Образование!BA18 -> 0 | AY24: =Образование!BB18 -> 0 | AZ24: =Образование!BC18 -> 0 | BA24: =Образование!BD18 -> 0 | BB24: =Образование!BE18 -> 0 | BC24: =Образование!BF18 -> 0 | BD24: =Образование!BG18 -> 0 | BE24: =Образование!BH18 -> 0 | BF24: =Образование!BI18 -> 0 | BG24: =Образование!BJ18 -> 0 | BH24: =Образование!BK18 -> 0 | BI24: =Образование!BL18 -> 0 | BJ24: =Образование!BM18 -> 0 | BK24: =Образование!BN18 -> 0 | BL24: =Образование!BO18 -> 0 | BM24: =Образование!BP18 -> 0 | BN24: =Образование!BQ18 -> 0 | BO24: =Образование!BR18 -> 0 | BP24: =Образование!BS18 -> 0 | BQ24: =Образование!BT18 -> 0 | BR24: =Образование!BU18 -> 0 | BS24: =Образование!BV18 -> 0 | BT24: =Образование!BW18 -> 0 | BU24: =Образование!BX18 -> 0 | BV24: =Образование!BY18 -> 0 | BW24: =Образование!BZ18 -> 0 | BX24: =Образование!CA18 -> 0 | BY24: =Образование!CB18 -> 0 | BZ24: =Образование!CC18 -> 0 | CA24: =Образование!CD18 -> 0 | CB24: =Образование!CE18 -> 0 | CC24: =Образование!CF18 -> 0 | CD24: =Образование!CG18 -> 0 | CE24: =Образование!CH18 -> 0 | CF24: =Образование!CI18 -> 0 | CG24: =Образование!CJ18 -> 0 | CH24: =Образование!CK18 -> 0 | CI24: =Образование!CL18 -> 0 | CJ24: =Образование!CM18 -> 0 | CK24: =Образование!CN18 -> 0 | CL24: =Образование!CO18 -> 0 | CM24: =Образование!CP18 -> 0 | CN24: =Образование!CQ18 -> 0 | CO24: =Образование!CR18 -> 0 | CP24: =Образование!CS18 -> 0 | CQ24: =Образование!CT18 -> 0 | CR24: =Образование!CU18 -> 0 | CS24: =Образование!CV18 -> 0 | CT24: =Образование!CW18 -> 0 | CU24: =Образование!CX18 -> 0 | CV24: =Образование!CY18 -> 0 | CW24: =Образование!CZ18 -> 0 | CX24: =Образование!DA18 -> 0 | CY24: =Образование!DB18 -> 0 | CZ24: =Образование!DC18 -> 0 | DA24: =Образование!DD18 -> 0 | DB24: =Образование!DE18 -> 0 | DC24: =Образование!DF18 -> 0 | DD24: =Образование!DG18 -> 0 | DE24: =Образование!DH18 -> 0 | DF24: =Образование!DI18 -> 0 | DG24: =Образование!DJ18 -> 0 | DH24: =Образование!DK18 -> 0 | DI24: =Образование!DL18 -> 0 | DJ24: =Образование!DM18 -> 0 | DK24: =Образование!DN18 -> 0 | DL24: =Образование!DO18 -> 0 | DM24: =Образование!DP18 -> 0 | DN24: =Образование!DQ18 -> 0 | DO24: =Образование!DR18 -> 0 | DP24: =Образование!DS18 -> 0 | DQ24: =Образование!DT18 -> 0 | DR24: =Образование!DU18 -> 0 | DS24: =Образование!DV18 -> 0 | DT24: =Образование!DW18 -> 0 | DU24: =Образование!DX18 -> 0 | DV24: =Образование!DY18 -> 0 | DW24: =Образование!DZ18 -> 0 | DX24: =Образование!EA18 -> 0 | DY24: =Образование!EB18 -> 0 | DZ24: =Образование!EC18 -> 0 | EA24: =Образование!ED18 -> 0 | EB24: =Образование!EE18 -> 0 | EC24: =Образование!EF18 -> 0 | ED24: =Образование!EG18 -> 0 | EE24: =Образование!EH18 -> 0 | EF24: =Образование!EI18 -> 0 | EG24: =Образование!EJ18 -> 0 | EH24: =Образование!EK18 -> 0 | EI24: =Образование!EL18 -> 0 | EJ24: =Образование!EM18 -> 0 | EK24: =Образование!EN18 -> 0 | EL24: =Образование!EO18 -> 0 | EM24: =Образование!EP18 -> 0 | EN24: =Образование!EQ18 -> 0 | EO24: =Образование!ER18 -> 0 | EP24: =Образование!ES18 -> 0 | EQ24: =Образование!ET18 -> 0 | ER24: =Образование!EU18 -> 0 | ES24: =Образование!EV18 -> 0 | ET24: =Образование!EW18 -> 0 | EU24: =Образование!EX18 -> 0 | EV24: =Образование!EY18 -> 0 | EW24: =Образование!EZ18 -> 0 | EX24: =Образование!FA18 -> 0 | EY24: =Образование!FB18 -> 0 | EZ24: =Образование!FC18 -> 0 | FA24: =Образование!FD18 -> 0 | FB24: =Образование!FE18 -> 0 | FC24: =Образование!FF18 -> 0 | FD24: =Образование!FG18 -> 0 | FE24: =Образование!FH18 -> 0 | FF24: =Образование!FI18 -> 0
A25: 1.7 | B25: ОБРАЗОВАНИЕ | C25: =Образование!F19 -> Ремонт помещений для размещения дошкольной группы Суксунская СОШ №2 д.Пепелыши | D25: =Образование!G19 -> да | E25: =Образование!H19 -> Постановление Правительства Пермского края от 16.10.2020 №783-п | F25: =Образование!I19 -> Министерство образования Пермского края | G25: =Образование!J19 -> общестроительные работы | H25: =Образование!K19 -> ремонт | I25: =Образование!L19 -> 0 | J25: =Образование!M19 -> 0 | K25: =Образование!N19 -> 0 | L25: =Образование!O19 -> 0 | M25: =Образование!P19 -> 0 | N25: =Образование!Q19 -> 0 | O25: =Образование!R19 -> 0 | P25: =Образование!S19 -> 0.6 | Q25: =Образование!T19 -> 0 | R25: =Образование!U19 -> 0.3 | S25: =Образование!V19 -> 0.3 | T25: =Образование!W19 -> 0 | U25: =Образование!X19 -> 0 | V25: =Образование!Y19 -> 0.6 | W25: =Образование!Z19 -> 0 | X25: =Образование!AA19 -> 0.3 | Y25: =Образование!AB19 -> 0.3 | Z25: =Образование!AC19 -> 0 | AA25: =Образование!AD19 -> 0 | AB25: =Образование!AE19 -> 1 | AC25: =Образование!AF19 -> выполнено | AD25: =Образование!AG19 -> 0 | AE25: =Образование!AH19 -> 0 | AF25: =Образование!AI19 -> 0 | AG25: =Образование!AJ19 -> 0 | AH25: =Образование!AK19 -> 0 | AI25: =Образование!AL19 -> 0 | AJ25: =Образование!AM19 -> 0 | AK25: =Образование!AN19 -> 0 | AL25: =Образование!AO19 -> 0 | AM25: =Образование!AP19 -> 0 | AN25: =Образование!AQ19 -> 0 | AO25: =Образование!AR19 -> 0 | AP25: =Образование!AS19 -> 0 | AQ25: =Образование!AT19 -> 0 | AR25: =Образование!AU19 -> 0 | AS25: =Образование!AV19 -> 0 | AT25: =Образование!AW19 -> 0 | AU25: =Образование!AX19 -> 0 | AV25: =Образование!AY19 -> 0 | AW25: =Образование!AZ19 -> 0 | AX25: =Образование!BA19 -> 0 | AY25: =Образование!BB19 -> 0 | AZ25: =Образование!BC19 -> 0 | BA25: =Образование!BD19 -> 0 | BB25: =Образование!BE19 -> 0 | BC25: =Образование!BF19 -> 0 | BD25: =Образование!BG19 -> 0 | BE25: =Образование!BH19 -> 0 | BF25: =Образование!BI19 -> 0 | BG25: =Образование!BJ19 -> 0 | BH25: =Образование!BK19 -> 0 | BI25: =Образование!BL19 -> 0 | BJ25: =Образование!BM19 -> 0 | BK25: =Образование!BN19 -> 0 | BL25: =Образование!BO19 -> 0 | BM25: =Образование!BP19 -> 0 | BN25: =Образование!BQ19 -> 0 | BO25: =Образование!BR19 -> 0 | BP25: =Образование!BS19 -> 0 | BQ25: =Образование!BT19 -> 0 | BR25: =Образование!BU19 -> 0 | BS25: =Образование!BV19 -> 0 | BT25: =Образование!BW19 -> 0 | BU25: =Образование!BX19 -> 0 | BV25: =Образование!BY19 -> 0 | BW25: =Образование!BZ19 -> 0 | BX25: =Образование!CA19 -> 0 | BY25: =Образование!CB19 -> 0 | BZ25: =Образование!CC19 -> 0 | CA25: =Образование!CD19 -> 0 | CB25: =Образование!CE19 -> 0 | CC25: =Образование!CF19 -> 0 | CD25: =Образование!CG19 -> 0 | CE25: =Образование!CH19 -> 0 | CF25: =Образование!CI19 -> 0 | CG25: =Образование!CJ19 -> 0 | CH25: =Образование!CK19 -> 0 | CI25: =Образование!CL19 -> 0 | CJ25: =Образование!CM19 -> 0 | CK25: =Образование!CN19 -> 0 | CL25: =Образование!CO19 -> 0 | CM25: =Образование!CP19 -> 0 | CN25: =Образование!CQ19 -> 0 | CO25: =Образование!CR19 -> 0 | CP25: =Образование!CS19 -> 0 | CQ25: =Образование!CT19 -> 0 | CR25: =Образование!CU19 -> 0 | CS25: =Образование!CV19 -> 0 | CT25: =Образование!CW19 -> 0 | CU25: =Образование!CX19 -> 0 | CV25: =Образование!CY19 -> 0 | CW25: =Образование!CZ19 -> 0 | CX25: =Образование!DA19 -> 0 | CY25: =Образование!DB19 -> 0 | CZ25: =Образование!DC19 -> 0 | DA25: =Образование!DD19 -> 0 | DB25: =Образование!DE19 -> 0 | DC25: =Образование!DF19 -> 0 | DD25: =Образование!DG19 -> 0 | DE25: =Образование!DH19 -> 0 | DF25: =Образование!DI19 -> 0 | DG25: =Образование!DJ19 -> 0 | DH25: =Образование!DK19 -> 0 | DI25: =Образование!DL19 -> 0 | DJ25: =Образование!DM19 -> 0 | DK25: =Образование!DN19 -> 0 | DL25: =Образование!DO19 -> 0 | DM25: =Образование!DP19 -> 0 | DN25: =Образование!DQ19 -> 0 | DO25: =Образование!DR19 -> 0 | DP25: =Образование!DS19 -> 0 | DQ25: =Образование!DT19 -> 0 | DR25: =Образование!DU19 -> 0 | DS25: =Образование!DV19 -> 0 | DT25: =Образование!DW19 -> 0 | DU25: =Образование!DX19 -> 0 | DV25: =Образование!DY19 -> 0 | DW25: =Образование!DZ19 -> 0 | DX25: =Образование!EA19 -> 0 | DY25: =Образование!EB19 -> 0 | DZ25: =Образование!EC19 -> 0 | EA25: =Образование!ED19 -> 0 | EB25: =Образование!EE19 -> 0 | EC25: =Образование!EF19 -> 0 | ED25: =Образование!EG19 -> 0 | EE25: =Образование!EH19 -> 0 | EF25: =Образование!EI19 -> 0 | EG25: =Образование!EJ19 -> 0 | EH25: =Образование!EK19 -> 0 | EI25: =Образование!EL19 -> 0 | EJ25: =Образование!EM19 -> 0 | EK25: =Образование!EN19 -> 0 | EL25: =Образование!EO19 -> 0 | EM25: =Образование!EP19 -> 0 | EN25: =Образование!EQ19 -> 0 | EO25: =Образование!ER19 -> 0 | EP25: =Образование!ES19 -> 0 | EQ25: =Образование!ET19 -> 0 | ER25: =Образование!EU19 -> 0 | ES25: =Образование!EV19 -> 0 | ET25: =Образование!EW19 -> 0 | EU25: =Образование!EX19 -> 0 | EV25: =Образование!EY19 -> 0 | EW25: =Образование!EZ19 -> 0 | EX25: =Образование!FA19 -> 0 | EY25: =Образование!FB19 -> 0 | EZ25: =Образование!FC19 -> 0 | FA25: =Образование!FD19 -> 0 | FB25: =Образование!FE19 -> 0 | FC25: =Образование!FF19 -> 0 | FD25: =Образование!FG19 -> 0 | FE25: =Образование!FH19 -> 0 | FF25: =Образование!FI19 -> 0
A26: 1.8 | B26: ОБРАЗОВАНИЕ | C26: =Образование!F20 -> Ремонт ограждения территории МОУ "Киселевская ОШИ" | D26: =Образование!G20 -> да | E26: =Образование!H20 -> Постановление Правительства Пермского края от 21.10.2018 №718-п | F26: =Образование!I20 -> Министерство территориального развития Пермского края | G26: =Образование!J20 -> общестроительные работы | H26: =Образование!K20 -> ремонт | I26: =Образование!L20 -> 0 | J26: =Образование!M20 -> 0 | K26: =Образование!N20 -> уменьшение стоимости мероприятия на 62,5 тыс.руб. | L26: =Образование!O20 -> 0 | M26: =Образование!P20 -> 0 | N26: =Образование!Q20 -> 0 | O26: =Образование!R20 -> 0 | P26: =Образование!S20 -> 1.26 | Q26: =Образование!T20 -> 0 | R26: =Образование!U20 -> 0.96 | S26: =Образование!V20 -> 0.3 | T26: =Образование!W20 -> 0 | U26: =Образование!X20 -> 0 | V26: =Образование!Y20 -> 1.172 | W26: =Образование!Z20 -> 0 | X26: =Образование!AA20 -> 0.879 | Y26: =Образование!AB20 -> 0.293 | Z26: =Образование!AC20 -> 0 | AA26: =Образование!AD20 -> 0 | AB26: =Образование!AE20 -> 0.9301587302 | AC26: =Образование!AF20 -> выполнено | AD26: =Образование!AG20 -> 0 | AE26: =Образование!AH20 -> 0 | AF26: =Образование!AI20 -> 0 | AG26: =Образование!AJ20 -> 0 | AH26: =Образование!AK20 -> 0 | AI26: =Образование!AL20 -> 0 | AJ26: =Образование!AM20 -> 0 | AK26: =Образование!AN20 -> 0 | AL26: =Образование!AO20 -> 0 | AM26: =Образование!AP20 -> 0 | AN26: =Образование!AQ20 -> 0 | AO26: =Образование!AR20 -> 0 | AP26: =Образование!AS20 -> 0 | AQ26: =Образование!AT20 -> 0 | AR26: =Образование!AU20 -> 0 | AS26: =Образование!AV20 -> 0 | AT26: =Образование!AW20 -> 0 | AU26: =Образование!AX20 -> 0 | AV26: =Образование!AY20 -> 0 | AW26: =Образование!AZ20 -> 0 | AX26: =Образование!BA20 -> 0 | AY26: =Образование!BB20 -> 0 | AZ26: =Образование!BC20 -> 0 | BA26: =Образование!BD20 -> 0 | BB26: =Образование!BE20 -> 0 | BC26: =Образование!BF20 -> 0 | BD26: =Образование!BG20 -> 0 | BE26: =Образование!BH20 -> 0 | BF26: =Образование!BI20 -> 0 | BG26: =Образование!BJ20 -> 0 | BH26: =Образование!BK20 -> 0 | BI26: =Образование!BL20 -> 0 | BJ26: =Образование!BM20 -> 0 | BK26: =Образование!BN20 -> 0 | BL26: =Образование!BO20 -> 0 | BM26: =Образование!BP20 -> 0 | BN26: =Образование!BQ20 -> 0 | BO26: =Образование!BR20 -> 0 | BP26: =Образование!BS20 -> 0 | BQ26: =Образование!BT20 -> 0 | BR26: =Образование!BU20 -> 0 | BS26: =Образование!BV20 -> 0 | BT26: =Образование!BW20 -> 0 | BU26: =Образование!BX20 -> 0 | BV26: =Образование!BY20 -> 0 | BW26: =Образование!BZ20 -> 0 | BX26: =Образование!CA20 -> 0 | BY26: =Образование!CB20 -> 0 | BZ26: =Образование!CC20 -> 0 | CA26: =Образование!CD20 -> 0 | CB26: =Образование!CE20 -> 0 | CC26: =Образование!CF20 -> 0 | CD26: =Образование!CG20 -> 0 | CE26: =Образование!CH20 -> 0 | CF26: =Образование!CI20 -> 0 | CG26: =Образование!CJ20 -> 0 | CH26: =Образование!CK20 -> 0 | CI26: =Образование!CL20 -> 0 | CJ26: =Образование!CM20 -> 0 | CK26: =Образование!CN20 -> 0 | CL26: =Образование!CO20 -> 0 | CM26: =Образование!CP20 -> 0 | CN26: =Образование!CQ20 -> 0 | CO26: =Образование!CR20 -> 0 | CP26: =Образование!CS20 -> 0 | CQ26: =Образование!CT20 -> 0 | CR26: =Образование!CU20 -> 0 | CS26: =Образование!CV20 -> 0 | CT26: =Образование!CW20 -> 0 | CU26: =Образование!CX20 -> 0 | CV26: =Образование!CY20 -> 0 | CW26: =Образование!CZ20 -> 0 | CX26: =Образование!DA20 -> 0 | CY26: =Образование!DB20 -> 0 | CZ26: =Образование!DC20 -> 0 | DA26: =Образование!DD20 -> 0 | DB26: =Образование!DE20 -> 0 | DC26: =Образование!DF20 -> 0 | DD26: =Образование!DG20 -> 0 | DE26: =Образование!DH20 -> 0 | DF26: =Образование!DI20 -> 0 | DG26: =Образование!DJ20 -> 0 | DH26: =Образование!DK20 -> 0 | DI26: =Образование!DL20 -> 0 | DJ26: =Образование!DM20 -> 0 | DK26: =Образование!DN20 -> 0 | DL26: =Образование!DO20 -> 0 | DM26: =Образование!DP20 -> 0 | DN26: =Образование!DQ20 -> 0 | DO26: =Образование!DR20 -> 0 | DP26: =Образование!DS20 -> 0 | DQ26: =Образование!DT20 -> 0 | DR26: =Образование!DU20 -> 0 | DS26: =Образование!DV20 -> 0 | DT26: =Образование!DW20 -> 0 | DU26: =Образование!DX20 -> 0 | DV26: =Образование!DY20 -> 0 | DW26: =Образование!DZ20 -> 0 | DX26: =Образование!EA20 -> 0 | DY26: =Образование!EB20 -> 0 | DZ26: =Образование!EC20 -> 0 | EA26: =Образование!ED20 -> 0 | EB26: =Образование!EE20 -> 0 | EC26: =Образование!EF20 -> 0 | ED26: =Образование!EG20 -> 0 | EE26: =Образование!EH20 -> 0 | EF26: =Образование!EI20 -> 0 | EG26: =Образование!EJ20 -> 0 | EH26: =Образование!EK20 -> 0 | EI26: =Образование!EL20 -> 0 | EJ26: =Образование!EM20 -> 0 | EK26: =Образование!EN20 -> 0 | EL26: =Образование!EO20 -> 0 | EM26: =Образование!EP20 -> 0 | EN26: =Образование!EQ20 -> 0 | EO26: =Образование!ER20 -> 0 | EP26: =Образование!ES20 -> 0 | EQ26: =Образование!ET20 -> 0 | ER26: =Образование!EU20 -> 0 | ES26: =Образование!EV20 -> 0 | ET26: =Образование!EW20 -> 0 | EU26: =Образование!EX20 -> 0 | EV26: =Образование!EY20 -> 0 | EW26: =Образование!EZ20 -> 0 | EX26: =Образование!FA20 -> 0 | EY26: =Образование!FB20 -> 0 | EZ26: =Образование!FC20 -> 0 | FA26: =Образование!FD20 -> 0 | FB26: =Образование!FE20 -> 0 | FC26: =Образование!FF20 -> 0 | FD26: =Образование!FG20 -> 0 | FE26: =Образование!FH20 -> 0 | FF26: =Образование!FI20 -> 0
A27: 1.9 | B27: ОБРАЗОВАНИЕ | C27: =Образование!F21 -> Ремонт АПС и СОУЭ в зданиях МОУ "Киселевская ОШИ" | D27: =Образование!G21 -> да | E27: =Образование!H21 -> Постановление Правительства Пермского края от 10.04.2015 №206-п | F27: =Образование!I21 -> Министерство территориального развития Пермского края | G27: =Образование!J21 -> общестроительные работы | H27: =Образование!K21 -> ремонт | I27: =Образование!L21 -> 0 | J27: =Образование!M21 -> 0 | K27: =Образование!N21 -> 0 | L27: =Образование!O21 -> 0 | M27: =Образование!P21 -> 0 | N27: =Образование!Q21 -> 0 | O27: =Образование!R21 -> 0 | P27: =Образование!S21 -> 2.14 | Q27: =Образование!T21 -> 0 | R27: =Образование!U21 -> 1.6 | S27: =Образование!V21 -> 0.54 | T27: =Образование!W21 -> 0 | U27: =Образование!X21 -> 0 | V27: =Образование!Y21 -> 2.14 | W27: =Образование!Z21 -> 0 | X27: =Образование!AA21 -> 1.6 | Y27: =Образование!AB21 -> 0.54 | Z27: =Образование!AC21 -> 0 | AA27: =Образование!AD21 -> 0 | AB27: =Образование!AE21 -> 1 | AC27: =Образование!AF21 -> выполнено | AD27: =Образование!AG21 -> 0 | AE27: =Образование!AH21 -> 0 | AF27: =Образование!AI21 -> 0 | AG27: =Образование!AJ21 -> 0 | AH27: =Образование!AK21 -> 0 | AI27: =Образование!AL21 -> 0 | AJ27: =Образование!AM21 -> 0 | AK27: =Образование!AN21 -> 0 | AL27: =Образование!AO21 -> 0 | AM27: =Образование!AP21 -> 0 | AN27: =Образование!AQ21 -> 0 | AO27: =Образование!AR21 -> 0 | AP27: =Образование!AS21 -> 0 | AQ27: =Образование!AT21 -> 0 | AR27: =Образование!AU21 -> 0 | AS27: =Образование!AV21 -> 0 | AT27: =Образование!AW21 -> 0 | AU27: =Образование!AX21 -> 0 | AV27: =Образование!AY21 -> 0 | AW27: =Образование!AZ21 -> 0 | AX27: =Образование!BA21 -> 0 | AY27: =Образование!BB21 -> 0 | AZ27: =Образование!BC21 -> 0 | BA27: =Образование!BD21 -> 0 | BB27: =Образование!BE21 -> 0 | BC27: =Образование!BF21 -> 0 | BD27: =Образование!BG21 -> 0 | BE27: =Образование!BH21 -> 0 | BF27: =Образование!BI21 -> 0 | BG27: =Образование!BJ21 -> 0 | BH27: =Образование!BK21 -> 0 | BI27: =Образование!BL21 -> 0 | BJ27: =Образование!BM21 -> 0 | BK27: =Образование!BN21 -> 0 | BL27: =Образование!BO21 -> 0 | BM27: =Образование!BP21 -> 0 | BN27: =Образование!BQ21 -> 0 | BO27: =Образование!BR21 -> 0 | BP27: =Образование!BS21 -> 0 | BQ27: =Образование!BT21 -> 0 | BR27: =Образование!BU21 -> 0 | BS27: =Образование!BV21 -> 0 | BT27: =Образование!BW21 -> 0 | BU27: =Образование!BX21 -> 0 | BV27: =Образование!BY21 -> 0 | BW27: =Образование!BZ21 -> 0 | BX27: =Образование!CA21 -> 0 | BY27: =Образование!CB21 -> 0 | BZ27: =Образование!CC21 -> 0 | CA27: =Образование!CD21 -> 0 | CB27: =Образование!CE21 -> 0 | CC27: =Образование!CF21 -> 0 | CD27: =Образование!CG21 -> 0 | CE27: =Образование!CH21 -> 0 | CF27: =Образование!CI21 -> 0 | CG27: =Образование!CJ21 -> 0 | CH27: =Образование!CK21 -> 0 | CI27: =Образование!CL21 -> 0 | CJ27: =Образование!CM21 -> 0 | CK27: =Образование!CN21 -> 0 | CL27: =Образование!CO21 -> 0 | CM27: =Образование!CP21 -> 0 | CN27: =Образование!CQ21 -> 0 | CO27: =Образование!CR21 -> 0 | CP27: =Образование!CS21 -> 0 | CQ27: =Образование!CT21 -> 0 | CR27: =Образование!CU21 -> 0 | CS27: =Образование!CV21 -> 0 | CT27: =Образование!CW21 -> 0 | CU27: =Образование!CX21 -> 0 | CV27: =Образование!CY21 -> 0 | CW27: =Образование!CZ21 -> 0 | CX27: =Образование!DA21 -> 0 | CY27: =Образование!DB21 -> 0 | CZ27: =Образование!DC21 -> 0 | DA27: =Образование!DD21 -> 0 | DB27: =Образование!DE21 -> 0 | DC27: =Образование!DF21 -> 0 | DD27: =Образование!DG21 -> 0 | DE27: =Образование!DH21 -> 0 | DF27: =Образование!DI21 -> 0 | DG27: =Образование!DJ21 -> 0 | DH27: =Образование!DK21 -> 0 | DI27: =Образование!DL21 -> 0 | DJ27: =Образование!DM21 -> 0 | DK27: =Образование!DN21 -> 0 | DL27: =Образование!DO21 -> 0 | DM27: =Образование!DP21 -> 0 | DN27: =Образование!DQ21 -> 0 | DO27: =Образование!DR21 -> 0 | DP27: =Образование!DS21 -> 0 | DQ27: =Образование!DT21 -> 0 | DR27: =Образование!DU21 -> 0 | DS27: =Образование!DV21 -> 0 | DT27: =Образование!DW21 -> 0 | DU27: =Образование!DX21 -> 0 | DV27: =Образование!DY21 -> 0 | DW27: =Образование!DZ21 -> 0 | DX27: =Образование!EA21 -> 0 | DY27: =Образование!EB21 -> 0 | DZ27: =Образование!EC21 -> 0 | EA27: =Образование!ED21 -> 0 | EB27: =Образование!EE21 -> 0 | EC27: =Образование!EF21 -> 0 | ED27: =Образование!EG21 -> 0 | EE27: =Образование!EH21 -> 0 | EF27: =Образование!EI21 -> 0 | EG27: =Образование!EJ21 -> 0 | EH27: =Образование!EK21 -> 0 | EI27: =Образование!EL21 -> 0 | EJ27: =Образование!EM21 -> 0 | EK27: =Образование!EN21 -> 0 | EL27: =Образование!EO21 -> 0 | EM27: =Образование!EP21 -> 0 | EN27: =Образование!EQ21 -> 0 | EO27: =Образование!ER21 -> 0 | EP27: =Образование!ES21 -> 0 | EQ27: =Образование!ET21 -> 0 | ER27: =Образование!EU21 -> 0 | ES27: =Образование!EV21 -> 0 | ET27: =Образование!EW21 -> 0 | EU27: =Образование!EX21 -> 0 | EV27: =Образование!EY21 -> 0 | EW27: =Образование!EZ21 -> 0 | EX27: =Образование!FA21 -> 0 | EY27: =Образование!FB21 -> 0 | EZ27: =Образование!FC21 -> 0 | FA27: =Образование!FD21 -> 0 | FB27: =Образование!FE21 -> 0 | FC27: =Образование!FF21 -> 0 | FD27: =Образование!FG21 -> 0 | FE27: =Образование!FH21 -> 0 | FF27: =Образование!FI21 -> 0
A28: 1.10 | B28: ОБРАЗОВАНИЕ | C28: =Образование!F22 -> Ремонт кабинетов для открытия центра "Точка роста" МАОУ "Суксунская СОШ №2 (актуализированное название мероприятия- Ремонт кабинетов в здании МАОУ «Суксунская СОШ №2») | D28: =Образование!G22 -> нет | E28: =Образование!H22 -> Постановление Правительства Пермского края от 25.11.2021 №915-п | F28: =Образование!I22 -> Министерство образования Пермского края | G28: =Образование!J22 -> общестроительные работы | H28: =Образование!K22 -> ремонт | I28: =Образование!L22 -> актуализированное название мероприятия | J28: =Образование!M22 -> 0 | K28: =Образование!N22 -> 0 | L28: =Образование!O22 -> 0 | M28: =Образование!P22 -> 0 | N28: =Образование!Q22 -> 0 | O28: =Образование!R22 -> 0 | P28: =Образование!S22 -> 0 | Q28: =Образование!T22 -> 0 | R28: =Образование!U22 -> 0 | S28: =Образование!V22 -> 0 | T28: =Образование!W22 -> 0 | U28: =Образование!X22 -> 0 | V28: =Образование!Y22 -> 0 | W28: =Образование!Z22 -> 0 | X28: =Образование!AA22 -> 0 | Y28: =Образование!AB22 -> 0 | Z28: =Образование!AC22 -> 0 | AA28: =Образование!AD22 -> 0 | AB28: =Образование!AE22 ->  | AC28: =Образование!AF22 -> 0 | AD28: =Образование!AG22 -> 1.07 | AE28: =Образование!AH22 -> 0 | AF28: =Образование!AI22 -> 0.81 | AG28: =Образование!AJ22 -> 0.26 | AH28: =Образование!AK22 -> 0 | AI28: =Образование!AL22 -> 0 | AJ28: =Образование!AM22 -> 0.89 | AK28: =Образование!AN22 -> 0 | AL28: =Образование!AO22 -> 0.67 | AM28: =Образование!AP22 -> 0.22 | AN28: =Образование!AQ22 -> 0 | AO28: =Образование!AR22 -> 0 | AP28: =Образование!AS22 -> 0.89 | AQ28: =Образование!AT22 -> 0 | AR28: =Образование!AU22 -> 0 | AS28: =Образование!AV22 -> 0 | AT28: =Образование!AW22 -> 0.67 | AU28: =Образование!AX22 -> 0.22 | AV28: =Образование!AY22 -> 0 | AW28: =Образование!AZ22 -> 0 | AX28: =Образование!BA22 -> 0 | AY28: =Образование!BB22 -> 0 | AZ28: =Образование!BC22 -> 0 | BA28: =Образование!BD22 -> 0 | BB28: =Образование!BE22 -> 0 | BC28: =Образование!BF22 -> 0 | BD28: =Образование!BG22 -> 0 | BE28: =Образование!BH22 -> 0 | BF28: =Образование!BI22 -> 0 | BG28: =Образование!BJ22 -> 0 | BH28: =Образование!BK22 -> 0 | BI28: =Образование!BL22 -> 0 | BJ28: =Образование!BM22 -> выполнено | BK28: =Образование!BN22 -> 0 | BL28: =Образование!BO22 -> 0 | BM28: =Образование!BP22 -> 0 | BN28: =Образование!BQ22 -> 0 | BO28: =Образование!BR22 -> 0 | BP28: =Образование!BS22 -> 0 | BQ28: =Образование!BT22 -> 0 | BR28: =Образование!BU22 -> 0 | BS28: =Образование!BV22 -> 0 | BT28: =Образование!BW22 -> 0 | BU28: =Образование!BX22 -> 0 | BV28: =Образование!BY22 -> 0 | BW28: =Образование!BZ22 -> 0 | BX28: =Образование!CA22 -> 0 | BY28: =Образование!CB22 -> 0 | BZ28: =Образование!CC22 -> 0 | CA28: =Образование!CD22 -> 0 | CB28: =Образование!CE22 -> 0 | CC28: =Образование!CF22 -> 0 | CD28: =Образование!CG22 -> 0 | CE28: =Образование!CH22 -> 0 | CF28: =Образование!CI22 -> 0 | CG28: =Образование!CJ22 -> 0 | CH28: =Образование!CK22 -> 0 | CI28: =Образование!CL22 -> 0 | CJ28: =Образование!CM22 -> 0 | CK28: =Образование!CN22 -> 0 | CL28: =Образование!CO22 -> 0 | CM28: =Образование!CP22 -> 0 | CN28: =Образование!CQ22 -> 0 | CO28: =Образование!CR22 -> 0 | CP28: =Образование!CS22 -> 0 | CQ28: =Образование!CT22 -> 0 | CR28: =Образование!CU22 -> 0 | CS28: =Образование!CV22 -> 0 | CT28: =Образование!CW22 -> 0 | CU28: =Образование!CX22 -> 0 | CV28: =Образование!CY22 -> 0 | CW28: =Образование!CZ22 -> 0 | CX28: =Образование!DA22 -> 0 | CY28: =Образование!DB22 -> 0 | CZ28: =Образование!DC22 -> 0 | DA28: =Образование!DD22 -> 0 | DB28: =Образование!DE22 -> 0 | DC28: =Образование!DF22 -> 0 | DD28: =Образование!DG22 -> 0 | DE28: =Образование!DH22 -> 0 | DF28: =Образование!DI22 -> 0 | DG28: =Образование!DJ22 -> 0 | DH28: =Образование!DK22 -> 0 | DI28: =Образование!DL22 -> 0 | DJ28: =Образование!DM22 -> 0 | DK28: =Образование!DN22 -> 0 | DL28: =Образование!DO22 -> 0 | DM28: =Образование!DP22 -> 0 | DN28: =Образование!DQ22 -> 0 | DO28: =Образование!DR22 -> 0 | DP28: =Образование!DS22 -> 0 | DQ28: =Образование!DT22 -> 0 | DR28: =Образование!DU22 -> 0 | DS28: =Образование!DV22 -> 0 | DT28: =Образование!DW22 -> 0 | DU28: =Образование!DX22 -> 0 | DV28: =Образование!DY22 -> 0 | DW28: =Образование!DZ22 -> 0 | DX28: =Образование!EA22 -> 0 | DY28: =Образование!EB22 -> 0 | DZ28: =Образование!EC22 -> 0 | EA28: =Образование!ED22 -> 0 | EB28: =Образование!EE22 -> 0 | EC28: =Образование!EF22 -> 0 | ED28: =Образование!EG22 -> 0 | EE28: =Образование!EH22 -> 0 | EF28: =Образование!EI22 -> 0 | EG28: =Образование!EJ22 -> 0 | EH28: =Образование!EK22 -> 0 | EI28: =Образование!EL22 -> 0 | EJ28: =Образование!EM22 -> 0 | EK28: =Образование!EN22 -> 0 | EL28: =Образование!EO22 -> 0 | EM28: =Образование!EP22 -> 0 | EN28: =Образование!EQ22 -> 0 | EO28: =Образование!ER22 -> 0 | EP28: =Образование!ES22 -> 0 | EQ28: =Образование!ET22 -> 0 | ER28: =Образование!EU22 -> 0 | ES28: =Образование!EV22 -> 0 | ET28: =Образование!EW22 -> 0 | EU28: =Образование!EX22 -> 0 | EV28: =Образование!EY22 -> 0 | EW28: =Образование!EZ22 -> 0 | EX28: =Образование!FA22 -> 0 | EY28: =Образование!FB22 -> 0 | EZ28: =Образование!FC22 -> 0 | FA28: =Образование!FD22 -> 0 | FB28: =Образование!FE22 -> 0 | FC28: =Образование!FF22 -> 0 | FD28: =Образование!FG22 -> 0 | FE28: =Образование!FH22 -> 0 | FF28: =Образование!FI22 -> 0
A29: 1.11 | B29: ОБРАЗОВАНИЕ | C29: =Образование!F23 -> Ремонт кабинетов для открытия центра "Точка роста" МАОУ "Суксунская СОШ №2 (актуализированное название мероприятия - Ремонт тамбура, коридора 3-го этажа, помещений этнографического музея, библиотеки, кабинетов дефектолога и иностранного языка в здании МАОУ «Суксунская СОШ №2») | D29: =Образование!G23 -> да | E29: =Образование!H23 -> Постановление Правительства Пермского края от 10.04.2015 №206-п | F29: =Образование!I23 -> Министерство территориального развития Пермского края | G29: =Образование!J23 -> общестроительные работы | H29: =Образование!K23 -> ремонт | I29: =Образование!L23 -> актуализированное название мероприятия | J29: =Образование!M23 -> 0 | K29: =Образование!N23 -> 0 | L29: =Образование!O23 -> 0 | M29: =Образование!P23 -> 0 | N29: =Образование!Q23 -> 0 | O29: =Образование!R23 -> 0 | P29: =Образование!S23 -> 0 | Q29: =Образование!T23 -> 0 | R29: =Образование!U23 -> 0 | S29: =Образование!V23 -> 0 | T29: =Образование!W23 -> 0 | U29: =Образование!X23 -> 0 | V29: =Образование!Y23 -> 0 | W29: =Образование!Z23 -> 0 | X29: =Образование!AA23 -> 0 | Y29: =Образование!AB23 -> 0 | Z29: =Образование!AC23 -> 0 | AA29: =Образование!AD23 -> 0 | AB29: =Образование!AE23 ->  | AC29: =Образование!AF23 -> 0 | AD29: =Образование!AG23 -> 0 | AE29: =Образование!AH23 -> 0 | AF29: =Образование!AI23 -> 0 | AG29: =Образование!AJ23 -> 0 | AH29: =Образование!AK23 -> 0 | AI29: =Образование!AL23 -> 0 | AJ29: =Образование!AM23 -> 0.7 | AK29: =Образование!AN23 -> 0 | AL29: =Образование!AO23 -> 0.5 | AM29: =Образование!AP23 -> 0.2 | AN29: =Образование!AQ23 -> 0 | AO29: =Образование!AR23 -> 0 | AP29: =Образование!AS23 -> 0.7 | AQ29: =Образование!AT23 -> 0 | AR29: =Образование!AU23 -> 0 | AS29: =Образование!AV23 -> 0 | AT29: =Образование!AW23 -> 0.5 | AU29: =Образование!AX23 -> 0.2 | AV29: =Образование!AY23 -> 0 | AW29: =Образование!AZ23 -> 0 | AX29: =Образование!BA23 -> 0 | AY29: =Образование!BB23 -> 0 | AZ29: =Образование!BC23 -> 0 | BA29: =Образование!BD23 -> 0 | BB29: =Образование!BE23 -> 0 | BC29: =Образование!BF23 -> 0 | BD29: =Образование!BG23 -> 0 | BE29: =Образование!BH23 -> 0 | BF29: =Образование!BI23 -> 0 | BG29: =Образование!BJ23 -> 0 | BH29: =Образование!BK23 -> 0 | BI29: =Образование!BL23 -> 0 | BJ29: =Образование!BM23 -> выполнено | BK29: =Образование!BN23 -> 2.2 | BL29: =Образование!BO23 -> 0 | BM29: =Образование!BP23 -> 0 | BN29: =Образование!BQ23 -> 0 | BO29: =Образование!BR23 -> 0 | BP29: =Образование!BS23 -> 2.2 | BQ29: =Образование!BT23 -> 0 | BR29: =Образование!BU23 -> 0 | BS29: =Образование!BV23 -> 0 | BT29: =Образование!BW23 -> 0 | BU29: =Образование!BX23 -> 0 | BV29: =Образование!BY23 -> 0 | BW29: =Образование!BZ23 -> 0 | BX29: =Образование!CA23 -> 0 | BY29: =Образование!CB23 -> 0 | BZ29: =Образование!CC23 -> 0 | CA29: =Образование!CD23 -> 0 | CB29: =Образование!CE23 -> 0 | CC29: =Образование!CF23 -> 0 | CD29: =Образование!CG23 -> 0 | CE29: =Образование!CH23 -> 0 | CF29: =Образование!CI23 -> 0 | CG29: =Образование!CJ23 -> 0 | CH29: =Образование!CK23 -> 0 | CI29: =Образование!CL23 -> 0 | CJ29: =Образование!CM23 -> 0 | CK29: =Образование!CN23 -> 0 | CL29: =Образование!CO23 -> 0 | CM29: =Образование!CP23 -> 0 | CN29: =Образование!CQ23 -> 0 | CO29: =Образование!CR23 -> 0 | CP29: =Образование!CS23 -> 0 | CQ29: =Образование!CT23 -> 0 | CR29: =Образование!CU23 -> 0 | CS29: =Образование!CV23 -> 0 | CT29: =Образование!CW23 -> 0 | CU29: =Образование!CX23 -> 0 | CV29: =Образование!CY23 -> 0 | CW29: =Образование!CZ23 -> 0 | CX29: =Образование!DA23 -> 0 | CY29: =Образование!DB23 -> 0 | CZ29: =Образование!DC23 -> 0 | DA29: =Образование!DD23 -> 0 | DB29: =Образование!DE23 -> 0 | DC29: =Образование!DF23 -> 0 | DD29: =Образование!DG23 -> 0 | DE29: =Образование!DH23 -> 0 | DF29: =Образование!DI23 -> 0 | DG29: =Образование!DJ23 -> 0 | DH29: =Образование!DK23 -> 0 | DI29: =Образование!DL23 -> 0 | DJ29: =Образование!DM23 -> 0 | DK29: =Образование!DN23 -> 0 | DL29: =Образование!DO23 -> 0 | DM29: =Образование!DP23 -> 0 | DN29: =Образование!DQ23 -> 0 | DO29: =Образование!DR23 -> 0 | DP29: =Образование!DS23 -> 0 | DQ29: =Образование!DT23 -> 0 | DR29: =Образование!DU23 -> 0 | DS29: =Образование!DV23 -> 0 | DT29: =Образование!DW23 -> 0 | DU29: =Образование!DX23 -> 0 | DV29: =Образование!DY23 -> 0 | DW29: =Образование!DZ23 -> 0 | DX29: =Образование!EA23 -> 0 | DY29: =Образование!EB23 -> 0 | DZ29: =Образование!EC23 -> 0 | EA29: =Образование!ED23 -> 0 | EB29: =Образование!EE23 -> 0 | EC29: =Образование!EF23 -> 0 | ED29: =Образование!EG23 -> 0 | EE29: =Образование!EH23 -> 0 | EF29: =Образование!EI23 -> 0 | EG29: =Образование!EJ23 -> 0 | EH29: =Образование!EK23 -> 0 | EI29: =Образование!EL23 -> 0 | EJ29: =Образование!EM23 -> 0 | EK29: =Образование!EN23 -> 0 | EL29: =Образование!EO23 -> 0 | EM29: =Образование!EP23 -> 0 | EN29: =Образование!EQ23 -> 0 | EO29: =Образование!ER23 -> 0 | EP29: =Образование!ES23 -> 0 | EQ29: =Образование!ET23 -> 0 | ER29: =Образование!EU23 -> 0 | ES29: =Образование!EV23 -> 0 | ET29: =Образование!EW23 -> 0 | EU29: =Образование!EX23 -> 0 | EV29: =Образование!EY23 -> 0 | EW29: =Образование!EZ23 -> 0 | EX29: =Образование!FA23 -> 0 | EY29: =Образование!FB23 -> 0 | EZ29: =Образование!FC23 -> 0 | FA29: =Образование!FD23 -> 0 | FB29: =Образование!FE23 -> 0 | FC29: =Образование!FF23 -> 0 | FD29: =Образование!FG23 -> 0 | FE29: =Образование!FH23 -> 0 | FF29: =Образование!FI23 -> 0
A30: 1.12 | B30: ОБРАЗОВАНИЕ | C30: =Образование!F24 -> Ремонт помещений в здании школы МОУ "Киселевская ОШИ" | D30: =Образование!G24 -> да | E30: =Образование!H24 -> Постановление Правительства Пермского края от 10.04.2015 №206-п | F30: =Образование!I24 -> Министерство территориального развития Пермского края | G30: =Образование!J24 -> общестроительные работы | H30: =Образование!K24 -> ремонт | I30: =Образование!L24 -> актуализированное название мероприятия | J30: =Образование!M24 -> 0 | K30: =Образование!N24 -> 0 | L30: =Образование!O24 -> 0 | M30: =Образование!P24 -> 0 | N30: =Образование!Q24 -> 0 | O30: =Образование!R24 -> 0 | P30: =Образование!S24 -> 0 | Q30: =Образование!T24 -> 0 | R30: =Образование!U24 -> 0 | S30: =Образование!V24 -> 0 | T30: =Образование!W24 -> 0 | U30: =Образование!X24 -> 0 | V30: =Образование!Y24 -> 0 | W30: =Образование!Z24 -> 0 | X30: =Образование!AA24 -> 0 | Y30: =Образование!AB24 -> 0 | Z30: =Образование!AC24 -> 0 | AA30: =Образование!AD24 -> 0 | AB30: =Образование!AE24 ->  | AC30: =Образование!AF24 -> 0 | AD30: =Образование!AG24 -> 6.4 | AE30: =Образование!AH24 -> 0 | AF30: =Образование!AI24 -> 4.8 | AG30: =Образование!AJ24 -> 1.6 | AH30: =Образование!AK24 -> 0 | AI30: =Образование!AL24 -> 0 | AJ30: =Образование!AM24 -> 5.41 | AK30: =Образование!AN24 -> 0 | AL30: =Образование!AO24 -> 4.06 | AM30: =Образование!AP24 -> 1.35 | AN30: =Образование!AQ24 -> 0 | AO30: =Образование!AR24 -> 0 | AP30: =Образование!AS24 -> 5.41 | AQ30: =Образование!AT24 -> 0 | AR30: =Образование!AU24 -> 0 | AS30: =Образование!AV24 -> 0 | AT30: =Образование!AW24 -> 4.06 | AU30: =Образование!AX24 -> 1.35 | AV30: =Образование!AY24 -> 0 | AW30: =Образование!AZ24 -> 0 | AX30: =Образование!BA24 -> 0 | AY30: =Образование!BB24 -> 0 | AZ30: =Образование!BC24 -> 0 | BA30: =Образование!BD24 -> 0 | BB30: =Образование!BE24 -> 0 | BC30: =Образование!BF24 -> 0 | BD30: =Образование!BG24 -> 0 | BE30: =Образование!BH24 -> 0 | BF30: =Образование!BI24 -> 0 | BG30: =Образование!BJ24 -> 0 | BH30: =Образование!BK24 -> 0 | BI30: =Образование!BL24 -> 0 | BJ30: =Образование!BM24 -> Планируемый срок выполнения-25.08.2023 | BK30: =Образование!BN24 -> 0 | BL30: =Образование!BO24 -> 0 | BM30: =Образование!BP24 -> 0 | BN30: =Образование!BQ24 -> 0 | BO30: =Образование!BR24 -> 0 | BP30: =Образование!BS24 -> 0 | BQ30: =Образование!BT24 -> 0 | BR30: =Образование!BU24 -> 0 | BS30: =Образование!BV24 -> 0 | BT30: =Образование!BW24 -> 0 | BU30: =Образование!BX24 -> 0 | BV30: =Образование!BY24 -> 0 | BW30: =Образование!BZ24 -> 0 | BX30: =Образование!CA24 -> 0 | BY30: =Образование!CB24 -> 0 | BZ30: =Образование!CC24 -> 0 | CA30: =Образование!CD24 -> 0 | CB30: =Образование!CE24 -> 0 | CC30: =Образование!CF24 -> 0 | CD30: =Образование!CG24 -> 0 | CE30: =Образование!CH24 -> 0 | CF30: =Образование!CI24 -> 0 | CG30: =Образование!CJ24 -> 0 | CH30: =Образование!CK24 -> 0 | CI30: =Образование!CL24 -> 0 | CJ30: =Образование!CM24 -> 0 | CK30: =Образование!CN24 -> 0 | CL30: =Образование!CO24 -> 0 | CM30: =Образование!CP24 -> 0 | CN30: =Образование!CQ24 -> 0 | CO30: =Образование!CR24 -> 0 | CP30: =Образование!CS24 -> 0 | CQ30: =Образование!CT24 -> 0 | CR30: =Образование!CU24 -> 0 | CS30: =Образование!CV24 -> 0 | CT30: =Образование!CW24 -> 0 | CU30: =Образование!CX24 -> 0 | CV30: =Образование!CY24 -> 0 | CW30: =Образование!CZ24 -> 0 | CX30: =Образование!DA24 -> 0 | CY30: =Образование!DB24 -> 0 | CZ30: =Образование!DC24 -> 0 | DA30: =Образование!DD24 -> 0 | DB30: =Образование!DE24 -> 0 | DC30: =Образование!DF24 -> 0 | DD30: =Образование!DG24 -> 0 | DE30: =Образование!DH24 -> 0 | DF30: =Образование!DI24 -> 0 | DG30: =Образование!DJ24 -> 0 | DH30: =Образование!DK24 -> 0 | DI30: =Образование!DL24 -> 0 | DJ30: =Образование!DM24 -> 0 | DK30: =Образование!DN24 -> 0 | DL30: =Образование!DO24 -> 0 | DM30: =Образование!DP24 -> 0 | DN30: =Образование!DQ24 -> 0 | DO30: =Образование!DR24 -> 0 | DP30: =Образование!DS24 -> 0 | DQ30: =Образование!DT24 -> 0 | DR30: =Образование!DU24 -> 0 | DS30: =Образование!DV24 -> 0 | DT30: =Образование!DW24 -> 0 | DU30: =Образование!DX24 -> 0 | DV30: =Образование!DY24 -> 0 | DW30: =Образование!DZ24 -> 0 | DX30: =Образование!EA24 -> 0 | DY30: =Образование!EB24 -> 0 | DZ30: =Образование!EC24 -> 0 | EA30: =Образование!ED24 -> 0 | EB30: =Образование!EE24 -> 0 | EC30: =Образование!EF24 -> 0 | ED30: =Образование!EG24 -> 0 | EE30: =Образование!EH24 -> 0 | EF30: =Образование!EI24 -> 0 | EG30: =Образование!EJ24 -> 0 | EH30: =Образование!EK24 -> 0 | EI30: =Образование!EL24 -> 0 | EJ30: =Образование!EM24 -> 0 | EK30: =Образование!EN24 -> 0 | EL30: =Образование!EO24 -> 0 | EM30: =Образование!EP24 -> 0 | EN30: =Образование!EQ24 -> 0 | EO30: =Образование!ER24 -> 0 | EP30: =Образование!ES24 -> 0 | EQ30: =Образование!ET24 -> 0 | ER30: =Образование!EU24 -> 0 | ES30: =Образование!EV24 -> 0 | ET30: =Образование!EW24 -> 0 | EU30: =Образование!EX24 -> 0 | EV30: =Образование!EY24 -> 0 | EW30: =Образование!EZ24 -> 0 | EX30: =Образование!FA24 -> 0 | EY30: =Образование!FB24 -> 0 | EZ30: =Образование!FC24 -> 0 | FA30: =Образование!FD24 -> 0 | FB30: =Образование!FE24 -> 0 | FC30: =Образование!FF24 -> 0 | FD30: =Образование!FG24 -> 0 | FE30: =Образование!FH24 -> 0 | FF30: =Образование!FI24 -> 0
A31: 1.13 | B31: ОБРАЗОВАНИЕ | C31: =Образование!F25 -> Открытие центров "Точка роста"( Суксунская СОШ №1, Суксунская СОШ №2,Тисовская СОШ-ДС) | D31: =Образование!G25 -> нет | E31: =Образование!H25 -> Постановление Правительства Пермского края от 25.11.2021 №915-п | F31: =Образование!I25 -> Министерство образования Пермского края | G31: =Образование!J25 -> Приобретение оборудования | H31: =Образование!K25 -> 0 | I31: =Образование!L25 -> 0 | J31: =Образование!M25 -> 0 | K31: =Образование!N25 -> Изменена (увеличена) сумма в 2025 году КБ-2,5 млн.руб | L31: =Образование!O25 -> 0 | M31: =Образование!P25 -> 0 | N31: =Образование!Q25 -> 0 | O31: =Образование!R25 -> 0 | P31: =Образование!S25 -> 0 | Q31: =Образование!T25 -> 0 | R31: =Образование!U25 -> 0 | S31: =Образование!V25 -> 0 | T31: =Образование!W25 -> 0 | U31: =Образование!X25 -> 0 | V31: =Образование!Y25 -> 0 | W31: =Образование!Z25 -> 0 | X31: =Образование!AA25 -> 0 | Y31: =Образование!AB25 -> 0 | Z31: =Образование!AC25 -> 0 | AA31: =Образование!AD25 -> 0 | AB31: =Образование!AE25 ->  | AC31: =Образование!AF25 -> 0 | AD31: =Образование!AG25 -> 2.5 | AE31: =Образование!AH25 -> 0 | AF31: =Образование!AI25 -> 2.5 | AG31: =Образование!AJ25 -> 0 | AH31: =Образование!AK25 -> 0 | AI31: =Образование!AL25 -> 0 | AJ31: =Образование!AM25 -> 2.5 | AK31: =Образование!AN25 -> 0 | AL31: =Образование!AO25 -> 2.5 | AM31: =Образование!AP25 -> 0 | AN31: =Образование!AQ25 -> 0 | AO31: =Образование!AR25 -> 0 | AP31: =Образование!AS25 -> 2.5 | AQ31: =Образование!AT25 -> 0 | AR31: =Образование!AU25 -> 0 | AS31: =Образование!AV25 -> 0 | AT31: =Образование!AW25 -> 2.5 | AU31: =Образование!AX25 -> 0 | AV31: =Образование!AY25 -> 0 | AW31: =Образование!AZ25 -> 0 | AX31: =Образование!BA25 -> 0 | AY31: =Образование!BB25 -> 0 | AZ31: =Образование!BC25 -> 0 | BA31: =Образование!BD25 -> 0 | BB31: =Образование!BE25 -> 0 | BC31: =Образование!BF25 -> 0 | BD31: =Образование!BG25 -> 0 | BE31: =Образование!BH25 -> 0 | BF31: =Образование!BI25 -> 0 | BG31: =Образование!BJ25 -> 0 | BH31: =Образование!BK25 -> 0 | BI31: =Образование!BL25 -> 0 | BJ31: =Образование!BM25 -> выполнено | BK31: =Образование!BN25 -> 2.5 | BL31: =Образование!BO25 -> 0 | BM31: =Образование!BP25 -> 2.5 | BN31: =Образование!BQ25 -> 0 | BO31: =Образование!BR25 -> 0 | BP31: =Образование!BS25 -> 0 | BQ31: =Образование!BT25 -> 2.5 | BR31: =Образование!BU25 -> 0 | BS31: =Образование!BV25 -> 2.5 | BT31: =Образование!BW25 -> 0 | BU31: =Образование!BX25 -> 0 | BV31: =Образование!BY25 -> 0 | BW31: =Образование!BZ25 -> 2.5 | BX31: =Образование!CA25 -> 0 | BY31: =Образование!CB25 -> 0 | BZ31: =Образование!CC25 -> 0 | CA31: =Образование!CD25 -> 2.5 | CB31: =Образование!CE25 -> 0 | CC31: =Образование!CF25 -> 0 | CD31: =Образование!CG25 -> 0 | CE31: =Образование!CH25 -> 0 | CF31: =Образование!CI25 -> 0 | CG31: =Образование!CJ25 -> 0 | CH31: =Образование!CK25 -> 0 | CI31: =Образование!CL25 -> 0 | CJ31: =Образование!CM25 -> 0 | CK31: =Образование!CN25 -> 0 | CL31: =Образование!CO25 -> 0 | CM31: =Образование!CP25 -> 0 | CN31: =Образование!CQ25 -> 0 | CO31: =Образование!CR25 -> 0 | CP31: =Образование!CS25 -> 0 | CQ31: =Образование!CT25 -> 0 | CR31: =Образование!CU25 -> 0 | CS31: =Образование!CV25 -> 0 | CT31: =Образование!CW25 -> 0 | CU31: =Образование!CX25 -> 0 | CV31: =Образование!CY25 -> 0 | CW31: =Образование!CZ25 -> 0 | CX31: =Образование!DA25 -> 2.5 | CY31: =Образование!DB25 -> 0 | CZ31: =Образование!DC25 -> 2.5 | DA31: =Образование!DD25 -> 0 | DB31: =Образование!DE25 -> 0 | DC31: =Образование!DF25 -> 0 | DD31: =Образование!DG25 -> 2.5 | DE31: =Образование!DH25 -> 0 | DF31: =Образование!DI25 -> 0 | DG31: =Образование!DJ25 -> 0 | DH31: =Образование!DK25 -> 2.5 | DI31: =Образование!DL25 -> 0 | DJ31: =Образование!DM25 -> 0 | DK31: =Образование!DN25 -> 0 | DL31: =Образование!DO25 -> 0 | DM31: =Образование!DP25 -> 0 | DN31: =Образование!DQ25 -> 0 | DO31: =Образование!DR25 -> 0 | DP31: =Образование!DS25 -> 0 | DQ31: =Образование!DT25 -> 0 | DR31: =Образование!DU25 -> 0 | DS31: =Образование!DV25 -> 0 | DT31: =Образование!DW25 -> 0 | DU31: =Образование!DX25 -> 0 | DV31: =Образование!DY25 -> 0 | DW31: =Образование!DZ25 -> 0 | DX31: =Образование!EA25 -> Мероприятие продлили на 2025 год | DY31: =Образование!EB25 -> 0 | DZ31: =Образование!EC25 -> 0 | EA31: =Образование!ED25 -> 0 | EB31: =Образование!EE25 -> 0 | EC31: =Образование!EF25 -> 0 | ED31: =Образование!EG25 -> 0 | EE31: =Образование!EH25 -> 0 | EF31: =Образование!EI25 -> 0 | EG31: =Образование!EJ25 -> 0 | EH31: =Образование!EK25 -> 0 | EI31: =Образование!EL25 -> 0 | EJ31: =Образование!EM25 -> 0 | EK31: =Образование!EN25 -> 0 | EL31: =Образование!EO25 -> 0 | EM31: =Образование!EP25 -> 0 | EN31: =Образование!EQ25 -> 0 | EO31: =Образование!ER25 -> 0 | EP31: =Образование!ES25 -> 0 | EQ31: =Образование!ET25 -> 0 | ER31: =Образование!EU25 -> 0 | ES31: =Образование!EV25 -> 0 | ET31: =Образование!EW25 -> 0 | EU31: =Образование!EX25 -> 0 | EV31: =Образование!EY25 -> 0 | EW31: =Образование!EZ25 -> 0 | EX31: =Образование!FA25 -> 0 | EY31: =Образование!FB25 -> 0 | EZ31: =Образование!FC25 -> 0 | FA31: =Образование!FD25 -> 0 | FB31: =Образование!FE25 -> 0 | FC31: =Образование!FF25 -> 0 | FD31: =Образование!FG25 -> 0 | FE31: =Образование!FH25 -> 0 | FF31: =Образование!FI25 -> 0
A32: 1.14 | B32: ОБРАЗОВАНИЕ | C32: =Образование!F26 -> Общежитие для иногородних студентов в п. Суксун, 80 мест | D32: =Образование!G26 -> нет | E32: =Образование!H26 -> Постановление Правительства Пермского края от 30.09.2022 № 833-п | F32: =Образование!I26 -> Министерство образования Пермского края | G32: =Образование!J26 -> общестроительные работы, | H32: =Образование!K26 -> строительство | I32: =Образование!L26 -> уточненное название мероприятия | J32: =Образование!M26 -> Изменение сроков строительства с 1 года на 2023-2025 годы по предложению Минстроя ПК | K32: =Образование!N26 -> 0 | L32: =Образование!O26 -> 0 | M32: =Образование!P26 -> 0 | N32: =Образование!Q26 -> 0 | O32: =Образование!R26 -> 0 | P32: =Образование!S26 -> 0 | Q32: =Образование!T26 -> 0 | R32: =Образование!U26 -> 0 | S32: =Образование!V26 -> 0 | T32: =Образование!W26 -> 0 | U32: =Образование!X26 -> 0 | V32: =Образование!Y26 -> 0 | W32: =Образование!Z26 -> 0 | X32: =Образование!AA26 -> 0 | Y32: =Образование!AB26 -> 0 | Z32: =Образование!AC26 -> 0 | AA32: =Образование!AD26 -> 0 | AB32: =Образование!AE26 ->  | AC32: =Образование!AF26 -> 0 | AD32: =Образование!AG26 -> 0 | AE32: =Образование!AH26 -> 0 | AF32: =Образование!AI26 -> 0 | AG32: =Образование!AJ26 -> 0 | AH32: =Образование!AK26 -> 0 | AI32: =Образование!AL26 -> 0 | AJ32: =Образование!AM26 -> 6.5 | AK32: =Образование!AN26 -> 0 | AL32: =Образование!AO26 -> 6.5 | AM32: =Образование!AP26 -> 0 | AN32: =Образование!AQ26 -> 0 | AO32: =Образование!AR26 -> 0 | AP32: =Образование!AS26 -> 6.5 | AQ32: =Образование!AT26 -> 0 | AR32: =Образование!AU26 -> 0 | AS32: =Образование!AV26 -> 0 | AT32: =Образование!AW26 -> 6.5 | AU32: =Образование!AX26 -> 0 | AV32: =Образование!AY26 -> 0 | AW32: =Образование!AZ26 -> 0 | AX32: =Образование!BA26 -> 0 | AY32: =Образование!BB26 -> 0 | AZ32: =Образование!BC26 -> 0 | BA32: =Образование!BD26 -> 0 | BB32: =Образование!BE26 -> 0 | BC32: =Образование!BF26 -> 0 | BD32: =Образование!BG26 -> 0 | BE32: =Образование!BH26 -> 0 | BF32: =Образование!BI26 -> 0 | BG32: =Образование!BJ26 -> 0 | BH32: =Образование!BK26 -> 0 | BI32: =Образование!BL26 -> 0 | BJ32: =Образование!BM26 -> 0 | BK32: =Образование!BN26 -> 0 | BL32: =Образование!BO26 -> 0 | BM32: =Образование!BP26 -> 0 | BN32: =Образование!BQ26 -> 0 | BO32: =Образование!BR26 -> 0 | BP32: =Образование!BS26 -> 0 | BQ32: =Образование!BT26 -> 45.2 | BR32: =Образование!BU26 -> 0 | BS32: =Образование!BV26 -> 45.2 | BT32: =Образование!BW26 -> 0 | BU32: =Образование!BX26 -> 0 | BV32: =Образование!BY26 -> 0 | BW32: =Образование!BZ26 -> 45.2 | BX32: =Образование!CA26 -> 0 | BY32: =Образование!CB26 -> 0 | BZ32: =Образование!CC26 -> 0 | CA32: =Образование!CD26 -> 45.2 | CB32: =Образование!CE26 -> 0 | CC32: =Образование!CF26 -> 0 | CD32: =Образование!CG26 -> 0 | CE32: =Образование!CH26 -> 0 | CF32: =Образование!CI26 -> 0 | CG32: =Образование!CJ26 -> 0 | CH32: =Образование!CK26 -> 0 | CI32: =Образование!CL26 -> 0 | CJ32: =Образование!CM26 -> 0 | CK32: =Образование!CN26 -> 0 | CL32: =Образование!CO26 -> 0 | CM32: =Образование!CP26 -> 0 | CN32: =Образование!CQ26 -> 0 | CO32: =Образование!CR26 -> 0 | CP32: =Образование!CS26 -> 0 | CQ32: =Образование!CT26 -> 0 | CR32: =Образование!CU26 -> 157.1 | CS32: =Образование!CV26 -> 0 | CT32: =Образование!CW26 -> 157.1 | CU32: =Образование!CX26 -> 0 | CV32: =Образование!CY26 -> 0 | CW32: =Образование!CZ26 -> 0 | CX32: =Образование!DA26 -> 105.4 | CY32: =Образование!DB26 -> 0 | CZ32: =Образование!DC26 -> 105.4 | DA32: =Образование!DD26 -> 0 | DB32: =Образование!DE26 -> 0 | DC32: =Образование!DF26 -> 0 | DD32: =Образование!DG26 -> 105.4 | DE32: =Образование!DH26 -> 0 | DF32: =Образование!DI26 -> 0 | DG32: =Образование!DJ26 -> 0 | DH32: =Образование!DK26 -> 105.4 | DI32: =Образование!DL26 -> 0 | DJ32: =Образование!DM26 -> 0 | DK32: =Образование!DN26 -> 0 | DL32: =Образование!DO26 -> 0 | DM32: =Образование!DP26 -> 0 | DN32: =Образование!DQ26 -> 0 | DO32: =Образование!DR26 -> 0 | DP32: =Образование!DS26 -> 0 | DQ32: =Образование!DT26 -> 0 | DR32: =Образование!DU26 -> 0 | DS32: =Образование!DV26 -> 0 | DT32: =Образование!DW26 -> 0 | DU32: =Образование!DX26 -> 0 | DV32: =Образование!DY26 -> 0 | DW32: =Образование!DZ26 -> 0 | DX32: =Образование!EA26 -> Изменение срока строительства с 1 года на 2023-2025 годы по предложению Минстроя ПК | DY32: =Образование!EB26 -> 0 | DZ32: =Образование!EC26 -> 0 | EA32: =Образование!ED26 -> 0 | EB32: =Образование!EE26 -> 0 | EC32: =Образование!EF26 -> 0 | ED32: =Образование!EG26 -> 0 | EE32: =Образование!EH26 -> 0 | EF32: =Образование!EI26 -> 0 | EG32: =Образование!EJ26 -> 0 | EH32: =Образование!EK26 -> 0 | EI32: =Образование!EL26 -> 0 | EJ32: =Образование!EM26 -> 0 | EK32: =Образование!EN26 -> 0 | EL32: =Образование!EO26 -> 0 | EM32: =Образование!EP26 -> 0 | EN32: =Образование!EQ26 -> 0 | EO32: =Образование!ER26 -> 0 | EP32: =Образование!ES26 -> 0 | EQ32: =Образование!ET26 -> 0 | ER32: =Образование!EU26 -> 0 | ES32: =Образование!EV26 -> 0 | ET32: =Образование!EW26 -> 0 | EU32: =Образование!EX26 -> 0 | EV32: =Образование!EY26 -> 0 | EW32: =Образование!EZ26 -> 0 | EX32: =Образование!FA26 -> 0 | EY32: =Образование!FB26 -> 0 | EZ32: =Образование!FC26 -> 0 | FA32: =Образование!FD26 -> 0 | FB32: =Образование!FE26 -> 0 | FC32: =Образование!FF26 -> 0 | FD32: =Образование!FG26 -> 0 | FE32: =Образование!FH26 -> 0 | FF32: =Образование!FI26 -> 0
A33: 1.15 | B33: ОБРАЗОВАНИЕ | C33: =Образование!F27 -> Текущий ремонт отмостки, цоколя,стен здания школы МАОУ "Ключевская СОШ"(актуализированное название мероприятия- Ремонт фасада здания школы МАОУ "Ключевская СОШ" | D33: =Образование!G27 -> нет | E33: =Образование!H27 -> Постановление Правительства Пермского края от 10.04.2015 №206-п | F33: =Образование!I27 -> Министерство территориального развития Пермского края | G33: =Образование!J27 -> разработка ПСД, общестроительные работы | H33: =Образование!K27 -> ремонт | I33: =Образование!L27 -> актуализированное название мероприятия | J33: =Образование!M27 -> 2023г. | K33: =Образование!N27 -> Изменена (увеличена сумма в 2023 году КБ-2,5 млн.руб | L33: =Образование!O27 -> 0 | M33: =Образование!P27 -> 0 | N33: =Образование!Q27 -> 0 | O33: =Образование!R27 -> 0 | P33: =Образование!S27 -> 0 | Q33: =Образование!T27 -> 0 | R33: =Образование!U27 -> 0 | S33: =Образование!V27 -> 0 | T33: =Образование!W27 -> 0 | U33: =Образование!X27 -> 0 | V33: =Образование!Y27 -> 0 | W33: =Образование!Z27 -> 0 | X33: =Образование!AA27 -> 0 | Y33: =Образование!AB27 -> 0 | Z33: =Образование!AC27 -> 0 | AA33: =Образование!AD27 -> 0 | AB33: =Образование!AE27 ->  | AC33: =Образование!AF27 -> 0 | AD33: =Образование!AG27 -> 0 | AE33: =Образование!AH27 -> 0 | AF33: =Образование!AI27 -> 0 | AG33: =Образование!AJ27 -> 0 | AH33: =Образование!AK27 -> 0 | AI33: =Образование!AL27 -> 0 | AJ33: =Образование!AM27 -> 3.3 | AK33: =Образование!AN27 -> 0 | AL33: =Образование!AO27 -> 2.5 | AM33: =Образование!AP27 -> 0.8 | AN33: =Образование!AQ27 -> 0 | AO33: =Образование!AR27 -> 0 | AP33: =Образование!AS27 -> 3.3 | AQ33: =Образование!AT27 -> 0 | AR33: =Образование!AU27 -> 0 | AS33: =Образование!AV27 -> 0 | AT33: =Образование!AW27 -> 2.5 | AU33: =Образование!AX27 -> 0.8 | AV33: =Образование!AY27 -> 0 | AW33: =Образование!AZ27 -> 0 | AX33: =Образование!BA27 -> 0 | AY33: =Образование!BB27 -> 0 | AZ33: =Образование!BC27 -> 0 | BA33: =Образование!BD27 -> 0 | BB33: =Образование!BE27 -> 0 | BC33: =Образование!BF27 -> 0 | BD33: =Образование!BG27 -> 0 | BE33: =Образование!BH27 -> 0 | BF33: =Образование!BI27 -> 0 | BG33: =Образование!BJ27 -> 0 | BH33: =Образование!BK27 -> 0 | BI33: =Образование!BL27 -> 0 | BJ33: =Образование!BM27 -> 0 | BK33: =Образование!BN27 -> 1.7 | BL33: =Образование!BO27 -> 0 | BM33: =Образование!BP27 -> 0 | BN33: =Образование!BQ27 -> 0 | BO33: =Образование!BR27 -> 0 | BP33: =Образование!BS27 -> 1.7 | BQ33: =Образование!BT27 -> 0 | BR33: =Образование!BU27 -> 0 | BS33: =Образование!BV27 -> 0 | BT33: =Образование!BW27 -> 0 | BU33: =Образование!BX27 -> 0 | BV33: =Образование!BY27 -> 0 | BW33: =Образование!BZ27 -> 0 | BX33: =Образование!CA27 -> 0 | BY33: =Образование!CB27 -> 0 | BZ33: =Образование!CC27 -> 0 | CA33: =Образование!CD27 -> 0 | CB33: =Образование!CE27 -> 0 | CC33: =Образование!CF27 -> 0 | CD33: =Образование!CG27 -> 0 | CE33: =Образование!CH27 -> 0 | CF33: =Образование!CI27 -> 0 | CG33: =Образование!CJ27 -> 0 | CH33: =Образование!CK27 -> 0 | CI33: =Образование!CL27 -> 0 | CJ33: =Образование!CM27 -> 0 | CK33: =Образование!CN27 -> 0 | CL33: =Образование!CO27 -> 0 | CM33: =Образование!CP27 -> 0 | CN33: =Образование!CQ27 -> 0 | CO33: =Образование!CR27 -> 0 | CP33: =Образование!CS27 -> 0 | CQ33: =Образование!CT27 -> реализация мероприятия перенесена с 2024 на 2023 год | CR33: =Образование!CU27 -> 0 | CS33: =Образование!CV27 -> 0 | CT33: =Образование!CW27 -> 0 | CU33: =Образование!CX27 -> 0 | CV33: =Образование!CY27 -> 0 | CW33: =Образование!CZ27 -> 0 | CX33: =Образование!DA27 -> 0 | CY33: =Образование!DB27 -> 0 | CZ33: =Образование!DC27 -> 0 | DA33: =Образование!DD27 -> 0 | DB33: =Образование!DE27 -> 0 | DC33: =Образование!DF27 -> 0 | DD33: =Образование!DG27 -> 0 | DE33: =Образование!DH27 -> 0 | DF33: =Образование!DI27 -> 0 | DG33: =Образование!DJ27 -> 0 | DH33: =Образование!DK27 -> 0 | DI33: =Образование!DL27 -> 0 | DJ33: =Образование!DM27 -> 0 | DK33: =Образование!DN27 -> 0 | DL33: =Образование!DO27 -> 0 | DM33: =Образование!DP27 -> 0 | DN33: =Образование!DQ27 -> 0 | DO33: =Образование!DR27 -> 0 | DP33: =Образование!DS27 -> 0 | DQ33: =Образование!DT27 -> 0 | DR33: =Образование!DU27 -> 0 | DS33: =Образование!DV27 -> 0 | DT33: =Образование!DW27 -> 0 | DU33: =Образование!DX27 -> 0 | DV33: =Образование!DY27 -> 0 | DW33: =Образование!DZ27 -> 0 | DX33: =Образование!EA27 -> 0 | DY33: =Образование!EB27 -> 0 | DZ33: =Образование!EC27 -> 0 | EA33: =Образование!ED27 -> 0 | EB33: =Образование!EE27 -> 0 | EC33: =Образование!EF27 -> 0 | ED33: =Образование!EG27 -> 0 | EE33: =Образование!EH27 -> 0 | EF33: =Образование!EI27 -> 0 | EG33: =Образование!EJ27 -> 0 | EH33: =Образование!EK27 -> 0 | EI33: =Образование!EL27 -> 0 | EJ33: =Образование!EM27 -> 0 | EK33: =Образование!EN27 -> 0 | EL33: =Образование!EO27 -> 0 | EM33: =Образование!EP27 -> 0 | EN33: =Образование!EQ27 -> 0 | EO33: =Образование!ER27 -> 0 | EP33: =Образование!ES27 -> 0 | EQ33: =Образование!ET27 -> 0 | ER33: =Образование!EU27 -> 0 | ES33: =Образование!EV27 -> 0 | ET33: =Образование!EW27 -> 0 | EU33: =Образование!EX27 -> 0 | EV33: =Образование!EY27 -> 0 | EW33: =Образование!EZ27 -> 0 | EX33: =Образование!FA27 -> 0 | EY33: =Образование!FB27 -> 0 | EZ33: =Образование!FC27 -> 0 | FA33: =Образование!FD27 -> 0 | FB33: =Образование!FE27 -> 0 | FC33: =Образование!FF27 -> 0 | FD33: =Образование!FG27 -> 0 | FE33: =Образование!FH27 -> 0 | FF33: =Образование!FI27 -> 4.7
A34: 1.16 | B34: ОБРАЗОВАНИЕ | C34: =Образование!F28 -> Ремонт кабинетов в здании МОУ "Киселевская ОШИ" | D34: =Образование!G28 -> нет | E34: =Образование!H28 -> Постановление Правительства Пермского края от 10.04.2015 №206-п | F34: =Образование!I28 -> Министерство территориального развития Пермского края | G34: =Образование!J28 -> общестроительные работы | H34: =Образование!K28 -> ремонт | I34: =Образование!L28 -> 0 | J34: =Образование!M28 -> 0 | K34: =Образование!N28 -> 0 | L34: =Образование!O28 -> 0 | M34: =Образование!P28 -> 0 | N34: =Образование!Q28 -> 0 | O34: =Образование!R28 -> 0 | P34: =Образование!S28 -> 0 | Q34: =Образование!T28 -> 0 | R34: =Образование!U28 -> 0 | S34: =Образование!V28 -> 0 | T34: =Образование!W28 -> 0 | U34: =Образование!X28 -> 0 | V34: =Образование!Y28 -> 0 | W34: =Образование!Z28 -> 0 | X34: =Образование!AA28 -> 0 | Y34: =Образование!AB28 -> 0 | Z34: =Образование!AC28 -> 0 | AA34: =Образование!AD28 -> 0 | AB34: =Образование!AE28 ->  | AC34: =Образование!AF28 -> 0 | AD34: =Образование!AG28 -> 0 | AE34: =Образование!AH28 -> 0 | AF34: =Образование!AI28 -> 0 | AG34: =Образование!AJ28 -> 0 | AH34: =Образование!AK28 -> 0 | AI34: =Образование!AL28 -> 0 | AJ34: =Образование!AM28 -> 1.43 | AK34: =Образование!AN28 -> 0 | AL34: =Образование!AO28 -> 1.07 | AM34: =Образование!AP28 -> 0.36 | AN34: =Образование!AQ28 -> 0 | AO34: =Образование!AR28 -> 0 | AP34: =Образование!AS28 -> 1.43 | AQ34: =Образование!AT28 -> 0 | AR34: =Образование!AU28 -> 0 | AS34: =Образование!AV28 -> 0 | AT34: =Образование!AW28 -> 1.07 | AU34: =Образование!AX28 -> 0.36 | AV34: =Образование!AY28 -> 0 | AW34: =Образование!AZ28 -> 0 | AX34: =Образование!BA28 -> 0 | AY34: =Образование!BB28 -> 0 | AZ34: =Образование!BC28 -> 0 | BA34: =Образование!BD28 -> 0 | BB34: =Образование!BE28 -> 0 | BC34: =Образование!BF28 -> 0 | BD34: =Образование!BG28 -> 0 | BE34: =Образование!BH28 -> 0 | BF34: =Образование!BI28 -> 0 | BG34: =Образование!BJ28 -> 0 | BH34: =Образование!BK28 -> 0 | BI34: =Образование!BL28 -> 0 | BJ34: =Образование!BM28 -> выпорлнено | BK34: =Образование!BN28 -> 0 | BL34: =Образование!BO28 -> 0 | BM34: =Образование!BP28 -> 0 | BN34: =Образование!BQ28 -> 0 | BO34: =Образование!BR28 -> 0 | BP34: =Образование!BS28 -> 0 | BQ34: =Образование!BT28 -> 0 | BR34: =Образование!BU28 -> 0 | BS34: =Образование!BV28 -> 0 | BT34: =Образование!BW28 -> 0 | BU34: =Образование!BX28 -> 0 | BV34: =Образование!BY28 -> 0 | BW34: =Образование!BZ28 -> 0 | BX34: =Образование!CA28 -> 0 | BY34: =Образование!CB28 -> 0 | BZ34: =Образование!CC28 -> 0 | CA34: =Образование!CD28 -> 0 | CB34: =Образование!CE28 -> 0 | CC34: =Образование!CF28 -> 0 | CD34: =Образование!CG28 -> 0 | CE34: =Образование!CH28 -> 0 | CF34: =Образование!CI28 -> 0 | CG34: =Образование!CJ28 -> 0 | CH34: =Образование!CK28 -> 0 | CI34: =Образование!CL28 -> 0 | CJ34: =Образование!CM28 -> 0 | CK34: =Образование!CN28 -> 0 | CL34: =Образование!CO28 -> 0 | CM34: =Образование!CP28 -> 0 | CN34: =Образование!CQ28 -> 0 | CO34: =Образование!CR28 -> 0 | CP34: =Образование!CS28 -> 0 | CQ34: =Образование!CT28 -> 0 | CR34: =Образование!CU28 -> 0 | CS34: =Образование!CV28 -> 0 | CT34: =Образование!CW28 -> 0 | CU34: =Образование!CX28 -> 0 | CV34: =Образование!CY28 -> 0 | CW34: =Образование!CZ28 -> 0 | CX34: =Образование!DA28 -> 0 | CY34: =Образование!DB28 -> 0 | CZ34: =Образование!DC28 -> 0 | DA34: =Образование!DD28 -> 0 | DB34: =Образование!DE28 -> 0 | DC34: =Образование!DF28 -> 0 | DD34: =Образование!DG28 -> 0 | DE34: =Образование!DH28 -> 0 | DF34: =Образование!DI28 -> 0 | DG34: =Образование!DJ28 -> 0 | DH34: =Образование!DK28 -> 0 | DI34: =Образование!DL28 -> 0 | DJ34: =Образование!DM28 -> 0 | DK34: =Образование!DN28 -> 0 | DL34: =Образование!DO28 -> 0 | DM34: =Образование!DP28 -> 0 | DN34: =Образование!DQ28 -> 0 | DO34: =Образование!DR28 -> 0 | DP34: =Образование!DS28 -> 0 | DQ34: =Образование!DT28 -> 0 | DR34: =Образование!DU28 -> 0 | DS34: =Образование!DV28 -> 0 | DT34: =Образование!DW28 -> 0 | DU34: =Образование!DX28 -> 0 | DV34: =Образование!DY28 -> 0 | DW34: =Образование!DZ28 -> 0 | DX34: =Образование!EA28 -> 0 | DY34: =Образование!EB28 -> 0 | DZ34: =Образование!EC28 -> 0 | EA34: =Образование!ED28 -> 0 | EB34: =Образование!EE28 -> 0 | EC34: =Образование!EF28 -> 0 | ED34: =Образование!EG28 -> 0 | EE34: =Образование!EH28 -> 0 | EF34: =Образование!EI28 -> 0 | EG34: =Образование!EJ28 -> 0 | EH34: =Образование!EK28 -> 0 | EI34: =Образование!EL28 -> 0 | EJ34: =Образование!EM28 -> 0 | EK34: =Образование!EN28 -> 0 | EL34: =Образование!EO28 -> 0 | EM34: =Образование!EP28 -> 0 | EN34: =Образование!EQ28 -> 0 | EO34: =Образование!ER28 -> 0 | EP34: =Образование!ES28 -> 0 | EQ34: =Образование!ET28 -> 0 | ER34: =Образование!EU28 -> 0 | ES34: =Образование!EV28 -> 0 | ET34: =Образование!EW28 -> 0 | EU34: =Образование!EX28 -> 0 | EV34: =Образование!EY28 -> 0 | EW34: =Образование!EZ28 -> 0 | EX34: =Образование!FA28 -> 0 | EY34: =Образование!FB28 -> 0 | EZ34: =Образование!FC28 -> 0 | FA34: =Образование!FD28 -> 0 | FB34: =Образование!FE28 -> 0 | FC34: =Образование!FF28 -> 0 | FD34: =Образование!FG28 -> 0 | FE34: =Образование!FH28 -> 0 | FF34: =Образование!FI28 -> 0
A35: 1.17 | B35: ОБРАЗОВАНИЕ | C35: =Образование!F29 -> Ремонтные работы в зданиях МАОУ "Суксунская СОШ №2",МАОУ "Ключевская СОШ",МОУ "Бреховская ООШ",МОУ "Поедугинская ООШ-ДС",МАОУ Моргуновская ООШ-ДС",МДОУ "Суксунский детский сад Улыбка",МОУ "Киселевская ОШИ" | D35: =Образование!G29 -> нет | E35: =Образование!H29 -> Источник не определен | F35: =Образование!I29 -> 0 | G35: =Образование!J29 -> разработка ПСД | H35: =Образование!K29 -> ремонт | I35: =Образование!L29 -> 0 | J35: =Образование!M29 -> 0 | K35: =Образование!N29 -> Изменена (увеличена) сумма в 2025 году с 10,5 до 16,00 млн.руб | L35: =Образование!O29 -> 0 | M35: =Образование!P29 -> 0 | N35: =Образование!Q29 -> 0 | O35: =Образование!R29 -> 0 | P35: =Образование!S29 -> 0 | Q35: =Образование!T29 -> 0 | R35: =Образование!U29 -> 0 | S35: =Образование!V29 -> 0 | T35: =Образование!W29 -> 0 | U35: =Образование!X29 -> 0 | V35: =Образование!Y29 -> 0 | W35: =Образование!Z29 -> 0 | X35: =Образование!AA29 -> 0 | Y35: =Образование!AB29 -> 0 | Z35: =Образование!AC29 -> 0 | AA35: =Образование!AD29 -> 0 | AB35: =Образование!AE29 ->  | AC35: =Образование!AF29 -> 0 | AD35: =Образование!AG29 -> 0 | AE35: =Образование!AH29 -> 0 | AF35: =Образование!AI29 -> 0 | AG35: =Образование!AJ29 -> 0 | AH35: =Образование!AK29 -> 0 | AI35: =Образование!AL29 -> 0 | AJ35: =Образование!AM29 -> 0 | AK35: =Образование!AN29 -> 0 | AL35: =Образование!AO29 -> 0 | AM35: =Образование!AP29 -> 0 | AN35: =Образование!AQ29 -> 0 | AO35: =Образование!AR29 -> 0 | AP35: =Образование!AS29 -> 0 | AQ35: =Образование!AT29 -> 0 | AR35: =Образование!AU29 -> 0 | AS35: =Образование!AV29 -> 0 | AT35: =Образование!AW29 -> 0 | AU35: =Образование!AX29 -> 0 | AV35: =Образование!AY29 -> 0 | AW35: =Образование!AZ29 -> 0 | AX35: =Образование!BA29 -> 0 | AY35: =Образование!BB29 -> 0 | AZ35: =Образование!BC29 -> 0 | BA35: =Образование!BD29 -> 0 | BB35: =Образование!BE29 -> 0 | BC35: =Образование!BF29 -> 0 | BD35: =Образование!BG29 -> 0 | BE35: =Образование!BH29 -> 0 | BF35: =Образование!BI29 -> 0 | BG35: =Образование!BJ29 -> 0 | BH35: =Образование!BK29 -> 0 | BI35: =Образование!BL29 -> 0 | BJ35: =Образование!BM29 -> 0 | BK35: =Образование!BN29 -> 0 | BL35: =Образование!BO29 -> 0 | BM35: =Образование!BP29 -> 0 | BN35: =Образование!BQ29 -> 0 | BO35: =Образование!BR29 -> 0 | BP35: =Образование!BS29 -> 0 | BQ35: =Образование!BT29 -> 0 | BR35: =Образование!BU29 -> 0 | BS35: =Образование!BV29 -> 0 | BT35: =Образование!BW29 -> 0 | BU35: =Образование!BX29 -> 0 | BV35: =Образование!BY29 -> 0 | BW35: =Образование!BZ29 -> 0 | BX35: =Образование!CA29 -> 0 | BY35: =Образование!CB29 -> 0 | BZ35: =Образование!CC29 -> 0 | CA35: =Образование!CD29 -> 0 | CB35: =Образование!CE29 -> 0 | CC35: =Образование!CF29 -> 0 | CD35: =Образование!CG29 -> 0 | CE35: =Образование!CH29 -> 0 | CF35: =Образование!CI29 -> 0 | CG35: =Образование!CJ29 -> 0 | CH35: =Образование!CK29 -> 0 | CI35: =Образование!CL29 -> 0 | CJ35: =Образование!CM29 -> 0 | CK35: =Образование!CN29 -> 0 | CL35: =Образование!CO29 -> 0 | CM35: =Образование!CP29 -> 0 | CN35: =Образование!CQ29 -> 0 | CO35: =Образование!CR29 -> 0 | CP35: =Образование!CS29 -> 0 | CQ35: =Образование!CT29 -> 0 | CR35: =Образование!CU29 -> 10.5 | CS35: =Образование!CV29 -> 0 | CT35: =Образование!CW29 -> 0 | CU35: =Образование!CX29 -> 0 | CV35: =Образование!CY29 -> 0 | CW35: =Образование!CZ29 -> 10.5 | CX35: =Образование!DA29 -> 0 | CY35: =Образование!DB29 -> 0 | CZ35: =Образование!DC29 -> 0 | DA35: =Образование!DD29 -> 0 | DB35: =Образование!DE29 -> 0 | DC35: =Образование!DF29 -> 0 | DD35: =Образование!DG29 -> 0 | DE35: =Образование!DH29 -> 0 | DF35: =Образование!DI29 -> 0 | DG35: =Образование!DJ29 -> 0 | DH35: =Образование!DK29 -> 0 | DI35: =Образование!DL29 -> 0 | DJ35: =Образование!DM29 -> 0 | DK35: =Образование!DN29 -> 0 | DL35: =Образование!DO29 -> 0 | DM35: =Образование!DP29 -> 0 | DN35: =Образование!DQ29 -> 0 | DO35: =Образование!DR29 -> 0 | DP35: =Образование!DS29 -> 0 | DQ35: =Образование!DT29 -> 0 | DR35: =Образование!DU29 -> 0 | DS35: =Образование!DV29 -> 0 | DT35: =Образование!DW29 -> 0 | DU35: =Образование!DX29 -> 0 | DV35: =Образование!DY29 -> 0 | DW35: =Образование!DZ29 -> 0 | DX35: =Образование!EA29 -> Перенос на 2027-2030 гг. | DY35: =Образование!EB29 -> 0 | DZ35: =Образование!EC29 -> 0 | EA35: =Образование!ED29 -> 0 | EB35: =Образование!EE29 -> 0 | EC35: =Образование!EF29 -> 0 | ED35: =Образование!EG29 -> 0 | EE35: =Образование!EH29 -> 0 | EF35: =Образование!EI29 -> 0 | EG35: =Образование!EJ29 -> 0 | EH35: =Образование!EK29 -> 0 | EI35: =Образование!EL29 -> 0 | EJ35: =Образование!EM29 -> 0 | EK35: =Образование!EN29 -> 0 | EL35: =Образование!EO29 -> 0 | EM35: =Образование!EP29 -> 0 | EN35: =Образование!EQ29 -> 0 | EO35: =Образование!ER29 -> 0 | EP35: =Образование!ES29 -> 0 | EQ35: =Образование!ET29 -> 0 | ER35: =Образование!EU29 -> 0 | ES35: =Образование!EV29 -> 0 | ET35: =Образование!EW29 -> 0 | EU35: =Образование!EX29 -> 0 | EV35: =Образование!EY29 -> 0 | EW35: =Образование!EZ29 -> 0 | EX35: =Образование!FA29 -> 0 | EY35: =Образование!FB29 -> 0 | EZ35: =Образование!FC29 -> 0 | FA35: =Образование!FD29 -> 0 | FB35: =Образование!FE29 -> 0 | FC35: =Образование!FF29 -> 0 | FD35: =Образование!FG29 -> 0 | FE35: =Образование!FH29 -> 0 | FF35: =Образование!FI29 -> 16
A36: 1.18 | B36: ОБРАЗОВАНИЕ | C36: =Образование!F30 -> Благоустройство территории МАОУ "Суксунская СОШ №1", МАОУ "Тисовская СОШ-ДС", МОУ "Поедугинская ООШ-ДС",МАОУ "Сызганская ООШ-ДС" | D36: =Образование!G30 -> да | E36: =Образование!H30 -> Постановление Правительства Пермского края от 13.01.2023 №17-п | F36: =Образование!I30 -> Министерство территориального развития Пермского края | G36: =Образование!J30 -> общестроительные работы | H36: =Образование!K30 -> ремонт | I36: =Образование!L30 -> 0 | J36: =Образование!M30 -> 0 | K36: =Образование!N30 -> Изменена сумма по результатам составления ПСД, разбивка сумм по годам. | L36: =Образование!O30 -> 0 | M36: =Образование!P30 -> 0 | N36: =Образование!Q30 -> 0 | O36: =Образование!R30 -> 0 | P36: =Образование!S30 -> 0 | Q36: =Образование!T30 -> 0 | R36: =Образование!U30 -> 0 | S36: =Образование!V30 -> 0 | T36: =Образование!W30 -> 0 | U36: =Образование!X30 -> 0 | V36: =Образование!Y30 -> 0 | W36: =Образование!Z30 -> 0 | X36: =Образование!AA30 -> 0 | Y36: =Образование!AB30 -> 0 | Z36: =Образование!AC30 -> 0 | AA36: =Образование!AD30 -> 0 | AB36: =Образование!AE30 ->  | AC36: =Образование!AF30 -> 0 | AD36: =Образование!AG30 -> 11.99 | AE36: =Образование!AH30 -> 0 | AF36: =Образование!AI30 -> 10.79 | AG36: =Образование!AJ30 -> 1.2 | AH36: =Образование!AK30 -> 0 | AI36: =Образование!AL30 -> 0 | AJ36: =Образование!AM30 -> 11.99 | AK36: =Образование!AN30 -> 0 | AL36: =Образование!AO30 -> 10.79 | AM36: =Образование!AP30 -> 1.2 | AN36: =Образование!AQ30 -> 0 | AO36: =Образование!AR30 -> 0 | AP36: =Образование!AS30 -> 11.99 | AQ36: =Образование!AT30 -> 0 | AR36: =Образование!AU30 -> 0 | AS36: =Образование!AV30 -> 0 | AT36: =Образование!AW30 -> 10.79 | AU36: =Образование!AX30 -> 1.2 | AV36: =Образование!AY30 -> 0 | AW36: =Образование!AZ30 -> 0 | AX36: =Образование!BA30 -> 0 | AY36: =Образование!BB30 -> 0 | AZ36: =Образование!BC30 -> 0 | BA36: =Образование!BD30 -> 0 | BB36: =Образование!BE30 -> 0 | BC36: =Образование!BF30 -> 0 | BD36: =Образование!BG30 -> 0 | BE36: =Образование!BH30 -> 0 | BF36: =Образование!BI30 -> 0 | BG36: =Образование!BJ30 -> 0 | BH36: =Образование!BK30 -> 0 | BI36: =Образование!BL30 -> 0 | BJ36: =Образование!BM30 -> Благоустройство СОШ №1. Срок выполнения- 30.08.2023 | BK36: =Образование!BN30 -> 11.99 | BL36: =Образование!BO30 -> 0 | BM36: =Образование!BP30 -> 10.79 | BN36: =Образование!BQ30 -> 1.2 | BO36: =Образование!BR30 -> 0 | BP36: =Образование!BS30 -> 0 | BQ36: =Образование!BT30 -> 11.4 | BR36: =Образование!BU30 -> 0 | BS36: =Образование!BV30 -> 10.26 | BT36: =Образование!BW30 -> 1.14 | BU36: =Образование!BX30 -> 0 | BV36: =Образование!BY30 -> 0 | BW36: =Образование!BZ30 -> 11.4 | BX36: =Образование!CA30 -> 0 | BY36: =Образование!CB30 -> 0 | BZ36: =Образование!CC30 -> 0 | CA36: =Образование!CD30 -> 10.26 | CB36: =Образование!CE30 -> 1.14 | CC36: =Образование!CF30 -> 0 | CD36: =Образование!CG30 -> 0 | CE36: =Образование!CH30 -> 0 | CF36: =Образование!CI30 -> 0 | CG36: =Образование!CJ30 -> 0 | CH36: =Образование!CK30 -> 0 | CI36: =Образование!CL30 -> 0 | CJ36: =Образование!CM30 -> 0 | CK36: =Образование!CN30 -> 0 | CL36: =Образование!CO30 -> 0 | CM36: =Образование!CP30 -> 0 | CN36: =Образование!CQ30 -> 0 | CO36: =Образование!CR30 -> 0 | CP36: =Образование!CS30 -> 0 | CQ36: =Образование!CT30 -> 45536 | CR36: =Образование!CU30 -> 5.11 | CS36: =Образование!CV30 -> 0 | CT36: =Образование!CW30 -> 4.6 | CU36: =Образование!CX30 -> 0.51 | CV36: =Образование!CY30 -> 0 | CW36: =Образование!CZ30 -> 0 | CX36: =Образование!DA30 -> 5.7 | CY36: =Образование!DB30 -> 0 | CZ36: =Образование!DC30 -> 5.13 | DA36: =Образование!DD30 -> 0.57 | DB36: =Образование!DE30 -> 0 | DC36: =Образование!DF30 -> 0 | DD36: =Образование!DG30 -> 5.7 | DE36: =Образование!DH30 -> 0 | DF36: =Образование!DI30 -> 0 | DG36: =Образование!DJ30 -> 0 | DH36: =Образование!DK30 -> 5.13 | DI36: =Образование!DL30 -> 0.57 | DJ36: =Образование!DM30 -> 0 | DK36: =Образование!DN30 -> 0 | DL36: =Образование!DO30 -> 0 | DM36: =Образование!DP30 -> 0 | DN36: =Образование!DQ30 -> 0 | DO36: =Образование!DR30 -> 0 | DP36: =Образование!DS30 -> 0 | DQ36: =Образование!DT30 -> 0 | DR36: =Образование!DU30 -> 0 | DS36: =Образование!DV30 -> 0 | DT36: =Образование!DW30 -> 0 | DU36: =Образование!DX30 -> 0 | DV36: =Образование!DY30 -> 0 | DW36: =Образование!DZ30 -> 0 | DX36: =Образование!EA30 -> 0 | DY36: =Образование!EB30 -> 0 | DZ36: =Образование!EC30 -> 0 | EA36: =Образование!ED30 -> 0 | EB36: =Образование!EE30 -> 0 | EC36: =Образование!EF30 -> 0 | ED36: =Образование!EG30 -> 0 | EE36: =Образование!EH30 -> 0 | EF36: =Образование!EI30 -> 0 | EG36: =Образование!EJ30 -> 0 | EH36: =Образование!EK30 -> 0 | EI36: =Образование!EL30 -> 0 | EJ36: =Образование!EM30 -> 0 | EK36: =Образование!EN30 -> 0 | EL36: =Образование!EO30 -> 0 | EM36: =Образование!EP30 -> 0 | EN36: =Образование!EQ30 -> 0 | EO36: =Образование!ER30 -> 0 | EP36: =Образование!ES30 -> 0 | EQ36: =Образование!ET30 -> 0 | ER36: =Образование!EU30 -> 0 | ES36: =Образование!EV30 -> 0 | ET36: =Образование!EW30 -> 0 | EU36: =Образование!EX30 -> 0 | EV36: =Образование!EY30 -> 0 | EW36: =Образование!EZ30 -> 0 | EX36: =Образование!FA30 -> 0 | EY36: =Образование!FB30 -> 0 | EZ36: =Образование!FC30 -> 0 | FA36: =Образование!FD30 -> 0 | FB36: =Образование!FE30 -> 0 | FC36: =Образование!FF30 -> 0 | FD36: =Образование!FG30 -> 0 | FE36: =Образование!FH30 -> 0 | FF36: =Образование!FI30 -> 0
A37: 1.19 | B37: ОБРАЗОВАНИЕ | C37: =Образование!F31 -> Благоустройство территории МДОУ "Суксунский детский сад "Колосок", МАОУ "Ключевская СОШ", МОУ "Бреховская ООШ", МДОУ "Суксунский детский сад Улыбка", МАОУ "Моргуновская ООШ-ДС" | D37: =Образование!G31 -> нет | E37: =Образование!H31 -> Источник не определен | F37: =Образование!I31 -> 0 | G37: =Образование!J31 -> разработка ПСД | H37: =Образование!K31 -> ремонт | I37: =Образование!L31 -> 0 | J37: =Образование!M31 -> 0 | K37: =Образование!N31 -> 0 | L37: =Образование!O31 -> 0 | M37: =Образование!P31 -> 0 | N37: =Образование!Q31 -> 0 | O37: =Образование!R31 -> 0 | P37: =Образование!S31 -> 0 | Q37: =Образование!T31 -> 0 | R37: =Образование!U31 -> 0 | S37: =Образование!V31 -> 0 | T37: =Образование!W31 -> 0 | U37: =Образование!X31 -> 0 | V37: =Образование!Y31 -> 0 | W37: =Образование!Z31 -> 0 | X37: =Образование!AA31 -> 0 | Y37: =Образование!AB31 -> 0 | Z37: =Образование!AC31 -> 0 | AA37: =Образование!AD31 -> 0 | AB37: =Образование!AE31 ->  | AC37: =Образование!AF31 -> 0 | AD37: =Образование!AG31 -> 0 | AE37: =Образование!AH31 -> 0 | AF37: =Образование!AI31 -> 0 | AG37: =Образование!AJ31 -> 0 | AH37: =Образование!AK31 -> 0 | AI37: =Образование!AL31 -> 0 | AJ37: =Образование!AM31 -> 0 | AK37: =Образование!AN31 -> 0 | AL37: =Образование!AO31 -> 0 | AM37: =Образование!AP31 -> 0 | AN37: =Образование!AQ31 -> 0 | AO37: =Образование!AR31 -> 0 | AP37: =Образование!AS31 -> 0 | AQ37: =Образование!AT31 -> 0 | AR37: =Образование!AU31 -> 0 | AS37: =Образование!AV31 -> 0 | AT37: =Образование!AW31 -> 0 | AU37: =Образование!AX31 -> 0 | AV37: =Образование!AY31 -> 0 | AW37: =Образование!AZ31 -> 0 | AX37: =Образование!BA31 -> 0 | AY37: =Образование!BB31 -> 0 | AZ37: =Образование!BC31 -> 0 | BA37: =Образование!BD31 -> 0 | BB37: =Образование!BE31 -> 0 | BC37: =Образование!BF31 -> 0 | BD37: =Образование!BG31 -> 0 | BE37: =Образование!BH31 -> 0 | BF37: =Образование!BI31 -> 0 | BG37: =Образование!BJ31 -> 0 | BH37: =Образование!BK31 -> 0 | BI37: =Образование!BL31 -> 0 | BJ37: =Образование!BM31 -> 0 | BK37: =Образование!BN31 -> 0 | BL37: =Образование!BO31 -> 0 | BM37: =Образование!BP31 -> 0 | BN37: =Образование!BQ31 -> 0 | BO37: =Образование!BR31 -> 0 | BP37: =Образование!BS31 -> 0 | BQ37: =Образование!BT31 -> 0 | BR37: =Образование!BU31 -> 0 | BS37: =Образование!BV31 -> 0 | BT37: =Образование!BW31 -> 0 | BU37: =Образование!BX31 -> 0 | BV37: =Образование!BY31 -> 0 | BW37: =Образование!BZ31 -> 0 | BX37: =Образование!CA31 -> 0 | BY37: =Образование!CB31 -> 0 | BZ37: =Образование!CC31 -> 0 | CA37: =Образование!CD31 -> 0 | CB37: =Образование!CE31 -> 0 | CC37: =Образование!CF31 -> 0 | CD37: =Образование!CG31 -> 0 | CE37: =Образование!CH31 -> 0 | CF37: =Образование!CI31 -> 0 | CG37: =Образование!CJ31 -> 0 | CH37: =Образование!CK31 -> 0 | CI37: =Образование!CL31 -> 0 | CJ37: =Образование!CM31 -> 0 | CK37: =Образование!CN31 -> 0 | CL37: =Образование!CO31 -> 0 | CM37: =Образование!CP31 -> 0 | CN37: =Образование!CQ31 -> 0 | CO37: =Образование!CR31 -> 0 | CP37: =Образование!CS31 -> 0 | CQ37: =Образование!CT31 -> 0 | CR37: =Образование!CU31 -> 0 | CS37: =Образование!CV31 -> 0 | CT37: =Образование!CW31 -> 0 | CU37: =Образование!CX31 -> 0 | CV37: =Образование!CY31 -> 0 | CW37: =Образование!CZ31 -> 0 | CX37: =Образование!DA31 -> 0 | CY37: =Образование!DB31 -> 0 | CZ37: =Образование!DC31 -> 0 | DA37: =Образование!DD31 -> 0 | DB37: =Образование!DE31 -> 0 | DC37: =Образование!DF31 -> 0 | DD37: =Образование!DG31 -> 0 | DE37: =Образование!DH31 -> 0 | DF37: =Образование!DI31 -> 0 | DG37: =Образование!DJ31 -> 0 | DH37: =Образование!DK31 -> 0 | DI37: =Образование!DL31 -> 0 | DJ37: =Образование!DM31 -> 0 | DK37: =Образование!DN31 -> 0 | DL37: =Образование!DO31 -> 0 | DM37: =Образование!DP31 -> 0 | DN37: =Образование!DQ31 -> 0 | DO37: =Образование!DR31 -> 0 | DP37: =Образование!DS31 -> 0 | DQ37: =Образование!DT31 -> 0 | DR37: =Образование!DU31 -> 0 | DS37: =Образование!DV31 -> 0 | DT37: =Образование!DW31 -> 0 | DU37: =Образование!DX31 -> 0 | DV37: =Образование!DY31 -> 0 | DW37: =Образование!DZ31 -> 0 | DX37: =Образование!EA31 -> 0 | DY37: =Образование!EB31 -> 0 | DZ37: =Образование!EC31 -> 0 | EA37: =Образование!ED31 -> 0 | EB37: =Образование!EE31 -> 0 | EC37: =Образование!EF31 -> 0 | ED37: =Образование!EG31 -> 0 | EE37: =Образование!EH31 -> 0 | EF37: =Образование!EI31 -> 0 | EG37: =Образование!EJ31 -> 0 | EH37: =Образование!EK31 -> 0 | EI37: =Образование!EL31 -> 0 | EJ37: =Образование!EM31 -> 0 | EK37: =Образование!EN31 -> 0 | EL37: =Образование!EO31 -> 0 | EM37: =Образование!EP31 -> 0 | EN37: =Образование!EQ31 -> 0 | EO37: =Образование!ER31 -> 0 | EP37: =Образование!ES31 -> 0 | EQ37: =Образование!ET31 -> 0 | ER37: =Образование!EU31 -> 0 | ES37: =Образование!EV31 -> 0 | ET37: =Образование!EW31 -> 0 | EU37: =Образование!EX31 -> 0 | EV37: =Образование!EY31 -> 0 | EW37: =Образование!EZ31 -> 0 | EX37: =Образование!FA31 -> 0 | EY37: =Образование!FB31 -> 0 | EZ37: =Образование!FC31 -> 0 | FA37: =Образование!FD31 -> 0 | FB37: =Образование!FE31 -> 0 | FC37: =Образование!FF31 -> 0 | FD37: =Образование!FG31 -> 0 | FE37: =Образование!FH31 -> 0 | FF37: =Образование!FI31 -> 23.4
A38: 1.20 | B38: ОБРАЗОВАНИЕ | C38: =Образование!F32 -> Ремонт фасада здания детского сада МОУ "Поедугинская ООШ- ДС" | D38: =Образование!G32 -> нет | E38: =Образование!H32 -> Источник не определен | F38: =Образование!I32 -> 0 | G38: =Образование!J32 -> разработка ПСД | H38: =Образование!K32 -> ремонт | I38: =Образование!L32 -> 0 | J38: =Образование!M32 -> 0 | K38: =Образование!N32 -> 0 | L38: =Образование!O32 -> 0 | M38: =Образование!P32 -> 0 | N38: =Образование!Q32 -> 0 | O38: =Образование!R32 -> 0 | P38: =Образование!S32 -> 0 | Q38: =Образование!T32 -> 0 | R38: =Образование!U32 -> 0 | S38: =Образование!V32 -> 0 | T38: =Образование!W32 -> 0 | U38: =Образование!X32 -> 0 | V38: =Образование!Y32 -> 0 | W38: =Образование!Z32 -> 0 | X38: =Образование!AA32 -> 0 | Y38: =Образование!AB32 -> 0 | Z38: =Образование!AC32 -> 0 | AA38: =Образование!AD32 -> 0 | AB38: =Образование!AE32 ->  | AC38: =Образование!AF32 -> 0 | AD38: =Образование!AG32 -> 0 | AE38: =Образование!AH32 -> 0 | AF38: =Образование!AI32 -> 0 | AG38: =Образование!AJ32 -> 0 | AH38: =Образование!AK32 -> 0 | AI38: =Образование!AL32 -> 0 | AJ38: =Образование!AM32 -> 0 | AK38: =Образование!AN32 -> 0 | AL38: =Образование!AO32 -> 0 | AM38: =Образование!AP32 -> 0 | AN38: =Образование!AQ32 -> 0 | AO38: =Образование!AR32 -> 0 | AP38: =Образование!AS32 -> 0 | AQ38: =Образование!AT32 -> 0 | AR38: =Образование!AU32 -> 0 | AS38: =Образование!AV32 -> 0 | AT38: =Образование!AW32 -> 0 | AU38: =Образование!AX32 -> 0 | AV38: =Образование!AY32 -> 0 | AW38: =Образование!AZ32 -> 0 | AX38: =Образование!BA32 -> 0 | AY38: =Образование!BB32 -> 0 | AZ38: =Образование!BC32 -> 0 | BA38: =Образование!BD32 -> 0 | BB38: =Образование!BE32 -> 0 | BC38: =Образование!BF32 -> 0 | BD38: =Образование!BG32 -> 0 | BE38: =Образование!BH32 -> 0 | BF38: =Образование!BI32 -> 0 | BG38: =Образование!BJ32 -> 0 | BH38: =Образование!BK32 -> 0 | BI38: =Образование!BL32 -> 0 | BJ38: =Образование!BM32 -> 0 | BK38: =Образование!BN32 -> 0 | BL38: =Образование!BO32 -> 0 | BM38: =Образование!BP32 -> 0 | BN38: =Образование!BQ32 -> 0 | BO38: =Образование!BR32 -> 0 | BP38: =Образование!BS32 -> 0 | BQ38: =Образование!BT32 -> 0 | BR38: =Образование!BU32 -> 0 | BS38: =Образование!BV32 -> 0 | BT38: =Образование!BW32 -> 0 | BU38: =Образование!BX32 -> 0 | BV38: =Образование!BY32 -> 0 | BW38: =Образование!BZ32 -> 0 | BX38: =Образование!CA32 -> 0 | BY38: =Образование!CB32 -> 0 | BZ38: =Образование!CC32 -> 0 | CA38: =Образование!CD32 -> 0 | CB38: =Образование!CE32 -> 0 | CC38: =Образование!CF32 -> 0 | CD38: =Образование!CG32 -> 0 | CE38: =Образование!CH32 -> 0 | CF38: =Образование!CI32 -> 0 | CG38: =Образование!CJ32 -> 0 | CH38: =Образование!CK32 -> 0 | CI38: =Образование!CL32 -> 0 | CJ38: =Образование!CM32 -> 0 | CK38: =Образование!CN32 -> 0 | CL38: =Образование!CO32 -> 0 | CM38: =Образование!CP32 -> 0 | CN38: =Образование!CQ32 -> 0 | CO38: =Образование!CR32 -> 0 | CP38: =Образование!CS32 -> 0 | CQ38: =Образование!CT32 -> 0 | CR38: =Образование!CU32 -> 0 | CS38: =Образование!CV32 -> 0 | CT38: =Образование!CW32 -> 0 | CU38: =Образование!CX32 -> 0 | CV38: =Образование!CY32 -> 0 | CW38: =Образование!CZ32 -> 0 | CX38: =Образование!DA32 -> 0 | CY38: =Образование!DB32 -> 0 | CZ38: =Образование!DC32 -> 0 | DA38: =Образование!DD32 -> 0 | DB38: =Образование!DE32 -> 0 | DC38: =Образование!DF32 -> 0 | DD38: =Образование!DG32 -> 0 | DE38: =Образование!DH32 -> 0 | DF38: =Образование!DI32 -> 0 | DG38: =Образование!DJ32 -> 0 | DH38: =Образование!DK32 -> 0 | DI38: =Образование!DL32 -> 0 | DJ38: =Образование!DM32 -> 0 | DK38: =Образование!DN32 -> 0 | DL38: =Образование!DO32 -> 0 | DM38: =Образование!DP32 -> 0 | DN38: =Образование!DQ32 -> 0 | DO38: =Образование!DR32 -> 0 | DP38: =Образование!DS32 -> 0 | DQ38: =Образование!DT32 -> 0 | DR38: =Образование!DU32 -> 0 | DS38: =Образование!DV32 -> 0 | DT38: =Образование!DW32 -> 0 | DU38: =Образование!DX32 -> 0 | DV38: =Образование!DY32 -> 0 | DW38: =Образование!DZ32 -> 0 | DX38: =Образование!EA32 -> 0 | DY38: =Образование!EB32 -> 0 | DZ38: =Образование!EC32 -> 0 | EA38: =Образование!ED32 -> 0 | EB38: =Образование!EE32 -> 0 | EC38: =Образование!EF32 -> 0 | ED38: =Образование!EG32 -> 0 | EE38: =Образование!EH32 -> 0 | EF38: =Образование!EI32 -> 0 | EG38: =Образование!EJ32 -> 0 | EH38: =Образование!EK32 -> 0 | EI38: =Образование!EL32 -> 0 | EJ38: =Образование!EM32 -> 0 | EK38: =Образование!EN32 -> 0 | EL38: =Образование!EO32 -> 0 | EM38: =Образование!EP32 -> 0 | EN38: =Образование!EQ32 -> 0 | EO38: =Образование!ER32 -> 0 | EP38: =Образование!ES32 -> 0 | EQ38: =Образование!ET32 -> 0 | ER38: =Образование!EU32 -> 0 | ES38: =Образование!EV32 -> 0 | ET38: =Образование!EW32 -> 0 | EU38: =Образование!EX32 -> 0 | EV38: =Образование!EY32 -> 0 | EW38: =Образование!EZ32 -> 0 | EX38: =Образование!FA32 -> 0 | EY38: =Образование!FB32 -> 0 | EZ38: =Образование!FC32 -> 0 | FA38: =Образование!FD32 -> 0 | FB38: =Образование!FE32 -> 0 | FC38: =Образование!FF32 -> 0 | FD38: =Образование!FG32 -> 0 | FE38: =Образование!FH32 -> 0 | FF38: =Образование!FI32 -> 1.5
A39: 1.21 | B39: ОБРАЗОВАНИЕ | C39: =Образование!F33 -> Оснащение и обновление материальной базы мастерских по предмету «Технология» МАОУ «Суксунская СОШ №2», МАОУ «Ключевская СОШ», МОУ «Поедугинская ООШ-ДС», МАОУ «Сызганская ООШ- ДС», МАОУ «Тисовская СОШ-ДС».. | D39: =Образование!G33 -> нет | E39: =Образование!H33 -> Постановление Правительства Пермского края от 25.11.2021 №915-п | F39: =Образование!I33 -> Министерство образования Пермского края | G39: =Образование!J33 -> разработка ПСД | H39: =Образование!K33 -> Приобретение | I39: =Образование!L33 -> 0 | J39: =Образование!M33 -> 0 | K39: =Образование!N33 -> 0 | L39: =Образование!O33 -> 0 | M39: =Образование!P33 -> 0 | N39: =Образование!Q33 -> 0 | O39: =Образование!R33 -> 0 | P39: =Образование!S33 -> 0 | Q39: =Образование!T33 -> 0 | R39: =Образование!U33 -> 0 | S39: =Образование!V33 -> 0 | T39: =Образование!W33 -> 0 | U39: =Образование!X33 -> 0 | V39: =Образование!Y33 -> 0 | W39: =Образование!Z33 -> 0 | X39: =Образование!AA33 -> 0 | Y39: =Образование!AB33 -> 0 | Z39: =Образование!AC33 -> 0 | AA39: =Образование!AD33 -> 0 | AB39: =Образование!AE33 ->  | AC39: =Образование!AF33 -> 0 | AD39: =Образование!AG33 -> 7 | AE39: =Образование!AH33 -> 0 | AF39: =Образование!AI33 -> 0 | AG39: =Образование!AJ33 -> 0 | AH39: =Образование!AK33 -> 0 | AI39: =Образование!AL33 -> 7 | AJ39: =Образование!AM33 -> 7 | AK39: =Образование!AN33 -> 0 | AL39: =Образование!AO33 -> 0 | AM39: =Образование!AP33 -> 0 | AN39: =Образование!AQ33 -> 0 | AO39: =Образование!AR33 -> 7 | AP39: =Образование!AS33 -> 0 | AQ39: =Образование!AT33 -> 0 | AR39: =Образование!AU33 -> 0 | AS39: =Образование!AV33 -> 0 | AT39: =Образование!AW33 -> 0 | AU39: =Образование!AX33 -> 0 | AV39: =Образование!AY33 -> 0 | AW39: =Образование!AZ33 -> 0 | AX39: =Образование!BA33 -> 0 | AY39: =Образование!BB33 -> 0 | AZ39: =Образование!BC33 -> 0 | BA39: =Образование!BD33 -> 0 | BB39: =Образование!BE33 -> 0 | BC39: =Образование!BF33 -> 0 | BD39: =Образование!BG33 -> 0 | BE39: =Образование!BH33 -> 0 | BF39: =Образование!BI33 -> 7 | BG39: =Образование!BJ33 -> 0 | BH39: =Образование!BK33 -> 0 | BI39: =Образование!BL33 -> 7 | BJ39: =Образование!BM33 -> 0 | BK39: =Образование!BN33 -> 7 | BL39: =Образование!BO33 -> 0 | BM39: =Образование!BP33 -> 0 | BN39: =Образование!BQ33 -> 0 | BO39: =Образование!BR33 -> 0 | BP39: =Образование!BS33 -> 7 | BQ39: =Образование!BT33 -> 0 | BR39: =Образование!BU33 -> 0 | BS39: =Образование!BV33 -> 0 | BT39: =Образование!BW33 -> 0 | BU39: =Образование!BX33 -> 0 | BV39: =Образование!BY33 -> 0 | BW39: =Образование!BZ33 -> 0 | BX39: =Образование!CA33 -> 0 | BY39: =Образование!CB33 -> 0 | BZ39: =Образование!CC33 -> 0 | CA39: =Образование!CD33 -> 0 | CB39: =Образование!CE33 -> 0 | CC39: =Образование!CF33 -> 0 | CD39: =Образование!CG33 -> 0 | CE39: =Образование!CH33 -> 0 | CF39: =Образование!CI33 -> 0 | CG39: =Образование!CJ33 -> 0 | CH39: =Образование!CK33 -> 0 | CI39: =Образование!CL33 -> 0 | CJ39: =Образование!CM33 -> 0 | CK39: =Образование!CN33 -> 0 | CL39: =Образование!CO33 -> 0 | CM39: =Образование!CP33 -> 0 | CN39: =Образование!CQ33 -> 0 | CO39: =Образование!CR33 -> 0 | CP39: =Образование!CS33 -> 0 | CQ39: =Образование!CT33 -> 0 | CR39: =Образование!CU33 -> 3.5 | CS39: =Образование!CV33 -> 0 | CT39: =Образование!CW33 -> 0 | CU39: =Образование!CX33 -> 0 | CV39: =Образование!CY33 -> 0 | CW39: =Образование!CZ33 -> 3.5 | CX39: =Образование!DA33 -> 0 | CY39: =Образование!DB33 -> 0 | CZ39: =Образование!DC33 -> 0 | DA39: =Образование!DD33 -> 0 | DB39: =Образование!DE33 -> 0 | DC39: =Образование!DF33 -> 0 | DD39: =Образование!DG33 -> 0 | DE39: =Образование!DH33 -> 0 | DF39: =Образование!DI33 -> 0 | DG39: =Образование!DJ33 -> 0 | DH39: =Образование!DK33 -> 0 | DI39: =Образование!DL33 -> 0 | DJ39: =Образование!DM33 -> 0 | DK39: =Образование!DN33 -> 0 | DL39: =Образование!DO33 -> 0 | DM39: =Образование!DP33 -> 0 | DN39: =Образование!DQ33 -> 0 | DO39: =Образование!DR33 -> 0 | DP39: =Образование!DS33 -> 0 | DQ39: =Образование!DT33 -> 0 | DR39: =Образование!DU33 -> 0 | DS39: =Образование!DV33 -> 0 | DT39: =Образование!DW33 -> 0 | DU39: =Образование!DX33 -> 0 | DV39: =Образование!DY33 -> 0 | DW39: =Образование!DZ33 -> 0 | DX39: =Образование!EA33 -> 0 | DY39: =Образование!EB33 -> 0 | DZ39: =Образование!EC33 -> 0 | EA39: =Образование!ED33 -> 0 | EB39: =Образование!EE33 -> 0 | EC39: =Образование!EF33 -> 0 | ED39: =Образование!EG33 -> 0 | EE39: =Образование!EH33 -> 0 | EF39: =Образование!EI33 -> 0 | EG39: =Образование!EJ33 -> 0 | EH39: =Образование!EK33 -> 0 | EI39: =Образование!EL33 -> 0 | EJ39: =Образование!EM33 -> 0 | EK39: =Образование!EN33 -> 0 | EL39: =Образование!EO33 -> 0 | EM39: =Образование!EP33 -> 0 | EN39: =Образование!EQ33 -> 0 | EO39: =Образование!ER33 -> 0 | EP39: =Образование!ES33 -> 0 | EQ39: =Образование!ET33 -> 0 | ER39: =Образование!EU33 -> 0 | ES39: =Образование!EV33 -> 0 | ET39: =Образование!EW33 -> 0 | EU39: =Образование!EX33 -> 0 | EV39: =Образование!EY33 -> 0 | EW39: =Образование!EZ33 -> 0 | EX39: =Образование!FA33 -> 0 | EY39: =Образование!FB33 -> 0 | EZ39: =Образование!FC33 -> 0 | FA39: =Образование!FD33 -> 0 | FB39: =Образование!FE33 -> 0 | FC39: =Образование!FF33 -> 0 | FD39: =Образование!FG33 -> 0 | FE39: =Образование!FH33 -> 0 | FF39: =Образование!FI33 -> 10.5
A40: 1.22 | B40: ОБРАЗОВАНИЕ | C40: =Образование!F34 -> Строительство гаражей для школьных автобусов МАОУ "Васькинская ООШ-ДС",МАОУ "Моргуновская ООШ-ДС", МАОУ "Суксунская СОШ №2",МАОУ "Тисовская СОШ-ДС", МАОУ "Суксунская СОШ №1",МОУ "Поедугинская ООШ-ДС",МАОУ "Сызганская ООШ-ДС" | D40: =Образование!G34 -> нет | E40: =Образование!H34 -> Источник не определен | F40: =Образование!I34 -> 0 | G40: =Образование!J34 -> разработка ПСД | H40: =Образование!K34 -> строительство | I40: =Образование!L34 -> 0 | J40: =Образование!M34 -> 0 | K40: =Образование!N34 -> 0 | L40: =Образование!O34 -> 0 | M40: =Образование!P34 -> 0 | N40: =Образование!Q34 -> 0 | O40: =Образование!R34 -> Строительство гаражей для школьных автобусов МАОУ "Васькинская ООШ-ДС",МАОУ "Моргуновская ООШ-ДС", МАОУ "Суксунская СОШ №2",МАОУ "Тисовская СОШ-ДС", МАОУ "Суксунская СОШ №1",МОУ "Поедугинская ООШ-ДС",МАОУ "Сызганская ООШ-ДС" | P40: =Образование!S34 -> 0 | Q40: =Образование!T34 -> 0 | R40: =Образование!U34 -> 0 | S40: =Образование!V34 -> 0 | T40: =Образование!W34 -> 0 | U40: =Образование!X34 -> 0 | V40: =Образование!Y34 -> 0 | W40: =Образование!Z34 -> 0 | X40: =Образование!AA34 -> 0 | Y40: =Образование!AB34 -> 0 | Z40: =Образование!AC34 -> 0 | AA40: =Образование!AD34 -> 0 | AB40: =Образование!AE34 ->  | AC40: =Образование!AF34 -> 0 | AD40: =Образование!AG34 -> 0 | AE40: =Образование!AH34 -> 0 | AF40: =Образование!AI34 -> 0 | AG40: =Образование!AJ34 -> 0 | AH40: =Образование!AK34 -> 0 | AI40: =Образование!AL34 -> 0 | AJ40: =Образование!AM34 -> 0 | AK40: =Образование!AN34 -> 0 | AL40: =Образование!AO34 -> 0 | AM40: =Образование!AP34 -> 0 | AN40: =Образование!AQ34 -> 0 | AO40: =Образование!AR34 -> 0 | AP40: =Образование!AS34 -> 0 | AQ40: =Образование!AT34 -> 0 | AR40: =Образование!AU34 -> 0 | AS40: =Образование!AV34 -> 0 | AT40: =Образование!AW34 -> 0 | AU40: =Образование!AX34 -> 0 | AV40: =Образование!AY34 -> 0 | AW40: =Образование!AZ34 -> 0 | AX40: =Образование!BA34 -> 0 | AY40: =Образование!BB34 -> 0 | AZ40: =Образование!BC34 -> 0 | BA40: =Образование!BD34 -> 0 | BB40: =Образование!BE34 -> 0 | BC40: =Образование!BF34 -> 0 | BD40: =Образование!BG34 -> 0 | BE40: =Образование!BH34 -> 0 | BF40: =Образование!BI34 -> 0 | BG40: =Образование!BJ34 -> 0 | BH40: =Образование!BK34 -> 0 | BI40: =Образование!BL34 -> 0 | BJ40: =Образование!BM34 -> 0 | BK40: =Образование!BN34 -> 0 | BL40: =Образование!BO34 -> 0 | BM40: =Образование!BP34 -> 0 | BN40: =Образование!BQ34 -> 0 | BO40: =Образование!BR34 -> 0 | BP40: =Образование!BS34 -> 0 | BQ40: =Образование!BT34 -> 0 | BR40: =Образование!BU34 -> 0 | BS40: =Образование!BV34 -> 0 | BT40: =Образование!BW34 -> 0 | BU40: =Образование!BX34 -> 0 | BV40: =Образование!BY34 -> 0 | BW40: =Образование!BZ34 -> 0 | BX40: =Образование!CA34 -> 0 | BY40: =Образование!CB34 -> 0 | BZ40: =Образование!CC34 -> 0 | CA40: =Образование!CD34 -> 0 | CB40: =Образование!CE34 -> 0 | CC40: =Образование!CF34 -> 0 | CD40: =Образование!CG34 -> 0 | CE40: =Образование!CH34 -> 0 | CF40: =Образование!CI34 -> 0 | CG40: =Образование!CJ34 -> 0 | CH40: =Образование!CK34 -> 0 | CI40: =Образование!CL34 -> 0 | CJ40: =Образование!CM34 -> 0 | CK40: =Образование!CN34 -> 0 | CL40: =Образование!CO34 -> 0 | CM40: =Образование!CP34 -> 0 | CN40: =Образование!CQ34 -> 0 | CO40: =Образование!CR34 -> 0 | CP40: =Образование!CS34 -> 0 | CQ40: =Образование!CT34 -> 0 | CR40: =Образование!CU34 -> 0 | CS40: =Образование!CV34 -> 0 | CT40: =Образование!CW34 -> 0 | CU40: =Образование!CX34 -> 0 | CV40: =Образование!CY34 -> 0 | CW40: =Образование!CZ34 -> 0 | CX40: =Образование!DA34 -> 0 | CY40: =Образование!DB34 -> 0 | CZ40: =Образование!DC34 -> 0 | DA40: =Образование!DD34 -> 0 | DB40: =Образование!DE34 -> 0 | DC40: =Образование!DF34 -> 0 | DD40: =Образование!DG34 -> 0 | DE40: =Образование!DH34 -> 0 | DF40: =Образование!DI34 -> 0 | DG40: =Образование!DJ34 -> 0 | DH40: =Образование!DK34 -> 0 | DI40: =Образование!DL34 -> 0 | DJ40: =Образование!DM34 -> 0 | DK40: =Образование!DN34 -> 0 | DL40: =Образование!DO34 -> 0 | DM40: =Образование!DP34 -> 0 | DN40: =Образование!DQ34 -> 0 | DO40: =Образование!DR34 -> 0 | DP40: =Образование!DS34 -> 0 | DQ40: =Образование!DT34 -> 0 | DR40: =Образование!DU34 -> 0 | DS40: =Образование!DV34 -> 0 | DT40: =Образование!DW34 -> 0 | DU40: =Образование!DX34 -> 0 | DV40: =Образование!DY34 -> 0 | DW40: =Образование!DZ34 -> 0 | DX40: =Образование!EA34 -> 0 | DY40: =Образование!EB34 -> 7.5 | DZ40: =Образование!EC34 -> 0 | EA40: =Образование!ED34 -> 0 | EB40: =Образование!EE34 -> 0 | EC40: =Образование!EF34 -> 0 | ED40: =Образование!EG34 -> 7.5 | EE40: =Образование!EH34 -> 0 | EF40: =Образование!EI34 -> 0 | EG40: =Образование!EJ34 -> 0 | EH40: =Образование!EK34 -> 0 | EI40: =Образование!EL34 -> 0 | EJ40: =Образование!EM34 -> 0 | EK40: =Образование!EN34 -> 0 | EL40: =Образование!EO34 -> 0 | EM40: =Образование!EP34 -> 0 | EN40: =Образование!EQ34 -> 0 | EO40: =Образование!ER34 -> 0 | EP40: =Образование!ES34 -> 0 | EQ40: =Образование!ET34 -> 0 | ER40: =Образование!EU34 -> 0 | ES40: =Образование!EV34 -> 0 | ET40: =Образование!EW34 -> 0 | EU40: =Образование!EX34 -> 0 | EV40: =Образование!EY34 -> 0 | EW40: =Образование!EZ34 -> 0 | EX40: =Образование!FA34 -> 0 | EY40: =Образование!FB34 -> 0 | EZ40: =Образование!FC34 -> 0 | FA40: =Образование!FD34 -> 0 | FB40: =Образование!FE34 -> 0 | FC40: =Образование!FF34 -> 0 | FD40: =Образование!FG34 -> 0 | FE40: =Образование!FH34 -> 0 | FF40: =Образование!FI34 -> 16.5
A41: 1.23 | B41: ОБРАЗОВАНИЕ | C41: =Образование!F35 -> Разработка ПСД для проведения капитального ремонта Суксунской СОШ №1 | D41: =Образование!G35 -> нет | E41: =Образование!H35 -> ПППК № 206-п от 10.04.2015 | F41: =Образование!I35 -> Министерство территориального развития ПК | G41: =Образование!J35 -> Разработка ПСД для проведения капитального ремонта Суксунской СОШ №1 | H41: =Образование!K35 -> 0 | I41: =Образование!L35 -> 0 | J41: =Образование!M35 -> Реализация мероприятия не планируется | K41: =Образование!N35 -> 0 | L41: =Образование!O35 -> 0 | M41: =Образование!P35 -> 0 | N41: =Образование!Q35 -> 0 | O41: =Образование!R35 -> 0 | P41: =Образование!S35 -> 0 | Q41: =Образование!T35 -> 0 | R41: =Образование!U35 -> 0 | S41: =Образование!V35 -> 0 | T41: =Образование!W35 -> 0 | U41: =Образование!X35 -> 0 | V41: =Образование!Y35 -> 0 | W41: =Образование!Z35 -> 0 | X41: =Образование!AA35 -> 0 | Y41: =Образование!AB35 -> 0 | Z41: =Образование!AC35 -> 0 | AA41: =Образование!AD35 -> 0 | AB41: =Образование!AE35 ->  | AC41: =Образование!AF35 -> 0 | AD41: =Образование!AG35 -> 0 | AE41: =Образование!AH35 -> 0 | AF41: =Образование!AI35 -> 0 | AG41: =Образование!AJ35 -> 0 | AH41: =Образование!AK35 -> 0 | AI41: =Образование!AL35 -> 0 | AJ41: =Образование!AM35 -> 0 | AK41: =Образование!AN35 -> 0 | AL41: =Образование!AO35 -> 0 | AM41: =Образование!AP35 -> 0 | AN41: =Образование!AQ35 -> 0 | AO41: =Образование!AR35 -> 0 | AP41: =Образование!AS35 -> 0 | AQ41: =Образование!AT35 -> 0 | AR41: =Образование!AU35 -> 0 | AS41: =Образование!AV35 -> 0 | AT41: =Образование!AW35 -> 0 | AU41: =Образование!AX35 -> 0 | AV41: =Образование!AY35 -> 0 | AW41: =Образование!AZ35 -> 0 | AX41: =Образование!BA35 -> 0 | AY41: =Образование!BB35 -> 0 | AZ41: =Образование!BC35 -> 0 | BA41: =Образование!BD35 -> 0 | BB41: =Образование!BE35 -> 0 | BC41: =Образование!BF35 -> 0 | BD41: =Образование!BG35 -> 0 | BE41: =Образование!BH35 -> 0 | BF41: =Образование!BI35 -> 0 | BG41: =Образование!BJ35 -> 0 | BH41: =Образование!BK35 -> 0 | BI41: =Образование!BL35 -> 0 | BJ41: =Образование!BM35 -> 0 | BK41: =Образование!BN35 -> 0 | BL41: =Образование!BO35 -> 0 | BM41: =Образование!BP35 -> 0 | BN41: =Образование!BQ35 -> 0 | BO41: =Образование!BR35 -> 0 | BP41: =Образование!BS35 -> 0 | BQ41: =Образование!BT35 -> 0 | BR41: =Образование!BU35 -> 0 | BS41: =Образование!BV35 -> 0 | BT41: =Образование!BW35 -> 0 | BU41: =Образование!BX35 -> 0 | BV41: =Образование!BY35 -> 0 | BW41: =Образование!BZ35 -> 0 | BX41: =Образование!CA35 -> 0 | BY41: =Образование!CB35 -> 0 | BZ41: =Образование!CC35 -> 0 | CA41: =Образование!CD35 -> 0 | CB41: =Образование!CE35 -> 0 | CC41: =Образование!CF35 -> 0 | CD41: =Образование!CG35 -> 0 | CE41: =Образование!CH35 -> 0 | CF41: =Образование!CI35 -> 0 | CG41: =Образование!CJ35 -> 0 | CH41: =Образование!CK35 -> 0 | CI41: =Образование!CL35 -> 0 | CJ41: =Образование!CM35 -> 0 | CK41: =Образование!CN35 -> 0 | CL41: =Образование!CO35 -> 0 | CM41: =Образование!CP35 -> 0 | CN41: =Образование!CQ35 -> 0 | CO41: =Образование!CR35 -> 0 | CP41: =Образование!CS35 -> 0 | CQ41: =Образование!CT35 -> 0 | CR41: =Образование!CU35 -> 1.5 | CS41: =Образование!CV35 -> 0 | CT41: =Образование!CW35 -> 0 | CU41: =Образование!CX35 -> 1.5 | CV41: =Образование!CY35 -> 0 | CW41: =Образование!CZ35 -> 0 | CX41: =Образование!DA35 -> 0 | CY41: =Образование!DB35 -> 0 | CZ41: =Образование!DC35 -> 0 | DA41: =Образование!DD35 -> 0 | DB41: =Образование!DE35 -> 0 | DC41: =Образование!DF35 -> 0 | DD41: =Образование!DG35 -> 0 | DE41: =Образование!DH35 -> 0 | DF41: =Образование!DI35 -> 0 | DG41: =Образование!DJ35 -> 0 | DH41: =Образование!DK35 -> 0 | DI41: =Образование!DL35 -> 0 | DJ41: =Образование!DM35 -> 0 | DK41: =Образование!DN35 -> 0 | DL41: =Образование!DO35 -> 0 | DM41: =Образование!DP35 -> 0 | DN41: =Образование!DQ35 -> 0 | DO41: =Образование!DR35 -> 0 | DP41: =Образование!DS35 -> 0 | DQ41: =Образование!DT35 -> 0 | DR41: =Образование!DU35 -> 0 | DS41: =Образование!DV35 -> 0 | DT41: =Образование!DW35 -> 0 | DU41: =Образование!DX35 -> 0 | DV41: =Образование!DY35 -> 0 | DW41: =Образование!DZ35 -> 0 | DX41: =Образование!EA35 -> не пройдена госэкпертиза. Мероприятие не будет реализовано. | DY41: =Образование!EB35 -> 0 | DZ41: =Образование!EC35 -> 0 | EA41: =Образование!ED35 -> 0 | EB41: =Образование!EE35 -> 0 | EC41: =Образование!EF35 -> 0 | ED41: =Образование!EG35 -> 0 | EE41: =Образование!EH35 -> 0 | EF41: =Образование!EI35 -> 0 | EG41: =Образование!EJ35 -> 0 | EH41: =Образование!EK35 -> 0 | EI41: =Образование!EL35 -> 0 | EJ41: =Образование!EM35 -> 0 | EK41: =Образование!EN35 -> 0 | EL41: =Образование!EO35 -> 0 | EM41: =Образование!EP35 -> 0 | EN41: =Образование!EQ35 -> 0 | EO41: =Образование!ER35 -> 0 | EP41: =Образование!ES35 -> 0 | EQ41: =Образование!ET35 -> 0 | ER41: =Образование!EU35 -> 0 | ES41: =Образование!EV35 -> 0 | ET41: =Образование!EW35 -> 0 | EU41: =Образование!EX35 -> 0 | EV41: =Образование!EY35 -> 0 | EW41: =Образование!EZ35 -> 0 | EX41: =Образование!FA35 -> 0 | EY41: =Образование!FB35 -> 0 | EZ41: =Образование!FC35 -> 0 | FA41: =Образование!FD35 -> 0 | FB41: =Образование!FE35 -> 0 | FC41: =Образование!FF35 -> 0 | FD41: =Образование!FG35 -> 0 | FE41: =Образование!FH35 -> 0 | FF41: =Образование!FI35 -> 0
A42: 1.24 | B42: ОБРАЗОВАНИЕ | C42: =Образование!F36 -> Капитальный ремонт МАОУ «Суксунская СОШ №1» | D42: =Образование!G36 -> нет | E42: =Образование!H36 -> Модеризация школьных систем образования. Госудаственная программа РФ | F42: =Образование!I36 -> Министерство территориального развития ПК | G42: =Образование!J36 -> Капитальный ремонт МАОУ «Суксунская СОШ №1» | H42: =Образование!K36 -> 0 | I42: =Образование!L36 -> 0 | J42: =Образование!M36 -> Реализация мероприятия не планируется | K42: =Образование!N36 -> 0 | L42: =Образование!O36 -> 0 | M42: =Образование!P36 -> 0 | N42: =Образование!Q36 -> 0 | O42: =Образование!R36 -> 0 | P42: =Образование!S36 -> 0 | Q42: =Образование!T36 -> 0 | R42: =Образование!U36 -> 0 | S42: =Образование!V36 -> 0 | T42: =Образование!W36 -> 0 | U42: =Образование!X36 -> 0 | V42: =Образование!Y36 -> 0 | W42: =Образование!Z36 -> 0 | X42: =Образование!AA36 -> 0 | Y42: =Образование!AB36 -> 0 | Z42: =Образование!AC36 -> 0 | AA42: =Образование!AD36 -> 0 | AB42: =Образование!AE36 ->  | AC42: =Образование!AF36 -> 0 | AD42: =Образование!AG36 -> 0 | AE42: =Образование!AH36 -> 0 | AF42: =Образование!AI36 -> 0 | AG42: =Образование!AJ36 -> 0 | AH42: =Образование!AK36 -> 0 | AI42: =Образование!AL36 -> 0 | AJ42: =Образование!AM36 -> 0 | AK42: =Образование!AN36 -> 0 | AL42: =Образование!AO36 -> 0 | AM42: =Образование!AP36 -> 0 | AN42: =Образование!AQ36 -> 0 | AO42: =Образование!AR36 -> 0 | AP42: =Образование!AS36 -> 0 | AQ42: =Образование!AT36 -> 0 | AR42: =Образование!AU36 -> 0 | AS42: =Образование!AV36 -> 0 | AT42: =Образование!AW36 -> 0 | AU42: =Образование!AX36 -> 0 | AV42: =Образование!AY36 -> 0 | AW42: =Образование!AZ36 -> 0 | AX42: =Образование!BA36 -> 0 | AY42: =Образование!BB36 -> 0 | AZ42: =Образование!BC36 -> 0 | BA42: =Образование!BD36 -> 0 | BB42: =Образование!BE36 -> 0 | BC42: =Образование!BF36 -> 0 | BD42: =Образование!BG36 -> 0 | BE42: =Образование!BH36 -> 0 | BF42: =Образование!BI36 -> 0 | BG42: =Образование!BJ36 -> 0 | BH42: =Образование!BK36 -> 0 | BI42: =Образование!BL36 -> 0 | BJ42: =Образование!BM36 -> 0 | BK42: =Образование!BN36 -> 0 | BL42: =Образование!BO36 -> 0 | BM42: =Образование!BP36 -> 0 | BN42: =Образование!BQ36 -> 0 | BO42: =Образование!BR36 -> 0 | BP42: =Образование!BS36 -> 0 | BQ42: =Образование!BT36 -> 0 | BR42: =Образование!BU36 -> 0 | BS42: =Образование!BV36 -> 0 | BT42: =Образование!BW36 -> 0 | BU42: =Образование!BX36 -> 0 | BV42: =Образование!BY36 -> 0 | BW42: =Образование!BZ36 -> 0 | BX42: =Образование!CA36 -> 0 | BY42: =Образование!CB36 -> 0 | BZ42: =Образование!CC36 -> 0 | CA42: =Образование!CD36 -> 0 | CB42: =Образование!CE36 -> 0 | CC42: =Образование!CF36 -> 0 | CD42: =Образование!CG36 -> 0 | CE42: =Образование!CH36 -> 0 | CF42: =Образование!CI36 -> 0 | CG42: =Образование!CJ36 -> 0 | CH42: =Образование!CK36 -> 0 | CI42: =Образование!CL36 -> 0 | CJ42: =Образование!CM36 -> 0 | CK42: =Образование!CN36 -> 0 | CL42: =Образование!CO36 -> 0 | CM42: =Образование!CP36 -> 0 | CN42: =Образование!CQ36 -> 0 | CO42: =Образование!CR36 -> 0 | CP42: =Образование!CS36 -> 0 | CQ42: =Образование!CT36 -> 0 | CR42: =Образование!CU36 -> 0 | CS42: =Образование!CV36 -> 0 | CT42: =Образование!CW36 -> 0 | CU42: =Образование!CX36 -> 0 | CV42: =Образование!CY36 -> 0 | CW42: =Образование!CZ36 -> 0 | CX42: =Образование!DA36 -> 0 | CY42: =Образование!DB36 -> 0 | CZ42: =Образование!DC36 -> 0 | DA42: =Образование!DD36 -> 0 | DB42: =Образование!DE36 -> 0 | DC42: =Образование!DF36 -> 0 | DD42: =Образование!DG36 -> 0 | DE42: =Образование!DH36 -> 0 | DF42: =Образование!DI36 -> 0 | DG42: =Образование!DJ36 -> 0 | DH42: =Образование!DK36 -> 0 | DI42: =Образование!DL36 -> 0 | DJ42: =Образование!DM36 -> 0 | DK42: =Образование!DN36 -> 0 | DL42: =Образование!DO36 -> 0 | DM42: =Образование!DP36 -> 0 | DN42: =Образование!DQ36 -> 0 | DO42: =Образование!DR36 -> 0 | DP42: =Образование!DS36 -> 0 | DQ42: =Образование!DT36 -> 0 | DR42: =Образование!DU36 -> 0 | DS42: =Образование!DV36 -> 0 | DT42: =Образование!DW36 -> 0 | DU42: =Образование!DX36 -> 0 | DV42: =Образование!DY36 -> 0 | DW42: =Образование!DZ36 -> 0 | DX42: =Образование!EA36 -> 0 | DY42: =Образование!EB36 -> 50 | DZ42: =Образование!EC36 -> 0 | EA42: =Образование!ED36 -> 0 | EB42: =Образование!EE36 -> 0 | EC42: =Образование!EF36 -> 0 | ED42: =Образование!EG36 -> 50 | EE42: =Образование!EH36 -> 0 | EF42: =Образование!EI36 -> 0 | EG42: =Образование!EJ36 -> 0 | EH42: =Образование!EK36 -> 0 | EI42: =Образование!EL36 -> 0 | EJ42: =Образование!EM36 -> 0 | EK42: =Образование!EN36 -> 0 | EL42: =Образование!EO36 -> 0 | EM42: =Образование!EP36 -> 0 | EN42: =Образование!EQ36 -> 0 | EO42: =Образование!ER36 -> 0 | EP42: =Образование!ES36 -> 0 | EQ42: =Образование!ET36 -> 0 | ER42: =Образование!EU36 -> 0 | ES42: =Образование!EV36 -> 0 | ET42: =Образование!EW36 -> 0 | EU42: =Образование!EX36 -> 0 | EV42: =Образование!EY36 -> 0 | EW42: =Образование!EZ36 -> 0 | EX42: =Образование!FA36 -> 0 | EY42: =Образование!FB36 -> 0 | EZ42: =Образование!FC36 -> 0 | FA42: =Образование!FD36 -> 0 | FB42: =Образование!FE36 -> 0 | FC42: =Образование!FF36 -> 0 | FD42: =Образование!FG36 -> 0 | FE42: =Образование!FH36 -> не пройдена госэкпертиза. Мероприятие не будет реализовано. | FF42: =Образование!FI36 -> 0
A43: 1.25 | B43: ОБРАЗОВАНИЕ | C43: =Образование!F37 -> 0 | D43: =Образование!G37 -> 0 | E43: =Образование!H37 -> 0 | F43: =Образование!I37 -> 0 | G43: =Образование!J37 -> 0 | H43: =Образование!K37 -> 0 | I43: =Образование!L37 -> 0 | J43: =Образование!M37 -> 0 | K43: =Образование!N37 -> 0 | L43: =Образование!O37 -> 0 | M43: =Образование!P37 -> 0 | N43: =Образование!Q37 -> 0 | O43: =Образование!R37 -> 0 | P43: =Образование!S37 -> 0 | Q43: =Образование!T37 -> 0 | R43: =Образование!U37 -> 0 | S43: =Образование!V37 -> 0 | T43: =Образование!W37 -> 0 | U43: =Образование!X37 -> 0 | V43: =Образование!Y37 -> 0 | W43: =Образование!Z37 -> 0 | X43: =Образование!AA37 -> 0 | Y43: =Образование!AB37 -> 0 | Z43: =Образование!AC37 -> 0 | AA43: =Образование!AD37 -> 0 | AB43: =Образование!AE37 ->  | AC43: =Образование!AF37 -> 0 | AD43: =Образование!AG37 -> 0 | AE43: =Образование!AH37 -> 0 | AF43: =Образование!AI37 -> 0 | AG43: =Образование!AJ37 -> 0 | AH43: =Образование!AK37 -> 0 | AI43: =Образование!AL37 -> 0 | AJ43: =Образование!AM37 -> 0 | AK43: =Образование!AN37 -> 0 | AL43: =Образование!AO37 -> 0 | AM43: =Образование!AP37 -> 0 | AN43: =Образование!AQ37 -> 0 | AO43: =Образование!AR37 -> 0 | AP43: =Образование!AS37 -> 0 | AQ43: =Образование!AT37 -> 0 | AR43: =Образование!AU37 -> 0 | AS43: =Образование!AV37 -> 0 | AT43: =Образование!AW37 -> 0 | AU43: =Образование!AX37 -> 0 | AV43: =Образование!AY37 -> 0 | AW43: =Образование!AZ37 -> 0 | AX43: =Образование!BA37 -> 0 | AY43: =Образование!BB37 -> 0 | AZ43: =Образование!BC37 -> 0 | BA43: =Образование!BD37 -> 0 | BB43: =Образование!BE37 -> 0 | BC43: =Образование!BF37 -> 0 | BD43: =Образование!BG37 -> 0 | BE43: =Образование!BH37 -> 0 | BF43: =Образование!BI37 -> 0 | BG43: =Образование!BJ37 -> 0 | BH43: =Образование!BK37 -> 0 | BI43: =Образование!BL37 -> 0 | BJ43: =Образование!BM37 -> 0 | BK43: =Образование!BN37 -> 0 | BL43: =Образование!BO37 -> 0 | BM43: =Образование!BP37 -> 0 | BN43: =Образование!BQ37 -> 0 | BO43: =Образование!BR37 -> 0 | BP43: =Образование!BS37 -> 0 | BQ43: =Образование!BT37 -> 0 | BR43: =Образование!BU37 -> 0 | BS43: =Образование!BV37 -> 0 | BT43: =Образование!BW37 -> 0 | BU43: =Образование!BX37 -> 0 | BV43: =Образование!BY37 -> 0 | BW43: =Образование!BZ37 -> 0 | BX43: =Образование!CA37 -> 0 | BY43: =Образование!CB37 -> 0 | BZ43: =Образование!CC37 -> 0 | CA43: =Образование!CD37 -> 0 | CB43: =Образование!CE37 -> 0 | CC43: =Образование!CF37 -> 0 | CD43: =Образование!CG37 -> 0 | CE43: =Образование!CH37 -> 0 | CF43: =Образование!CI37 -> 0 | CG43: =Образование!CJ37 -> 0 | CH43: =Образование!CK37 -> 0 | CI43: =Образование!CL37 -> 0 | CJ43: =Образование!CM37 -> 0 | CK43: =Образование!CN37 -> 0 | CL43: =Образование!CO37 -> 0 | CM43: =Образование!CP37 -> 0 | CN43: =Образование!CQ37 -> 0 | CO43: =Образование!CR37 -> 0 | CP43: =Образование!CS37 -> 0 | CQ43: =Образование!CT37 -> 0 | CR43: =Образование!CU37 -> 0 | CS43: =Образование!CV37 -> 0 | CT43: =Образование!CW37 -> 0 | CU43: =Образование!CX37 -> 0 | CV43: =Образование!CY37 -> 0 | CW43: =Образование!CZ37 -> 0 | CX43: =Образование!DA37 -> 0 | CY43: =Образование!DB37 -> 0 | CZ43: =Образование!DC37 -> 0 | DA43: =Образование!DD37 -> 0 | DB43: =Образование!DE37 -> 0 | DC43: =Образование!DF37 -> 0 | DD43: =Образование!DG37 -> 0 | DE43: =Образование!DH37 -> 0 | DF43: =Образование!DI37 -> 0 | DG43: =Образование!DJ37 -> 0 | DH43: =Образование!DK37 -> 0 | DI43: =Образование!DL37 -> 0 | DJ43: =Образование!DM37 -> 0 | DK43: =Образование!DN37 -> 0 | DL43: =Образование!DO37 -> 0 | DM43: =Образование!DP37 -> 0 | DN43: =Образование!DQ37 -> 0 | DO43: =Образование!DR37 -> 0 | DP43: =Образование!DS37 -> 0 | DQ43: =Образование!DT37 -> 0 | DR43: =Образование!DU37 -> 0 | DS43: =Образование!DV37 -> 0 | DT43: =Образование!DW37 -> 0 | DU43: =Образование!DX37 -> 0 | DV43: =Образование!DY37 -> 0 | DW43: =Образование!DZ37 -> 0 | DX43: =Образование!EA37 -> 0 | DY43: =Образование!EB37 -> 0 | DZ43: =Образование!EC37 -> 0 | EA43: =Образование!ED37 -> 0 | EB43: =Образование!EE37 -> 0 | EC43: =Образование!EF37 -> 0 | ED43: =Образование!EG37 -> 0 | EE43: =Образование!EH37 -> 0 | EF43: =Образование!EI37 -> 0 | EG43: =Образование!EJ37 -> 0 | EH43: =Образование!EK37 -> 0 | EI43: =Образование!EL37 -> 0 | EJ43: =Образование!EM37 -> 0 | EK43: =Образование!EN37 -> 0 | EL43: =Образование!EO37 -> 0 | EM43: =Образование!EP37 -> 0 | EN43: =Образование!EQ37 -> 0 | EO43: =Образование!ER37 -> 0 | EP43: =Образование!ES37 -> 0 | EQ43: =Образование!ET37 -> 0 | ER43: =Образование!EU37 -> 0 | ES43: =Образование!EV37 -> 0 | ET43: =Образование!EW37 -> 0 | EU43: =Образование!EX37 -> 0 | EV43: =Образование!EY37 -> 0 | EW43: =Образование!EZ37 -> 0 | EX43: =Образование!FA37 -> 0 | EY43: =Образование!FB37 -> 0 | EZ43: =Образование!FC37 -> 0 | FA43: =Образование!FD37 -> 0 | FB43: =Образование!FE37 -> 0 | FC43: =Образование!FF37 -> 0 | FD43: =Образование!FG37 -> 0 | FE43: =Образование!FH37 -> 0 | FF43: =Образование!FI37 -> 0
A44: 1.26 | B44: ОБРАЗОВАНИЕ | C44: =Образование!F38 -> 0 | D44: =Образование!G38 -> 0 | E44: =Образование!H38 -> 0 | F44: =Образование!I38 -> 0 | G44: =Образование!J38 -> 0 | H44: =Образование!K38 -> 0 | I44: =Образование!L38 -> 0 | J44: =Образование!M38 -> 0 | K44: =Образование!N38 -> 0 | L44: =Образование!O38 -> 0 | M44: =Образование!P38 -> 0 | N44: =Образование!Q38 -> 0 | O44: =Образование!R38 -> 0 | P44: =Образование!S38 -> 0 | Q44: =Образование!T38 -> 0 | R44: =Образование!U38 -> 0 | S44: =Образование!V38 -> 0 | T44: =Образование!W38 -> 0 | U44: =Образование!X38 -> 0 | V44: =Образование!Y38 -> 0 | W44: =Образование!Z38 -> 0 | X44: =Образование!AA38 -> 0 | Y44: =Образование!AB38 -> 0 | Z44: =Образование!AC38 -> 0 | AA44: =Образование!AD38 -> 0 | AB44: =Образование!AE38 ->  | AC44: =Образование!AF38 -> 0 | AD44: =Образование!AG38 -> 0 | AE44: =Образование!AH38 -> 0 | AF44: =Образование!AI38 -> 0 | AG44: =Образование!AJ38 -> 0 | AH44: =Образование!AK38 -> 0 | AI44: =Образование!AL38 -> 0 | AJ44: =Образование!AM38 -> 0 | AK44: =Образование!AN38 -> 0 | AL44: =Образование!AO38 -> 0 | AM44: =Образование!AP38 -> 0 | AN44: =Образование!AQ38 -> 0 | AO44: =Образование!AR38 -> 0 | AP44: =Образование!AS38 -> 0 | AQ44: =Образование!AT38 -> 0 | AR44: =Образование!AU38 -> 0 | AS44: =Образование!AV38 -> 0 | AT44: =Образование!AW38 -> 0 | AU44: =Образование!AX38 -> 0 | AV44: =Образование!AY38 -> 0 | AW44: =Образование!AZ38 -> 0 | AX44: =Образование!BA38 -> 0 | AY44: =Образование!BB38 -> 0 | AZ44: =Образование!BC38 -> 0 | BA44: =Образование!BD38 -> 0 | BB44: =Образование!BE38 -> 0 | BC44: =Образование!BF38 -> 0 | BD44: =Образование!BG38 -> 0 | BE44: =Образование!BH38 -> 0 | BF44: =Образование!BI38 -> 0 | BG44: =Образование!BJ38 -> 0 | BH44: =Образование!BK38 -> 0 | BI44: =Образование!BL38 -> 0 | BJ44: =Образование!BM38 -> 0 | BK44: =Образование!BN38 -> 0 | BL44: =Образование!BO38 -> 0 | BM44: =Образование!BP38 -> 0 | BN44: =Образование!BQ38 -> 0 | BO44: =Образование!BR38 -> 0 | BP44: =Образование!BS38 -> 0 | BQ44: =Образование!BT38 -> 0 | BR44: =Образование!BU38 -> 0 | BS44: =Образование!BV38 -> 0 | BT44: =Образование!BW38 -> 0 | BU44: =Образование!BX38 -> 0 | BV44: =Образование!BY38 -> 0 | BW44: =Образование!BZ38 -> 0 | BX44: =Образование!CA38 -> 0 | BY44: =Образование!CB38 -> 0 | BZ44: =Образование!CC38 -> 0 | CA44: =Образование!CD38 -> 0 | CB44: =Образование!CE38 -> 0 | CC44: =Образование!CF38 -> 0 | CD44: =Образование!CG38 -> 0 | CE44: =Образование!CH38 -> 0 | CF44: =Образование!CI38 -> 0 | CG44: =Образование!CJ38 -> 0 | CH44: =Образование!CK38 -> 0 | CI44: =Образование!CL38 -> 0 | CJ44: =Образование!CM38 -> 0 | CK44: =Образование!CN38 -> 0 | CL44: =Образование!CO38 -> 0 | CM44: =Образование!CP38 -> 0 | CN44: =Образование!CQ38 -> 0 | CO44: =Образование!CR38 -> 0 | CP44: =Образование!CS38 -> 0 | CQ44: =Образование!CT38 -> 0 | CR44: =Образование!CU38 -> 0 | CS44: =Образование!CV38 -> 0 | CT44: =Образование!CW38 -> 0 | CU44: =Образование!CX38 -> 0 | CV44: =Образование!CY38 -> 0 | CW44: =Образование!CZ38 -> 0 | CX44: =Образование!DA38 -> 0 | CY44: =Образование!DB38 -> 0 | CZ44: =Образование!DC38 -> 0 | DA44: =Образование!DD38 -> 0 | DB44: =Образование!DE38 -> 0 | DC44: =Образование!DF38 -> 0 | DD44: =Образование!DG38 -> 0 | DE44: =Образование!DH38 -> 0 | DF44: =Образование!DI38 -> 0 | DG44: =Образование!DJ38 -> 0 | DH44: =Образование!DK38 -> 0 | DI44: =Образование!DL38 -> 0 | DJ44: =Образование!DM38 -> 0 | DK44: =Образование!DN38 -> 0 | DL44: =Образование!DO38 -> 0 | DM44: =Образование!DP38 -> 0 | DN44: =Образование!DQ38 -> 0 | DO44: =Образование!DR38 -> 0 | DP44: =Образование!DS38 -> 0 | DQ44: =Образование!DT38 -> 0 | DR44: =Образование!DU38 -> 0 | DS44: =Образование!DV38 -> 0 | DT44: =Образование!DW38 -> 0 | DU44: =Образование!DX38 -> 0 | DV44: =Образование!DY38 -> 0 | DW44: =Образование!DZ38 -> 0 | DX44: =Образование!EA38 -> 0 | DY44: =Образование!EB38 -> 0 | DZ44: =Образование!EC38 -> 0 | EA44: =Образование!ED38 -> 0 | EB44: =Образование!EE38 -> 0 | EC44: =Образование!EF38 -> 0 | ED44: =Образование!EG38 -> 0 | EE44: =Образование!EH38 -> 0 | EF44: =Образование!EI38 -> 0 | EG44: =Образование!EJ38 -> 0 | EH44: =Образование!EK38 -> 0 | EI44: =Образование!EL38 -> 0 | EJ44: =Образование!EM38 -> 0 | EK44: =Образование!EN38 -> 0 | EL44: =Образование!EO38 -> 0 | EM44: =Образование!EP38 -> 0 | EN44: =Образование!EQ38 -> 0 | EO44: =Образование!ER38 -> 0 | EP44: =Образование!ES38 -> 0 | EQ44: =Образование!ET38 -> 0 | ER44: =Образование!EU38 -> 0 | ES44: =Образование!EV38 -> 0 | ET44: =Образование!EW38 -> 0 | EU44: =Образование!EX38 -> 0 | EV44: =Образование!EY38 -> 0 | EW44: =Образование!EZ38 -> 0 | EX44: =Образование!FA38 -> 0 | EY44: =Образование!FB38 -> 0 | EZ44: =Образование!FC38 -> 0 | FA44: =Образование!FD38 -> 0 | FB44: =Образование!FE38 -> 0 | FC44: =Образование!FF38 -> 0 | FD44: =Образование!FG38 -> 0 | FE44: =Образование!FH38 -> 0 | FF44: =Образование!FI38 -> 0
A45: 1.27 | B45: ОБРАЗОВАНИЕ | C45: =Образование!F39 -> 0 | D45: =Образование!G39 -> 0 | E45: =Образование!H39 -> 0 | F45: =Образование!I39 -> 0 | G45: =Образование!J39 -> 0 | H45: =Образование!K39 -> 0 | I45: =Образование!L39 -> 0 | J45: =Образование!M39 -> 0 | K45: =Образование!N39 -> 0 | L45: =Образование!O39 -> 0 | M45: =Образование!P39 -> 0 | N45: =Образование!Q39 -> 0 | O45: =Образование!R39 -> 0 | P45: =Образование!S39 -> 0 | Q45: =Образование!T39 -> 0 | R45: =Образование!U39 -> 0 | S45: =Образование!V39 -> 0 | T45: =Образование!W39 -> 0 | U45: =Образование!X39 -> 0 | V45: =Образование!Y39 -> 0 | W45: =Образование!Z39 -> 0 | X45: =Образование!AA39 -> 0 | Y45: =Образование!AB39 -> 0 | Z45: =Образование!AC39 -> 0 | AA45: =Образование!AD39 -> 0 | AB45: =Образование!AE39 ->  | AC45: =Образование!AF39 -> 0 | AD45: =Образование!AG39 -> 0 | AE45: =Образование!AH39 -> 0 | AF45: =Образование!AI39 -> 0 | AG45: =Образование!AJ39 -> 0 | AH45: =Образование!AK39 -> 0 | AI45: =Образование!AL39 -> 0 | AJ45: =Образование!AM39 -> 0 | AK45: =Образование!AN39 -> 0 | AL45: =Образование!AO39 -> 0 | AM45: =Образование!AP39 -> 0 | AN45: =Образование!AQ39 -> 0 | AO45: =Образование!AR39 -> 0 | AP45: =Образование!AS39 -> 0 | AQ45: =Образование!AT39 -> 0 | AR45: =Образование!AU39 -> 0 | AS45: =Образование!AV39 -> 0 | AT45: =Образование!AW39 -> 0 | AU45: =Образование!AX39 -> 0 | AV45: =Образование!AY39 -> 0 | AW45: =Образование!AZ39 -> 0 | AX45: =Образование!BA39 -> 0 | AY45: =Образование!BB39 -> 0 | AZ45: =Образование!BC39 -> 0 | BA45: =Образование!BD39 -> 0 | BB45: =Образование!BE39 -> 0 | BC45: =Образование!BF39 -> 0 | BD45: =Образование!BG39 -> 0 | BE45: =Образование!BH39 -> 0 | BF45: =Образование!BI39 -> 0 | BG45: =Образование!BJ39 -> 0 | BH45: =Образование!BK39 -> 0 | BI45: =Образование!BL39 -> 0 | BJ45: =Образование!BM39 -> 0 | BK45: =Образование!BN39 -> 0 | BL45: =Образование!BO39 -> 0 | BM45: =Образование!BP39 -> 0 | BN45: =Образование!BQ39 -> 0 | BO45: =Образование!BR39 -> 0 | BP45: =Образование!BS39 -> 0 | BQ45: =Образование!BT39 -> 0 | BR45: =Образование!BU39 -> 0 | BS45: =Образование!BV39 -> 0 | BT45: =Образование!BW39 -> 0 | BU45: =Образование!BX39 -> 0 | BV45: =Образование!BY39 -> 0 | BW45: =Образование!BZ39 -> 0 | BX45: =Образование!CA39 -> 0 | BY45: =Образование!CB39 -> 0 | BZ45: =Образование!CC39 -> 0 | CA45: =Образование!CD39 -> 0 | CB45: =Образование!CE39 -> 0 | CC45: =Образование!CF39 -> 0 | CD45: =Образование!CG39 -> 0 | CE45: =Образование!CH39 -> 0 | CF45: =Образование!CI39 -> 0 | CG45: =Образование!CJ39 -> 0 | CH45: =Образование!CK39 -> 0 | CI45: =Образование!CL39 -> 0 | CJ45: =Образование!CM39 -> 0 | CK45: =Образование!CN39 -> 0 | CL45: =Образование!CO39 -> 0 | CM45: =Образование!CP39 -> 0 | CN45: =Образование!CQ39 -> 0 | CO45: =Образование!CR39 -> 0 | CP45: =Образование!CS39 -> 0 | CQ45: =Образование!CT39 -> 0 | CR45: =Образование!CU39 -> 0 | CS45: =Образование!CV39 -> 0 | CT45: =Образование!CW39 -> 0 | CU45: =Образование!CX39 -> 0 | CV45: =Образование!CY39 -> 0 | CW45: =Образование!CZ39 -> 0 | CX45: =Образование!DA39 -> 0 | CY45: =Образование!DB39 -> 0 | CZ45: =Образование!DC39 -> 0 | DA45: =Образование!DD39 -> 0 | DB45: =Образование!DE39 -> 0 | DC45: =Образование!DF39 -> 0 | DD45: =Образование!DG39 -> 0 | DE45: =Образование!DH39 -> 0 | DF45: =Образование!DI39 -> 0 | DG45: =Образование!DJ39 -> 0 | DH45: =Образование!DK39 -> 0 | DI45: =Образование!DL39 -> 0 | DJ45: =Образование!DM39 -> 0 | DK45: =Образование!DN39 -> 0 | DL45: =Образование!DO39 -> 0 | DM45: =Образование!DP39 -> 0 | DN45: =Образование!DQ39 -> 0 | DO45: =Образование!DR39 -> 0 | DP45: =Образование!DS39 -> 0 | DQ45: =Образование!DT39 -> 0 | DR45: =Образование!DU39 -> 0 | DS45: =Образование!DV39 -> 0 | DT45: =Образование!DW39 -> 0 | DU45: =Образование!DX39 -> 0 | DV45: =Образование!DY39 -> 0 | DW45: =Образование!DZ39 -> 0 | DX45: =Образование!EA39 -> 0 | DY45: =Образование!EB39 -> 0 | DZ45: =Образование!EC39 -> 0 | EA45: =Образование!ED39 -> 0 | EB45: =Образование!EE39 -> 0 | EC45: =Образование!EF39 -> 0 | ED45: =Образование!EG39 -> 0 | EE45: =Образование!EH39 -> 0 | EF45: =Образование!EI39 -> 0 | EG45: =Образование!EJ39 -> 0 | EH45: =Образование!EK39 -> 0 | EI45: =Образование!EL39 -> 0 | EJ45: =Образование!EM39 -> 0 | EK45: =Образование!EN39 -> 0 | EL45: =Образование!EO39 -> 0 | EM45: =Образование!EP39 -> 0 | EN45: =Образование!EQ39 -> 0 | EO45: =Образование!ER39 -> 0 | EP45: =Образование!ES39 -> 0 | EQ45: =Образование!ET39 -> 0 | ER45: =Образование!EU39 -> 0 | ES45: =Образование!EV39 -> 0 | ET45: =Образование!EW39 -> 0 | EU45: =Образование!EX39 -> 0 | EV45: =Образование!EY39 -> 0 | EW45: =Образование!EZ39 -> 0 | EX45: =Образование!FA39 -> 0 | EY45: =Образование!FB39 -> 0 | EZ45: =Образование!FC39 -> 0 | FA45: =Образование!FD39 -> 0 | FB45: =Образование!FE39 -> 0 | FC45: =Образование!FF39 -> 0 | FD45: =Образование!FG39 -> 0 | FE45: =Образование!FH39 -> 0 | FF45: =Образование!FI39 -> 0
A46: 1.28 | B46: ОБРАЗОВАНИЕ | C46: =Образование!F40 -> 0 | D46: =Образование!G40 -> 0 | E46: =Образование!H40 -> 0 | F46: =Образование!I40 -> 0 | G46: =Образование!J40 -> 0 | H46: =Образование!K40 -> 0 | I46: =Образование!L40 -> 0 | J46: =Образование!M40 -> 0 | K46: =Образование!N40 -> 0 | L46: =Образование!O40 -> 0 | M46: =Образование!P40 -> 0 | N46: =Образование!Q40 -> 0 | O46: =Образование!R40 -> 0 | P46: =Образование!S40 -> 0 | Q46: =Образование!T40 -> 0 | R46: =Образование!U40 -> 0 | S46: =Образование!V40 -> 0 | T46: =Образование!W40 -> 0 | U46: =Образование!X40 -> 0 | V46: =Образование!Y40 -> 0 | W46: =Образование!Z40 -> 0 | X46: =Образование!AA40 -> 0 | Y46: =Образование!AB40 -> 0 | Z46: =Образование!AC40 -> 0 | AA46: =Образование!AD40 -> 0 | AB46: =Образование!AE40 ->  | AC46: =Образование!AF40 -> 0 | AD46: =Образование!AG40 -> 0 | AE46: =Образование!AH40 -> 0 | AF46: =Образование!AI40 -> 0 | AG46: =Образование!AJ40 -> 0 | AH46: =Образование!AK40 -> 0 | AI46: =Образование!AL40 -> 0 | AJ46: =Образование!AM40 -> 0 | AK46: =Образование!AN40 -> 0 | AL46: =Образование!AO40 -> 0 | AM46: =Образование!AP40 -> 0 | AN46: =Образование!AQ40 -> 0 | AO46: =Образование!AR40 -> 0 | AP46: =Образование!AS40 -> 0 | AQ46: =Образование!AT40 -> 0 | AR46: =Образование!AU40 -> 0 | AS46: =Образование!AV40 -> 0 | AT46: =Образование!AW40 -> 0 | AU46: =Образование!AX40 -> 0 | AV46: =Образование!AY40 -> 0 | AW46: =Образование!AZ40 -> 0 | AX46: =Образование!BA40 -> 0 | AY46: =Образование!BB40 -> 0 | AZ46: =Образование!BC40 -> 0 | BA46: =Образование!BD40 -> 0 | BB46: =Образование!BE40 -> 0 | BC46: =Образование!BF40 -> 0 | BD46: =Образование!BG40 -> 0 | BE46: =Образование!BH40 -> 0 | BF46: =Образование!BI40 -> 0 | BG46: =Образование!BJ40 -> 0 | BH46: =Образование!BK40 -> 0 | BI46: =Образование!BL40 -> 0 | BJ46: =Образование!BM40 -> 0 | BK46: =Образование!BN40 -> 0 | BL46: =Образование!BO40 -> 0 | BM46: =Образование!BP40 -> 0 | BN46: =Образование!BQ40 -> 0 | BO46: =Образование!BR40 -> 0 | BP46: =Образование!BS40 -> 0 | BQ46: =Образование!BT40 -> 0 | BR46: =Образование!BU40 -> 0 | BS46: =Образование!BV40 -> 0 | BT46: =Образование!BW40 -> 0 | BU46: =Образование!BX40 -> 0 | BV46: =Образование!BY40 -> 0 | BW46: =Образование!BZ40 -> 0 | BX46: =Образование!CA40 -> 0 | BY46: =Образование!CB40 -> 0 | BZ46: =Образование!CC40 -> 0 | CA46: =Образование!CD40 -> 0 | CB46: =Образование!CE40 -> 0 | CC46: =Образование!CF40 -> 0 | CD46: =Образование!CG40 -> 0 | CE46: =Образование!CH40 -> 0 | CF46: =Образование!CI40 -> 0 | CG46: =Образование!CJ40 -> 0 | CH46: =Образование!CK40 -> 0 | CI46: =Образование!CL40 -> 0 | CJ46: =Образование!CM40 -> 0 | CK46: =Образование!CN40 -> 0 | CL46: =Образование!CO40 -> 0 | CM46: =Образование!CP40 -> 0 | CN46: =Образование!CQ40 -> 0 | CO46: =Образование!CR40 -> 0 | CP46: =Образование!CS40 -> 0 | CQ46: =Образование!CT40 -> 0 | CR46: =Образование!CU40 -> 0 | CS46: =Образование!CV40 -> 0 | CT46: =Образование!CW40 -> 0 | CU46: =Образование!CX40 -> 0 | CV46: =Образование!CY40 -> 0 | CW46: =Образование!CZ40 -> 0 | CX46: =Образование!DA40 -> 0 | CY46: =Образование!DB40 -> 0 | CZ46: =Образование!DC40 -> 0 | DA46: =Образование!DD40 -> 0 | DB46: =Образование!DE40 -> 0 | DC46: =Образование!DF40 -> 0 | DD46: =Образование!DG40 -> 0 | DE46: =Образование!DH40 -> 0 | DF46: =Образование!DI40 -> 0 | DG46: =Образование!DJ40 -> 0 | DH46: =Образование!DK40 -> 0 | DI46: =Образование!DL40 -> 0 | DJ46: =Образование!DM40 -> 0 | DK46: =Образование!DN40 -> 0 | DL46: =Образование!DO40 -> 0 | DM46: =Образование!DP40 -> 0 | DN46: =Образование!DQ40 -> 0 | DO46: =Образование!DR40 -> 0 | DP46: =Образование!DS40 -> 0 | DQ46: =Образование!DT40 -> 0 | DR46: =Образование!DU40 -> 0 | DS46: =Образование!DV40 -> 0 | DT46: =Образование!DW40 -> 0 | DU46: =Образование!DX40 -> 0 | DV46: =Образование!DY40 -> 0 | DW46: =Образование!DZ40 -> 0 | DX46: =Образование!EA40 -> 0 | DY46: =Образование!EB40 -> 0 | DZ46: =Образование!EC40 -> 0 | EA46: =Образование!ED40 -> 0 | EB46: =Образование!EE40 -> 0 | EC46: =Образование!EF40 -> 0 | ED46: =Образование!EG40 -> 0 | EE46: =Образование!EH40 -> 0 | EF46: =Образование!EI40 -> 0 | EG46: =Образование!EJ40 -> 0 | EH46: =Образование!EK40 -> 0 | EI46: =Образование!EL40 -> 0 | EJ46: =Образование!EM40 -> 0 | EK46: =Образование!EN40 -> 0 | EL46: =Образование!EO40 -> 0 | EM46: =Образование!EP40 -> 0 | EN46: =Образование!EQ40 -> 0 | EO46: =Образование!ER40 -> 0 | EP46: =Образование!ES40 -> 0 | EQ46: =Образование!ET40 -> 0 | ER46: =Образование!EU40 -> 0 | ES46: =Образование!EV40 -> 0 | ET46: =Образование!EW40 -> 0 | EU46: =Образование!EX40 -> 0 | EV46: =Образование!EY40 -> 0 | EW46: =Образование!EZ40 -> 0 | EX46: =Образование!FA40 -> 0 | EY46: =Образование!FB40 -> 0 | EZ46: =Образование!FC40 -> 0 | FA46: =Образование!FD40 -> 0 | FB46: =Образование!FE40 -> 0 | FC46: =Образование!FF40 -> 0 | FD46: =Образование!FG40 -> 0 | FE46: =Образование!FH40 -> 0 | FF46: =Образование!FI40 -> 0
A47: 1.29 | B47: ОБРАЗОВАНИЕ | C47: =Образование!F41 -> 0 | D47: =Образование!G41 -> 0 | E47: =Образование!H41 -> 0 | F47: =Образование!I41 -> 0 | G47: =Образование!J41 -> 0 | H47: =Образование!K41 -> 0 | I47: =Образование!L41 -> 0 | J47: =Образование!M41 -> 0 | K47: =Образование!N41 -> 0 | L47: =Образование!O41 -> 0 | M47: =Образование!P41 -> 0 | N47: =Образование!Q41 -> 0 | O47: =Образование!R41 -> 0 | P47: =Образование!S41 -> 0 | Q47: =Образование!T41 -> 0 | R47: =Образование!U41 -> 0 | S47: =Образование!V41 -> 0 | T47: =Образование!W41 -> 0 | U47: =Образование!X41 -> 0 | V47: =Образование!Y41 -> 0 | W47: =Образование!Z41 -> 0 | X47: =Образование!AA41 -> 0 | Y47: =Образование!AB41 -> 0 | Z47: =Образование!AC41 -> 0 | AA47: =Образование!AD41 -> 0 | AB47: =Образование!AE41 ->  | AC47: =Образование!AF41 -> 0 | AD47: =Образование!AG41 -> 0 | AE47: =Образование!AH41 -> 0 | AF47: =Образование!AI41 -> 0 | AG47: =Образование!AJ41 -> 0 | AH47: =Образование!AK41 -> 0 | AI47: =Образование!AL41 -> 0 | AJ47: =Образование!AM41 -> 0 | AK47: =Образование!AN41 -> 0 | AL47: =Образование!AO41 -> 0 | AM47: =Образование!AP41 -> 0 | AN47: =Образование!AQ41 -> 0 | AO47: =Образование!AR41 -> 0 | AP47: =Образование!AS41 -> 0 | AQ47: =Образование!AT41 -> 0 | AR47: =Образование!AU41 -> 0 | AS47: =Образование!AV41 -> 0 | AT47: =Образование!AW41 -> 0 | AU47: =Образование!AX41 -> 0 | AV47: =Образование!AY41 -> 0 | AW47: =Образование!AZ41 -> 0 | AX47: =Образование!BA41 -> 0 | AY47: =Образование!BB41 -> 0 | AZ47: =Образование!BC41 -> 0 | BA47: =Образование!BD41 -> 0 | BB47: =Образование!BE41 -> 0 | BC47: =Образование!BF41 -> 0 | BD47: =Образование!BG41 -> 0 | BE47: =Образование!BH41 -> 0 | BF47: =Образование!BI41 -> 0 | BG47: =Образование!BJ41 -> 0 | BH47: =Образование!BK41 -> 0 | BI47: =Образование!BL41 -> 0 | BJ47: =Образование!BM41 -> 0 | BK47: =Образование!BN41 -> 0 | BL47: =Образование!BO41 -> 0 | BM47: =Образование!BP41 -> 0 | BN47: =Образование!BQ41 -> 0 | BO47: =Образование!BR41 -> 0 | BP47: =Образование!BS41 -> 0 | BQ47: =Образование!BT41 -> 0 | BR47: =Образование!BU41 -> 0 | BS47: =Образование!BV41 -> 0 | BT47: =Образование!BW41 -> 0 | BU47: =Образование!BX41 -> 0 | BV47: =Образование!BY41 -> 0 | BW47: =Образование!BZ41 -> 0 | BX47: =Образование!CA41 -> 0 | BY47: =Образование!CB41 -> 0 | BZ47: =Образование!CC41 -> 0 | CA47: =Образование!CD41 -> 0 | CB47: =Образование!CE41 -> 0 | CC47: =Образование!CF41 -> 0 | CD47: =Образование!CG41 -> 0 | CE47: =Образование!CH41 -> 0 | CF47: =Образование!CI41 -> 0 | CG47: =Образование!CJ41 -> 0 | CH47: =Образование!CK41 -> 0 | CI47: =Образование!CL41 -> 0 | CJ47: =Образование!CM41 -> 0 | CK47: =Образование!CN41 -> 0 | CL47: =Образование!CO41 -> 0 | CM47: =Образование!CP41 -> 0 | CN47: =Образование!CQ41 -> 0 | CO47: =Образование!CR41 -> 0 | CP47: =Образование!CS41 -> 0 | CQ47: =Образование!CT41 -> 0 | CR47: =Образование!CU41 -> 0 | CS47: =Образование!CV41 -> 0 | CT47: =Образование!CW41 -> 0 | CU47: =Образование!CX41 -> 0 | CV47: =Образование!CY41 -> 0 | CW47: =Образование!CZ41 -> 0 | CX47: =Образование!DA41 -> 0 | CY47: =Образование!DB41 -> 0 | CZ47: =Образование!DC41 -> 0 | DA47: =Образование!DD41 -> 0 | DB47: =Образование!DE41 -> 0 | DC47: =Образование!DF41 -> 0 | DD47: =Образование!DG41 -> 0 | DE47: =Образование!DH41 -> 0 | DF47: =Образование!DI41 -> 0 | DG47: =Образование!DJ41 -> 0 | DH47: =Образование!DK41 -> 0 | DI47: =Образование!DL41 -> 0 | DJ47: =Образование!DM41 -> 0 | DK47: =Образование!DN41 -> 0 | DL47: =Образование!DO41 -> 0 | DM47: =Образование!DP41 -> 0 | DN47: =Образование!DQ41 -> 0 | DO47: =Образование!DR41 -> 0 | DP47: =Образование!DS41 -> 0 | DQ47: =Образование!DT41 -> 0 | DR47: =Образование!DU41 -> 0 | DS47: =Образование!DV41 -> 0 | DT47: =Образование!DW41 -> 0 | DU47: =Образование!DX41 -> 0 | DV47: =Образование!DY41 -> 0 | DW47: =Образование!DZ41 -> 0 | DX47: =Образование!EA41 -> 0 | DY47: =Образование!EB41 -> 0 | DZ47: =Образование!EC41 -> 0 | EA47: =Образование!ED41 -> 0 | EB47: =Образование!EE41 -> 0 | EC47: =Образование!EF41 -> 0 | ED47: =Образование!EG41 -> 0 | EE47: =Образование!EH41 -> 0 | EF47: =Образование!EI41 -> 0 | EG47: =Образование!EJ41 -> 0 | EH47: =Образование!EK41 -> 0 | EI47: =Образование!EL41 -> 0 | EJ47: =Образование!EM41 -> 0 | EK47: =Образование!EN41 -> 0 | EL47: =Образование!EO41 -> 0 | EM47: =Образование!EP41 -> 0 | EN47: =Образование!EQ41 -> 0 | EO47: =Образование!ER41 -> 0 | EP47: =Образование!ES41 -> 0 | EQ47: =Образование!ET41 -> 0 | ER47: =Образование!EU41 -> 0 | ES47: =Образование!EV41 -> 0 | ET47: =Образование!EW41 -> 0 | EU47: =Образование!EX41 -> 0 | EV47: =Образование!EY41 -> 0 | EW47: =Образование!EZ41 -> 0 | EX47: =Образование!FA41 -> 0 | EY47: =Образование!FB41 -> 0 | EZ47: =Образование!FC41 -> 0 | FA47: =Образование!FD41 -> 0 | FB47: =Образование!FE41 -> 0 | FC47: =Образование!FF41 -> 0 | FD47: =Образование!FG41 -> 0 | FE47: =Образование!FH41 -> 0 | FF47: =Образование!FI41 -> 0
A48: 1.30 | B48: ОБРАЗОВАНИЕ | C48: =Образование!F42 -> 0 | D48: =Образование!G42 -> 0 | E48: =Образование!H42 -> 0 | F48: =Образование!I42 -> 0 | G48: =Образование!J42 -> 0 | H48: =Образование!K42 -> 0 | I48: =Образование!L42 -> 0 | J48: =Образование!M42 -> 0 | K48: =Образование!N42 -> 0 | L48: =Образование!O42 -> 0 | M48: =Образование!P42 -> 0 | N48: =Образование!Q42 -> 0 | O48: =Образование!R42 -> 0 | P48: =Образование!S42 -> 0 | Q48: =Образование!T42 -> 0 | R48: =Образование!U42 -> 0 | S48: =Образование!V42 -> 0 | T48: =Образование!W42 -> 0 | U48: =Образование!X42 -> 0 | V48: =Образование!Y42 -> 0 | W48: =Образование!Z42 -> 0 | X48: =Образование!AA42 -> 0 | Y48: =Образование!AB42 -> 0 | Z48: =Образование!AC42 -> 0 | AA48: =Образование!AD42 -> 0 | AB48: =Образование!AE42 ->  | AC48: =Образование!AF42 -> 0 | AD48: =Образование!AG42 -> 0 | AE48: =Образование!AH42 -> 0 | AF48: =Образование!AI42 -> 0 | AG48: =Образование!AJ42 -> 0 | AH48: =Образование!AK42 -> 0 | AI48: =Образование!AL42 -> 0 | AJ48: =Образование!AM42 -> 0 | AK48: =Образование!AN42 -> 0 | AL48: =Образование!AO42 -> 0 | AM48: =Образование!AP42 -> 0 | AN48: =Образование!AQ42 -> 0 | AO48: =Образование!AR42 -> 0 | AP48: =Образование!AS42 -> 0 | AQ48: =Образование!AT42 -> 0 | AR48: =Образование!AU42 -> 0 | AS48: =Образование!AV42 -> 0 | AT48: =Образование!AW42 -> 0 | AU48: =Образование!AX42 -> 0 | AV48: =Образование!AY42 -> 0 | AW48: =Образование!AZ42 -> 0 | AX48: =Образование!BA42 -> 0 | AY48: =Образование!BB42 -> 0 | AZ48: =Образование!BC42 -> 0 | BA48: =Образование!BD42 -> 0 | BB48: =Образование!BE42 -> 0 | BC48: =Образование!BF42 -> 0 | BD48: =Образование!BG42 -> 0 | BE48: =Образование!BH42 -> 0 | BF48: =Образование!BI42 -> 0 | BG48: =Образование!BJ42 -> 0 | BH48: =Образование!BK42 -> 0 | BI48: =Образование!BL42 -> 0 | BJ48: =Образование!BM42 -> 0 | BK48: =Образование!BN42 -> 0 | BL48: =Образование!BO42 -> 0 | BM48: =Образование!BP42 -> 0 | BN48: =Образование!BQ42 -> 0 | BO48: =Образование!BR42 -> 0 | BP48: =Образование!BS42 -> 0 | BQ48: =Образование!BT42 -> 0 | BR48: =Образование!BU42 -> 0 | BS48: =Образование!BV42 -> 0 | BT48: =Образование!BW42 -> 0 | BU48: =Образование!BX42 -> 0 | BV48: =Образование!BY42 -> 0 | BW48: =Образование!BZ42 -> 0 | BX48: =Образование!CA42 -> 0 | BY48: =Образование!CB42 -> 0 | BZ48: =Образование!CC42 -> 0 | CA48: =Образование!CD42 -> 0 | CB48: =Образование!CE42 -> 0 | CC48: =Образование!CF42 -> 0 | CD48: =Образование!CG42 -> 0 | CE48: =Образование!CH42 -> 0 | CF48: =Образование!CI42 -> 0 | CG48: =Образование!CJ42 -> 0 | CH48: =Образование!CK42 -> 0 | CI48: =Образование!CL42 -> 0 | CJ48: =Образование!CM42 -> 0 | CK48: =Образование!CN42 -> 0 | CL48: =Образование!CO42 -> 0 | CM48: =Образование!CP42 -> 0 | CN48: =Образование!CQ42 -> 0 | CO48: =Образование!CR42 -> 0 | CP48: =Образование!CS42 -> 0 | CQ48: =Образование!CT42 -> 0 | CR48: =Образование!CU42 -> 0 | CS48: =Образование!CV42 -> 0 | CT48: =Образование!CW42 -> 0 | CU48: =Образование!CX42 -> 0 | CV48: =Образование!CY42 -> 0 | CW48: =Образование!CZ42 -> 0 | CX48: =Образование!DA42 -> 0 | CY48: =Образование!DB42 -> 0 | CZ48: =Образование!DC42 -> 0 | DA48: =Образование!DD42 -> 0 | DB48: =Образование!DE42 -> 0 | DC48: =Образование!DF42 -> 0 | DD48: =Образование!DG42 -> 0 | DE48: =Образование!DH42 -> 0 | DF48: =Образование!DI42 -> 0 | DG48: =Образование!DJ42 -> 0 | DH48: =Образование!DK42 -> 0 | DI48: =Образование!DL42 -> 0 | DJ48: =Образование!DM42 -> 0 | DK48: =Образование!DN42 -> 0 | DL48: =Образование!DO42 -> 0 | DM48: =Образование!DP42 -> 0 | DN48: =Образование!DQ42 -> 0 | DO48: =Образование!DR42 -> 0 | DP48: =Образование!DS42 -> 0 | DQ48: =Образование!DT42 -> 0 | DR48: =Образование!DU42 -> 0 | DS48: =Образование!DV42 -> 0 | DT48: =Образование!DW42 -> 0 | DU48: =Образование!DX42 -> 0 | DV48: =Образование!DY42 -> 0 | DW48: =Образование!DZ42 -> 0 | DX48: =Образование!EA42 -> 0 | DY48: =Образование!EB42 -> 0 | DZ48: =Образование!EC42 -> 0 | EA48: =Образование!ED42 -> 0 | EB48: =Образование!EE42 -> 0 | EC48: =Образование!EF42 -> 0 | ED48: =Образование!EG42 -> 0 | EE48: =Образование!EH42 -> 0 | EF48: =Образование!EI42 -> 0 | EG48: =Образование!EJ42 -> 0 | EH48: =Образование!EK42 -> 0 | EI48: =Образование!EL42 -> 0 | EJ48: =Образование!EM42 -> 0 | EK48: =Образование!EN42 -> 0 | EL48: =Образование!EO42 -> 0 | EM48: =Образование!EP42 -> 0 | EN48: =Образование!EQ42 -> 0 | EO48: =Образование!ER42 -> 0 | EP48: =Образование!ES42 -> 0 | EQ48: =Образование!ET42 -> 0 | ER48: =Образование!EU42 -> 0 | ES48: =Образование!EV42 -> 0 | ET48: =Образование!EW42 -> 0 | EU48: =Образование!EX42 -> 0 | EV48: =Образование!EY42 -> 0 | EW48: =Образование!EZ42 -> 0 | EX48: =Образование!FA42 -> 0 | EY48: =Образование!FB42 -> 0 | EZ48: =Образование!FC42 -> 0 | FA48: =Образование!FD42 -> 0 | FB48: =Образование!FE42 -> 0 | FC48: =Образование!FF42 -> 0 | FD48: =Образование!FG42 -> 0 | FE48: =Образование!FH42 -> 0 | FF48: =Образование!FI42 -> 0
A49: 1.31 | B49: ОБРАЗОВАНИЕ | C49: =Образование!F43 -> 0 | D49: =Образование!G43 -> 0 | E49: =Образование!H43 -> 0 | F49: =Образование!I43 -> 0 | G49: =Образование!J43 -> 0 | H49: =Образование!K43 -> 0 | I49: =Образование!L43 -> 0 | J49: =Образование!M43 -> 0 | K49: =Образование!N43 -> 0 | L49: =Образование!O43 -> 0 | M49: =Образование!P43 -> 0 | N49: =Образование!Q43 -> 0 | O49: =Образование!R43 -> 0 | P49: =Образование!S43 -> 0 | Q49: =Образование!T43 -> 0 | R49: =Образование!U43 -> 0 | S49: =Образование!V43 -> 0 | T49: =Образование!W43 -> 0 | U49: =Образование!X43 -> 0 | V49: =Образование!Y43 -> 0 | W49: =Образование!Z43 -> 0 | X49: =Образование!AA43 -> 0 | Y49: =Образование!AB43 -> 0 | Z49: =Образование!AC43 -> 0 | AA49: =Образование!AD43 -> 0 | AB49: =Образование!AE43 ->  | AC49: =Образование!AF43 -> 0 | AD49: =Образование!AG43 -> 0 | AE49: =Образование!AH43 -> 0 | AF49: =Образование!AI43 -> 0 | AG49: =Образование!AJ43 -> 0 | AH49: =Образование!AK43 -> 0 | AI49: =Образование!AL43 -> 0 | AJ49: =Образование!AM43 -> 0 | AK49: =Образование!AN43 -> 0 | AL49: =Образование!AO43 -> 0 | AM49: =Образование!AP43 -> 0 | AN49: =Образование!AQ43 -> 0 | AO49: =Образование!AR43 -> 0 | AP49: =Образование!AS43 -> 0 | AQ49: =Образование!AT43 -> 0 | AR49: =Образование!AU43 -> 0 | AS49: =Образование!AV43 -> 0 | AT49: =Образование!AW43 -> 0 | AU49: =Образование!AX43 -> 0 | AV49: =Образование!AY43 -> 0 | AW49: =Образование!AZ43 -> 0 | AX49: =Образование!BA43 -> 0 | AY49: =Образование!BB43 -> 0 | AZ49: =Образование!BC43 -> 0 | BA49: =Образование!BD43 -> 0 | BB49: =Образование!BE43 -> 0 | BC49: =Образование!BF43 -> 0 | BD49: =Образование!BG43 -> 0 | BE49: =Образование!BH43 -> 0 | BF49: =Образование!BI43 -> 0 | BG49: =Образование!BJ43 -> 0 | BH49: =Образование!BK43 -> 0 | BI49: =Образование!BL43 -> 0 | BJ49: =Образование!BM43 -> 0 | BK49: =Образование!BN43 -> 0 | BL49: =Образование!BO43 -> 0 | BM49: =Образование!BP43 -> 0 | BN49: =Образование!BQ43 -> 0 | BO49: =Образование!BR43 -> 0 | BP49: =Образование!BS43 -> 0 | BQ49: =Образование!BT43 -> 0 | BR49: =Образование!BU43 -> 0 | BS49: =Образование!BV43 -> 0 | BT49: =Образование!BW43 -> 0 | BU49: =Образование!BX43 -> 0 | BV49: =Образование!BY43 -> 0 | BW49: =Образование!BZ43 -> 0 | BX49: =Образование!CA43 -> 0 | BY49: =Образование!CB43 -> 0 | BZ49: =Образование!CC43 -> 0 | CA49: =Образование!CD43 -> 0 | CB49: =Образование!CE43 -> 0 | CC49: =Образование!CF43 -> 0 | CD49: =Образование!CG43 -> 0 | CE49: =Образование!CH43 -> 0 | CF49: =Образование!CI43 -> 0 | CG49: =Образование!CJ43 -> 0 | CH49: =Образование!CK43 -> 0 | CI49: =Образование!CL43 -> 0 | CJ49: =Образование!CM43 -> 0 | CK49: =Образование!CN43 -> 0 | CL49: =Образование!CO43 -> 0 | CM49: =Образование!CP43 -> 0 | CN49: =Образование!CQ43 -> 0 | CO49: =Образование!CR43 -> 0 | CP49: =Образование!CS43 -> 0 | CQ49: =Образование!CT43 -> 0 | CR49: =Образование!CU43 -> 0 | CS49: =Образование!CV43 -> 0 | CT49: =Образование!CW43 -> 0 | CU49: =Образование!CX43 -> 0 | CV49: =Образование!CY43 -> 0 | CW49: =Образование!CZ43 -> 0 | CX49: =Образование!DA43 -> 0 | CY49: =Образование!DB43 -> 0 | CZ49: =Образование!DC43 -> 0 | DA49: =Образование!DD43 -> 0 | DB49: =Образование!DE43 -> 0 | DC49: =Образование!DF43 -> 0 | DD49: =Образование!DG43 -> 0 | DE49: =Образование!DH43 -> 0 | DF49: =Образование!DI43 -> 0 | DG49: =Образование!DJ43 -> 0 | DH49: =Образование!DK43 -> 0 | DI49: =Образование!DL43 -> 0 | DJ49: =Образование!DM43 -> 0 | DK49: =Образование!DN43 -> 0 | DL49: =Образование!DO43 -> 0 | DM49: =Образование!DP43 -> 0 | DN49: =Образование!DQ43 -> 0 | DO49: =Образование!DR43 -> 0 | DP49: =Образование!DS43 -> 0 | DQ49: =Образование!DT43 -> 0 | DR49: =Образование!DU43 -> 0 | DS49: =Образование!DV43 -> 0 | DT49: =Образование!DW43 -> 0 | DU49: =Образование!DX43 -> 0 | DV49: =Образование!DY43 -> 0 | DW49: =Образование!DZ43 -> 0 | DX49: =Образование!EA43 -> 0 | DY49: =Образование!EB43 -> 0 | DZ49: =Образование!EC43 -> 0 | EA49: =Образование!ED43 -> 0 | EB49: =Образование!EE43 -> 0 | EC49: =Образование!EF43 -> 0 | ED49: =Образование!EG43 -> 0 | EE49: =Образование!EH43 -> 0 | EF49: =Образование!EI43 -> 0 | EG49: =Образование!EJ43 -> 0 | EH49: =Образование!EK43 -> 0 | EI49: =Образование!EL43 -> 0 | EJ49: =Образование!EM43 -> 0 | EK49: =Образование!EN43 -> 0 | EL49: =Образование!EO43 -> 0 | EM49: =Образование!EP43 -> 0 | EN49: =Образование!EQ43 -> 0 | EO49: =Образование!ER43 -> 0 | EP49: =Образование!ES43 -> 0 | EQ49: =Образование!ET43 -> 0 | ER49: =Образование!EU43 -> 0 | ES49: =Образование!EV43 -> 0 | ET49: =Образование!EW43 -> 0 | EU49: =Образование!EX43 -> 0 | EV49: =Образование!EY43 -> 0 | EW49: =Образование!EZ43 -> 0 | EX49: =Образование!FA43 -> 0 | EY49: =Образование!FB43 -> 0 | EZ49: =Образование!FC43 -> 0 | FA49: =Образование!FD43 -> 0 | FB49: =Образование!FE43 -> 0 | FC49: =Образование!FF43 -> 0 | FD49: =Образование!FG43 -> 0 | FE49: =Образование!FH43 -> 0 | FF49: =Образование!FI43 -> 0
A50: 1.32 | B50: ОБРАЗОВАНИЕ | C50: =Образование!F44 -> 0 | D50: =Образование!G44 -> 0 | E50: =Образование!H44 -> 0 | F50: =Образование!I44 -> 0 | G50: =Образование!J44 -> 0 | H50: =Образование!K44 -> 0 | I50: =Образование!L44 -> 0 | J50: =Образование!M44 -> 0 | K50: =Образование!N44 -> 0 | L50: =Образование!O44 -> 0 | M50: =Образование!P44 -> 0 | N50: =Образование!Q44 -> 0 | O50: =Образование!R44 -> 0 | P50: =Образование!S44 -> 0 | Q50: =Образование!T44 -> 0 | R50: =Образование!U44 -> 0 | S50: =Образование!V44 -> 0 | T50: =Образование!W44 -> 0 | U50: =Образование!X44 -> 0 | V50: =Образование!Y44 -> 0 | W50: =Образование!Z44 -> 0 | X50: =Образование!AA44 -> 0 | Y50: =Образование!AB44 -> 0 | Z50: =Образование!AC44 -> 0 | AA50: =Образование!AD44 -> 0 | AB50: =Образование!AE44 ->  | AC50: =Образование!AF44 -> 0 | AD50: =Образование!AG44 -> 0 | AE50: =Образование!AH44 -> 0 | AF50: =Образование!AI44 -> 0 | AG50: =Образование!AJ44 -> 0 | AH50: =Образование!AK44 -> 0 | AI50: =Образование!AL44 -> 0 | AJ50: =Образование!AM44 -> 0 | AK50: =Образование!AN44 -> 0 | AL50: =Образование!AO44 -> 0 | AM50: =Образование!AP44 -> 0 | AN50: =Образование!AQ44 -> 0 | AO50: =Образование!AR44 -> 0 | AP50: =Образование!AS44 -> 0 | AQ50: =Образование!AT44 -> 0 | AR50: =Образование!AU44 -> 0 | AS50: =Образование!AV44 -> 0 | AT50: =Образование!AW44 -> 0 | AU50: =Образование!AX44 -> 0 | AV50: =Образование!AY44 -> 0 | AW50: =Образование!AZ44 -> 0 | AX50: =Образование!BA44 -> 0 | AY50: =Образование!BB44 -> 0 | AZ50: =Образование!BC44 -> 0 | BA50: =Образование!BD44 -> 0 | BB50: =Образование!BE44 -> 0 | BC50: =Образование!BF44 -> 0 | BD50: =Образование!BG44 -> 0 | BE50: =Образование!BH44 -> 0 | BF50: =Образование!BI44 -> 0 | BG50: =Образование!BJ44 -> 0 | BH50: =Образование!BK44 -> 0 | BI50: =Образование!BL44 -> 0 | BJ50: =Образование!BM44 -> 0 | BK50: =Образование!BN44 -> 0 | BL50: =Образование!BO44 -> 0 | BM50: =Образование!BP44 -> 0 | BN50: =Образование!BQ44 -> 0 | BO50: =Образование!BR44 -> 0 | BP50: =Образование!BS44 -> 0 | BQ50: =Образование!BT44 -> 0 | BR50: =Образование!BU44 -> 0 | BS50: =Образование!BV44 -> 0 | BT50: =Образование!BW44 -> 0 | BU50: =Образование!BX44 -> 0 | BV50: =Образование!BY44 -> 0 | BW50: =Образование!BZ44 -> 0 | BX50: =Образование!CA44 -> 0 | BY50: =Образование!CB44 -> 0 | BZ50: =Образование!CC44 -> 0 | CA50: =Образование!CD44 -> 0 | CB50: =Образование!CE44 -> 0 | CC50: =Образование!CF44 -> 0 | CD50: =Образование!CG44 -> 0 | CE50: =Образование!CH44 -> 0 | CF50: =Образование!CI44 -> 0 | CG50: =Образование!CJ44 -> 0 | CH50: =Образование!CK44 -> 0 | CI50: =Образование!CL44 -> 0 | CJ50: =Образование!CM44 -> 0 | CK50: =Образование!CN44 -> 0 | CL50: =Образование!CO44 -> 0 | CM50: =Образование!CP44 -> 0 | CN50: =Образование!CQ44 -> 0 | CO50: =Образование!CR44 -> 0 | CP50: =Образование!CS44 -> 0 | CQ50: =Образование!CT44 -> 0 | CR50: =Образование!CU44 -> 0 | CS50: =Образование!CV44 -> 0 | CT50: =Образование!CW44 -> 0 | CU50: =Образование!CX44 -> 0 | CV50: =Образование!CY44 -> 0 | CW50: =Образование!CZ44 -> 0 | CX50: =Образование!DA44 -> 0 | CY50: =Образование!DB44 -> 0 | CZ50: =Образование!DC44 -> 0 | DA50: =Образование!DD44 -> 0 | DB50: =Образование!DE44 -> 0 | DC50: =Образование!DF44 -> 0 | DD50: =Образование!DG44 -> 0 | DE50: =Образование!DH44 -> 0 | DF50: =Образование!DI44 -> 0 | DG50: =Образование!DJ44 -> 0 | DH50: =Образование!DK44 -> 0 | DI50: =Образование!DL44 -> 0 | DJ50: =Образование!DM44 -> 0 | DK50: =Образование!DN44 -> 0 | DL50: =Образование!DO44 -> 0 | DM50: =Образование!DP44 -> 0 | DN50: =Образование!DQ44 -> 0 | DO50: =Образование!DR44 -> 0 | DP50: =Образование!DS44 -> 0 | DQ50: =Образование!DT44 -> 0 | DR50: =Образование!DU44 -> 0 | DS50: =Образование!DV44 -> 0 | DT50: =Образование!DW44 -> 0 | DU50: =Образование!DX44 -> 0 | DV50: =Образование!DY44 -> 0 | DW50: =Образование!DZ44 -> 0 | DX50: =Образование!EA44 -> 0 | DY50: =Образование!EB44 -> 0 | DZ50: =Образование!EC44 -> 0 | EA50: =Образование!ED44 -> 0 | EB50: =Образование!EE44 -> 0 | EC50: =Образование!EF44 -> 0 | ED50: =Образование!EG44 -> 0 | EE50: =Образование!EH44 -> 0 | EF50: =Образование!EI44 -> 0 | EG50: =Образование!EJ44 -> 0 | EH50: =Образование!EK44 -> 0 | EI50: =Образование!EL44 -> 0 | EJ50: =Образование!EM44 -> 0 | EK50: =Образование!EN44 -> 0 | EL50: =Образование!EO44 -> 0 | EM50: =Образование!EP44 -> 0 | EN50: =Образование!EQ44 -> 0 | EO50: =Образование!ER44 -> 0 | EP50: =Образование!ES44 -> 0 | EQ50: =Образование!ET44 -> 0 | ER50: =Образование!EU44 -> 0 | ES50: =Образование!EV44 -> 0 | ET50: =Образование!EW44 -> 0 | EU50: =Образование!EX44 -> 0 | EV50: =Образование!EY44 -> 0 | EW50: =Образование!EZ44 -> 0 | EX50: =Образование!FA44 -> 0 | EY50: =Образование!FB44 -> 0 | EZ50: =Образование!FC44 -> 0 | FA50: =Образование!FD44 -> 0 | FB50: =Образование!FE44 -> 0 | FC50: =Образование!FF44 -> 0 | FD50: =Образование!FG44 -> 0 | FE50: =Образование!FH44 -> 0 | FF50: =Образование!FI44 -> 0
A51: 1.33 | B51: ОБРАЗОВАНИЕ | C51: =Образование!F45 -> 0 | D51: =Образование!G45 -> 0 | E51: =Образование!H45 -> 0 | F51: =Образование!I45 -> 0 | G51: =Образование!J45 -> 0 | H51: =Образование!K45 -> 0 | I51: =Образование!L45 -> 0 | J51: =Образование!M45 -> 0 | K51: =Образование!N45 -> 0 | L51: =Образование!O45 -> 0 | M51: =Образование!P45 -> 0 | N51: =Образование!Q45 -> 0 | O51: =Образование!R45 -> 0 | P51: =Образование!S45 -> 0 | Q51: =Образование!T45 -> 0 | R51: =Образование!U45 -> 0 | S51: =Образование!V45 -> 0 | T51: =Образование!W45 -> 0 | U51: =Образование!X45 -> 0 | V51: =Образование!Y45 -> 0 | W51: =Образование!Z45 -> 0 | X51: =Образование!AA45 -> 0 | Y51: =Образование!AB45 -> 0 | Z51: =Образование!AC45 -> 0 | AA51: =Образование!AD45 -> 0 | AB51: =Образование!AE45 ->  | AC51: =Образование!AF45 -> 0 | AD51: =Образование!AG45 -> 0 | AE51: =Образование!AH45 -> 0 | AF51: =Образование!AI45 -> 0 | AG51: =Образование!AJ45 -> 0 | AH51: =Образование!AK45 -> 0 | AI51: =Образование!AL45 -> 0 | AJ51: =Образование!AM45 -> 0 | AK51: =Образование!AN45 -> 0 | AL51: =Образование!AO45 -> 0 | AM51: =Образование!AP45 -> 0 | AN51: =Образование!AQ45 -> 0 | AO51: =Образование!AR45 -> 0 | AP51: =Образование!AS45 -> 0 | AQ51: =Образование!AT45 -> 0 | AR51: =Образование!AU45 -> 0 | AS51: =Образование!AV45 -> 0 | AT51: =Образование!AW45 -> 0 | AU51: =Образование!AX45 -> 0 | AV51: =Образование!AY45 -> 0 | AW51: =Образование!AZ45 -> 0 | AX51: =Образование!BA45 -> 0 | AY51: =Образование!BB45 -> 0 | AZ51: =Образование!BC45 -> 0 | BA51: =Образование!BD45 -> 0 | BB51: =Образование!BE45 -> 0 | BC51: =Образование!BF45 -> 0 | BD51: =Образование!BG45 -> 0 | BE51: =Образование!BH45 -> 0 | BF51: =Образование!BI45 -> 0 | BG51: =Образование!BJ45 -> 0 | BH51: =Образование!BK45 -> 0 | BI51: =Образование!BL45 -> 0 | BJ51: =Образование!BM45 -> 0 | BK51: =Образование!BN45 -> 0 | BL51: =Образование!BO45 -> 0 | BM51: =Образование!BP45 -> 0 | BN51: =Образование!BQ45 -> 0 | BO51: =Образование!BR45 -> 0 | BP51: =Образование!BS45 -> 0 | BQ51: =Образование!BT45 -> 0 | BR51: =Образование!BU45 -> 0 | BS51: =Образование!BV45 -> 0 | BT51: =Образование!BW45 -> 0 | BU51: =Образование!BX45 -> 0 | BV51: =Образование!BY45 -> 0 | BW51: =Образование!BZ45 -> 0 | BX51: =Образование!CA45 -> 0 | BY51: =Образование!CB45 -> 0 | BZ51: =Образование!CC45 -> 0 | CA51: =Образование!CD45 -> 0 | CB51: =Образование!CE45 -> 0 | CC51: =Образование!CF45 -> 0 | CD51: =Образование!CG45 -> 0 | CE51: =Образование!CH45 -> 0 | CF51: =Образование!CI45 -> 0 | CG51: =Образование!CJ45 -> 0 | CH51: =Образование!CK45 -> 0 | CI51: =Образование!CL45 -> 0 | CJ51: =Образование!CM45 -> 0 | CK51: =Образование!CN45 -> 0 | CL51: =Образование!CO45 -> 0 | CM51: =Образование!CP45 -> 0 | CN51: =Образование!CQ45 -> 0 | CO51: =Образование!CR45 -> 0 | CP51: =Образование!CS45 -> 0 | CQ51: =Образование!CT45 -> 0 | CR51: =Образование!CU45 -> 0 | CS51: =Образование!CV45 -> 0 | CT51: =Образование!CW45 -> 0 | CU51: =Образование!CX45 -> 0 | CV51: =Образование!CY45 -> 0 | CW51: =Образование!CZ45 -> 0 | CX51: =Образование!DA45 -> 0 | CY51: =Образование!DB45 -> 0 | CZ51: =Образование!DC45 -> 0 | DA51: =Образование!DD45 -> 0 | DB51: =Образование!DE45 -> 0 | DC51: =Образование!DF45 -> 0 | DD51: =Образование!DG45 -> 0 | DE51: =Образование!DH45 -> 0 | DF51: =Образование!DI45 -> 0 | DG51: =Образование!DJ45 -> 0 | DH51: =Образование!DK45 -> 0 | DI51: =Образование!DL45 -> 0 | DJ51: =Образование!DM45 -> 0 | DK51: =Образование!DN45 -> 0 | DL51: =Образование!DO45 -> 0 | DM51: =Образование!DP45 -> 0 | DN51: =Образование!DQ45 -> 0 | DO51: =Образование!DR45 -> 0 | DP51: =Образование!DS45 -> 0 | DQ51: =Образование!DT45 -> 0 | DR51: =Образование!DU45 -> 0 | DS51: =Образование!DV45 -> 0 | DT51: =Образование!DW45 -> 0 | DU51: =Образование!DX45 -> 0 | DV51: =Образование!DY45 -> 0 | DW51: =Образование!DZ45 -> 0 | DX51: =Образование!EA45 -> 0 | DY51: =Образование!EB45 -> 0 | DZ51: =Образование!EC45 -> 0 | EA51: =Образование!ED45 -> 0 | EB51: =Образование!EE45 -> 0 | EC51: =Образование!EF45 -> 0 | ED51: =Образование!EG45 -> 0 | EE51: =Образование!EH45 -> 0 | EF51: =Образование!EI45 -> 0 | EG51: =Образование!EJ45 -> 0 | EH51: =Образование!EK45 -> 0 | EI51: =Образование!EL45 -> 0 | EJ51: =Образование!EM45 -> 0 | EK51: =Образование!EN45 -> 0 | EL51: =Образование!EO45 -> 0 | EM51: =Образование!EP45 -> 0 | EN51: =Образование!EQ45 -> 0 | EO51: =Образование!ER45 -> 0 | EP51: =Образование!ES45 -> 0 | EQ51: =Образование!ET45 -> 0 | ER51: =Образование!EU45 -> 0 | ES51: =Образование!EV45 -> 0 | ET51: =Образование!EW45 -> 0 | EU51: =Образование!EX45 -> 0 | EV51: =Образование!EY45 -> 0 | EW51: =Образование!EZ45 -> 0 | EX51: =Образование!FA45 -> 0 | EY51: =Образование!FB45 -> 0 | EZ51: =Образование!FC45 -> 0 | FA51: =Образование!FD45 -> 0 | FB51: =Образование!FE45 -> 0 | FC51: =Образование!FF45 -> 0 | FD51: =Образование!FG45 -> 0 | FE51: =Образование!FH45 -> 0 | FF51: =Образование!FI45 -> 0
A52: 1.34 | B52: ОБРАЗОВАНИЕ | C52: =Образование!F46 -> 0 | D52: =Образование!G46 -> 0 | E52: =Образование!H46 -> 0 | F52: =Образование!I46 -> 0 | G52: =Образование!J46 -> 0 | H52: =Образование!K46 -> 0 | I52: =Образование!L46 -> 0 | J52: =Образование!M46 -> 0 | K52: =Образование!N46 -> 0 | L52: =Образование!O46 -> 0 | M52: =Образование!P46 -> 0 | N52: =Образование!Q46 -> 0 | O52: =Образование!R46 -> 0 | P52: =Образование!S46 -> 0 | Q52: =Образование!T46 -> 0 | R52: =Образование!U46 -> 0 | S52: =Образование!V46 -> 0 | T52: =Образование!W46 -> 0 | U52: =Образование!X46 -> 0 | V52: =Образование!Y46 -> 0 | W52: =Образование!Z46 -> 0 | X52: =Образование!AA46 -> 0 | Y52: =Образование!AB46 -> 0 | Z52: =Образование!AC46 -> 0 | AA52: =Образование!AD46 -> 0 | AB52: =Образование!AE46 ->  | AC52: =Образование!AF46 -> 0 | AD52: =Образование!AG46 -> 0 | AE52: =Образование!AH46 -> 0 | AF52: =Образование!AI46 -> 0 | AG52: =Образование!AJ46 -> 0 | AH52: =Образование!AK46 -> 0 | AI52: =Образование!AL46 -> 0 | AJ52: =Образование!AM46 -> 0 | AK52: =Образование!AN46 -> 0 | AL52: =Образование!AO46 -> 0 | AM52: =Образование!AP46 -> 0 | AN52: =Образование!AQ46 -> 0 | AO52: =Образование!AR46 -> 0 | AP52: =Образование!AS46 -> 0 | AQ52: =Образование!AT46 -> 0 | AR52: =Образование!AU46 -> 0 | AS52: =Образование!AV46 -> 0 | AT52: =Образование!AW46 -> 0 | AU52: =Образование!AX46 -> 0 | AV52: =Образование!AY46 -> 0 | AW52: =Образование!AZ46 -> 0 | AX52: =Образование!BA46 -> 0 | AY52: =Образование!BB46 -> 0 | AZ52: =Образование!BC46 -> 0 | BA52: =Образование!BD46 -> 0 | BB52: =Образование!BE46 -> 0 | BC52: =Образование!BF46 -> 0 | BD52: =Образование!BG46 -> 0 | BE52: =Образование!BH46 -> 0 | BF52: =Образование!BI46 -> 0 | BG52: =Образование!BJ46 -> 0 | BH52: =Образование!BK46 -> 0 | BI52: =Образование!BL46 -> 0 | BJ52: =Образование!BM46 -> 0 | BK52: =Образование!BN46 -> 0 | BL52: =Образование!BO46 -> 0 | BM52: =Образование!BP46 -> 0 | BN52: =Образование!BQ46 -> 0 | BO52: =Образование!BR46 -> 0 | BP52: =Образование!BS46 -> 0 | BQ52: =Образование!BT46 -> 0 | BR52: =Образование!BU46 -> 0 | BS52: =Образование!BV46 -> 0 | BT52: =Образование!BW46 -> 0 | BU52: =Образование!BX46 -> 0 | BV52: =Образование!BY46 -> 0 | BW52: =Образование!BZ46 -> 0 | BX52: =Образование!CA46 -> 0 | BY52: =Образование!CB46 -> 0 | BZ52: =Образование!CC46 -> 0 | CA52: =Образование!CD46 -> 0 | CB52: =Образование!CE46 -> 0 | CC52: =Образование!CF46 -> 0 | CD52: =Образование!CG46 -> 0 | CE52: =Образование!CH46 -> 0 | CF52: =Образование!CI46 -> 0 | CG52: =Образование!CJ46 -> 0 | CH52: =Образование!CK46 -> 0 | CI52: =Образование!CL46 -> 0 | CJ52: =Образование!CM46 -> 0 | CK52: =Образование!CN46 -> 0 | CL52: =Образование!CO46 -> 0 | CM52: =Образование!CP46 -> 0 | CN52: =Образование!CQ46 -> 0 | CO52: =Образование!CR46 -> 0 | CP52: =Образование!CS46 -> 0 | CQ52: =Образование!CT46 -> 0 | CR52: =Образование!CU46 -> 0 | CS52: =Образование!CV46 -> 0 | CT52: =Образование!CW46 -> 0 | CU52: =Образование!CX46 -> 0 | CV52: =Образование!CY46 -> 0 | CW52: =Образование!CZ46 -> 0 | CX52: =Образование!DA46 -> 0 | CY52: =Образование!DB46 -> 0 | CZ52: =Образование!DC46 -> 0 | DA52: =Образование!DD46 -> 0 | DB52: =Образование!DE46 -> 0 | DC52: =Образование!DF46 -> 0 | DD52: =Образование!DG46 -> 0 | DE52: =Образование!DH46 -> 0 | DF52: =Образование!DI46 -> 0 | DG52: =Образование!DJ46 -> 0 | DH52: =Образование!DK46 -> 0 | DI52: =Образование!DL46 -> 0 | DJ52: =Образование!DM46 -> 0 | DK52: =Образование!DN46 -> 0 | DL52: =Образование!DO46 -> 0 | DM52: =Образование!DP46 -> 0 | DN52: =Образование!DQ46 -> 0 | DO52: =Образование!DR46 -> 0 | DP52: =Образование!DS46 -> 0 | DQ52: =Образование!DT46 -> 0 | DR52: =Образование!DU46 -> 0 | DS52: =Образование!DV46 -> 0 | DT52: =Образование!DW46 -> 0 | DU52: =Образование!DX46 -> 0 | DV52: =Образование!DY46 -> 0 | DW52: =Образование!DZ46 -> 0 | DX52: =Образование!EA46 -> 0 | DY52: =Образование!EB46 -> 0 | DZ52: =Образование!EC46 -> 0 | EA52: =Образование!ED46 -> 0 | EB52: =Образование!EE46 -> 0 | EC52: =Образование!EF46 -> 0 | ED52: =Образование!EG46 -> 0 | EE52: =Образование!EH46 -> 0 | EF52: =Образование!EI46 -> 0 | EG52: =Образование!EJ46 -> 0 | EH52: =Образование!EK46 -> 0 | EI52: =Образование!EL46 -> 0 | EJ52: =Образование!EM46 -> 0 | EK52: =Образование!EN46 -> 0 | EL52: =Образование!EO46 -> 0 | EM52: =Образование!EP46 -> 0 | EN52: =Образование!EQ46 -> 0 | EO52: =Образование!ER46 -> 0 | EP52: =Образование!ES46 -> 0 | EQ52: =Образование!ET46 -> 0 | ER52: =Образование!EU46 -> 0 | ES52: =Образование!EV46 -> 0 | ET52: =Образование!EW46 -> 0 | EU52: =Образование!EX46 -> 0 | EV52: =Образование!EY46 -> 0 | EW52: =Образование!EZ46 -> 0 | EX52: =Образование!FA46 -> 0 | EY52: =Образование!FB46 -> 0 | EZ52: =Образование!FC46 -> 0 | FA52: =Образование!FD46 -> 0 | FB52: =Образование!FE46 -> 0 | FC52: =Образование!FF46 -> 0 | FD52: =Образование!FG46 -> 0 | FE52: =Образование!FH46 -> 0 | FF52: =Образование!FI46 -> 0
A53: 1.35 | B53: ОБРАЗОВАНИЕ | C53: =Образование!F47 -> 0 | D53: =Образование!G47 -> 0 | E53: =Образование!H47 -> 0 | F53: =Образование!I47 -> 0 | G53: =Образование!J47 -> 0 | H53: =Образование!K47 -> 0 | I53: =Образование!L47 -> 0 | J53: =Образование!M47 -> 0 | K53: =Образование!N47 -> 0 | L53: =Образование!O47 -> 0 | M53: =Образование!P47 -> 0 | N53: =Образование!Q47 -> 0 | O53: =Образование!R47 -> 0 | P53: =Образование!S47 -> 0 | Q53: =Образование!T47 -> 0 | R53: =Образование!U47 -> 0 | S53: =Образование!V47 -> 0 | T53: =Образование!W47 -> 0 | U53: =Образование!X47 -> 0 | V53: =Образование!Y47 -> 0 | W53: =Образование!Z47 -> 0 | X53: =Образование!AA47 -> 0 | Y53: =Образование!AB47 -> 0 | Z53: =Образование!AC47 -> 0 | AA53: =Образование!AD47 -> 0 | AB53: =Образование!AE47 ->  | AC53: =Образование!AF47 -> 0 | AD53: =Образование!AG47 -> 0 | AE53: =Образование!AH47 -> 0 | AF53: =Образование!AI47 -> 0 | AG53: =Образование!AJ47 -> 0 | AH53: =Образование!AK47 -> 0 | AI53: =Образование!AL47 -> 0 | AJ53: =Образование!AM47 -> 0 | AK53: =Образование!AN47 -> 0 | AL53: =Образование!AO47 -> 0 | AM53: =Образование!AP47 -> 0 | AN53: =Образование!AQ47 -> 0 | AO53: =Образование!AR47 -> 0 | AP53: =Образование!AS47 -> 0 | AQ53: =Образование!AT47 -> 0 | AR53: =Образование!AU47 -> 0 | AS53: =Образование!AV47 -> 0 | AT53: =Образование!AW47 -> 0 | AU53: =Образование!AX47 -> 0 | AV53: =Образование!AY47 -> 0 | AW53: =Образование!AZ47 -> 0 | AX53: =Образование!BA47 -> 0 | AY53: =Образование!BB47 -> 0 | AZ53: =Образование!BC47 -> 0 | BA53: =Образование!BD47 -> 0 | BB53: =Образование!BE47 -> 0 | BC53: =Образование!BF47 -> 0 | BD53: =Образование!BG47 -> 0 | BE53: =Образование!BH47 -> 0 | BF53: =Образование!BI47 -> 0 | BG53: =Образование!BJ47 -> 0 | BH53: =Образование!BK47 -> 0 | BI53: =Образование!BL47 -> 0 | BJ53: =Образование!BM47 -> 0 | BK53: =Образование!BN47 -> 0 | BL53: =Образование!BO47 -> 0 | BM53: =Образование!BP47 -> 0 | BN53: =Образование!BQ47 -> 0 | BO53: =Образование!BR47 -> 0 | BP53: =Образование!BS47 -> 0 | BQ53: =Образование!BT47 -> 0 | BR53: =Образование!BU47 -> 0 | BS53: =Образование!BV47 -> 0 | BT53: =Образование!BW47 -> 0 | BU53: =Образование!BX47 -> 0 | BV53: =Образование!BY47 -> 0 | BW53: =Образование!BZ47 -> 0 | BX53: =Образование!CA47 -> 0 | BY53: =Образование!CB47 -> 0 | BZ53: =Образование!CC47 -> 0 | CA53: =Образование!CD47 -> 0 | CB53: =Образование!CE47 -> 0 | CC53: =Образование!CF47 -> 0 | CD53: =Образование!CG47 -> 0 | CE53: =Образование!CH47 -> 0 | CF53: =Образование!CI47 -> 0 | CG53: =Образование!CJ47 -> 0 | CH53: =Образование!CK47 -> 0 | CI53: =Образование!CL47 -> 0 | CJ53: =Образование!CM47 -> 0 | CK53: =Образование!CN47 -> 0 | CL53: =Образование!CO47 -> 0 | CM53: =Образование!CP47 -> 0 | CN53: =Образование!CQ47 -> 0 | CO53: =Образование!CR47 -> 0 | CP53: =Образование!CS47 -> 0 | CQ53: =Образование!CT47 -> 0 | CR53: =Образование!CU47 -> 0 | CS53: =Образование!CV47 -> 0 | CT53: =Образование!CW47 -> 0 | CU53: =Образование!CX47 -> 0 | CV53: =Образование!CY47 -> 0 | CW53: =Образование!CZ47 -> 0 | CX53: =Образование!DA47 -> 0 | CY53: =Образование!DB47 -> 0 | CZ53: =Образование!DC47 -> 0 | DA53: =Образование!DD47 -> 0 | DB53: =Образование!DE47 -> 0 | DC53: =Образование!DF47 -> 0 | DD53: =Образование!DG47 -> 0 | DE53: =Образование!DH47 -> 0 | DF53: =Образование!DI47 -> 0 | DG53: =Образование!DJ47 -> 0 | DH53: =Образование!DK47 -> 0 | DI53: =Образование!DL47 -> 0 | DJ53: =Образование!DM47 -> 0 | DK53: =Образование!DN47 -> 0 | DL53: =Образование!DO47 -> 0 | DM53: =Образование!DP47 -> 0 | DN53: =Образование!DQ47 -> 0 | DO53: =Образование!DR47 -> 0 | DP53: =Образование!DS47 -> 0 | DQ53: =Образование!DT47 -> 0 | DR53: =Образование!DU47 -> 0 | DS53: =Образование!DV47 -> 0 | DT53: =Образование!DW47 -> 0 | DU53: =Образование!DX47 -> 0 | DV53: =Образование!DY47 -> 0 | DW53: =Образование!DZ47 -> 0 | DX53: =Образование!EA47 -> 0 | DY53: =Образование!EB47 -> 0 | DZ53: =Образование!EC47 -> 0 | EA53: =Образование!ED47 -> 0 | EB53: =Образование!EE47 -> 0 | EC53: =Образование!EF47 -> 0 | ED53: =Образование!EG47 -> 0 | EE53: =Образование!EH47 -> 0 | EF53: =Образование!EI47 -> 0 | EG53: =Образование!EJ47 -> 0 | EH53: =Образование!EK47 -> 0 | EI53: =Образование!EL47 -> 0 | EJ53: =Образование!EM47 -> 0 | EK53: =Образование!EN47 -> 0 | EL53: =Образование!EO47 -> 0 | EM53: =Образование!EP47 -> 0 | EN53: =Образование!EQ47 -> 0 | EO53: =Образование!ER47 -> 0 | EP53: =Образование!ES47 -> 0 | EQ53: =Образование!ET47 -> 0 | ER53: =Образование!EU47 -> 0 | ES53: =Образование!EV47 -> 0 | ET53: =Образование!EW47 -> 0 | EU53: =Образование!EX47 -> 0 | EV53: =Образование!EY47 -> 0 | EW53: =Образование!EZ47 -> 0 | EX53: =Образование!FA47 -> 0 | EY53: =Образование!FB47 -> 0 | EZ53: =Образование!FC47 -> 0 | FA53: =Образование!FD47 -> 0 | FB53: =Образование!FE47 -> 0 | FC53: =Образование!FF47 -> 0 | FD53: =Образование!FG47 -> 0 | FE53: =Образование!FH47 -> 0 | FF53: =Образование!FI47 -> 0
A54: 1.36 | B54: ОБРАЗОВАНИЕ | C54: =Образование!F48 -> 0 | D54: =Образование!G48 -> 0 | E54: =Образование!H48 -> 0 | F54: =Образование!I48 -> 0 | G54: =Образование!J48 -> 0 | H54: =Образование!K48 -> 0 | I54: =Образование!L48 -> 0 | J54: =Образование!M48 -> 0 | K54: =Образование!N48 -> 0 | L54: =Образование!O48 -> 0 | M54: =Образование!P48 -> 0 | N54: =Образование!Q48 -> 0 | O54: =Образование!R48 -> 0 | P54: =Образование!S48 -> 0 | Q54: =Образование!T48 -> 0 | R54: =Образование!U48 -> 0 | S54: =Образование!V48 -> 0 | T54: =Образование!W48 -> 0 | U54: =Образование!X48 -> 0 | V54: =Образование!Y48 -> 0 | W54: =Образование!Z48 -> 0 | X54: =Образование!AA48 -> 0 | Y54: =Образование!AB48 -> 0 | Z54: =Образование!AC48 -> 0 | AA54: =Образование!AD48 -> 0 | AB54: =Образование!AE48 ->  | AC54: =Образование!AF48 -> 0 | AD54: =Образование!AG48 -> 0 | AE54: =Образование!AH48 -> 0 | AF54: =Образование!AI48 -> 0 | AG54: =Образование!AJ48 -> 0 | AH54: =Образование!AK48 -> 0 | AI54: =Образование!AL48 -> 0 | AJ54: =Образование!AM48 -> 0 | AK54: =Образование!AN48 -> 0 | AL54: =Образование!AO48 -> 0 | AM54: =Образование!AP48 -> 0 | AN54: =Образование!AQ48 -> 0 | AO54: =Образование!AR48 -> 0 | AP54: =Образование!AS48 -> 0 | AQ54: =Образование!AT48 -> 0 | AR54: =Образование!AU48 -> 0 | AS54: =Образование!AV48 -> 0 | AT54: =Образование!AW48 -> 0 | AU54: =Образование!AX48 -> 0 | AV54: =Образование!AY48 -> 0 | AW54: =Образование!AZ48 -> 0 | AX54: =Образование!BA48 -> 0 | AY54: =Образование!BB48 -> 0 | AZ54: =Образование!BC48 -> 0 | BA54: =Образование!BD48 -> 0 | BB54: =Образование!BE48 -> 0 | BC54: =Образование!BF48 -> 0 | BD54: =Образование!BG48 -> 0 | BE54: =Образование!BH48 -> 0 | BF54: =Образование!BI48 -> 0 | BG54: =Образование!BJ48 -> 0 | BH54: =Образование!BK48 -> 0 | BI54: =Образование!BL48 -> 0 | BJ54: =Образование!BM48 -> 0 | BK54: =Образование!BN48 -> 0 | BL54: =Образование!BO48 -> 0 | BM54: =Образование!BP48 -> 0 | BN54: =Образование!BQ48 -> 0 | BO54: =Образование!BR48 -> 0 | BP54: =Образование!BS48 -> 0 | BQ54: =Образование!BT48 -> 0 | BR54: =Образование!BU48 -> 0 | BS54: =Образование!BV48 -> 0 | BT54: =Образование!BW48 -> 0 | BU54: =Образование!BX48 -> 0 | BV54: =Образование!BY48 -> 0 | BW54: =Образование!BZ48 -> 0 | BX54: =Образование!CA48 -> 0 | BY54: =Образование!CB48 -> 0 | BZ54: =Образование!CC48 -> 0 | CA54: =Образование!CD48 -> 0 | CB54: =Образование!CE48 -> 0 | CC54: =Образование!CF48 -> 0 | CD54: =Образование!CG48 -> 0 | CE54: =Образование!CH48 -> 0 | CF54: =Образование!CI48 -> 0 | CG54: =Образование!CJ48 -> 0 | CH54: =Образование!CK48 -> 0 | CI54: =Образование!CL48 -> 0 | CJ54: =Образование!CM48 -> 0 | CK54: =Образование!CN48 -> 0 | CL54: =Образование!CO48 -> 0 | CM54: =Образование!CP48 -> 0 | CN54: =Образование!CQ48 -> 0 | CO54: =Образование!CR48 -> 0 | CP54: =Образование!CS48 -> 0 | CQ54: =Образование!CT48 -> 0 | CR54: =Образование!CU48 -> 0 | CS54: =Образование!CV48 -> 0 | CT54: =Образование!CW48 -> 0 | CU54: =Образование!CX48 -> 0 | CV54: =Образование!CY48 -> 0 | CW54: =Образование!CZ48 -> 0 | CX54: =Образование!DA48 -> 0 | CY54: =Образование!DB48 -> 0 | CZ54: =Образование!DC48 -> 0 | DA54: =Образование!DD48 -> 0 | DB54: =Образование!DE48 -> 0 | DC54: =Образование!DF48 -> 0 | DD54: =Образование!DG48 -> 0 | DE54: =Образование!DH48 -> 0 | DF54: =Образование!DI48 -> 0 | DG54: =Образование!DJ48 -> 0 | DH54: =Образование!DK48 -> 0 | DI54: =Образование!DL48 -> 0 | DJ54: =Образование!DM48 -> 0 | DK54: =Образование!DN48 -> 0 | DL54: =Образование!DO48 -> 0 | DM54: =Образование!DP48 -> 0 | DN54: =Образование!DQ48 -> 0 | DO54: =Образование!DR48 -> 0 | DP54: =Образование!DS48 -> 0 | DQ54: =Образование!DT48 -> 0 | DR54: =Образование!DU48 -> 0 | DS54: =Образование!DV48 -> 0 | DT54: =Образование!DW48 -> 0 | DU54: =Образование!DX48 -> 0 | DV54: =Образование!DY48 -> 0 | DW54: =Образование!DZ48 -> 0 | DX54: =Образование!EA48 -> 0 | DY54: =Образование!EB48 -> 0 | DZ54: =Образование!EC48 -> 0 | EA54: =Образование!ED48 -> 0 | EB54: =Образование!EE48 -> 0 | EC54: =Образование!EF48 -> 0 | ED54: =Образование!EG48 -> 0 | EE54: =Образование!EH48 -> 0 | EF54: =Образование!EI48 -> 0 | EG54: =Образование!EJ48 -> 0 | EH54: =Образование!EK48 -> 0 | EI54: =Образование!EL48 -> 0 | EJ54: =Образование!EM48 -> 0 | EK54: =Образование!EN48 -> 0 | EL54: =Образование!EO48 -> 0 | EM54: =Образование!EP48 -> 0 | EN54: =Образование!EQ48 -> 0 | EO54: =Образование!ER48 -> 0 | EP54: =Образование!ES48 -> 0 | EQ54: =Образование!ET48 -> 0 | ER54: =Образование!EU48 -> 0 | ES54: =Образование!EV48 -> 0 | ET54: =Образование!EW48 -> 0 | EU54: =Образование!EX48 -> 0 | EV54: =Образование!EY48 -> 0 | EW54: =Образование!EZ48 -> 0 | EX54: =Образование!FA48 -> 0 | EY54: =Образование!FB48 -> 0 | EZ54: =Образование!FC48 -> 0 | FA54: =Образование!FD48 -> 0 | FB54: =Образование!FE48 -> 0 | FC54: =Образование!FF48 -> 0 | FD54: =Образование!FG48 -> 0 | FE54: =Образование!FH48 -> 0 | FF54: =Образование!FI48 -> 0
A55: 1.37 | B55: ОБРАЗОВАНИЕ | C55: =Образование!F49 -> 0 | D55: =Образование!G49 -> 0 | E55: =Образование!H49 -> 0 | F55: =Образование!I49 -> 0 | G55: =Образование!J49 -> 0 | H55: =Образование!K49 -> 0 | I55: =Образование!L49 -> 0 | J55: =Образование!M49 -> 0 | K55: =Образование!N49 -> 0 | L55: =Образование!O49 -> 0 | M55: =Образование!P49 -> 0 | N55: =Образование!Q49 -> 0 | O55: =Образование!R49 -> 0 | P55: =Образование!S49 -> 0 | Q55: =Образование!T49 -> 0 | R55: =Образование!U49 -> 0 | S55: =Образование!V49 -> 0 | T55: =Образование!W49 -> 0 | U55: =Образование!X49 -> 0 | V55: =Образование!Y49 -> 0 | W55: =Образование!Z49 -> 0 | X55: =Образование!AA49 -> 0 | Y55: =Образование!AB49 -> 0 | Z55: =Образование!AC49 -> 0 | AA55: =Образование!AD49 -> 0 | AB55: =Образование!AE49 ->  | AC55: =Образование!AF49 -> 0 | AD55: =Образование!AG49 -> 0 | AE55: =Образование!AH49 -> 0 | AF55: =Образование!AI49 -> 0 | AG55: =Образование!AJ49 -> 0 | AH55: =Образование!AK49 -> 0 | AI55: =Образование!AL49 -> 0 | AJ55: =Образование!AM49 -> 0 | AK55: =Образование!AN49 -> 0 | AL55: =Образование!AO49 -> 0 | AM55: =Образование!AP49 -> 0 | AN55: =Образование!AQ49 -> 0 | AO55: =Образование!AR49 -> 0 | AP55: =Образование!AS49 -> 0 | AQ55: =Образование!AT49 -> 0 | AR55: =Образование!AU49 -> 0 | AS55: =Образование!AV49 -> 0 | AT55: =Образование!AW49 -> 0 | AU55: =Образование!AX49 -> 0 | AV55: =Образование!AY49 -> 0 | AW55: =Образование!AZ49 -> 0 | AX55: =Образование!BA49 -> 0 | AY55: =Образование!BB49 -> 0 | AZ55: =Образование!BC49 -> 0 | BA55: =Образование!BD49 -> 0 | BB55: =Образование!BE49 -> 0 | BC55: =Образование!BF49 -> 0 | BD55: =Образование!BG49 -> 0 | BE55: =Образование!BH49 -> 0 | BF55: =Образование!BI49 -> 0 | BG55: =Образование!BJ49 -> 0 | BH55: =Образование!BK49 -> 0 | BI55: =Образование!BL49 -> 0 | BJ55: =Образование!BM49 -> 0 | BK55: =Образование!BN49 -> 0 | BL55: =Образование!BO49 -> 0 | BM55: =Образование!BP49 -> 0 | BN55: =Образование!BQ49 -> 0 | BO55: =Образование!BR49 -> 0 | BP55: =Образование!BS49 -> 0 | BQ55: =Образование!BT49 -> 0 | BR55: =Образование!BU49 -> 0 | BS55: =Образование!BV49 -> 0 | BT55: =Образование!BW49 -> 0 | BU55: =Образование!BX49 -> 0 | BV55: =Образование!BY49 -> 0 | BW55: =Образование!BZ49 -> 0 | BX55: =Образование!CA49 -> 0 | BY55: =Образование!CB49 -> 0 | BZ55: =Образование!CC49 -> 0 | CA55: =Образование!CD49 -> 0 | CB55: =Образование!CE49 -> 0 | CC55: =Образование!CF49 -> 0 | CD55: =Образование!CG49 -> 0 | CE55: =Образование!CH49 -> 0 | CF55: =Образование!CI49 -> 0 | CG55: =Образование!CJ49 -> 0 | CH55: =Образование!CK49 -> 0 | CI55: =Образование!CL49 -> 0 | CJ55: =Образование!CM49 -> 0 | CK55: =Образование!CN49 -> 0 | CL55: =Образование!CO49 -> 0 | CM55: =Образование!CP49 -> 0 | CN55: =Образование!CQ49 -> 0 | CO55: =Образование!CR49 -> 0 | CP55: =Образование!CS49 -> 0 | CQ55: =Образование!CT49 -> 0 | CR55: =Образование!CU49 -> 0 | CS55: =Образование!CV49 -> 0 | CT55: =Образование!CW49 -> 0 | CU55: =Образование!CX49 -> 0 | CV55: =Образование!CY49 -> 0 | CW55: =Образование!CZ49 -> 0 | CX55: =Образование!DA49 -> 0 | CY55: =Образование!DB49 -> 0 | CZ55: =Образование!DC49 -> 0 | DA55: =Образование!DD49 -> 0 | DB55: =Образование!DE49 -> 0 | DC55: =Образование!DF49 -> 0 | DD55: =Образование!DG49 -> 0 | DE55: =Образование!DH49 -> 0 | DF55: =Образование!DI49 -> 0 | DG55: =Образование!DJ49 -> 0 | DH55: =Образование!DK49 -> 0 | DI55: =Образование!DL49 -> 0 | DJ55: =Образование!DM49 -> 0 | DK55: =Образование!DN49 -> 0 | DL55: =Образование!DO49 -> 0 | DM55: =Образование!DP49 -> 0 | DN55: =Образование!DQ49 -> 0 | DO55: =Образование!DR49 -> 0 | DP55: =Образование!DS49 -> 0 | DQ55: =Образование!DT49 -> 0 | DR55: =Образование!DU49 -> 0 | DS55: =Образование!DV49 -> 0 | DT55: =Образование!DW49 -> 0 | DU55: =Образование!DX49 -> 0 | DV55: =Образование!DY49 -> 0 | DW55: =Образование!DZ49 -> 0 | DX55: =Образование!EA49 -> 0 | DY55: =Образование!EB49 -> 0 | DZ55: =Образование!EC49 -> 0 | EA55: =Образование!ED49 -> 0 | EB55: =Образование!EE49 -> 0 | EC55: =Образование!EF49 -> 0 | ED55: =Образование!EG49 -> 0 | EE55: =Образование!EH49 -> 0 | EF55: =Образование!EI49 -> 0 | EG55: =Образование!EJ49 -> 0 | EH55: =Образование!EK49 -> 0 | EI55: =Образование!EL49 -> 0 | EJ55: =Образование!EM49 -> 0 | EK55: =Образование!EN49 -> 0 | EL55: =Образование!EO49 -> 0 | EM55: =Образование!EP49 -> 0 | EN55: =Образование!EQ49 -> 0 | EO55: =Образование!ER49 -> 0 | EP55: =Образование!ES49 -> 0 | EQ55: =Образование!ET49 -> 0 | ER55: =Образование!EU49 -> 0 | ES55: =Образование!EV49 -> 0 | ET55: =Образование!EW49 -> 0 | EU55: =Образование!EX49 -> 0 | EV55: =Образование!EY49 -> 0 | EW55: =Образование!EZ49 -> 0 | EX55: =Образование!FA49 -> 0 | EY55: =Образование!FB49 -> 0 | EZ55: =Образование!FC49 -> 0 | FA55: =Образование!FD49 -> 0 | FB55: =Образование!FE49 -> 0 | FC55: =Образование!FF49 -> 0 | FD55: =Образование!FG49 -> 0 | FE55: =Образование!FH49 -> 0 | FF55: =Образование!FI49 -> 0
A56: 1.38 | B56: ОБРАЗОВАНИЕ | C56: =Образование!F50 -> 0 | D56: =Образование!G50 -> 0 | E56: =Образование!H50 -> 0 | F56: =Образование!I50 -> 0 | G56: =Образование!J50 -> 0 | H56: =Образование!K50 -> 0 | I56: =Образование!L50 -> 0 | J56: =Образование!M50 -> 0 | K56: =Образование!N50 -> 0 | L56: =Образование!O50 -> 0 | M56: =Образование!P50 -> 0 | N56: =Образование!Q50 -> 0 | O56: =Образование!R50 -> 0 | P56: =Образование!S50 -> 0 | Q56: =Образование!T50 -> 0 | R56: =Образование!U50 -> 0 | S56: =Образование!V50 -> 0 | T56: =Образование!W50 -> 0 | U56: =Образование!X50 -> 0 | V56: =Образование!Y50 -> 0 | W56: =Образование!Z50 -> 0 | X56: =Образование!AA50 -> 0 | Y56: =Образование!AB50 -> 0 | Z56: =Образование!AC50 -> 0 | AA56: =Образование!AD50 -> 0 | AB56: =Образование!AE50 ->  | AC56: =Образование!AF50 -> 0 | AD56: =Образование!AG50 -> 0 | AE56: =Образование!AH50 -> 0 | AF56: =Образование!AI50 -> 0 | AG56: =Образование!AJ50 -> 0 | AH56: =Образование!AK50 -> 0 | AI56: =Образование!AL50 -> 0 | AJ56: =Образование!AM50 -> 0 | AK56: =Образование!AN50 -> 0 | AL56: =Образование!AO50 -> 0 | AM56: =Образование!AP50 -> 0 | AN56: =Образование!AQ50 -> 0 | AO56: =Образование!AR50 -> 0 | AP56: =Образование!AS50 -> 0 | AQ56: =Образование!AT50 -> 0 | AR56: =Образование!AU50 -> 0 | AS56: =Образование!AV50 -> 0 | AT56: =Образование!AW50 -> 0 | AU56: =Образование!AX50 -> 0 | AV56: =Образование!AY50 -> 0 | AW56: =Образование!AZ50 -> 0 | AX56: =Образование!BA50 -> 0 | AY56: =Образование!BB50 -> 0 | AZ56: =Образование!BC50 -> 0 | BA56: =Образование!BD50 -> 0 | BB56: =Образование!BE50 -> 0 | BC56: =Образование!BF50 -> 0 | BD56: =Образование!BG50 -> 0 | BE56: =Образование!BH50 -> 0 | BF56: =Образование!BI50 -> 0 | BG56: =Образование!BJ50 -> 0 | BH56: =Образование!BK50 -> 0 | BI56: =Образование!BL50 -> 0 | BJ56: =Образование!BM50 -> 0 | BK56: =Образование!BN50 -> 0 | BL56: =Образование!BO50 -> 0 | BM56: =Образование!BP50 -> 0 | BN56: =Образование!BQ50 -> 0 | BO56: =Образование!BR50 -> 0 | BP56: =Образование!BS50 -> 0 | BQ56: =Образование!BT50 -> 0 | BR56: =Образование!BU50 -> 0 | BS56: =Образование!BV50 -> 0 | BT56: =Образование!BW50 -> 0 | BU56: =Образование!BX50 -> 0 | BV56: =Образование!BY50 -> 0 | BW56: =Образование!BZ50 -> 0 | BX56: =Образование!CA50 -> 0 | BY56: =Образование!CB50 -> 0 | BZ56: =Образование!CC50 -> 0 | CA56: =Образование!CD50 -> 0 | CB56: =Образование!CE50 -> 0 | CC56: =Образование!CF50 -> 0 | CD56: =Образование!CG50 -> 0 | CE56: =Образование!CH50 -> 0 | CF56: =Образование!CI50 -> 0 | CG56: =Образование!CJ50 -> 0 | CH56: =Образование!CK50 -> 0 | CI56: =Образование!CL50 -> 0 | CJ56: =Образование!CM50 -> 0 | CK56: =Образование!CN50 -> 0 | CL56: =Образование!CO50 -> 0 | CM56: =Образование!CP50 -> 0 | CN56: =Образование!CQ50 -> 0 | CO56: =Образование!CR50 -> 0 | CP56: =Образование!CS50 -> 0 | CQ56: =Образование!CT50 -> 0 | CR56: =Образование!CU50 -> 0 | CS56: =Образование!CV50 -> 0 | CT56: =Образование!CW50 -> 0 | CU56: =Образование!CX50 -> 0 | CV56: =Образование!CY50 -> 0 | CW56: =Образование!CZ50 -> 0 | CX56: =Образование!DA50 -> 0 | CY56: =Образование!DB50 -> 0 | CZ56: =Образование!DC50 -> 0 | DA56: =Образование!DD50 -> 0 | DB56: =Образование!DE50 -> 0 | DC56: =Образование!DF50 -> 0 | DD56: =Образование!DG50 -> 0 | DE56: =Образование!DH50 -> 0 | DF56: =Образование!DI50 -> 0 | DG56: =Образование!DJ50 -> 0 | DH56: =Образование!DK50 -> 0 | DI56: =Образование!DL50 -> 0 | DJ56: =Образование!DM50 -> 0 | DK56: =Образование!DN50 -> 0 | DL56: =Образование!DO50 -> 0 | DM56: =Образование!DP50 -> 0 | DN56: =Образование!DQ50 -> 0 | DO56: =Образование!DR50 -> 0 | DP56: =Образование!DS50 -> 0 | DQ56: =Образование!DT50 -> 0 | DR56: =Образование!DU50 -> 0 | DS56: =Образование!DV50 -> 0 | DT56: =Образование!DW50 -> 0 | DU56: =Образование!DX50 -> 0 | DV56: =Образование!DY50 -> 0 | DW56: =Образование!DZ50 -> 0 | DX56: =Образование!EA50 -> 0 | DY56: =Образование!EB50 -> 0 | DZ56: =Образование!EC50 -> 0 | EA56: =Образование!ED50 -> 0 | EB56: =Образование!EE50 -> 0 | EC56: =Образование!EF50 -> 0 | ED56: =Образование!EG50 -> 0 | EE56: =Образование!EH50 -> 0 | EF56: =Образование!EI50 -> 0 | EG56: =Образование!EJ50 -> 0 | EH56: =Образование!EK50 -> 0 | EI56: =Образование!EL50 -> 0 | EJ56: =Образование!EM50 -> 0 | EK56: =Образование!EN50 -> 0 | EL56: =Образование!EO50 -> 0 | EM56: =Образование!EP50 -> 0 | EN56: =Образование!EQ50 -> 0 | EO56: =Образование!ER50 -> 0 | EP56: =Образование!ES50 -> 0 | EQ56: =Образование!ET50 -> 0 | ER56: =Образование!EU50 -> 0 | ES56: =Образование!EV50 -> 0 | ET56: =Образование!EW50 -> 0 | EU56: =Образование!EX50 -> 0 | EV56: =Образование!EY50 -> 0 | EW56: =Образование!EZ50 -> 0 | EX56: =Образование!FA50 -> 0 | EY56: =Образование!FB50 -> 0 | EZ56: =Образование!FC50 -> 0 | FA56: =Образование!FD50 -> 0 | FB56: =Образование!FE50 -> 0 | FC56: =Образование!FF50 -> 0 | FD56: =Образование!FG50 -> 0 | FE56: =Образование!FH50 -> 0 | FF56: =Образование!FI50 -> 0
A57: 1.39 | B57: ОБРАЗОВАНИЕ | C57: =Образование!F51 -> 0 | D57: =Образование!G51 -> 0 | E57: =Образование!H51 -> 0 | F57: =Образование!I51 -> 0 | G57: =Образование!J51 -> 0 | H57: =Образование!K51 -> 0 | I57: =Образование!L51 -> 0 | J57: =Образование!M51 -> 0 | K57: =Образование!N51 -> 0 | L57: =Образование!O51 -> 0 | M57: =Образование!P51 -> 0 | N57: =Образование!Q51 -> 0 | O57: =Образование!R51 -> 0 | P57: =Образование!S51 -> 0 | Q57: =Образование!T51 -> 0 | R57: =Образование!U51 -> 0 | S57: =Образование!V51 -> 0 | T57: =Образование!W51 -> 0 | U57: =Образование!X51 -> 0 | V57: =Образование!Y51 -> 0 | W57: =Образование!Z51 -> 0 | X57: =Образование!AA51 -> 0 | Y57: =Образование!AB51 -> 0 | Z57: =Образование!AC51 -> 0 | AA57: =Образование!AD51 -> 0 | AB57: =Образование!AE51 ->  | AC57: =Образование!AF51 -> 0 | AD57: =Образование!AG51 -> 0 | AE57: =Образование!AH51 -> 0 | AF57: =Образование!AI51 -> 0 | AG57: =Образование!AJ51 -> 0 | AH57: =Образование!AK51 -> 0 | AI57: =Образование!AL51 -> 0 | AJ57: =Образование!AM51 -> 0 | AK57: =Образование!AN51 -> 0 | AL57: =Образование!AO51 -> 0 | AM57: =Образование!AP51 -> 0 | AN57: =Образование!AQ51 -> 0 | AO57: =Образование!AR51 -> 0 | AP57: =Образование!AS51 -> 0 | AQ57: =Образование!AT51 -> 0 | AR57: =Образование!AU51 -> 0 | AS57: =Образование!AV51 -> 0 | AT57: =Образование!AW51 -> 0 | AU57: =Образование!AX51 -> 0 | AV57: =Образование!AY51 -> 0 | AW57: =Образование!AZ51 -> 0 | AX57: =Образование!BA51 -> 0 | AY57: =Образование!BB51 -> 0 | AZ57: =Образование!BC51 -> 0 | BA57: =Образование!BD51 -> 0 | BB57: =Образование!BE51 -> 0 | BC57: =Образование!BF51 -> 0 | BD57: =Образование!BG51 -> 0 | BE57: =Образование!BH51 -> 0 | BF57: =Образование!BI51 -> 0 | BG57: =Образование!BJ51 -> 0 | BH57: =Образование!BK51 -> 0 | BI57: =Образование!BL51 -> 0 | BJ57: =Образование!BM51 -> 0 | BK57: =Образование!BN51 -> 0 | BL57: =Образование!BO51 -> 0 | BM57: =Образование!BP51 -> 0 | BN57: =Образование!BQ51 -> 0 | BO57: =Образование!BR51 -> 0 | BP57: =Образование!BS51 -> 0 | BQ57: =Образование!BT51 -> 0 | BR57: =Образование!BU51 -> 0 | BS57: =Образование!BV51 -> 0 | BT57: =Образование!BW51 -> 0 | BU57: =Образование!BX51 -> 0 | BV57: =Образование!BY51 -> 0 | BW57: =Образование!BZ51 -> 0 | BX57: =Образование!CA51 -> 0 | BY57: =Образование!CB51 -> 0 | BZ57: =Образование!CC51 -> 0 | CA57: =Образование!CD51 -> 0 | CB57: =Образование!CE51 -> 0 | CC57: =Образование!CF51 -> 0 | CD57: =Образование!CG51 -> 0 | CE57: =Образование!CH51 -> 0 | CF57: =Образование!CI51 -> 0 | CG57: =Образование!CJ51 -> 0 | CH57: =Образование!CK51 -> 0 | CI57: =Образование!CL51 -> 0 | CJ57: =Образование!CM51 -> 0 | CK57: =Образование!CN51 -> 0 | CL57: =Образование!CO51 -> 0 | CM57: =Образование!CP51 -> 0 | CN57: =Образование!CQ51 -> 0 | CO57: =Образование!CR51 -> 0 | CP57: =Образование!CS51 -> 0 | CQ57: =Образование!CT51 -> 0 | CR57: =Образование!CU51 -> 0 | CS57: =Образование!CV51 -> 0 | CT57: =Образование!CW51 -> 0 | CU57: =Образование!CX51 -> 0 | CV57: =Образование!CY51 -> 0 | CW57: =Образование!CZ51 -> 0 | CX57: =Образование!DA51 -> 0 | CY57: =Образование!DB51 -> 0 | CZ57: =Образование!DC51 -> 0 | DA57: =Образование!DD51 -> 0 | DB57: =Образование!DE51 -> 0 | DC57: =Образование!DF51 -> 0 | DD57: =Образование!DG51 -> 0 | DE57: =Образование!DH51 -> 0 | DF57: =Образование!DI51 -> 0 | DG57: =Образование!DJ51 -> 0 | DH57: =Образование!DK51 -> 0 | DI57: =Образование!DL51 -> 0 | DJ57: =Образование!DM51 -> 0 | DK57: =Образование!DN51 -> 0 | DL57: =Образование!DO51 -> 0 | DM57: =Образование!DP51 -> 0 | DN57: =Образование!DQ51 -> 0 | DO57: =Образование!DR51 -> 0 | DP57: =Образование!DS51 -> 0 | DQ57: =Образование!DT51 -> 0 | DR57: =Образование!DU51 -> 0 | DS57: =Образование!DV51 -> 0 | DT57: =Образование!DW51 -> 0 | DU57: =Образование!DX51 -> 0 | DV57: =Образование!DY51 -> 0 | DW57: =Образование!DZ51 -> 0 | DX57: =Образование!EA51 -> 0 | DY57: =Образование!EB51 -> 0 | DZ57: =Образование!EC51 -> 0 | EA57: =Образование!ED51 -> 0 | EB57: =Образование!EE51 -> 0 | EC57: =Образование!EF51 -> 0 | ED57: =Образование!EG51 -> 0 | EE57: =Образование!EH51 -> 0 | EF57: =Образование!EI51 -> 0 | EG57: =Образование!EJ51 -> 0 | EH57: =Образование!EK51 -> 0 | EI57: =Образование!EL51 -> 0 | EJ57: =Образование!EM51 -> 0 | EK57: =Образование!EN51 -> 0 | EL57: =Образование!EO51 -> 0 | EM57: =Образование!EP51 -> 0 | EN57: =Образование!EQ51 -> 0 | EO57: =Образование!ER51 -> 0 | EP57: =Образование!ES51 -> 0 | EQ57: =Образование!ET51 -> 0 | ER57: =Образование!EU51 -> 0 | ES57: =Образование!EV51 -> 0 | ET57: =Образование!EW51 -> 0 | EU57: =Образование!EX51 -> 0 | EV57: =Образование!EY51 -> 0 | EW57: =Образование!EZ51 -> 0 | EX57: =Образование!FA51 -> 0 | EY57: =Образование!FB51 -> 0 | EZ57: =Образование!FC51 -> 0 | FA57: =Образование!FD51 -> 0 | FB57: =Образование!FE51 -> 0 | FC57: =Образование!FF51 -> 0 | FD57: =Образование!FG51 -> 0 | FE57: =Образование!FH51 -> 0 | FF57: =Образование!FI51 -> 0
A58: 1.40 | B58: ОБРАЗОВАНИЕ | C58: =Образование!F52 -> 0 | D58: =Образование!G52 -> 0 | E58: =Образование!H52 -> 0 | F58: =Образование!I52 -> 0 | G58: =Образование!J52 -> 0 | H58: =Образование!K52 -> 0 | I58: =Образование!L52 -> 0 | J58: =Образование!M52 -> 0 | K58: =Образование!N52 -> 0 | L58: =Образование!O52 -> 0 | M58: =Образование!P52 -> 0 | N58: =Образование!Q52 -> 0 | O58: =Образование!R52 -> 0 | P58: =Образование!S52 -> 0 | Q58: =Образование!T52 -> 0 | R58: =Образование!U52 -> 0 | S58: =Образование!V52 -> 0 | T58: =Образование!W52 -> 0 | U58: =Образование!X52 -> 0 | V58: =Образование!Y52 -> 0 | W58: =Образование!Z52 -> 0 | X58: =Образование!AA52 -> 0 | Y58: =Образование!AB52 -> 0 | Z58: =Образование!AC52 -> 0 | AA58: =Образование!AD52 -> 0 | AB58: =Образование!AE52 ->  | AC58: =Образование!AF52 -> 0 | AD58: =Образование!AG52 -> 0 | AE58: =Образование!AH52 -> 0 | AF58: =Образование!AI52 -> 0 | AG58: =Образование!AJ52 -> 0 | AH58: =Образование!AK52 -> 0 | AI58: =Образование!AL52 -> 0 | AJ58: =Образование!AM52 -> 0 | AK58: =Образование!AN52 -> 0 | AL58: =Образование!AO52 -> 0 | AM58: =Образование!AP52 -> 0 | AN58: =Образование!AQ52 -> 0 | AO58: =Образование!AR52 -> 0 | AP58: =Образование!AS52 -> 0 | AQ58: =Образование!AT52 -> 0 | AR58: =Образование!AU52 -> 0 | AS58: =Образование!AV52 -> 0 | AT58: =Образование!AW52 -> 0 | AU58: =Образование!AX52 -> 0 | AV58: =Образование!AY52 -> 0 | AW58: =Образование!AZ52 -> 0 | AX58: =Образование!BA52 -> 0 | AY58: =Образование!BB52 -> 0 | AZ58: =Образование!BC52 -> 0 | BA58: =Образование!BD52 -> 0 | BB58: =Образование!BE52 -> 0 | BC58: =Образование!BF52 -> 0 | BD58: =Образование!BG52 -> 0 | BE58: =Образование!BH52 -> 0 | BF58: =Образование!BI52 -> 0 | BG58: =Образование!BJ52 -> 0 | BH58: =Образование!BK52 -> 0 | BI58: =Образование!BL52 -> 0 | BJ58: =Образование!BM52 -> 0 | BK58: =Образование!BN52 -> 0 | BL58: =Образование!BO52 -> 0 | BM58: =Образование!BP52 -> 0 | BN58: =Образование!BQ52 -> 0 | BO58: =Образование!BR52 -> 0 | BP58: =Образование!BS52 -> 0 | BQ58: =Образование!BT52 -> 0 | BR58: =Образование!BU52 -> 0 | BS58: =Образование!BV52 -> 0 | BT58: =Образование!BW52 -> 0 | BU58: =Образование!BX52 -> 0 | BV58: =Образование!BY52 -> 0 | BW58: =Образование!BZ52 -> 0 | BX58: =Образование!CA52 -> 0 | BY58: =Образование!CB52 -> 0 | BZ58: =Образование!CC52 -> 0 | CA58: =Образование!CD52 -> 0 | CB58: =Образование!CE52 -> 0 | CC58: =Образование!CF52 -> 0 | CD58: =Образование!CG52 -> 0 | CE58: =Образование!CH52 -> 0 | CF58: =Образование!CI52 -> 0 | CG58: =Образование!CJ52 -> 0 | CH58: =Образование!CK52 -> 0 | CI58: =Образование!CL52 -> 0 | CJ58: =Образование!CM52 -> 0 | CK58: =Образование!CN52 -> 0 | CL58: =Образование!CO52 -> 0 | CM58: =Образование!CP52 -> 0 | CN58: =Образование!CQ52 -> 0 | CO58: =Образование!CR52 -> 0 | CP58: =Образование!CS52 -> 0 | CQ58: =Образование!CT52 -> 0 | CR58: =Образование!CU52 -> 0 | CS58: =Образование!CV52 -> 0 | CT58: =Образование!CW52 -> 0 | CU58: =Образование!CX52 -> 0 | CV58: =Образование!CY52 -> 0 | CW58: =Образование!CZ52 -> 0 | CX58: =Образование!DA52 -> 0 | CY58: =Образование!DB52 -> 0 | CZ58: =Образование!DC52 -> 0 | DA58: =Образование!DD52 -> 0 | DB58: =Образование!DE52 -> 0 | DC58: =Образование!DF52 -> 0 | DD58: =Образование!DG52 -> 0 | DE58: =Образование!DH52 -> 0 | DF58: =Образование!DI52 -> 0 | DG58: =Образование!DJ52 -> 0 | DH58: =Образование!DK52 -> 0 | DI58: =Образование!DL52 -> 0 | DJ58: =Образование!DM52 -> 0 | DK58: =Образование!DN52 -> 0 | DL58: =Образование!DO52 -> 0 | DM58: =Образование!DP52 -> 0 | DN58: =Образование!DQ52 -> 0 | DO58: =Образование!DR52 -> 0 | DP58: =Образование!DS52 -> 0 | DQ58: =Образование!DT52 -> 0 | DR58: =Образование!DU52 -> 0 | DS58: =Образование!DV52 -> 0 | DT58: =Образование!DW52 -> 0 | DU58: =Образование!DX52 -> 0 | DV58: =Образование!DY52 -> 0 | DW58: =Образование!DZ52 -> 0 | DX58: =Образование!EA52 -> 0 | DY58: =Образование!EB52 -> 0 | DZ58: =Образование!EC52 -> 0 | EA58: =Образование!ED52 -> 0 | EB58: =Образование!EE52 -> 0 | EC58: =Образование!EF52 -> 0 | ED58: =Образование!EG52 -> 0 | EE58: =Образование!EH52 -> 0 | EF58: =Образование!EI52 -> 0 | EG58: =Образование!EJ52 -> 0 | EH58: =Образование!EK52 -> 0 | EI58: =Образование!EL52 -> 0 | EJ58: =Образование!EM52 -> 0 | EK58: =Образование!EN52 -> 0 | EL58: =Образование!EO52 -> 0 | EM58: =Образование!EP52 -> 0 | EN58: =Образование!EQ52 -> 0 | EO58: =Образование!ER52 -> 0 | EP58: =Образование!ES52 -> 0 | EQ58: =Образование!ET52 -> 0 | ER58: =Образование!EU52 -> 0 | ES58: =Образование!EV52 -> 0 | ET58: =Образование!EW52 -> 0 | EU58: =Образование!EX52 -> 0 | EV58: =Образование!EY52 -> 0 | EW58: =Образование!EZ52 -> 0 | EX58: =Образование!FA52 -> 0 | EY58: =Образование!FB52 -> 0 | EZ58: =Образование!FC52 -> 0 | FA58: =Образование!FD52 -> 0 | FB58: =Образование!FE52 -> 0 | FC58: =Образование!FF52 -> 0 | FD58: =Образование!FG52 -> 0 | FE58: =Образование!FH52 -> 0 | FF58: =Образование!FI52 -> 0
A59: 1.41 | B59: ОБРАЗОВАНИЕ | C59: =Образование!F53 -> 0 | D59: =Образование!G53 -> 0 | E59: =Образование!H53 -> 0 | F59: =Образование!I53 -> 0 | G59: =Образование!J53 -> 0 | H59: =Образование!K53 -> 0 | I59: =Образование!L53 -> 0 | J59: =Образование!M53 -> 0 | K59: =Образование!N53 -> 0 | L59: =Образование!O53 -> 0 | M59: =Образование!P53 -> 0 | N59: =Образование!Q53 -> 0 | O59: =Образование!R53 -> 0 | P59: =Образование!S53 -> 0 | Q59: =Образование!T53 -> 0 | R59: =Образование!U53 -> 0 | S59: =Образование!V53 -> 0 | T59: =Образование!W53 -> 0 | U59: =Образование!X53 -> 0 | V59: =Образование!Y53 -> 0 | W59: =Образование!Z53 -> 0 | X59: =Образование!AA53 -> 0 | Y59: =Образование!AB53 -> 0 | Z59: =Образование!AC53 -> 0 | AA59: =Образование!AD53 -> 0 | AB59: =Образование!AE53 ->  | AC59: =Образование!AF53 -> 0 | AD59: =Образование!AG53 -> 0 | AE59: =Образование!AH53 -> 0 | AF59: =Образование!AI53 -> 0 | AG59: =Образование!AJ53 -> 0 | AH59: =Образование!AK53 -> 0 | AI59: =Образование!AL53 -> 0 | AJ59: =Образование!AM53 -> 0 | AK59: =Образование!AN53 -> 0 | AL59: =Образование!AO53 -> 0 | AM59: =Образование!AP53 -> 0 | AN59: =Образование!AQ53 -> 0 | AO59: =Образование!AR53 -> 0 | AP59: =Образование!AS53 -> 0 | AQ59: =Образование!AT53 -> 0 | AR59: =Образование!AU53 -> 0 | AS59: =Образование!AV53 -> 0 | AT59: =Образование!AW53 -> 0 | AU59: =Образование!AX53 -> 0 | AV59: =Образование!AY53 -> 0 | AW59: =Образование!AZ53 -> 0 | AX59: =Образование!BA53 -> 0 | AY59: =Образование!BB53 -> 0 | AZ59: =Образование!BC53 -> 0 | BA59: =Образование!BD53 -> 0 | BB59: =Образование!BE53 -> 0 | BC59: =Образование!BF53 -> 0 | BD59: =Образование!BG53 -> 0 | BE59: =Образование!BH53 -> 0 | BF59: =Образование!BI53 -> 0 | BG59: =Образование!BJ53 -> 0 | BH59: =Образование!BK53 -> 0 | BI59: =Образование!BL53 -> 0 | BJ59: =Образование!BM53 -> 0 | BK59: =Образование!BN53 -> 0 | BL59: =Образование!BO53 -> 0 | BM59: =Образование!BP53 -> 0 | BN59: =Образование!BQ53 -> 0 | BO59: =Образование!BR53 -> 0 | BP59: =Образование!BS53 -> 0 | BQ59: =Образование!BT53 -> 0 | BR59: =Образование!BU53 -> 0 | BS59: =Образование!BV53 -> 0 | BT59: =Образование!BW53 -> 0 | BU59: =Образование!BX53 -> 0 | BV59: =Образование!BY53 -> 0 | BW59: =Образование!BZ53 -> 0 | BX59: =Образование!CA53 -> 0 | BY59: =Образование!CB53 -> 0 | BZ59: =Образование!CC53 -> 0 | CA59: =Образование!CD53 -> 0 | CB59: =Образование!CE53 -> 0 | CC59: =Образование!CF53 -> 0 | CD59: =Образование!CG53 -> 0 | CE59: =Образование!CH53 -> 0 | CF59: =Образование!CI53 -> 0 | CG59: =Образование!CJ53 -> 0 | CH59: =Образование!CK53 -> 0 | CI59: =Образование!CL53 -> 0 | CJ59: =Образование!CM53 -> 0 | CK59: =Образование!CN53 -> 0 | CL59: =Образование!CO53 -> 0 | CM59: =Образование!CP53 -> 0 | CN59: =Образование!CQ53 -> 0 | CO59: =Образование!CR53 -> 0 | CP59: =Образование!CS53 -> 0 | CQ59: =Образование!CT53 -> 0 | CR59: =Образование!CU53 -> 0 | CS59: =Образование!CV53 -> 0 | CT59: =Образование!CW53 -> 0 | CU59: =Образование!CX53 -> 0 | CV59: =Образование!CY53 -> 0 | CW59: =Образование!CZ53 -> 0 | CX59: =Образование!DA53 -> 0 | CY59: =Образование!DB53 -> 0 | CZ59: =Образование!DC53 -> 0 | DA59: =Образование!DD53 -> 0 | DB59: =Образование!DE53 -> 0 | DC59: =Образование!DF53 -> 0 | DD59: =Образование!DG53 -> 0 | DE59: =Образование!DH53 -> 0 | DF59: =Образование!DI53 -> 0 | DG59: =Образование!DJ53 -> 0 | DH59: =Образование!DK53 -> 0 | DI59: =Образование!DL53 -> 0 | DJ59: =Образование!DM53 -> 0 | DK59: =Образование!DN53 -> 0 | DL59: =Образование!DO53 -> 0 | DM59: =Образование!DP53 -> 0 | DN59: =Образование!DQ53 -> 0 | DO59: =Образование!DR53 -> 0 | DP59: =Образование!DS53 -> 0 | DQ59: =Образование!DT53 -> 0 | DR59: =Образование!DU53 -> 0 | DS59: =Образование!DV53 -> 0 | DT59: =Образование!DW53 -> 0 | DU59: =Образование!DX53 -> 0 | DV59: =Образование!DY53 -> 0 | DW59: =Образование!DZ53 -> 0 | DX59: =Образование!EA53 -> 0 | DY59: =Образование!EB53 -> 0 | DZ59: =Образование!EC53 -> 0 | EA59: =Образование!ED53 -> 0 | EB59: =Образование!EE53 -> 0 | EC59: =Образование!EF53 -> 0 | ED59: =Образование!EG53 -> 0 | EE59: =Образование!EH53 -> 0 | EF59: =Образование!EI53 -> 0 | EG59: =Образование!EJ53 -> 0 | EH59: =Образование!EK53 -> 0 | EI59: =Образование!EL53 -> 0 | EJ59: =Образование!EM53 -> 0 | EK59: =Образование!EN53 -> 0 | EL59: =Образование!EO53 -> 0 | EM59: =Образование!EP53 -> 0 | EN59: =Образование!EQ53 -> 0 | EO59: =Образование!ER53 -> 0 | EP59: =Образование!ES53 -> 0 | EQ59: =Образование!ET53 -> 0 | ER59: =Образование!EU53 -> 0 | ES59: =Образование!EV53 -> 0 | ET59: =Образование!EW53 -> 0 | EU59: =Образование!EX53 -> 0 | EV59: =Образование!EY53 -> 0 | EW59: =Образование!EZ53 -> 0 | EX59: =Образование!FA53 -> 0 | EY59: =Образование!FB53 -> 0 | EZ59: =Образование!FC53 -> 0 | FA59: =Образование!FD53 -> 0 | FB59: =Образование!FE53 -> 0 | FC59: =Образование!FF53 -> 0 | FD59: =Образование!FG53 -> 0 | FE59: =Образование!FH53 -> 0 | FF59: =Образование!FI53 -> 0
A60: 1.42 | B60: ОБРАЗОВАНИЕ | C60: =Образование!F54 -> 0 | D60: =Образование!G54 -> 0 | E60: =Образование!H54 -> 0 | F60: =Образование!I54 -> 0 | G60: =Образование!J54 -> 0 | H60: =Образование!K54 -> 0 | I60: =Образование!L54 -> 0 | J60: =Образование!M54 -> 0 | K60: =Образование!N54 -> 0 | L60: =Образование!O54 -> 0 | M60: =Образование!P54 -> 0 | N60: =Образование!Q54 -> 0 | O60: =Образование!R54 -> 0 | P60: =Образование!S54 -> 0 | Q60: =Образование!T54 -> 0 | R60: =Образование!U54 -> 0 | S60: =Образование!V54 -> 0 | T60: =Образование!W54 -> 0 | U60: =Образование!X54 -> 0 | V60: =Образование!Y54 -> 0 | W60: =Образование!Z54 -> 0 | X60: =Образование!AA54 -> 0 | Y60: =Образование!AB54 -> 0 | Z60: =Образование!AC54 -> 0 | AA60: =Образование!AD54 -> 0 | AB60: =Образование!AE54 ->  | AC60: =Образование!AF54 -> 0 | AD60: =Образование!AG54 -> 0 | AE60: =Образование!AH54 -> 0 | AF60: =Образование!AI54 -> 0 | AG60: =Образование!AJ54 -> 0 | AH60: =Образование!AK54 -> 0 | AI60: =Образование!AL54 -> 0 | AJ60: =Образование!AM54 -> 0 | AK60: =Образование!AN54 -> 0 | AL60: =Образование!AO54 -> 0 | AM60: =Образование!AP54 -> 0 | AN60: =Образование!AQ54 -> 0 | AO60: =Образование!AR54 -> 0 | AP60: =Образование!AS54 -> 0 | AQ60: =Образование!AT54 -> 0 | AR60: =Образование!AU54 -> 0 | AS60: =Образование!AV54 -> 0 | AT60: =Образование!AW54 -> 0 | AU60: =Образование!AX54 -> 0 | AV60: =Образование!AY54 -> 0 | AW60: =Образование!AZ54 -> 0 | AX60: =Образование!BA54 -> 0 | AY60: =Образование!BB54 -> 0 | AZ60: =Образование!BC54 -> 0 | BA60: =Образование!BD54 -> 0 | BB60: =Образование!BE54 -> 0 | BC60: =Образование!BF54 -> 0 | BD60: =Образование!BG54 -> 0 | BE60: =Образование!BH54 -> 0 | BF60: =Образование!BI54 -> 0 | BG60: =Образование!BJ54 -> 0 | BH60: =Образование!BK54 -> 0 | BI60: =Образование!BL54 -> 0 | BJ60: =Образование!BM54 -> 0 | BK60: =Образование!BN54 -> 0 | BL60: =Образование!BO54 -> 0 | BM60: =Образование!BP54 -> 0 | BN60: =Образование!BQ54 -> 0 | BO60: =Образование!BR54 -> 0 | BP60: =Образование!BS54 -> 0 | BQ60: =Образование!BT54 -> 0 | BR60: =Образование!BU54 -> 0 | BS60: =Образование!BV54 -> 0 | BT60: =Образование!BW54 -> 0 | BU60: =Образование!BX54 -> 0 | BV60: =Образование!BY54 -> 0 | BW60: =Образование!BZ54 -> 0 | BX60: =Образование!CA54 -> 0 | BY60: =Образование!CB54 -> 0 | BZ60: =Образование!CC54 -> 0 | CA60: =Образование!CD54 -> 0 | CB60: =Образование!CE54 -> 0 | CC60: =Образование!CF54 -> 0 | CD60: =Образование!CG54 -> 0 | CE60: =Образование!CH54 -> 0 | CF60: =Образование!CI54 -> 0 | CG60: =Образование!CJ54 -> 0 | CH60: =Образование!CK54 -> 0 | CI60: =Образование!CL54 -> 0 | CJ60: =Образование!CM54 -> 0 | CK60: =Образование!CN54 -> 0 | CL60: =Образование!CO54 -> 0 | CM60: =Образование!CP54 -> 0 | CN60: =Образование!CQ54 -> 0 | CO60: =Образование!CR54 -> 0 | CP60: =Образование!CS54 -> 0 | CQ60: =Образование!CT54 -> 0 | CR60: =Образование!CU54 -> 0 | CS60: =Образование!CV54 -> 0 | CT60: =Образование!CW54 -> 0 | CU60: =Образование!CX54 -> 0 | CV60: =Образование!CY54 -> 0 | CW60: =Образование!CZ54 -> 0 | CX60: =Образование!DA54 -> 0 | CY60: =Образование!DB54 -> 0 | CZ60: =Образование!DC54 -> 0 | DA60: =Образование!DD54 -> 0 | DB60: =Образование!DE54 -> 0 | DC60: =Образование!DF54 -> 0 | DD60: =Образование!DG54 -> 0 | DE60: =Образование!DH54 -> 0 | DF60: =Образование!DI54 -> 0 | DG60: =Образование!DJ54 -> 0 | DH60: =Образование!DK54 -> 0 | DI60: =Образование!DL54 -> 0 | DJ60: =Образование!DM54 -> 0 | DK60: =Образование!DN54 -> 0 | DL60: =Образование!DO54 -> 0 | DM60: =Образование!DP54 -> 0 | DN60: =Образование!DQ54 -> 0 | DO60: =Образование!DR54 -> 0 | DP60: =Образование!DS54 -> 0 | DQ60: =Образование!DT54 -> 0 | DR60: =Образование!DU54 -> 0 | DS60: =Образование!DV54 -> 0 | DT60: =Образование!DW54 -> 0 | DU60: =Образование!DX54 -> 0 | DV60: =Образование!DY54 -> 0 | DW60: =Образование!DZ54 -> 0 | DX60: =Образование!EA54 -> 0 | DY60: =Образование!EB54 -> 0 | DZ60: =Образование!EC54 -> 0 | EA60: =Образование!ED54 -> 0 | EB60: =Образование!EE54 -> 0 | EC60: =Образование!EF54 -> 0 | ED60: =Образование!EG54 -> 0 | EE60: =Образование!EH54 -> 0 | EF60: =Образование!EI54 -> 0 | EG60: =Образование!EJ54 -> 0 | EH60: =Образование!EK54 -> 0 | EI60: =Образование!EL54 -> 0 | EJ60: =Образование!EM54 -> 0 | EK60: =Образование!EN54 -> 0 | EL60: =Образование!EO54 -> 0 | EM60: =Образование!EP54 -> 0 | EN60: =Образование!EQ54 -> 0 | EO60: =Образование!ER54 -> 0 | EP60: =Образование!ES54 -> 0 | EQ60: =Образование!ET54 -> 0 | ER60: =Образование!EU54 -> 0 | ES60: =Образование!EV54 -> 0 | ET60: =Образование!EW54 -> 0 | EU60: =Образование!EX54 -> 0 | EV60: =Образование!EY54 -> 0 | EW60: =Образование!EZ54 -> 0 | EX60: =Образование!FA54 -> 0 | EY60: =Образование!FB54 -> 0 | EZ60: =Образование!FC54 -> 0 | FA60: =Образование!FD54 -> 0 | FB60: =Образование!FE54 -> 0 | FC60: =Образование!FF54 -> 0 | FD60: =Образование!FG54 -> 0 | FE60: =Образование!FH54 -> 0 | FF60: =Образование!FI54 -> 0
A61: 1.43 | B61: ОБРАЗОВАНИЕ | C61: =Образование!F55 -> 0 | D61: =Образование!G55 -> 0 | E61: =Образование!H55 -> 0 | F61: =Образование!I55 -> 0 | G61: =Образование!J55 -> 0 | H61: =Образование!K55 -> 0 | I61: =Образование!L55 -> 0 | J61: =Образование!M55 -> 0 | K61: =Образование!N55 -> 0 | L61: =Образование!O55 -> 0 | M61: =Образование!P55 -> 0 | N61: =Образование!Q55 -> 0 | O61: =Образование!R55 -> 0 | P61: =Образование!S55 -> 0 | Q61: =Образование!T55 -> 0 | R61: =Образование!U55 -> 0 | S61: =Образование!V55 -> 0 | T61: =Образование!W55 -> 0 | U61: =Образование!X55 -> 0 | V61: =Образование!Y55 -> 0 | W61: =Образование!Z55 -> 0 | X61: =Образование!AA55 -> 0 | Y61: =Образование!AB55 -> 0 | Z61: =Образование!AC55 -> 0 | AA61: =Образование!AD55 -> 0 | AB61: =Образование!AE55 ->  | AC61: =Образование!AF55 -> 0 | AD61: =Образование!AG55 -> 0 | AE61: =Образование!AH55 -> 0 | AF61: =Образование!AI55 -> 0 | AG61: =Образование!AJ55 -> 0 | AH61: =Образование!AK55 -> 0 | AI61: =Образование!AL55 -> 0 | AJ61: =Образование!AM55 -> 0 | AK61: =Образование!AN55 -> 0 | AL61: =Образование!AO55 -> 0 | AM61: =Образование!AP55 -> 0 | AN61: =Образование!AQ55 -> 0 | AO61: =Образование!AR55 -> 0 | AP61: =Образование!AS55 -> 0 | AQ61: =Образование!AT55 -> 0 | AR61: =Образование!AU55 -> 0 | AS61: =Образование!AV55 -> 0 | AT61: =Образование!AW55 -> 0 | AU61: =Образование!AX55 -> 0 | AV61: =Образование!AY55 -> 0 | AW61: =Образование!AZ55 -> 0 | AX61: =Образование!BA55 -> 0 | AY61: =Образование!BB55 -> 0 | AZ61: =Образование!BC55 -> 0 | BA61: =Образование!BD55 -> 0 | BB61: =Образование!BE55 -> 0 | BC61: =Образование!BF55 -> 0 | BD61: =Образование!BG55 -> 0 | BE61: =Образование!BH55 -> 0 | BF61: =Образование!BI55 -> 0 | BG61: =Образование!BJ55 -> 0 | BH61: =Образование!BK55 -> 0 | BI61: =Образование!BL55 -> 0 | BJ61: =Образование!BM55 -> 0 | BK61: =Образование!BN55 -> 0 | BL61: =Образование!BO55 -> 0 | BM61: =Образование!BP55 -> 0 | BN61: =Образование!BQ55 -> 0 | BO61: =Образование!BR55 -> 0 | BP61: =Образование!BS55 -> 0 | BQ61: =Образование!BT55 -> 0 | BR61: =Образование!BU55 -> 0 | BS61: =Образование!BV55 -> 0 | BT61: =Образование!BW55 -> 0 | BU61: =Образование!BX55 -> 0 | BV61: =Образование!BY55 -> 0 | BW61: =Образование!BZ55 -> 0 | BX61: =Образование!CA55 -> 0 | BY61: =Образование!CB55 -> 0 | BZ61: =Образование!CC55 -> 0 | CA61: =Образование!CD55 -> 0 | CB61: =Образование!CE55 -> 0 | CC61: =Образование!CF55 -> 0 | CD61: =Образование!CG55 -> 0 | CE61: =Образование!CH55 -> 0 | CF61: =Образование!CI55 -> 0 | CG61: =Образование!CJ55 -> 0 | CH61: =Образование!CK55 -> 0 | CI61: =Образование!CL55 -> 0 | CJ61: =Образование!CM55 -> 0 | CK61: =Образование!CN55 -> 0 | CL61: =Образование!CO55 -> 0 | CM61: =Образование!CP55 -> 0 | CN61: =Образование!CQ55 -> 0 | CO61: =Образование!CR55 -> 0 | CP61: =Образование!CS55 -> 0 | CQ61: =Образование!CT55 -> 0 | CR61: =Образование!CU55 -> 0 | CS61: =Образование!CV55 -> 0 | CT61: =Образование!CW55 -> 0 | CU61: =Образование!CX55 -> 0 | CV61: =Образование!CY55 -> 0 | CW61: =Образование!CZ55 -> 0 | CX61: =Образование!DA55 -> 0 | CY61: =Образование!DB55 -> 0 | CZ61: =Образование!DC55 -> 0 | DA61: =Образование!DD55 -> 0 | DB61: =Образование!DE55 -> 0 | DC61: =Образование!DF55 -> 0 | DD61: =Образование!DG55 -> 0 | DE61: =Образование!DH55 -> 0 | DF61: =Образование!DI55 -> 0 | DG61: =Образование!DJ55 -> 0 | DH61: =Образование!DK55 -> 0 | DI61: =Образование!DL55 -> 0 | DJ61: =Образование!DM55 -> 0 | DK61: =Образование!DN55 -> 0 | DL61: =Образование!DO55 -> 0 | DM61: =Образование!DP55 -> 0 | DN61: =Образование!DQ55 -> 0 | DO61: =Образование!DR55 -> 0 | DP61: =Образование!DS55 -> 0 | DQ61: =Образование!DT55 -> 0 | DR61: =Образование!DU55 -> 0 | DS61: =Образование!DV55 -> 0 | DT61: =Образование!DW55 -> 0 | DU61: =Образование!DX55 -> 0 | DV61: =Образование!DY55 -> 0 | DW61: =Образование!DZ55 -> 0 | DX61: =Образование!EA55 -> 0 | DY61: =Образование!EB55 -> 0 | DZ61: =Образование!EC55 -> 0 | EA61: =Образование!ED55 -> 0 | EB61: =Образование!EE55 -> 0 | EC61: =Образование!EF55 -> 0 | ED61: =Образование!EG55 -> 0 | EE61: =Образование!EH55 -> 0 | EF61: =Образование!EI55 -> 0 | EG61: =Образование!EJ55 -> 0 | EH61: =Образование!EK55 -> 0 | EI61: =Образование!EL55 -> 0 | EJ61: =Образование!EM55 -> 0 | EK61: =Образование!EN55 -> 0 | EL61: =Образование!EO55 -> 0 | EM61: =Образование!EP55 -> 0 | EN61: =Образование!EQ55 -> 0 | EO61: =Образование!ER55 -> 0 | EP61: =Образование!ES55 -> 0 | EQ61: =Образование!ET55 -> 0 | ER61: =Образование!EU55 -> 0 | ES61: =Образование!EV55 -> 0 | ET61: =Образование!EW55 -> 0 | EU61: =Образование!EX55 -> 0 | EV61: =Образование!EY55 -> 0 | EW61: =Образование!EZ55 -> 0 | EX61: =Образование!FA55 -> 0 | EY61: =Образование!FB55 -> 0 | EZ61: =Образование!FC55 -> 0 | FA61: =Образование!FD55 -> 0 | FB61: =Образование!FE55 -> 0 | FC61: =Образование!FF55 -> 0 | FD61: =Образование!FG55 -> 0 | FE61: =Образование!FH55 -> 0 | FF61: =Образование!FI55 -> 0
A62: 1.44 | B62: ОБРАЗОВАНИЕ | C62: =Образование!F56 -> 0 | D62: =Образование!G56 -> 0 | E62: =Образование!H56 -> 0 | F62: =Образование!I56 -> 0 | G62: =Образование!J56 -> 0 | H62: =Образование!K56 -> 0 | I62: =Образование!L56 -> 0 | J62: =Образование!M56 -> 0 | K62: =Образование!N56 -> 0 | L62: =Образование!O56 -> 0 | M62: =Образование!P56 -> 0 | N62: =Образование!Q56 -> 0 | O62: =Образование!R56 -> 0 | P62: =Образование!S56 -> 0 | Q62: =Образование!T56 -> 0 | R62: =Образование!U56 -> 0 | S62: =Образование!V56 -> 0 | T62: =Образование!W56 -> 0 | U62: =Образование!X56 -> 0 | V62: =Образование!Y56 -> 0 | W62: =Образование!Z56 -> 0 | X62: =Образование!AA56 -> 0 | Y62: =Образование!AB56 -> 0 | Z62: =Образование!AC56 -> 0 | AA62: =Образование!AD56 -> 0 | AB62: =Образование!AE56 ->  | AC62: =Образование!AF56 -> 0 | AD62: =Образование!AG56 -> 0 | AE62: =Образование!AH56 -> 0 | AF62: =Образование!AI56 -> 0 | AG62: =Образование!AJ56 -> 0 | AH62: =Образование!AK56 -> 0 | AI62: =Образование!AL56 -> 0 | AJ62: =Образование!AM56 -> 0 | AK62: =Образование!AN56 -> 0 | AL62: =Образование!AO56 -> 0 | AM62: =Образование!AP56 -> 0 | AN62: =Образование!AQ56 -> 0 | AO62: =Образование!AR56 -> 0 | AP62: =Образование!AS56 -> 0 | AQ62: =Образование!AT56 -> 0 | AR62: =Образование!AU56 -> 0 | AS62: =Образование!AV56 -> 0 | AT62: =Образование!AW56 -> 0 | AU62: =Образование!AX56 -> 0 | AV62: =Образование!AY56 -> 0 | AW62: =Образование!AZ56 -> 0 | AX62: =Образование!BA56 -> 0 | AY62: =Образование!BB56 -> 0 | AZ62: =Образование!BC56 -> 0 | BA62: =Образование!BD56 -> 0 | BB62: =Образование!BE56 -> 0 | BC62: =Образование!BF56 -> 0 | BD62: =Образование!BG56 -> 0 | BE62: =Образование!BH56 -> 0 | BF62: =Образование!BI56 -> 0 | BG62: =Образование!BJ56 -> 0 | BH62: =Образование!BK56 -> 0 | BI62: =Образование!BL56 -> 0 | BJ62: =Образование!BM56 -> 0 | BK62: =Образование!BN56 -> 0 | BL62: =Образование!BO56 -> 0 | BM62: =Образование!BP56 -> 0 | BN62: =Образование!BQ56 -> 0 | BO62: =Образование!BR56 -> 0 | BP62: =Образование!BS56 -> 0 | BQ62: =Образование!BT56 -> 0 | BR62: =Образование!BU56 -> 0 | BS62: =Образование!BV56 -> 0 | BT62: =Образование!BW56 -> 0 | BU62: =Образование!BX56 -> 0 | BV62: =Образование!BY56 -> 0 | BW62: =Образование!BZ56 -> 0 | BX62: =Образование!CA56 -> 0 | BY62: =Образование!CB56 -> 0 | BZ62: =Образование!CC56 -> 0 | CA62: =Образование!CD56 -> 0 | CB62: =Образование!CE56 -> 0 | CC62: =Образование!CF56 -> 0 | CD62: =Образование!CG56 -> 0 | CE62: =Образование!CH56 -> 0 | CF62: =Образование!CI56 -> 0 | CG62: =Образование!CJ56 -> 0 | CH62: =Образование!CK56 -> 0 | CI62: =Образование!CL56 -> 0 | CJ62: =Образование!CM56 -> 0 | CK62: =Образование!CN56 -> 0 | CL62: =Образование!CO56 -> 0 | CM62: =Образование!CP56 -> 0 | CN62: =Образование!CQ56 -> 0 | CO62: =Образование!CR56 -> 0 | CP62: =Образование!CS56 -> 0 | CQ62: =Образование!CT56 -> 0 | CR62: =Образование!CU56 -> 0 | CS62: =Образование!CV56 -> 0 | CT62: =Образование!CW56 -> 0 | CU62: =Образование!CX56 -> 0 | CV62: =Образование!CY56 -> 0 | CW62: =Образование!CZ56 -> 0 | CX62: =Образование!DA56 -> 0 | CY62: =Образование!DB56 -> 0 | CZ62: =Образование!DC56 -> 0 | DA62: =Образование!DD56 -> 0 | DB62: =Образование!DE56 -> 0 | DC62: =Образование!DF56 -> 0 | DD62: =Образование!DG56 -> 0 | DE62: =Образование!DH56 -> 0 | DF62: =Образование!DI56 -> 0 | DG62: =Образование!DJ56 -> 0 | DH62: =Образование!DK56 -> 0 | DI62: =Образование!DL56 -> 0 | DJ62: =Образование!DM56 -> 0 | DK62: =Образование!DN56 -> 0 | DL62: =Образование!DO56 -> 0 | DM62: =Образование!DP56 -> 0 | DN62: =Образование!DQ56 -> 0 | DO62: =Образование!DR56 -> 0 | DP62: =Образование!DS56 -> 0 | DQ62: =Образование!DT56 -> 0 | DR62: =Образование!DU56 -> 0 | DS62: =Образование!DV56 -> 0 | DT62: =Образование!DW56 -> 0 | DU62: =Образование!DX56 -> 0 | DV62: =Образование!DY56 -> 0 | DW62: =Образование!DZ56 -> 0 | DX62: =Образование!EA56 -> 0 | DY62: =Образование!EB56 -> 0 | DZ62: =Образование!EC56 -> 0 | EA62: =Образование!ED56 -> 0 | EB62: =Образование!EE56 -> 0 | EC62: =Образование!EF56 -> 0 | ED62: =Образование!EG56 -> 0 | EE62: =Образование!EH56 -> 0 | EF62: =Образование!EI56 -> 0 | EG62: =Образование!EJ56 -> 0 | EH62: =Образование!EK56 -> 0 | EI62: =Образование!EL56 -> 0 | EJ62: =Образование!EM56 -> 0 | EK62: =Образование!EN56 -> 0 | EL62: =Образование!EO56 -> 0 | EM62: =Образование!EP56 -> 0 | EN62: =Образование!EQ56 -> 0 | EO62: =Образование!ER56 -> 0 | EP62: =Образование!ES56 -> 0 | EQ62: =Образование!ET56 -> 0 | ER62: =Образование!EU56 -> 0 | ES62: =Образование!EV56 -> 0 | ET62: =Образование!EW56 -> 0 | EU62: =Образование!EX56 -> 0 | EV62: =Образование!EY56 -> 0 | EW62: =Образование!EZ56 -> 0 | EX62: =Образование!FA56 -> 0 | EY62: =Образование!FB56 -> 0 | EZ62: =Образование!FC56 -> 0 | FA62: =Образование!FD56 -> 0 | FB62: =Образование!FE56 -> 0 | FC62: =Образование!FF56 -> 0 | FD62: =Образование!FG56 -> 0 | FE62: =Образование!FH56 -> 0 | FF62: =Образование!FI56 -> 0
A63: 1.45 | B63: ОБРАЗОВАНИЕ | C63: =Образование!F57 -> 0 | D63: =Образование!G57 -> 0 | E63: =Образование!H57 -> 0 | F63: =Образование!I57 -> 0 | G63: =Образование!J57 -> 0 | H63: =Образование!K57 -> 0 | I63: =Образование!L57 -> 0 | J63: =Образование!M57 -> 0 | K63: =Образование!N57 -> 0 | L63: =Образование!O57 -> 0 | M63: =Образование!P57 -> 0 | N63: =Образование!Q57 -> 0 | O63: =Образование!R57 -> 0 | P63: =Образование!S57 -> 0 | Q63: =Образование!T57 -> 0 | R63: =Образование!U57 -> 0 | S63: =Образование!V57 -> 0 | T63: =Образование!W57 -> 0 | U63: =Образование!X57 -> 0 | V63: =Образование!Y57 -> 0 | W63: =Образование!Z57 -> 0 | X63: =Образование!AA57 -> 0 | Y63: =Образование!AB57 -> 0 | Z63: =Образование!AC57 -> 0 | AA63: =Образование!AD57 -> 0 | AB63: =Образование!AE57 ->  | AC63: =Образование!AF57 -> 0 | AD63: =Образование!AG57 -> 0 | AE63: =Образование!AH57 -> 0 | AF63: =Образование!AI57 -> 0 | AG63: =Образование!AJ57 -> 0 | AH63: =Образование!AK57 -> 0 | AI63: =Образование!AL57 -> 0 | AJ63: =Образование!AM57 -> 0 | AK63: =Образование!AN57 -> 0 | AL63: =Образование!AO57 -> 0 | AM63: =Образование!AP57 -> 0 | AN63: =Образование!AQ57 -> 0 | AO63: =Образование!AR57 -> 0 | AP63: =Образование!AS57 -> 0 | AQ63: =Образование!AT57 -> 0 | AR63: =Образование!AU57 -> 0 | AS63: =Образование!AV57 -> 0 | AT63: =Образование!AW57 -> 0 | AU63: =Образование!AX57 -> 0 | AV63: =Образование!AY57 -> 0 | AW63: =Образование!AZ57 -> 0 | AX63: =Образование!BA57 -> 0 | AY63: =Образование!BB57 -> 0 | AZ63: =Образование!BC57 -> 0 | BA63: =Образование!BD57 -> 0 | BB63: =Образование!BE57 -> 0 | BC63: =Образование!BF57 -> 0 | BD63: =Образование!BG57 -> 0 | BE63: =Образование!BH57 -> 0 | BF63: =Образование!BI57 -> 0 | BG63: =Образование!BJ57 -> 0 | BH63: =Образование!BK57 -> 0 | BI63: =Образование!BL57 -> 0 | BJ63: =Образование!BM57 -> 0 | BK63: =Образование!BN57 -> 0 | BL63: =Образование!BO57 -> 0 | BM63: =Образование!BP57 -> 0 | BN63: =Образование!BQ57 -> 0 | BO63: =Образование!BR57 -> 0 | BP63: =Образование!BS57 -> 0 | BQ63: =Образование!BT57 -> 0 | BR63: =Образование!BU57 -> 0 | BS63: =Образование!BV57 -> 0 | BT63: =Образование!BW57 -> 0 | BU63: =Образование!BX57 -> 0 | BV63: =Образование!BY57 -> 0 | BW63: =Образование!BZ57 -> 0 | BX63: =Образование!CA57 -> 0 | BY63: =Образование!CB57 -> 0 | BZ63: =Образование!CC57 -> 0 | CA63: =Образование!CD57 -> 0 | CB63: =Образование!CE57 -> 0 | CC63: =Образование!CF57 -> 0 | CD63: =Образование!CG57 -> 0 | CE63: =Образование!CH57 -> 0 | CF63: =Образование!CI57 -> 0 | CG63: =Образование!CJ57 -> 0 | CH63: =Образование!CK57 -> 0 | CI63: =Образование!CL57 -> 0 | CJ63: =Образование!CM57 -> 0 | CK63: =Образование!CN57 -> 0 | CL63: =Образование!CO57 -> 0 | CM63: =Образование!CP57 -> 0 | CN63: =Образование!CQ57 -> 0 | CO63: =Образование!CR57 -> 0 | CP63: =Образование!CS57 -> 0 | CQ63: =Образование!CT57 -> 0 | CR63: =Образование!CU57 -> 0 | CS63: =Образование!CV57 -> 0 | CT63: =Образование!CW57 -> 0 | CU63: =Образование!CX57 -> 0 | CV63: =Образование!CY57 -> 0 | CW63: =Образование!CZ57 -> 0 | CX63: =Образование!DA57 -> 0 | CY63: =Образование!DB57 -> 0 | CZ63: =Образование!DC57 -> 0 | DA63: =Образование!DD57 -> 0 | DB63: =Образование!DE57 -> 0 | DC63: =Образование!DF57 -> 0 | DD63: =Образование!DG57 -> 0 | DE63: =Образование!DH57 -> 0 | DF63: =Образование!DI57 -> 0 | DG63: =Образование!DJ57 -> 0 | DH63: =Образование!DK57 -> 0 | DI63: =Образование!DL57 -> 0 | DJ63: =Образование!DM57 -> 0 | DK63: =Образование!DN57 -> 0 | DL63: =Образование!DO57 -> 0 | DM63: =Образование!DP57 -> 0 | DN63: =Образование!DQ57 -> 0 | DO63: =Образование!DR57 -> 0 | DP63: =Образование!DS57 -> 0 | DQ63: =Образование!DT57 -> 0 | DR63: =Образование!DU57 -> 0 | DS63: =Образование!DV57 -> 0 | DT63: =Образование!DW57 -> 0 | DU63: =Образование!DX57 -> 0 | DV63: =Образование!DY57 -> 0 | DW63: =Образование!DZ57 -> 0 | DX63: =Образование!EA57 -> 0 | DY63: =Образование!EB57 -> 0 | DZ63: =Образование!EC57 -> 0 | EA63: =Образование!ED57 -> 0 | EB63: =Образование!EE57 -> 0 | EC63: =Образование!EF57 -> 0 | ED63: =Образование!EG57 -> 0 | EE63: =Образование!EH57 -> 0 | EF63: =Образование!EI57 -> 0 | EG63: =Образование!EJ57 -> 0 | EH63: =Образование!EK57 -> 0 | EI63: =Образование!EL57 -> 0 | EJ63: =Образование!EM57 -> 0 | EK63: =Образование!EN57 -> 0 | EL63: =Образование!EO57 -> 0 | EM63: =Образование!EP57 -> 0 | EN63: =Образование!EQ57 -> 0 | EO63: =Образование!ER57 -> 0 | EP63: =Образование!ES57 -> 0 | EQ63: =Образование!ET57 -> 0 | ER63: =Образование!EU57 -> 0 | ES63: =Образование!EV57 -> 0 | ET63: =Образование!EW57 -> 0 | EU63: =Образование!EX57 -> 0 | EV63: =Образование!EY57 -> 0 | EW63: =Образование!EZ57 -> 0 | EX63: =Образование!FA57 -> 0 | EY63: =Образование!FB57 -> 0 | EZ63: =Образование!FC57 -> 0 | FA63: =Образование!FD57 -> 0 | FB63: =Образование!FE57 -> 0 | FC63: =Образование!FF57 -> 0 | FD63: =Образование!FG57 -> 0 | FE63: =Образование!FH57 -> 0 | FF63: =Образование!FI57 -> 0
A64: 1.46 | B64: ОБРАЗОВАНИЕ | C64: =Образование!F58 -> 0 | D64: =Образование!G58 -> 0 | E64: =Образование!H58 -> 0 | F64: =Образование!I58 -> 0 | G64: =Образование!J58 -> 0 | H64: =Образование!K58 -> 0 | I64: =Образование!L58 -> 0 | J64: =Образование!M58 -> 0 | K64: =Образование!N58 -> 0 | L64: =Образование!O58 -> 0 | M64: =Образование!P58 -> 0 | N64: =Образование!Q58 -> 0 | O64: =Образование!R58 -> 0 | P64: =Образование!S58 -> 0 | Q64: =Образование!T58 -> 0 | R64: =Образование!U58 -> 0 | S64: =Образование!V58 -> 0 | T64: =Образование!W58 -> 0 | U64: =Образование!X58 -> 0 | V64: =Образование!Y58 -> 0 | W64: =Образование!Z58 -> 0 | X64: =Образование!AA58 -> 0 | Y64: =Образование!AB58 -> 0 | Z64: =Образование!AC58 -> 0 | AA64: =Образование!AD58 -> 0 | AB64: =Образование!AE58 ->  | AC64: =Образование!AF58 -> 0 | AD64: =Образование!AG58 -> 0 | AE64: =Образование!AH58 -> 0 | AF64: =Образование!AI58 -> 0 | AG64: =Образование!AJ58 -> 0 | AH64: =Образование!AK58 -> 0 | AI64: =Образование!AL58 -> 0 | AJ64: =Образование!AM58 -> 0 | AK64: =Образование!AN58 -> 0 | AL64: =Образование!AO58 -> 0 | AM64: =Образование!AP58 -> 0 | AN64: =Образование!AQ58 -> 0 | AO64: =Образование!AR58 -> 0 | AP64: =Образование!AS58 -> 0 | AQ64: =Образование!AT58 -> 0 | AR64: =Образование!AU58 -> 0 | AS64: =Образование!AV58 -> 0 | AT64: =Образование!AW58 -> 0 | AU64: =Образование!AX58 -> 0 | AV64: =Образование!AY58 -> 0 | AW64: =Образование!AZ58 -> 0 | AX64: =Образование!BA58 -> 0 | AY64: =Образование!BB58 -> 0 | AZ64: =Образование!BC58 -> 0 | BA64: =Образование!BD58 -> 0 | BB64: =Образование!BE58 -> 0 | BC64: =Образование!BF58 -> 0 | BD64: =Образование!BG58 -> 0 | BE64: =Образование!BH58 -> 0 | BF64: =Образование!BI58 -> 0 | BG64: =Образование!BJ58 -> 0 | BH64: =Образование!BK58 -> 0 | BI64: =Образование!BL58 -> 0 | BJ64: =Образование!BM58 -> 0 | BK64: =Образование!BN58 -> 0 | BL64: =Образование!BO58 -> 0 | BM64: =Образование!BP58 -> 0 | BN64: =Образование!BQ58 -> 0 | BO64: =Образование!BR58 -> 0 | BP64: =Образование!BS58 -> 0 | BQ64: =Образование!BT58 -> 0 | BR64: =Образование!BU58 -> 0 | BS64: =Образование!BV58 -> 0 | BT64: =Образование!BW58 -> 0 | BU64: =Образование!BX58 -> 0 | BV64: =Образование!BY58 -> 0 | BW64: =Образование!BZ58 -> 0 | BX64: =Образование!CA58 -> 0 | BY64: =Образование!CB58 -> 0 | BZ64: =Образование!CC58 -> 0 | CA64: =Образование!CD58 -> 0 | CB64: =Образование!CE58 -> 0 | CC64: =Образование!CF58 -> 0 | CD64: =Образование!CG58 -> 0 | CE64: =Образование!CH58 -> 0 | CF64: =Образование!CI58 -> 0 | CG64: =Образование!CJ58 -> 0 | CH64: =Образование!CK58 -> 0 | CI64: =Образование!CL58 -> 0 | CJ64: =Образование!CM58 -> 0 | CK64: =Образование!CN58 -> 0 | CL64: =Образование!CO58 -> 0 | CM64: =Образование!CP58 -> 0 | CN64: =Образование!CQ58 -> 0 | CO64: =Образование!CR58 -> 0 | CP64: =Образование!CS58 -> 0 | CQ64: =Образование!CT58 -> 0 | CR64: =Образование!CU58 -> 0 | CS64: =Образование!CV58 -> 0 | CT64: =Образование!CW58 -> 0 | CU64: =Образование!CX58 -> 0 | CV64: =Образование!CY58 -> 0 | CW64: =Образование!CZ58 -> 0 | CX64: =Образование!DA58 -> 0 | CY64: =Образование!DB58 -> 0 | CZ64: =Образование!DC58 -> 0 | DA64: =Образование!DD58 -> 0 | DB64: =Образование!DE58 -> 0 | DC64: =Образование!DF58 -> 0 | DD64: =Образование!DG58 -> 0 | DE64: =Образование!DH58 -> 0 | DF64: =Образование!DI58 -> 0 | DG64: =Образование!DJ58 -> 0 | DH64: =Образование!DK58 -> 0 | DI64: =Образование!DL58 -> 0 | DJ64: =Образование!DM58 -> 0 | DK64: =Образование!DN58 -> 0 | DL64: =Образование!DO58 -> 0 | DM64: =Образование!DP58 -> 0 | DN64: =Образование!DQ58 -> 0 | DO64: =Образование!DR58 -> 0 | DP64: =Образование!DS58 -> 0 | DQ64: =Образование!DT58 -> 0 | DR64: =Образование!DU58 -> 0 | DS64: =Образование!DV58 -> 0 | DT64: =Образование!DW58 -> 0 | DU64: =Образование!DX58 -> 0 | DV64: =Образование!DY58 -> 0 | DW64: =Образование!DZ58 -> 0 | DX64: =Образование!EA58 -> 0 | DY64: =Образование!EB58 -> 0 | DZ64: =Образование!EC58 -> 0 | EA64: =Образование!ED58 -> 0 | EB64: =Образование!EE58 -> 0 | EC64: =Образование!EF58 -> 0 | ED64: =Образование!EG58 -> 0 | EE64: =Образование!EH58 -> 0 | EF64: =Образование!EI58 -> 0 | EG64: =Образование!EJ58 -> 0 | EH64: =Образование!EK58 -> 0 | EI64: =Образование!EL58 -> 0 | EJ64: =Образование!EM58 -> 0 | EK64: =Образование!EN58 -> 0 | EL64: =Образование!EO58 -> 0 | EM64: =Образование!EP58 -> 0 | EN64: =Образование!EQ58 -> 0 | EO64: =Образование!ER58 -> 0 | EP64: =Образование!ES58 -> 0 | EQ64: =Образование!ET58 -> 0 | ER64: =Образование!EU58 -> 0 | ES64: =Образование!EV58 -> 0 | ET64: =Образование!EW58 -> 0 | EU64: =Образование!EX58 -> 0 | EV64: =Образование!EY58 -> 0 | EW64: =Образование!EZ58 -> 0 | EX64: =Образование!FA58 -> 0 | EY64: =Образование!FB58 -> 0 | EZ64: =Образование!FC58 -> 0 | FA64: =Образование!FD58 -> 0 | FB64: =Образование!FE58 -> 0 | FC64: =Образование!FF58 -> 0 | FD64: =Образование!FG58 -> 0 | FE64: =Образование!FH58 -> 0 | FF64: =Образование!FI58 -> 0
A65: 1.47 | B65: ОБРАЗОВАНИЕ | C65: =Образование!F59 -> 0 | D65: =Образование!G59 -> 0 | E65: =Образование!H59 -> 0 | F65: =Образование!I59 -> 0 | G65: =Образование!J59 -> 0 | H65: =Образование!K59 -> 0 | I65: =Образование!L59 -> 0 | J65: =Образование!M59 -> 0 | K65: =Образование!N59 -> 0 | L65: =Образование!O59 -> 0 | M65: =Образование!P59 -> 0 | N65: =Образование!Q59 -> 0 | O65: =Образование!R59 -> 0 | P65: =Образование!S59 -> 0 | Q65: =Образование!T59 -> 0 | R65: =Образование!U59 -> 0 | S65: =Образование!V59 -> 0 | T65: =Образование!W59 -> 0 | U65: =Образование!X59 -> 0 | V65: =Образование!Y59 -> 0 | W65: =Образование!Z59 -> 0 | X65: =Образование!AA59 -> 0 | Y65: =Образование!AB59 -> 0 | Z65: =Образование!AC59 -> 0 | AA65: =Образование!AD59 -> 0 | AB65: =Образование!AE59 ->  | AC65: =Образование!AF59 -> 0 | AD65: =Образование!AG59 -> 0 | AE65: =Образование!AH59 -> 0 | AF65: =Образование!AI59 -> 0 | AG65: =Образование!AJ59 -> 0 | AH65: =Образование!AK59 -> 0 | AI65: =Образование!AL59 -> 0 | AJ65: =Образование!AM59 -> 0 | AK65: =Образование!AN59 -> 0 | AL65: =Образование!AO59 -> 0 | AM65: =Образование!AP59 -> 0 | AN65: =Образование!AQ59 -> 0 | AO65: =Образование!AR59 -> 0 | AP65: =Образование!AS59 -> 0 | AQ65: =Образование!AT59 -> 0 | AR65: =Образование!AU59 -> 0 | AS65: =Образование!AV59 -> 0 | AT65: =Образование!AW59 -> 0 | AU65: =Образование!AX59 -> 0 | AV65: =Образование!AY59 -> 0 | AW65: =Образование!AZ59 -> 0 | AX65: =Образование!BA59 -> 0 | AY65: =Образование!BB59 -> 0 | AZ65: =Образование!BC59 -> 0 | BA65: =Образование!BD59 -> 0 | BB65: =Образование!BE59 -> 0 | BC65: =Образование!BF59 -> 0 | BD65: =Образование!BG59 -> 0 | BE65: =Образование!BH59 -> 0 | BF65: =Образование!BI59 -> 0 | BG65: =Образование!BJ59 -> 0 | BH65: =Образование!BK59 -> 0 | BI65: =Образование!BL59 -> 0 | BJ65: =Образование!BM59 -> 0 | BK65: =Образование!BN59 -> 0 | BL65: =Образование!BO59 -> 0 | BM65: =Образование!BP59 -> 0 | BN65: =Образование!BQ59 -> 0 | BO65: =Образование!BR59 -> 0 | BP65: =Образование!BS59 -> 0 | BQ65: =Образование!BT59 -> 0 | BR65: =Образование!BU59 -> 0 | BS65: =Образование!BV59 -> 0 | BT65: =Образование!BW59 -> 0 | BU65: =Образование!BX59 -> 0 | BV65: =Образование!BY59 -> 0 | BW65: =Образование!BZ59 -> 0 | BX65: =Образование!CA59 -> 0 | BY65: =Образование!CB59 -> 0 | BZ65: =Образование!CC59 -> 0 | CA65: =Образование!CD59 -> 0 | CB65: =Образование!CE59 -> 0 | CC65: =Образование!CF59 -> 0 | CD65: =Образование!CG59 -> 0 | CE65: =Образование!CH59 -> 0 | CF65: =Образование!CI59 -> 0 | CG65: =Образование!CJ59 -> 0 | CH65: =Образование!CK59 -> 0 | CI65: =Образование!CL59 -> 0 | CJ65: =Образование!CM59 -> 0 | CK65: =Образование!CN59 -> 0 | CL65: =Образование!CO59 -> 0 | CM65: =Образование!CP59 -> 0 | CN65: =Образование!CQ59 -> 0 | CO65: =Образование!CR59 -> 0 | CP65: =Образование!CS59 -> 0 | CQ65: =Образование!CT59 -> 0 | CR65: =Образование!CU59 -> 0 | CS65: =Образование!CV59 -> 0 | CT65: =Образование!CW59 -> 0 | CU65: =Образование!CX59 -> 0 | CV65: =Образование!CY59 -> 0 | CW65: =Образование!CZ59 -> 0 | CX65: =Образование!DA59 -> 0 | CY65: =Образование!DB59 -> 0 | CZ65: =Образование!DC59 -> 0 | DA65: =Образование!DD59 -> 0 | DB65: =Образование!DE59 -> 0 | DC65: =Образование!DF59 -> 0 | DD65: =Образование!DG59 -> 0 | DE65: =Образование!DH59 -> 0 | DF65: =Образование!DI59 -> 0 | DG65: =Образование!DJ59 -> 0 | DH65: =Образование!DK59 -> 0 | DI65: =Образование!DL59 -> 0 | DJ65: =Образование!DM59 -> 0 | DK65: =Образование!DN59 -> 0 | DL65: =Образование!DO59 -> 0 | DM65: =Образование!DP59 -> 0 | DN65: =Образование!DQ59 -> 0 | DO65: =Образование!DR59 -> 0 | DP65: =Образование!DS59 -> 0 | DQ65: =Образование!DT59 -> 0 | DR65: =Образование!DU59 -> 0 | DS65: =Образование!DV59 -> 0 | DT65: =Образование!DW59 -> 0 | DU65: =Образование!DX59 -> 0 | DV65: =Образование!DY59 -> 0 | DW65: =Образование!DZ59 -> 0 | DX65: =Образование!EA59 -> 0 | DY65: =Образование!EB59 -> 0 | DZ65: =Образование!EC59 -> 0 | EA65: =Образование!ED59 -> 0 | EB65: =Образование!EE59 -> 0 | EC65: =Образование!EF59 -> 0 | ED65: =Образование!EG59 -> 0 | EE65: =Образование!EH59 -> 0 | EF65: =Образование!EI59 -> 0 | EG65: =Образование!EJ59 -> 0 | EH65: =Образование!EK59 -> 0 | EI65: =Образование!EL59 -> 0 | EJ65: =Образование!EM59 -> 0 | EK65: =Образование!EN59 -> 0 | EL65: =Образование!EO59 -> 0 | EM65: =Образование!EP59 -> 0 | EN65: =Образование!EQ59 -> 0 | EO65: =Образование!ER59 -> 0 | EP65: =Образование!ES59 -> 0 | EQ65: =Образование!ET59 -> 0 | ER65: =Образование!EU59 -> 0 | ES65: =Образование!EV59 -> 0 | ET65: =Образование!EW59 -> 0 | EU65: =Образование!EX59 -> 0 | EV65: =Образование!EY59 -> 0 | EW65: =Образование!EZ59 -> 0 | EX65: =Образование!FA59 -> 0 | EY65: =Образование!FB59 -> 0 | EZ65: =Образование!FC59 -> 0 | FA65: =Образование!FD59 -> 0 | FB65: =Образование!FE59 -> 0 | FC65: =Образование!FF59 -> 0 | FD65: =Образование!FG59 -> 0 | FE65: =Образование!FH59 -> 0 | FF65: =Образование!FI59 -> 0
A66: 1.48 | B66: ОБРАЗОВАНИЕ | C66: =Образование!F60 -> 0 | D66: =Образование!G60 -> 0 | E66: =Образование!H60 -> 0 | F66: =Образование!I60 -> 0 | G66: =Образование!J60 -> 0 | H66: =Образование!K60 -> 0 | I66: =Образование!L60 -> 0 | J66: =Образование!M60 -> 0 | K66: =Образование!N60 -> 0 | L66: =Образование!O60 -> 0 | M66: =Образование!P60 -> 0 | N66: =Образование!Q60 -> 0 | O66: =Образование!R60 -> 0 | P66: =Образование!S60 -> 0 | Q66: =Образование!T60 -> 0 | R66: =Образование!U60 -> 0 | S66: =Образование!V60 -> 0 | T66: =Образование!W60 -> 0 | U66: =Образование!X60 -> 0 | V66: =Образование!Y60 -> 0 | W66: =Образование!Z60 -> 0 | X66: =Образование!AA60 -> 0 | Y66: =Образование!AB60 -> 0 | Z66: =Образование!AC60 -> 0 | AA66: =Образование!AD60 -> 0 | AB66: =Образование!AE60 ->  | AC66: =Образование!AF60 -> 0 | AD66: =Образование!AG60 -> 0 | AE66: =Образование!AH60 -> 0 | AF66: =Образование!AI60 -> 0 | AG66: =Образование!AJ60 -> 0 | AH66: =Образование!AK60 -> 0 | AI66: =Образование!AL60 -> 0 | AJ66: =Образование!AM60 -> 0 | AK66: =Образование!AN60 -> 0 | AL66: =Образование!AO60 -> 0 | AM66: =Образование!AP60 -> 0 | AN66: =Образование!AQ60 -> 0 | AO66: =Образование!AR60 -> 0 | AP66: =Образование!AS60 -> 0 | AQ66: =Образование!AT60 -> 0 | AR66: =Образование!AU60 -> 0 | AS66: =Образование!AV60 -> 0 | AT66: =Образование!AW60 -> 0 | AU66: =Образование!AX60 -> 0 | AV66: =Образование!AY60 -> 0 | AW66: =Образование!AZ60 -> 0 | AX66: =Образование!BA60 -> 0 | AY66: =Образование!BB60 -> 0 | AZ66: =Образование!BC60 -> 0 | BA66: =Образование!BD60 -> 0 | BB66: =Образование!BE60 -> 0 | BC66: =Образование!BF60 -> 0 | BD66: =Образование!BG60 -> 0 | BE66: =Образование!BH60 -> 0 | BF66: =Образование!BI60 -> 0 | BG66: =Образование!BJ60 -> 0 | BH66: =Образование!BK60 -> 0 | BI66: =Образование!BL60 -> 0 | BJ66: =Образование!BM60 -> 0 | BK66: =Образование!BN60 -> 0 | BL66: =Образование!BO60 -> 0 | BM66: =Образование!BP60 -> 0 | BN66: =Образование!BQ60 -> 0 | BO66: =Образование!BR60 -> 0 | BP66: =Образование!BS60 -> 0 | BQ66: =Образование!BT60 -> 0 | BR66: =Образование!BU60 -> 0 | BS66: =Образование!BV60 -> 0 | BT66: =Образование!BW60 -> 0 | BU66: =Образование!BX60 -> 0 | BV66: =Образование!BY60 -> 0 | BW66: =Образование!BZ60 -> 0 | BX66: =Образование!CA60 -> 0 | BY66: =Образование!CB60 -> 0 | BZ66: =Образование!CC60 -> 0 | CA66: =Образование!CD60 -> 0 | CB66: =Образование!CE60 -> 0 | CC66: =Образование!CF60 -> 0 | CD66: =Образование!CG60 -> 0 | CE66: =Образование!CH60 -> 0 | CF66: =Образование!CI60 -> 0 | CG66: =Образование!CJ60 -> 0 | CH66: =Образование!CK60 -> 0 | CI66: =Образование!CL60 -> 0 | CJ66: =Образование!CM60 -> 0 | CK66: =Образование!CN60 -> 0 | CL66: =Образование!CO60 -> 0 | CM66: =Образование!CP60 -> 0 | CN66: =Образование!CQ60 -> 0 | CO66: =Образование!CR60 -> 0 | CP66: =Образование!CS60 -> 0 | CQ66: =Образование!CT60 -> 0 | CR66: =Образование!CU60 -> 0 | CS66: =Образование!CV60 -> 0 | CT66: =Образование!CW60 -> 0 | CU66: =Образование!CX60 -> 0 | CV66: =Образование!CY60 -> 0 | CW66: =Образование!CZ60 -> 0 | CX66: =Образование!DA60 -> 0 | CY66: =Образование!DB60 -> 0 | CZ66: =Образование!DC60 -> 0 | DA66: =Образование!DD60 -> 0 | DB66: =Образование!DE60 -> 0 | DC66: =Образование!DF60 -> 0 | DD66: =Образование!DG60 -> 0 | DE66: =Образование!DH60 -> 0 | DF66: =Образование!DI60 -> 0 | DG66: =Образование!DJ60 -> 0 | DH66: =Образование!DK60 -> 0 | DI66: =Образование!DL60 -> 0 | DJ66: =Образование!DM60 -> 0 | DK66: =Образование!DN60 -> 0 | DL66: =Образование!DO60 -> 0 | DM66: =Образование!DP60 -> 0 | DN66: =Образование!DQ60 -> 0 | DO66: =Образование!DR60 -> 0 | DP66: =Образование!DS60 -> 0 | DQ66: =Образование!DT60 -> 0 | DR66: =Образование!DU60 -> 0 | DS66: =Образование!DV60 -> 0 | DT66: =Образование!DW60 -> 0 | DU66: =Образование!DX60 -> 0 | DV66: =Образование!DY60 -> 0 | DW66: =Образование!DZ60 -> 0 | DX66: =Образование!EA60 -> 0 | DY66: =Образование!EB60 -> 0 | DZ66: =Образование!EC60 -> 0 | EA66: =Образование!ED60 -> 0 | EB66: =Образование!EE60 -> 0 | EC66: =Образование!EF60 -> 0 | ED66: =Образование!EG60 -> 0 | EE66: =Образование!EH60 -> 0 | EF66: =Образование!EI60 -> 0 | EG66: =Образование!EJ60 -> 0 | EH66: =Образование!EK60 -> 0 | EI66: =Образование!EL60 -> 0 | EJ66: =Образование!EM60 -> 0 | EK66: =Образование!EN60 -> 0 | EL66: =Образование!EO60 -> 0 | EM66: =Образование!EP60 -> 0 | EN66: =Образование!EQ60 -> 0 | EO66: =Образование!ER60 -> 0 | EP66: =Образование!ES60 -> 0 | EQ66: =Образование!ET60 -> 0 | ER66: =Образование!EU60 -> 0 | ES66: =Образование!EV60 -> 0 | ET66: =Образование!EW60 -> 0 | EU66: =Образование!EX60 -> 0 | EV66: =Образование!EY60 -> 0 | EW66: =Образование!EZ60 -> 0 | EX66: =Образование!FA60 -> 0 | EY66: =Образование!FB60 -> 0 | EZ66: =Образование!FC60 -> 0 | FA66: =Образование!FD60 -> 0 | FB66: =Образование!FE60 -> 0 | FC66: =Образование!FF60 -> 0 | FD66: =Образование!FG60 -> 0 | FE66: =Образование!FH60 -> 0 | FF66: =Образование!FI60 -> 0
A67: 1.49 | B67: ОБРАЗОВАНИЕ | C67: =Образование!F61 -> 0 | D67: =Образование!G61 -> 0 | E67: =Образование!H61 -> 0 | F67: =Образование!I61 -> 0 | G67: =Образование!J61 -> 0 | H67: =Образование!K61 -> 0 | I67: =Образование!L61 -> 0 | J67: =Образование!M61 -> 0 | K67: =Образование!N61 -> 0 | L67: =Образование!O61 -> 0 | M67: =Образование!P61 -> 0 | N67: =Образование!Q61 -> 0 | O67: =Образование!R61 -> 0 | P67: =Образование!S61 -> 0 | Q67: =Образование!T61 -> 0 | R67: =Образование!U61 -> 0 | S67: =Образование!V61 -> 0 | T67: =Образование!W61 -> 0 | U67: =Образование!X61 -> 0 | V67: =Образование!Y61 -> 0 | W67: =Образование!Z61 -> 0 | X67: =Образование!AA61 -> 0 | Y67: =Образование!AB61 -> 0 | Z67: =Образование!AC61 -> 0 | AA67: =Образование!AD61 -> 0 | AB67: =Образование!AE61 ->  | AC67: =Образование!AF61 -> 0 | AD67: =Образование!AG61 -> 0 | AE67: =Образование!AH61 -> 0 | AF67: =Образование!AI61 -> 0 | AG67: =Образование!AJ61 -> 0 | AH67: =Образование!AK61 -> 0 | AI67: =Образование!AL61 -> 0 | AJ67: =Образование!AM61 -> 0 | AK67: =Образование!AN61 -> 0 | AL67: =Образование!AO61 -> 0 | AM67: =Образование!AP61 -> 0 | AN67: =Образование!AQ61 -> 0 | AO67: =Образование!AR61 -> 0 | AP67: =Образование!AS61 -> 0 | AQ67: =Образование!AT61 -> 0 | AR67: =Образование!AU61 -> 0 | AS67: =Образование!AV61 -> 0 | AT67: =Образование!AW61 -> 0 | AU67: =Образование!AX61 -> 0 | AV67: =Образование!AY61 -> 0 | AW67: =Образование!AZ61 -> 0 | AX67: =Образование!BA61 -> 0 | AY67: =Образование!BB61 -> 0 | AZ67: =Образование!BC61 -> 0 | BA67: =Образование!BD61 -> 0 | BB67: =Образование!BE61 -> 0 | BC67: =Образование!BF61 -> 0 | BD67: =Образование!BG61 -> 0 | BE67: =Образование!BH61 -> 0 | BF67: =Образование!BI61 -> 0 | BG67: =Образование!BJ61 -> 0 | BH67: =Образование!BK61 -> 0 | BI67: =Образование!BL61 -> 0 | BJ67: =Образование!BM61 -> 0 | BK67: =Образование!BN61 -> 0 | BL67: =Образование!BO61 -> 0 | BM67: =Образование!BP61 -> 0 | BN67: =Образование!BQ61 -> 0 | BO67: =Образование!BR61 -> 0 | BP67: =Образование!BS61 -> 0 | BQ67: =Образование!BT61 -> 0 | BR67: =Образование!BU61 -> 0 | BS67: =Образование!BV61 -> 0 | BT67: =Образование!BW61 -> 0 | BU67: =Образование!BX61 -> 0 | BV67: =Образование!BY61 -> 0 | BW67: =Образование!BZ61 -> 0 | BX67: =Образование!CA61 -> 0 | BY67: =Образование!CB61 -> 0 | BZ67: =Образование!CC61 -> 0 | CA67: =Образование!CD61 -> 0 | CB67: =Образование!CE61 -> 0 | CC67: =Образование!CF61 -> 0 | CD67: =Образование!CG61 -> 0 | CE67: =Образование!CH61 -> 0 | CF67: =Образование!CI61 -> 0 | CG67: =Образование!CJ61 -> 0 | CH67: =Образование!CK61 -> 0 | CI67: =Образование!CL61 -> 0 | CJ67: =Образование!CM61 -> 0 | CK67: =Образование!CN61 -> 0 | CL67: =Образование!CO61 -> 0 | CM67: =Образование!CP61 -> 0 | CN67: =Образование!CQ61 -> 0 | CO67: =Образование!CR61 -> 0 | CP67: =Образование!CS61 -> 0 | CQ67: =Образование!CT61 -> 0 | CR67: =Образование!CU61 -> 0 | CS67: =Образование!CV61 -> 0 | CT67: =Образование!CW61 -> 0 | CU67: =Образование!CX61 -> 0 | CV67: =Образование!CY61 -> 0 | CW67: =Образование!CZ61 -> 0 | CX67: =Образование!DA61 -> 0 | CY67: =Образование!DB61 -> 0 | CZ67: =Образование!DC61 -> 0 | DA67: =Образование!DD61 -> 0 | DB67: =Образование!DE61 -> 0 | DC67: =Образование!DF61 -> 0 | DD67: =Образование!DG61 -> 0 | DE67: =Образование!DH61 -> 0 | DF67: =Образование!DI61 -> 0 | DG67: =Образование!DJ61 -> 0 | DH67: =Образование!DK61 -> 0 | DI67: =Образование!DL61 -> 0 | DJ67: =Образование!DM61 -> 0 | DK67: =Образование!DN61 -> 0 | DL67: =Образование!DO61 -> 0 | DM67: =Образование!DP61 -> 0 | DN67: =Образование!DQ61 -> 0 | DO67: =Образование!DR61 -> 0 | DP67: =Образование!DS61 -> 0 | DQ67: =Образование!DT61 -> 0 | DR67: =Образование!DU61 -> 0 | DS67: =Образование!DV61 -> 0 | DT67: =Образование!DW61 -> 0 | DU67: =Образование!DX61 -> 0 | DV67: =Образование!DY61 -> 0 | DW67: =Образование!DZ61 -> 0 | DX67: =Образование!EA61 -> 0 | DY67: =Образование!EB61 -> 0 | DZ67: =Образование!EC61 -> 0 | EA67: =Образование!ED61 -> 0 | EB67: =Образование!EE61 -> 0 | EC67: =Образование!EF61 -> 0 | ED67: =Образование!EG61 -> 0 | EE67: =Образование!EH61 -> 0 | EF67: =Образование!EI61 -> 0 | EG67: =Образование!EJ61 -> 0 | EH67: =Образование!EK61 -> 0 | EI67: =Образование!EL61 -> 0 | EJ67: =Образование!EM61 -> 0 | EK67: =Образование!EN61 -> 0 | EL67: =Образование!EO61 -> 0 | EM67: =Образование!EP61 -> 0 | EN67: =Образование!EQ61 -> 0 | EO67: =Образование!ER61 -> 0 | EP67: =Образование!ES61 -> 0 | EQ67: =Образование!ET61 -> 0 | ER67: =Образование!EU61 -> 0 | ES67: =Образование!EV61 -> 0 | ET67: =Образование!EW61 -> 0 | EU67: =Образование!EX61 -> 0 | EV67: =Образование!EY61 -> 0 | EW67: =Образование!EZ61 -> 0 | EX67: =Образование!FA61 -> 0 | EY67: =Образование!FB61 -> 0 | EZ67: =Образование!FC61 -> 0 | FA67: =Образование!FD61 -> 0 | FB67: =Образование!FE61 -> 0 | FC67: =Образование!FF61 -> 0 | FD67: =Образование!FG61 -> 0 | FE67: =Образование!FH61 -> 0 | FF67: =Образование!FI61 -> 0
A68: 1.50 | B68: ОБРАЗОВАНИЕ | C68: =Образование!F62 -> 0 | D68: =Образование!G62 -> 0 | E68: =Образование!H62 -> 0 | F68: =Образование!I62 -> 0 | G68: =Образование!J62 -> 0 | H68: =Образование!K62 -> 0 | I68: =Образование!L62 -> 0 | J68: =Образование!M62 -> 0 | K68: =Образование!N62 -> 0 | L68: =Образование!O62 -> 0 | M68: =Образование!P62 -> 0 | N68: =Образование!Q62 -> 0 | O68: =Образование!R62 -> 0 | P68: =Образование!S62 -> 0 | Q68: =Образование!T62 -> 0 | R68: =Образование!U62 -> 0 | S68: =Образование!V62 -> 0 | T68: =Образование!W62 -> 0 | U68: =Образование!X62 -> 0 | V68: =Образование!Y62 -> 0 | W68: =Образование!Z62 -> 0 | X68: =Образование!AA62 -> 0 | Y68: =Образование!AB62 -> 0 | Z68: =Образование!AC62 -> 0 | AA68: =Образование!AD62 -> 0 | AB68: =Образование!AE62 ->  | AC68: =Образование!AF62 -> 0 | AD68: =Образование!AG62 -> 0 | AE68: =Образование!AH62 -> 0 | AF68: =Образование!AI62 -> 0 | AG68: =Образование!AJ62 -> 0 | AH68: =Образование!AK62 -> 0 | AI68: =Образование!AL62 -> 0 | AJ68: =Образование!AM62 -> 0 | AK68: =Образование!AN62 -> 0 | AL68: =Образование!AO62 -> 0 | AM68: =Образование!AP62 -> 0 | AN68: =Образование!AQ62 -> 0 | AO68: =Образование!AR62 -> 0 | AP68: =Образование!AS62 -> 0 | AQ68: =Образование!AT62 -> 0 | AR68: =Образование!AU62 -> 0 | AS68: =Образование!AV62 -> 0 | AT68: =Образование!AW62 -> 0 | AU68: =Образование!AX62 -> 0 | AV68: =Образование!AY62 -> 0 | AW68: =Образование!AZ62 -> 0 | AX68: =Образование!BA62 -> 0 | AY68: =Образование!BB62 -> 0 | AZ68: =Образование!BC62 -> 0 | BA68: =Образование!BD62 -> 0 | BB68: =Образование!BE62 -> 0 | BC68: =Образование!BF62 -> 0 | BD68: =Образование!BG62 -> 0 | BE68: =Образование!BH62 -> 0 | BF68: =Образование!BI62 -> 0 | BG68: =Образование!BJ62 -> 0 | BH68: =Образование!BK62 -> 0 | BI68: =Образование!BL62 -> 0 | BJ68: =Образование!BM62 -> 0 | BK68: =Образование!BN62 -> 0 | BL68: =Образование!BO62 -> 0 | BM68: =Образование!BP62 -> 0 | BN68: =Образование!BQ62 -> 0 | BO68: =Образование!BR62 -> 0 | BP68: =Образование!BS62 -> 0 | BQ68: =Образование!BT62 -> 0 | BR68: =Образование!BU62 -> 0 | BS68: =Образование!BV62 -> 0 | BT68: =Образование!BW62 -> 0 | BU68: =Образование!BX62 -> 0 | BV68: =Образование!BY62 -> 0 | BW68: =Образование!BZ62 -> 0 | BX68: =Образование!CA62 -> 0 | BY68: =Образование!CB62 -> 0 | BZ68: =Образование!CC62 -> 0 | CA68: =Образование!CD62 -> 0 | CB68: =Образование!CE62 -> 0 | CC68: =Образование!CF62 -> 0 | CD68: =Образование!CG62 -> 0 | CE68: =Образование!CH62 -> 0 | CF68: =Образование!CI62 -> 0 | CG68: =Образование!CJ62 -> 0 | CH68: =Образование!CK62 -> 0 | CI68: =Образование!CL62 -> 0 | CJ68: =Образование!CM62 -> 0 | CK68: =Образование!CN62 -> 0 | CL68: =Образование!CO62 -> 0 | CM68: =Образование!CP62 -> 0 | CN68: =Образование!CQ62 -> 0 | CO68: =Образование!CR62 -> 0 | CP68: =Образование!CS62 -> 0 | CQ68: =Образование!CT62 -> 0 | CR68: =Образование!CU62 -> 0 | CS68: =Образование!CV62 -> 0 | CT68: =Образование!CW62 -> 0 | CU68: =Образование!CX62 -> 0 | CV68: =Образование!CY62 -> 0 | CW68: =Образование!CZ62 -> 0 | CX68: =Образование!DA62 -> 0 | CY68: =Образование!DB62 -> 0 | CZ68: =Образование!DC62 -> 0 | DA68: =Образование!DD62 -> 0 | DB68: =Образование!DE62 -> 0 | DC68: =Образование!DF62 -> 0 | DD68: =Образование!DG62 -> 0 | DE68: =Образование!DH62 -> 0 | DF68: =Образование!DI62 -> 0 | DG68: =Образование!DJ62 -> 0 | DH68: =Образование!DK62 -> 0 | DI68: =Образование!DL62 -> 0 | DJ68: =Образование!DM62 -> 0 | DK68: =Образование!DN62 -> 0 | DL68: =Образование!DO62 -> 0 | DM68: =Образование!DP62 -> 0 | DN68: =Образование!DQ62 -> 0 | DO68: =Образование!DR62 -> 0 | DP68: =Образование!DS62 -> 0 | DQ68: =Образование!DT62 -> 0 | DR68: =Образование!DU62 -> 0 | DS68: =Образование!DV62 -> 0 | DT68: =Образование!DW62 -> 0 | DU68: =Образование!DX62 -> 0 | DV68: =Образование!DY62 -> 0 | DW68: =Образование!DZ62 -> 0 | DX68: =Образование!EA62 -> 0 | DY68: =Образование!EB62 -> 0 | DZ68: =Образование!EC62 -> 0 | EA68: =Образование!ED62 -> 0 | EB68: =Образование!EE62 -> 0 | EC68: =Образование!EF62 -> 0 | ED68: =Образование!EG62 -> 0 | EE68: =Образование!EH62 -> 0 | EF68: =Образование!EI62 -> 0 | EG68: =Образование!EJ62 -> 0 | EH68: =Образование!EK62 -> 0 | EI68: =Образование!EL62 -> 0 | EJ68: =Образование!EM62 -> 0 | EK68: =Образование!EN62 -> 0 | EL68: =Образование!EO62 -> 0 | EM68: =Образование!EP62 -> 0 | EN68: =Образование!EQ62 -> 0 | EO68: =Образование!ER62 -> 0 | EP68: =Образование!ES62 -> 0 | EQ68: =Образование!ET62 -> 0 | ER68: =Образование!EU62 -> 0 | ES68: =Образование!EV62 -> 0 | ET68: =Образование!EW62 -> 0 | EU68: =Образование!EX62 -> 0 | EV68: =Образование!EY62 -> 0 | EW68: =Образование!EZ62 -> 0 | EX68: =Образование!FA62 -> 0 | EY68: =Образование!FB62 -> 0 | EZ68: =Образование!FC62 -> 0 | FA68: =Образование!FD62 -> 0 | FB68: =Образование!FE62 -> 0 | FC68: =Образование!FF62 -> 0 | FD68: =Образование!FG62 -> 0 | FE68: =Образование!FH62 -> 0 | FF68: =Образование!FI62 -> 0
